Workbook

Sheet Dashboard
B2: SPEAKER SETUP | D2: 1 | F2: ARRAY PARAMETERS | J2: INPUT DATA | L2: speakers (MAX 12) | N2: 1 | O2: =IF(D2=4,"DISABLED","") ->  | P2: block level | Q2: =20*LOG(MIN(SUM(K5:K16),N2)) -> 0 | S2: OUTPUT DATA | U2: speakers (MAX 12) | W2: =Setups!G80 -> 1 | Y2: block level | Z2: =Setups!J80 -> 0 | AB2: POSITION CTRL | AF2: ENVIRONMENT
B4: 1. Physical hor. array | F4: ="spacing "&INDEX('Plot & Label'!D3:D7,Dashboard!D2)&" (m)" -> spacing 180° (m) | H4: 1 | J4: no. | K4: on / off | L4: x (m) | M4: y (m) | N4: rot (°) | O4: level (dB) | P4: t (ms) | Q4: pol inv | S4: no. | T4: on / off | U4: x (m) | V4: y (m) | W4: rot (°) | X4: level (dB) | Y4: t (ms) | Z4: pol inv | AB4: show mics | AD4: 1 | AF4: temp (°C) | AH4: 14
B5: 2. Delayed hor. array | J5: 1 | K5: 1 | L5: 0 | M5: 0 | N5: 0 | O5: 0 | P5: 0 | Q5: 0 | S5: 1 | T5: =Setups!D83 -> 1 | U5: =Setups!E83 -> 0 | V5: =Setups!F83 -> 0 | W5: =Setups!G83 -> 0 | X5: =Setups!H83 -> 0 | Y5: =Setups!I83 -> 0 | Z5: =Setups!J83 -> 0
B6: 3. End-Fire | F6: horizontal array only | J6: 2 | K6: 1 | L6: 0 | M6: 0 | N6: 0 | O6: 0 | P6: 0 | Q6: 0 | S6: 2 | T6: =Setups!D84 -> 0 | U6: =Setups!E84 -> 0 | V6: =Setups!F84 -> 0 | W6: =Setups!G84 -> 0 | X6: =Setups!H84 -> 0 | Y6: =Setups!I84 -> 0 | Z6: =Setups!J84 -> 0 | AB6: show lines | AD6: 1 | AF6: c (m/s) | AH6: =331.4+(0.607*$AH$4) -> 339.898
B7: 4. Gradient | G7: FAR | J7: 3 | K7: 1 | L7: 0 | M7: 0 | N7: 0 | O7: 0 | P7: 0 | Q7: 0 | S7: 3 | T7: =Setups!D85 -> 0 | U7: =Setups!E85 -> 0 | V7: =Setups!F85 -> 0 | W7: =Setups!G85 -> 0 | X7: =Setups!H85 -> 0 | Y7: =Setups!I85 -> 0 | Z7: =Setups!J85 -> 0
F8: arc | G8: =IFERROR(1/SIN(RADIANS($H$8/2)),NA()) -> 2 | H8: 60 | J8: 4 | K8: 1 | L8: 0 | M8: 0 | N8: 0 | O8: 0 | P8: 0 | Q8: 0 | S8: 4 | T8: =Setups!D86 -> 0 | U8: =Setups!E86 -> 0 | V8: =Setups!F86 -> 0 | W8: =Setups!G86 -> 0 | X8: =Setups!H86 -> 0 | Y8: =Setups!I86 -> 0 | Z8: =Setups!J86 -> 0
B9: SPEAKER PATTERN | D9: 1 | F9: orientate speakers | H9: 0 | J9: 5 | K9: 1 | L9: 0 | M9: 0 | N9: 0 | O9: 0 | P9: 0 | Q9: 0 | S9: 5 | T9: =Setups!D87 -> 0 | U9: =Setups!E87 -> 0 | V9: =Setups!F87 -> 0 | W9: =Setups!G87 -> 0 | X9: =Setups!H87 -> 0 | Y9: =Setups!I87 -> 0 | Z9: =Setups!J87 -> 0
F10: =IF(D2>2,"ARC DISABLED","") ->  | J10: 6 | K10: 1 | L10: 0 | M10: 0 | N10: 0 | O10: 0 | P10: 0 | Q10: 0 | S10: 6 | T10: =Setups!D88 -> 0 | U10: =Setups!E88 -> 0 | V10: =Setups!F88 -> 0 | W10: =Setups!G88 -> 0 | X10: =Setups!H88 -> 0 | Y10: =Setups!I88 -> 0 | Z10: =Setups!J88 -> 0
B11: 1. Omni | C11: B2F | D11: 0 | F11: FILTERS | J11: 7 | K11: 1 | L11: 0 | M11: 0 | N11: 0 | O11: 0 | P11: 0 | Q11: 0 | S11: 7 | T11: =Setups!D89 -> 0 | U11: =Setups!E89 -> 0 | V11: =Setups!F89 -> 0 | W11: =Setups!G89 -> 0 | X11: =Setups!H89 -> 0 | Y11: =Setups!I89 -> 0 | Z11: =Setups!J89 -> 0
B12: =IF(AND($D$2>2,$D$9>1),"CAUTION, SPK PATTERN NOT OMNI","") ->  | J12: 8 | K12: 1 | L12: 0 | M12: 0 | N12: 0 | O12: 0 | P12: 0 | Q12: 0 | S12: 8 | T12: =Setups!D90 -> 0 | U12: =Setups!E90 -> 0 | V12: =Setups!F90 -> 0 | W12: =Setups!G90 -> 0 | X12: =Setups!H90 -> 0 | Y12: =Setups!I90 -> 0 | Z12: =Setups!J90 -> 0
B13: horizontal array only | G13: HPF | H13: LPF | J13: 9 | K13: 1 | L13: 0 | M13: 0 | N13: 0 | O13: 0 | P13: 0 | Q13: 0 | S13: 9 | T13: =Setups!D91 -> 0 | U13: =Setups!E91 -> 0 | V13: =Setups!F91 -> 0 | W13: =Setups!G91 -> 0 | X13: =Setups!H91 -> 0 | Y13: =Setups!I91 -> 0 | Z13: =Setups!J91 -> 0
F14: freq | G14: 0 | H14: 20000 | J14: 10 | K14: 1 | L14: 0 | M14: 0 | N14: 0 | O14: 0 | P14: 0 | Q14: 0 | S14: 10 | T14: =Setups!D92 -> 0 | U14: =Setups!E92 -> 0 | V14: =Setups!F92 -> 0 | W14: =Setups!G92 -> 0 | X14: =Setups!H92 -> 0 | Y14: =Setups!I92 -> 0 | Z14: =Setups!J92 -> 0
B15: 2. Cardioid | F15: order | G15: 8 | H15: 4 | J15: 11 | K15: 1 | L15: 0 | M15: 0 | N15: 0 | O15: 0 | P15: 0 | Q15: 0 | S15: 11 | T15: =Setups!D93 -> 0 | U15: =Setups!E93 -> 0 | V15: =Setups!F93 -> 0 | W15: =Setups!G93 -> 0 | X15: =Setups!H93 -> 0 | Y15: =Setups!I93 -> 0 | Z15: =Setups!J93 -> 0
B16: 3. Super-Cardioid | F16: slope | G16: =G15*6 -> 48 | H16: =H15*6 -> 24 | J16: 12 | K16: 1 | L16: 0 | M16: 0 | N16: 0 | O16: 0 | P16: 0 | Q16: 0 | S16: 12 | T16: =Setups!D94 -> 0 | U16: =Setups!E94 -> 0 | V16: =Setups!F94 -> 0 | W16: =Setups!G94 -> 0 | X16: =Setups!H94 -> 0 | Y16: =Setups!I94 -> 0 | Z16: =Setups!J94 -> 0
B17: 4. Figure Eight
B19: INFO | F19: r | G19: =IFERROR(360/$H$8*(Setups!$G$80-1)*$H$4/$G$25,0) -> 0 | I19: a | J19: b
B20: =INDEX('Plot & Label'!D32:H32,Dashboard!$D$2) -> array length (m) | D20: =INDEX('Plot & Label'!J32:N32,Dashboard!$D$2) -> 1 | F20: origin | G20: =-$G$19 -> 0
B21: =INDEX('Plot & Label'!D33:H33,Dashboard!$D$2) -> array 1λ | D21: =INDEX('Plot & Label'!J33:N33,Dashboard!$D$2) -> 339.898 | I21: =$G$27 -> 1 | J21: =1-I21 -> 0
B22: =INDEX('Plot & Label'!D34:H34,Dashboard!$D$2) -> spk dist 180° | D22: =INDEX('Plot & Label'!J34:N34,Dashboard!$D$2) -> 169.949 | F22: silence | G22: -50 | I22: 1 | J22: =J21 -> 0
B23: =INDEX('Plot & Label'!D35:H35,Dashboard!$D$2) -> spk dist 240° | D23: =INDEX('Plot & Label'!J35:N35,Dashboard!$D$2) -> 226.5986667 | F23: silence log | G23: =20*LOG(10^$G$22) -> -1000 | I23: 1 | J23: 0
B24: =INDEX('Plot & Label'!D36:H36,Dashboard!$D$2) -> spk dist 360° | D24: =INDEX('Plot & Label'!J36:N36,Dashboard!$D$2) -> 339.898 | F24: pi | G24: 3.141592654 | I24: 1 | J24: 0
B25: =INDEX('Plot & Label'!D37:H37,Dashboard!$D$2) -> -6 dB ONAX | D25: =INDEX('Plot & Label'!J37:N37,Dashboard!$D$2) -> 252 Hz 0,7 λ | F25: 2pi | G25: 6.283185307 | I25: 1 | J25: 0
B26: =INDEX('Plot & Label'!D38:H38,Dashboard!$D$2) -> max angle | D26: =INDEX('Plot & Label'!J38:N38,Dashboard!$D$2) -> 40 ° (40 °) 0 dB @ 252 Hz | I26: 1 | J26: 0
B27: =IF(AND($D$2>2,$AH$35<>180),"FOR CORRECT INFO SET MIC ARC 180°","") ->  | F27: pattern | G27: =INDEX($G$29:$G$32,$D$9,1) -> 1 | I27: 1 | J27: 0
B28: LEVEL (SUMMED) CTRL | I28: 1 | J28: 0
F29: 1. Omni | G29: =(10^($D$11/20)+1)/2 -> 1 | I29: 1 | J29: 0
B30: trace | C30: proximity | D30: display | F30: 2. Cardioid | G30: 0.5 | I30: 1 | J30: 0
F31: 3. Super-Cardioid | G31: 0.375 | I31: 1 | J31: 0 | AH31: 1
B32: ="1 mic "&ROUND(Calc_Transfer!E3,1)&"°" -> 1 mic 0° | C32: ="spk "&IF(D2>2,Calc_Transfer!$E$37,IF(ISEVEN(W2),Calc_Transfer!$E$37&" & "&Calc_Transfer!$E$37+1,Calc_Transfer!$E$37)) -> spk 1 | D32: 1 | F32: 4. Figure Eight | G32: 0 | I32: 1 | J32: 0
B33: ="2 mic "&ROUND(Calc_Transfer!BC3,1)&"°" -> 2 mic 5° | C33: ="spk "&Calc_Transfer!$BC$37 -> spk 1 | D33: 1 | AB33: PREDICTION PLANE | AF33: MIC SETUP | AH33: 1
B34: ="3 mic "&ROUND(Calc_Transfer!DA3,1)&"°" -> 3 mic 10° | C34: ="spk "&Calc_Transfer!$DA$37 -> spk 1 | D34: 1 | AC34: x | AD34: y | AF34: =IF(AND($AH$33>1,$D$2>2),"ERROR, SELECT ARC","") -> 
B35: ="4 mic "&ROUND(Calc_Transfer!EY3,1)&"°" -> 4 mic 15° | C35: ="spk "&Calc_Transfer!$EY$37 -> spk 1 | D35: 1 | AB35: size | AC35: 50 | AD35: =AC35 -> 50 | AF35: 1. Arc | AG35: FAR | AH35: 30 | AI35: =IF(AND(D2<3,AH35<>Setups!D107/2,AH33<>1),"CAUTION, VALUE DOESN'T MATCH HALF MAX ANGLE EQUIVALENT","") -> 
B36: ="5 mic "&ROUND(Calc_Transfer!GW3,1)&"°" -> 5 mic 20° | C36: ="spk "&Calc_Transfer!$GW$37 -> spk 1 | D36: 1 | AB36: shift | AC36: 0 | AD36: 0 | AG36: =IFERROR(1/SIN(RADIANS($AH$35)),"NA") -> 2 | AH36: ="("&ROUND(2*$AH$35,1)&"°)" -> (60°)
B37: ="6 mic "&ROUND(Calc_Transfer!IU3,1)&"°" -> 6 mic 25° | C37: ="spk "&Calc_Transfer!$IU$37 -> spk 1 | D37: 1 | AF37: horizontal array only
B38: ="7 mic "&ROUND(Calc_Transfer!KS3,1)&"°" -> 7 mic 30° | C38: ="spk "&Calc_Transfer!$KS$37 -> spk 1 | D38: 1 | AB38: freq | AD38: 100
AF39: 2. Array
B40: 8 block level | D40: 1 | AB40: normalize | AC40: 1 | AD40: 1 | AF40: 3. Edge
AB41: ="1. Speaker(s) ("&Calc_2D!QT435&" dB)" -> 1. Speaker(s) (1,1 dB) | AF41: 4. Exponential 72°
D42: trace | AB42: ="2. Mic 1 ("&Calc_2D!QT436&" dB)" -> 2. Mic 1 (0 dB)
B43: normalize | C43: 0 | D43: 1 | AB43: offset (dB) | AC43: 0 | AD43: 0 | AF43: GLOBAL RADIUS (FOH) | AH43: 25
B44: =IF(OR(D43>8,D43<1),"ERROR, ONLY 1 THRU 8","") -> 
B45: LEVEL & PHASE (INDIVIDUAL) CTRL | AB45: POLAR CTRL | AF45: SCALE | AG45: 24 | AH45: (mult. of 6) | AI45: =IF(INT(AG45/6)=(AG45/6),"","ERROR, NOT A MULTIPLE OF 6") -> 
AF46: opening | AG46: relative
B47: mic | C47: 1 | D47: =INDEX('Plot & Label'!$C$10:$C$16,Dashboard!$C$47,1) -> 0 | AB47: freq | AD47: display | AE47: ="-6 dB" -> -6 dB | AF47: angle | AG47: mic arc | AH47: DF (Q) / DI
B48: =IF(OR(C47>7,C47<1),"ERROR, ONLY 1 THRU 7","") ->  | D48: trace
B49: normalize | C49: 1 | D49: 1 | AB49: =125/4 -> 31.25 | AD49: 1 | AE49: =TRANSPOSE(Calc_Polar!QC4:QI4) -> 180 | AF49: =2*AE49 -> 360 | AG49: =AE49/$AH$35-1 -> 5 | AH49: =ROUND(Calc_Polar!$QC$5,1)&" / "&ROUND(10*LOG(Calc_Polar!$QC$5),1)&" dB" -> 1 / 0 dB
AB50: 40 | AD50: 1 | AE50: 180 | AF50: 360 | AG50: 5 | AH50: =ROUND(Calc_Polar!$QD$5,1)&" / "&ROUND(10*LOG(Calc_Polar!$QD$5),1)&" dB" -> 1 / 0 dB
B51: tracking | C51: 1 | D51: 2 | AB51: 50 | AD51: 1 | AE51: 180 | AF51: 360 | AG51: 5 | AH51: =ROUND(Calc_Polar!$QE$5,1)&" / "&ROUND(10*LOG(Calc_Polar!$QE$5),1)&" dB" -> 1 / 0 dB
B52: ="1. Nearest (spk "&Calc_Transfer!NZ24&")" -> 1. Nearest (spk 1) | AB52: =125/2 -> 62.5 | AD52: 1 | AE52: 180 | AF52: 360 | AG52: 5 | AH52: =ROUND(Calc_Polar!$QF$5,1)&" / "&ROUND(10*LOG(Calc_Polar!$QF$5),1)&" dB" -> 1 / 0 dB
B53: ="2. Earliest (spk "&Calc_Transfer!NZ27&")" -> 2. Earliest (spk 1) | AB53: 80 | AD53: 1 | AE53: 180 | AF53: 360 | AG53: 5 | AH53: =ROUND(Calc_Polar!$QG$5,1)&" / "&ROUND(10*LOG(Calc_Polar!$QG$5),1)&" dB" -> 1 / 0 dB
B54: =IF(OR(Calc_Transfer!NO29>W2,Calc_Transfer!NO29<1),"ERROR, BEYOND SPEAKER AMOUNT","") ->  | AB54: 100 | AD54: 1 | AE54: 180 | AF54: 360 | AG54: 5 | AH54: =ROUND(Calc_Polar!$QH$5,1)&" / "&ROUND(10*LOG(Calc_Polar!$QH$5),1)&" dB" -> 1 / 0 dB
B55: speaker | C55: arr time | D55: display | AB55: 125 | AD55: 1 | AE55: 180 | AF55: 360 | AG55: 5 | AH55: =ROUND(Calc_Polar!$QI$5,1)&" / "&ROUND(10*LOG(Calc_Polar!$QI$5),1)&" dB" -> 1 / 0 dB
B57: spk 1 | C57: =TRANSPOSE(Calc_Transfer!OC31:ON31) -> 0 | D57: 1 | AB57: normalize all polar | AD57: 0 | AG57: for proper angles
B58: spk 2 | C58: 0 | D58: 1 | AG58: turn off normalization & filters
B59: spk 3 | C59: 0 | D59: 1 | AB59: normalize range | AD59: 1 | AG59: caution with lobing
B60: spk 4 | C60: 0 | D60: 1 | AB60: 1. half space
B61: spk 5 | C61: 0 | D61: 1 | AB61: 2. full space
B62: spk 6 | C62: 0 | D62: 1
B63: spk 7 | C63: 0 | D63: 1 | AB63: filters | AD63: 0
B64: spk 8 | C64: 0 | D64: 1
B65: spk 9 | C65: 0 | D65: 1 | AB65: BEAMWIDTH CTRL
B66: spk 10 | C66: 0 | D66: 1
B67: spk 11 | C67: 0 | D67: 1 | AB67: normalize-2-onax | AD67: 0
B68: spk 12 | C68: 0 | D68: 1
B70: avg | D70: 0
B72: EXPORT TO MAPP ONLINE PRO | S72: LEVEL TAPER | AB72: CREDITS | AJ72: GENERAL COMMENTS
B74: loudspeaker model | D74: 5 | S74: window function | U74: 1 | AJ74: Values
B75: 1. 500-HP
B76: 2. 600-HP | S76: taper master | U76: 1 | AJ76: yellow | AK76: cells are variables | AM76: orange | AN76: cells exclusively 0 or 1 (off/on)
B77: 3. 650-P
B78: 4. 700-HP | U78: taper loss | AJ78: INFO panel
B79: 5. 900-LFC | S79: 1. No window | U79: 0
B80: 6. 1100-LFC | S80: 2. Bartlett | U80: =Setups!O131 -> 0 | AJ80: "max angle", like the horizontal array arc setting, refers to a virtual origin behind the physical
B81: 7. M1D-Sub | S81: 3. Bartlett-Hann | U81: =Setups!P131 -> 0 | AJ81: array. The value between parentheses is the equivalent angle in relation to the center
B82: 8. M3D-Sub | S82: 4. Blackman | U82: =Setups!Q131 -> 0 | AJ82: of the physical array or XY coordinates 0,0.
B83: 9. UMS-1P | S83: 5. Blackman-Harris | U83: =Setups!R131 -> 0
B84: 10. UMS-1XP | S84: 6. Blackman-Nutall | U84: =Setups!S131 -> 0 | AJ84: PREDICTION PLANE panel
B85: 11. USW-1P | S85: 7. Cosine | U85: =Setups!T131 -> 0
D86: orientation | S86: 8. Flat Top | U86: =Setups!U131 -> 0 | AE86: 100% endorsed by Magu & 6o6 | AJ86: With normalization turned off absolute values in relation to 0 dB FS are shown.
B87: loudspeaker | D87: 1 | S87: 9. Gaussian | U87: =Setups!V131 -> 0 | W87: 𝜎 ≤ 0,5 | X87: 0.3 | Y87: =IF(X87>0.5,"𝜎 > 0,5","") -> 
B88: microphone | D88: 1 | S88: 10. Hamming | U88: =Setups!W131 -> 0 | W88: 𝛼 | X88: 0.54 | AJ88: "speaker(s)" normalization method, traces the difference between 0 dB FS and the loudest
S89: 11. Hanning | U89: =Setups!X131 -> 0 | W89: 𝛼 | X89: 0.5 | AJ89: value in the entire 2D plot (at the speaker(s)) and scales the plot accordingly, in order that
B90: 1. horizontal | S90: 12. Lanczos | U90: =IFERROR(Setups!Y131,0) -> 0 | AJ90: the new loudest value is 0 dB FS. At larger plane sizes (>44 meters), due to low resolution,
B91: 2. vertical | S91: 13. Nutall | U91: =Setups!Z131 -> 0 | AB91: Copyright © 2018 Merlijn van Veen. All Rights Reserved. | AJ91: the routine might introduce a discrepancy because the loudest value isn't found.
S92: 14. Tukey | U92: =Setups!AA131 -> 0 | W92: 𝛼 | X92: 0.5 | AJ92: The value between parentheses is the gain introduced when normalization is turned on.
S93: 15. Kaiser | U93: =IFERROR(Setups!AB131,0) -> 0 | W93: 𝛼 | X93: 1 | AB93: inspired by: Mauricio Ramirez & Bob McCarthy
AJ94: "mic 1" normalization method, traces the difference between 0 dB FS minus the level decrease
S95: 16. Log* | U95: =IFERROR(Setups!AC131,0) -> 0 | X95: 3 | AB95: special thanks to Mauricio Ramirez for helping me improve this calculator | AJ95: over distance (global radius) and the value at microphone 1 and scales the plot accordingly,
AJ96: in order that the new value at microphone 1 is 0 dB FS minus the level decrease over distance.
AB97: contact: | AC97: info@merlijnvanveen.nl | AJ97: The value between parentheses is the gain introduced when normalization is turned on.

Sheet Setups (hidden)
C3: nr. spkrs IN | D3: 1 | E3: 2 | F3: 3 | G3: 4 | H3: 5 | I3: 6 | J3: 7 | K3: nr. spkrs OUT
C4: reset
B5: Phys | C5: =Dashboard!$N$2 -> 1 | D5: on / off | E5: x (m) | F5: y (m) | G5: rot (°) | H5: level (dB) | I5: t (ms) | J5: pol inv | K5: =C5 -> 1 | M5: ID sym | N5: angle | O5: x (m) | P5: y (m) | Q5: dx | R5: dy | S5: diff (m) | T5: diff (ms)
B6: 1 | C6: =IF($B6<=$K$5,1,0) -> 1 | D6: =Dashboard!K5*Setups!$C6 -> 1 | E6: =O6*C6 -> 0 | F6: =P6*C6 -> 0 | G6: =N6*C6*Dashboard!$H$9 -> 0 | H6: =(Dashboard!O5+INDEX(N117:AC117,,$N$45))*Setups!$C6 -> 0 | I6: =Dashboard!P5*Setups!$C6 -> 0 | J6: =Dashboard!Q5*Setups!$C6 -> 0 | M6: =-(B6-($K$5+1)/2) -> 0 | N6: =IFERROR(M6*Dashboard!$H$8/($K$5-1),0) -> 0 | O6: =(COS(RADIANS(N6))*Dashboard!$G$19-Dashboard!$G$19) -> 0 | P6: =IF(Dashboard!$H$8=0,Setups!F20,(SIN(RADIANS(N6))*Dashboard!$G$19)) -> 0 | Q6: =O6 -> 0 | R6: =P6-F20 -> 0 | S6: =SQRT(Q6^2+R6^2) -> 0 | T6: =(S6-MIN($S$6:$S$17))/Dashboard!$AH$6*1000 -> 0
B7: 2 | C7: 0 | D7: =Dashboard!K6*Setups!$C7 -> 0 | E7: =O7*C7 -> 0 | F7: =P7*C7 -> 0 | G7: =N7*C7*Dashboard!$H$9 -> 0 | H7: =(Dashboard!O6+INDEX(N118:AC118,,$N$45))*Setups!$C7 -> 0 | I7: =Dashboard!P6*Setups!$C7 -> 0 | J7: =Dashboard!Q6*Setups!$C7 -> 0 | M7: -1 | N7: =IFERROR(M7*Dashboard!$H$8/($K$5-1),0) -> 0 | O7: =(COS(RADIANS(N7))*Dashboard!$G$19-Dashboard!$G$19) -> 0 | P7: =IF(Dashboard!$H$8=0,Setups!F21,(SIN(RADIANS(N7))*Dashboard!$G$19)) -> 0 | Q7: 0 | R7: 0 | S7: 0 | T7: =(S7-MIN($S$6:$S$17))/Dashboard!$AH$6*1000 -> 0
B8: 3 | C8: 0 | D8: =Dashboard!K7*Setups!$C8 -> 0 | E8: 0 | F8: 0 | G8: =N8*C8*Dashboard!$H$9 -> 0 | H8: =(Dashboard!O7+INDEX(N119:AC119,,$N$45))*Setups!$C8 -> 0 | I8: =Dashboard!P7*Setups!$C8 -> 0 | J8: =Dashboard!Q7*Setups!$C8 -> 0 | M8: -2 | N8: =IFERROR(M8*Dashboard!$H$8/($K$5-1),0) -> 0 | O8: =(COS(RADIANS(N8))*Dashboard!$G$19-Dashboard!$G$19) -> 0 | P8: =IF(Dashboard!$H$8=0,Setups!F22,(SIN(RADIANS(N8))*Dashboard!$G$19)) -> 0 | Q8: 0 | R8: 0 | S8: 0 | T8: =(S8-MIN($S$6:$S$17))/Dashboard!$AH$6*1000 -> 0
B9: 4 | C9: 0 | D9: =Dashboard!K8*Setups!$C9 -> 0 | E9: 0 | F9: 0 | G9: =N9*C9*Dashboard!$H$9 -> 0 | H9: =(Dashboard!O8+INDEX(N120:AC120,,$N$45))*Setups!$C9 -> 0 | I9: =Dashboard!P8*Setups!$C9 -> 0 | J9: =Dashboard!Q8*Setups!$C9 -> 0 | M9: -3 | N9: =IFERROR(M9*Dashboard!$H$8/($K$5-1),0) -> 0 | O9: =(COS(RADIANS(N9))*Dashboard!$G$19-Dashboard!$G$19) -> 0 | P9: =IF(Dashboard!$H$8=0,Setups!F23,(SIN(RADIANS(N9))*Dashboard!$G$19)) -> 0 | Q9: 0 | R9: 0 | S9: 0 | T9: =(S9-MIN($S$6:$S$17))/Dashboard!$AH$6*1000 -> 0
B10: 5 | C10: 0 | D10: =Dashboard!K9*Setups!$C10 -> 0 | E10: 0 | F10: 0 | G10: =N10*C10*Dashboard!$H$9 -> 0 | H10: =(Dashboard!O9+INDEX(N121:AC121,,$N$45))*Setups!$C10 -> 0 | I10: =Dashboard!P9*Setups!$C10 -> 0 | J10: =Dashboard!Q9*Setups!$C10 -> 0 | M10: -4 | N10: =IFERROR(M10*Dashboard!$H$8/($K$5-1),0) -> 0 | O10: =(COS(RADIANS(N10))*Dashboard!$G$19-Dashboard!$G$19) -> 0 | P10: =IF(Dashboard!$H$8=0,Setups!F24,(SIN(RADIANS(N10))*Dashboard!$G$19)) -> 0 | Q10: 0 | R10: 0 | S10: 0 | T10: =(S10-MIN($S$6:$S$17))/Dashboard!$AH$6*1000 -> 0
B11: 6 | C11: 0 | D11: =Dashboard!K10*Setups!$C11 -> 0 | E11: 0 | F11: 0 | G11: =N11*C11*Dashboard!$H$9 -> 0 | H11: =(Dashboard!O10+INDEX(N122:AC122,,$N$45))*Setups!$C11 -> 0 | I11: =Dashboard!P10*Setups!$C11 -> 0 | J11: =Dashboard!Q10*Setups!$C11 -> 0 | M11: -5 | N11: =IFERROR(M11*Dashboard!$H$8/($K$5-1),0) -> 0 | O11: =(COS(RADIANS(N11))*Dashboard!$G$19-Dashboard!$G$19) -> 0 | P11: =IF(Dashboard!$H$8=0,Setups!F25,(SIN(RADIANS(N11))*Dashboard!$G$19)) -> 0 | Q11: 0 | R11: 0 | S11: 0 | T11: =(S11-MIN($S$6:$S$17))/Dashboard!$AH$6*1000 -> 0
B12: 7 | C12: 0 | D12: =Dashboard!K11*Setups!$C12 -> 0 | E12: 0 | F12: 0 | G12: =N12*C12*Dashboard!$H$9 -> 0 | H12: =(Dashboard!O11+INDEX(N123:AC123,,$N$45))*Setups!$C12 -> 0 | I12: =Dashboard!P11*Setups!$C12 -> 0 | J12: =Dashboard!Q11*Setups!$C12 -> 0 | M12: -6 | N12: =IFERROR(M12*Dashboard!$H$8/($K$5-1),0) -> 0 | O12: =(COS(RADIANS(N12))*Dashboard!$G$19-Dashboard!$G$19) -> 0 | P12: =IF(Dashboard!$H$8=0,Setups!F26,(SIN(RADIANS(N12))*Dashboard!$G$19)) -> 0 | Q12: 0 | R12: 0 | S12: 0 | T12: =(S12-MIN($S$6:$S$17))/Dashboard!$AH$6*1000 -> 0
B13: 8 | C13: 0 | D13: =Dashboard!K12*Setups!$C13 -> 0 | E13: 0 | F13: 0 | G13: =N13*C13*Dashboard!$H$9 -> 0 | H13: =(Dashboard!O12+INDEX(N124:AC124,,$N$45))*Setups!$C13 -> 0 | I13: =Dashboard!P12*Setups!$C13 -> 0 | J13: =Dashboard!Q12*Setups!$C13 -> 0 | M13: -7 | N13: =IFERROR(M13*Dashboard!$H$8/($K$5-1),0) -> 0 | O13: =(COS(RADIANS(N13))*Dashboard!$G$19-Dashboard!$G$19) -> 0 | P13: =IF(Dashboard!$H$8=0,Setups!F27,(SIN(RADIANS(N13))*Dashboard!$G$19)) -> 0 | Q13: 0 | R13: 0 | S13: 0 | T13: =(S13-MIN($S$6:$S$17))/Dashboard!$AH$6*1000 -> 0
B14: 9 | C14: 0 | D14: =Dashboard!K13*Setups!$C14 -> 0 | E14: 0 | F14: 0 | G14: =N14*C14*Dashboard!$H$9 -> 0 | H14: =(Dashboard!O13+INDEX(N125:AC125,,$N$45))*Setups!$C14 -> 0 | I14: =Dashboard!P13*Setups!$C14 -> 0 | J14: =Dashboard!Q13*Setups!$C14 -> 0 | M14: -8 | N14: =IFERROR(M14*Dashboard!$H$8/($K$5-1),0) -> 0 | O14: =(COS(RADIANS(N14))*Dashboard!$G$19-Dashboard!$G$19) -> 0 | P14: =IF(Dashboard!$H$8=0,Setups!F28,(SIN(RADIANS(N14))*Dashboard!$G$19)) -> 0 | Q14: 0 | R14: 0 | S14: 0 | T14: =(S14-MIN($S$6:$S$17))/Dashboard!$AH$6*1000 -> 0
B15: 10 | C15: 0 | D15: =Dashboard!K14*Setups!$C15 -> 0 | E15: 0 | F15: 0 | G15: =N15*C15*Dashboard!$H$9 -> 0 | H15: =(Dashboard!O14+INDEX(N126:AC126,,$N$45))*Setups!$C15 -> 0 | I15: =Dashboard!P14*Setups!$C15 -> 0 | J15: =Dashboard!Q14*Setups!$C15 -> 0 | M15: -9 | N15: =IFERROR(M15*Dashboard!$H$8/($K$5-1),0) -> 0 | O15: =(COS(RADIANS(N15))*Dashboard!$G$19-Dashboard!$G$19) -> 0 | P15: =IF(Dashboard!$H$8=0,Setups!F29,(SIN(RADIANS(N15))*Dashboard!$G$19)) -> 0 | Q15: 0 | R15: 0 | S15: 0 | T15: =(S15-MIN($S$6:$S$17))/Dashboard!$AH$6*1000 -> 0
B16: 11 | C16: 0 | D16: =Dashboard!K15*Setups!$C16 -> 0 | E16: 0 | F16: 0 | G16: =N16*C16*Dashboard!$H$9 -> 0 | H16: =(Dashboard!O15+INDEX(N127:AC127,,$N$45))*Setups!$C16 -> 0 | I16: =Dashboard!P15*Setups!$C16 -> 0 | J16: =Dashboard!Q15*Setups!$C16 -> 0 | M16: -10 | N16: =IFERROR(M16*Dashboard!$H$8/($K$5-1),0) -> 0 | O16: =(COS(RADIANS(N16))*Dashboard!$G$19-Dashboard!$G$19) -> 0 | P16: =IF(Dashboard!$H$8=0,Setups!F30,(SIN(RADIANS(N16))*Dashboard!$G$19)) -> 0 | Q16: 0 | R16: 0 | S16: 0 | T16: =(S16-MIN($S$6:$S$17))/Dashboard!$AH$6*1000 -> 0
B17: 12 | C17: 0 | D17: =Dashboard!K16*Setups!$C17 -> 0 | E17: 0 | F17: 0 | G17: =N17*C17*Dashboard!$H$9 -> 0 | H17: =(Dashboard!O16+INDEX(N128:AC128,,$N$45))*Setups!$C17 -> 0 | I17: =Dashboard!P16*Setups!$C17 -> 0 | J17: =Dashboard!Q16*Setups!$C17 -> 0 | M17: -11 | N17: =IFERROR(M17*Dashboard!$H$8/($K$5-1),0) -> 0 | O17: =(COS(RADIANS(N17))*Dashboard!$G$19-Dashboard!$G$19) -> 0 | P17: =IF(Dashboard!$H$8=0,Setups!F31,(SIN(RADIANS(N17))*Dashboard!$G$19)) -> 0 | Q17: 0 | R17: 0 | S17: 0 | T17: =(S17-MIN($S$6:$S$17))/Dashboard!$AH$6*1000 -> 0
B19: Del | C19: =Dashboard!$N$2 -> 1 | D19: on / off | E19: x (m) | F19: y (m) | G19: rot (°) | H19: level (dB) | I19: t (ms) | J19: pol inv | K19: =C19 -> 1
B20: 1 | C20: =IF($B20<=$K$61,1,0) -> 1 | D20: =Dashboard!K5*Setups!$C20 -> 1 | E20: =Dashboard!L5*Setups!$C20 -> 0 | F20: =Setups!M6*Dashboard!$H$4*C20 -> 0 | G20: =N6*C20*Dashboard!$H$9 -> 0 | H20: =H6 -> 0 | I20: =T6*C20 -> 0 | J20: =Dashboard!Q5*Setups!$C20 -> 0
B21: 2 | C21: 0 | D21: =Dashboard!K6*Setups!$C21 -> 0 | E21: =Dashboard!L6*Setups!$C21 -> 0 | F21: =Setups!M7*Dashboard!$H$4*C21 -> 0 | G21: =N7*C21*Dashboard!$H$9 -> 0 | H21: =H7 -> 0 | I21: =T7*C21 -> 0 | J21: =Dashboard!Q6*Setups!$C21 -> 0
B22: 3 | C22: 0 | D22: =Dashboard!K7*Setups!$C22 -> 0 | E22: =Dashboard!L7*Setups!$C22 -> 0 | F22: =Setups!M8*Dashboard!$H$4*C22 -> 0 | G22: =N8*C22*Dashboard!$H$9 -> 0 | H22: 0 | I22: 0 | J22: =Dashboard!Q7*Setups!$C22 -> 0
B23: 4 | C23: 0 | D23: =Dashboard!K8*Setups!$C23 -> 0 | E23: =Dashboard!L8*Setups!$C23 -> 0 | F23: =Setups!M9*Dashboard!$H$4*C23 -> 0 | G23: =N9*C23*Dashboard!$H$9 -> 0 | H23: 0 | I23: 0 | J23: =Dashboard!Q8*Setups!$C23 -> 0
B24: 5 | C24: 0 | D24: =Dashboard!K9*Setups!$C24 -> 0 | E24: =Dashboard!L9*Setups!$C24 -> 0 | F24: =Setups!M10*Dashboard!$H$4*C24 -> 0 | G24: =N10*C24*Dashboard!$H$9 -> 0 | H24: 0 | I24: 0 | J24: =Dashboard!Q9*Setups!$C24 -> 0
B25: 6 | C25: 0 | D25: =Dashboard!K10*Setups!$C25 -> 0 | E25: =Dashboard!L10*Setups!$C25 -> 0 | F25: =Setups!M11*Dashboard!$H$4*C25 -> 0 | G25: =N11*C25*Dashboard!$H$9 -> 0 | H25: 0 | I25: 0 | J25: =Dashboard!Q10*Setups!$C25 -> 0
B26: 7 | C26: 0 | D26: =Dashboard!K11*Setups!$C26 -> 0 | E26: =Dashboard!L11*Setups!$C26 -> 0 | F26: =Setups!M12*Dashboard!$H$4*C26 -> 0 | G26: =N12*C26*Dashboard!$H$9 -> 0 | H26: 0 | I26: 0 | J26: =Dashboard!Q11*Setups!$C26 -> 0
B27: 8 | C27: 0 | D27: =Dashboard!K12*Setups!$C27 -> 0 | E27: =Dashboard!L12*Setups!$C27 -> 0 | F27: =Setups!M13*Dashboard!$H$4*C27 -> 0 | G27: =N13*C27*Dashboard!$H$9 -> 0 | H27: 0 | I27: 0 | J27: =Dashboard!Q12*Setups!$C27 -> 0 | M27: MIC POSITIONS
B28: 9 | C28: 0 | D28: =Dashboard!K13*Setups!$C28 -> 0 | E28: =Dashboard!L13*Setups!$C28 -> 0 | F28: =Setups!M14*Dashboard!$H$4*C28 -> 0 | G28: =N14*C28*Dashboard!$H$9 -> 0 | H28: 0 | I28: 0 | J28: =Dashboard!Q13*Setups!$C28 -> 0
B29: 10 | C29: 0 | D29: =Dashboard!K14*Setups!$C29 -> 0 | E29: =Dashboard!L14*Setups!$C29 -> 0 | F29: =Setups!M15*Dashboard!$H$4*C29 -> 0 | G29: =N15*C29*Dashboard!$H$9 -> 0 | H29: 0 | I29: 0 | J29: =Dashboard!Q14*Setups!$C29 -> 0 | O29: 1 | P29: 2 | Q29: 3 | R29: 4 | S29: 5 | T29: 6 | U29: 7
B30: 11 | C30: 0 | D30: =Dashboard!K15*Setups!$C30 -> 0 | E30: =Dashboard!L15*Setups!$C30 -> 0 | F30: =Setups!M16*Dashboard!$H$4*C30 -> 0 | G30: =N16*C30*Dashboard!$H$9 -> 0 | H30: 0 | I30: 0 | J30: =Dashboard!Q15*Setups!$C30 -> 0 | M30: 1 | N30: x | O30: =$D$101 -> 25 | P30: =COS(RADIANS(-P32))*$D$101 -> 24.90486745 | Q30: =COS(RADIANS(-Q32))*$D$101 -> 24.62019383 | R30: 24.14814566 | S30: 23.49231552 | T30: 22.65769468 | U30: 21.65063509 | W30: step size | X30: =D100/6 -> 5
B31: 12 | C31: 0 | D31: =Dashboard!K16*Setups!$C31 -> 0 | E31: =Dashboard!L16*Setups!$C31 -> 0 | F31: =Setups!M17*Dashboard!$H$4*C31 -> 0 | G31: =N17*C31*Dashboard!$H$9 -> 0 | H31: 0 | I31: 0 | J31: =Dashboard!Q16*Setups!$C31 -> 0 | M31: arc | N31: y | O31: 0 | P31: =SIN(RADIANS(-P32))*$D$101 -> -2.178893569 | Q31: =SIN(RADIANS(-Q32))*$D$101 -> -4.341204442 | R31: -6.470476128 | S31: -8.550503583 | T31: -10.56545654 | U31: -12.5
N32: angle label | O32: 0 | P32: =(P$29-1)*$X30 -> 5 | Q32: =(Q$29-1)*$X30 -> 10 | R32: 15 | S32: 20 | T32: 25 | U32: 30 | AB32: 1 | AC32: Rectangular | AE32: =AB32&". "&AC32 -> 1. Rectangular
B33: End-Fire | C33: =Dashboard!$N$2 -> 1 | D33: on / off | E33: x (m) | F33: y (m) | G33: rot (°) | H33: level (dB) | I33: t (ms) | J33: pol inv | K33: =C33 -> 1 | M33: 2 | N33: x | O33: =$D$101 -> 25 | P33: =COS(RADIANS(-P35))*($D$101+$D$102)-$D$102 -> 24.90486745 | Q33: =COS(RADIANS(-Q35))*($D$101+$D$102)-$D$102 -> 24.62019383 | R33: 24.14814566 | S33: 23.49231552 | T33: 22.65769468 | U33: 21.65063509 | W33: step size | X33: =D103/2/6 -> 5 | AB33: 2 | AC33: Bartlett | AE33: =AB33&". "&AC33 -> 2. Bartlett
B34: 1 | C34: =C62 -> 1 | D34: 1 | E34: =IF(B34>$K$33,0,(B34-1)*Dashboard!$H$4) -> 0 | F34: =F62 -> 0 | G34: 0 | H34: 0 | I34: =E34/Dashboard!$AH$6*1000 -> 0 | J34: =J62 -> 0 | M34: array | N34: y | O34: 0 | P34: =SIN(RADIANS(-P35))*($D$101+$D$102) -> -2.178893569 | Q34: =SIN(RADIANS(-Q35))*($D$101+$D$102) -> -4.341204442 | R34: -6.470476128 | S34: -8.550503583 | T34: -10.56545654 | U34: -12.5 | AB34: 3 | AC34: Bartlett-Hann | AE34: 3. Bartlett-Hann
B35: 2 | C35: 0 | D35: 0 | E35: =IF(B35>$K$33,0,(B35-1)*Dashboard!$H$4) -> 0 | F35: 0 | G35: 0 | H35: 0 | I35: =E35/Dashboard!$AH$6*1000 -> 0 | J35: 0 | N35: angle label | O35: 0 | P35: =(P$29-1)*$X33 -> 5 | Q35: =(Q$29-1)*$X33 -> 10 | R35: 15 | S35: 20 | T35: 25 | U35: 30 | AB35: 4 | AC35: Blackman | AE35: 4. Blackman
B36: 3 | C36: 0 | D36: 0 | E36: =IF(B36>$K$33,0,(B36-1)*Dashboard!$H$4) -> 0 | F36: 0 | G36: 0 | H36: 0 | I36: =E36/Dashboard!$AH$6*1000 -> 0 | J36: 0 | M36: 3 | N36: x | O36: =$D$101 -> 25 | P36: =COS(RADIANS(-P38))*$D$101 -> 25 | Q36: =COS(RADIANS(-Q38))*$D$101 -> 25 | R36: 25 | S36: 25 | T36: 25 | U36: 25 | W36: step size | X36: =Z37/6 -> 0 | AB36: 5 | AC36: Blackman-Harris | AE36: 5. Blackman-Harris
B37: 4 | C37: 0 | D37: 0 | E37: =IF(B37>$K$33,0,(B37-1)*Dashboard!$H$4) -> 0 | F37: 0 | G37: 0 | H37: 0 | I37: =E37/Dashboard!$AH$6*1000 -> 0 | J37: 0 | M37: edge | N37: y | O37: 0 | P37: =SIN(RADIANS(-P38))*$D$101 -> 0 | Q37: =SIN(RADIANS(-Q38))*$D$101 -> 0 | R37: 0 | S37: 0 | T37: 0 | U37: =-X37 -> 0 | W37: max y | X37: =MAX(F83:F94) -> 0 | Y37: max angle | Z37: =DEGREES(ASIN(X37/D101)) -> 0 | AB37: 6 | AC37: Blackman-Nutall | AE37: 6. Blackman-Nutall
B38: 5 | C38: 0 | D38: 0 | E38: =IF(B38>$K$33,0,(B38-1)*Dashboard!$H$4) -> 0 | F38: 0 | G38: 0 | H38: 0 | I38: =E38/Dashboard!$AH$6*1000 -> 0 | J38: 0 | N38: angle label | O38: 0 | P38: =(P$29-1)*$X36 -> 0 | Q38: =(Q$29-1)*$X36 -> 0 | R38: 0 | S38: 0 | T38: 0 | U38: 0 | AB38: 7 | AC38: Cosine | AE38: 7. Cosine
B39: 6 | C39: 0 | D39: 0 | E39: =IF(B39>$K$33,0,(B39-1)*Dashboard!$H$4) -> 0 | F39: 0 | G39: 0 | H39: 0 | I39: =E39/Dashboard!$AH$6*1000 -> 0 | J39: 0 | M39: 4 | N39: x | O39: =$D$101 -> 25 | P39: =COS(RADIANS(-P41))*$D$101 -> 24.99518101 | Q39: =COS(RADIANS(-Q41))*$D$101 -> 24.98072591 | R39: 24.92293334 | S39: 24.69220851 | T39: 23.77641291 | U39: 20.22542486 | AB39: 8 | AC39: Flat Top | AE39: 8. Flat Top
B40: 7 | C40: 0 | D40: 0 | E40: =IF(B40>$K$33,0,(B40-1)*Dashboard!$H$4) -> 0 | F40: 0 | G40: 0 | H40: 0 | I40: =E40/Dashboard!$AH$6*1000 -> 0 | J40: 0 | M40: exp 72 | N40: y | O40: 0 | P40: =SIN(RADIANS(-P41))*$D$101 -> -0.4908423115 | Q40: =SIN(RADIANS(-Q41))*$D$101 -> -0.981495394 | R40: =SIN(RADIANS(-R41))*$D$101 -> -1.961477393 | S40: =SIN(RADIANS(-S41))*$D$101 -> -3.910861626 | T40: =SIN(RADIANS(-T41))*$D$101 -> -7.725424859 | U40: -14.69463131 | AB40: 9 | AC40: Gaussian | AE40: 9. Gaussian
B41: 8 | C41: 0 | D41: 0 | E41: =IF(B41>$K$33,0,(B41-1)*Dashboard!$H$4) -> 0 | F41: 0 | G41: 0 | H41: 0 | I41: =E41/Dashboard!$AH$6*1000 -> 0 | J41: 0 | N41: angle label | O41: 0 | P41: 1.125 | Q41: 2.25 | R41: 4.5 | S41: 9 | T41: 18 | U41: 36 | AB41: 10 | AC41: Hamming | AE41: 10. Hamming
B42: 9 | C42: 0 | D42: 0 | E42: =IF(B42>$K$33,0,(B42-1)*Dashboard!$H$4) -> 0 | F42: 0 | G42: 0 | H42: 0 | I42: =E42/Dashboard!$AH$6*1000 -> 0 | J42: 0 | AB42: 11 | AC42: Hanning | AE42: 11. Hanning
B43: 10 | C43: 0 | D43: 0 | E43: =IF(B43>$K$33,0,(B43-1)*Dashboard!$H$4) -> 0 | F43: 0 | G43: 0 | H43: 0 | I43: =E43/Dashboard!$AH$6*1000 -> 0 | J43: 0 | AB43: 12 | AC43: Lanczos | AE43: 12. Lanczos
B44: 11 | C44: 0 | D44: 0 | E44: =IF(B44>$K$33,0,(B44-1)*Dashboard!$H$4) -> 0 | F44: 0 | G44: 0 | H44: 0 | I44: =E44/Dashboard!$AH$6*1000 -> 0 | J44: 0 | AB44: 13 | AC44: Nutall | AE44: 13. Nutall
B45: 12 | C45: 0 | D45: 0 | E45: =IF(B45>$K$33,0,(B45-1)*Dashboard!$H$4) -> 0 | F45: 0 | G45: 0 | H45: 0 | I45: =E45/Dashboard!$AH$6*1000 -> 0 | J45: 0 | M45: WF | N45: =Dashboard!U74 -> 1 | AB45: 14 | AC45: Tukey | AE45: 14. Tukey
AB46: 15 | AC46: Kaiser | AE46: 15. Kaiser
B47: Gradient | C47: =Dashboard!$N$2 -> 1 | D47: on / off | E47: x (m) | F47: y (m) | G47: rot (°) | H47: level (dB) | I47: t (ms) | J47: pol inv | K47: 2 | M47: N | N47: =Dashboard!N2 -> 1
B48: 1 | C48: 1 | D48: =Dashboard!K5 -> 1 | E48: 0 | F48: =Dashboard!M5 -> 0 | G48: =Dashboard!N5 -> 0 | H48: =Dashboard!O5 -> 0 | I48: 0 | J48: 0
B49: 2 | C49: 1 | D49: =Dashboard!K6 -> 1 | E49: =-Dashboard!$H$4 -> -1 | F49: =Dashboard!M6 -> 0 | G49: =Dashboard!N6 -> 0 | H49: =Dashboard!O6 -> 0 | I49: =-E49/Dashboard!$AH$6*1000 -> 2.942059088 | J49: 1 | M49: % | N49: =Dashboard!U76 -> 1
B50: 3 | C50: 0 | D50: 0 | E50: 0 | F50: 0 | G50: 0 | H50: 0 | I50: 0 | J50: 0
B51: 4 | C51: 0 | D51: 0 | E51: 0 | F51: 0 | G51: 0 | H51: 0 | I51: 0 | J51: 0 | M51: ="N+1" -> N+1 | N51: =Dashboard!N2+1 -> 2
B52: 5 | C52: 0 | D52: 0 | E52: 0 | F52: 0 | G52: 0 | H52: 0 | I52: 0 | J52: 0 | M52: pi | N52: 3.141592654
B53: 6 | C53: 0 | D53: 0 | E53: 0 | F53: 0 | G53: 0 | H53: 0 | I53: 0 | J53: 0 | M53: 2pi | N53: 6.283185307
B54: 7 | C54: 0 | D54: 0 | E54: 0 | F54: 0 | G54: 0 | H54: 0 | I54: 0 | J54: 0 | M54: 4pi | N54: 12.56637061 | Q54: alpha | V54: sigma | W54: alpha | X54: alpha | AA54: alpha | AB54: alpha
B55: 8 | C55: 0 | D55: 0 | E55: 0 | F55: 0 | G55: 0 | H55: 0 | I55: 0 | J55: 0 | M55: 6pi | N55: 18.84955592 | Q55: 0.16 | R55: 0.35875 | S55: 0.3635819 | V55: =Dashboard!X87 -> 0.3 | W55: =Dashboard!X88 -> 0.54 | X55: =Dashboard!X89 -> 0.5 | Z55: 0.355768 | AA55: =Dashboard!X92 -> 0.5 | AB55: =Dashboard!X93 -> 1 | AC55: =Dashboard!X95 -> 3
B56: 9 | C56: 0 | D56: 0 | E56: 0 | F56: 0 | G56: 0 | H56: 0 | I56: 0 | J56: 0 | M56: 8pi | N56: 25.13274123 | Q56: =(1-Q55)/2 -> 0.42 | R56: 0.48829 | S56: 0.4891775 | W56: =1-W55 -> 0.46 | X56: =1-X55 -> 0.5 | Z56: 0.487396
B57: 10 | C57: 0 | D57: 0 | E57: 0 | F57: 0 | G57: 0 | H57: 0 | I57: 0 | J57: 0 | Q57: 0.5 | R57: 0.14128 | S57: 0.1365995 | Z57: 0.144232
B58: 11 | C58: 0 | D58: 0 | E58: 0 | F58: 0 | G58: 0 | H58: 0 | I58: 0 | J58: 0 | Q58: =Q55/2 -> 0.08 | R58: 0.01168 | S58: 0.0106411 | Z58: 0.012604
B59: 12 | C59: 0 | D59: 0 | E59: 0 | F59: 0 | G59: 0 | H59: 0 | I59: 0 | J59: 0
M60: Index | N60: Rectangular | O60: Bartlett | P60: Bartlett-Hann | Q60: Blackman | R60: Blackman-Harris | S60: Blackman-Nutall | T60: Cosine | U60: Flat Top | V60: Gaussian | W60: Hamming | X60: Hanning | Y60: Lanczos | Z60: Nutall | AA60: Tukey | AB60: Kaiser | AC60: Log
B61: Manual | C61: =Dashboard!$N$2 -> 1 | D61: on / off | E61: x (m) | F61: y (m) | G61: rot (°) | H61: level (dB) | I61: t (ms) | J61: pol inv | K61: =C61 -> 1 | M61: 0 | N61: 1 | O61: =2/$N$51*($N$51/2-ABS($M61-$N$51/2)) -> 0 | P61: =0.62-0.48*ABS($M61/$N$51-0.5)-0.38*COS($N$53*$M61/$N$51) -> 0 | Q61: =$Q$56-$Q$57*COS($N$53*$M61/$N$51)+$Q$58*COS(2*$N$53*$M61/$N$51) -> 0 | R61: =R$55-R$56*COS($N$53*$M61/$N$51)+R$57*COS($N$54*$M61/$N$51)-R$58*COS($N$55*$M61/$N$51) -> 6e-05 | S61: 0.0003628 | T61: =SIN($N$52*$M61/$N$51) -> 0 | U61: =1-1.93*COS($N$53*$M61/$N$51)+1.29*COS($N$54*$M61/$N$51)-0.388*COS($N$54*$M61/$N$51)+0.028*COS($N$56*$M61/$N$51) -> 8.67361738e-17 | V61: =EXP((-0.5*((($M61-($N$51/2))/(V$55*($N$51/2)))^2))) -> 0.003865920139 | W61: =W$55-W$56*COS($N$53*$M61/$N$51) -> 0.08 | X61: 0 | Y61: =SIN($N$52*(2*$M61/$N$51-1))/($N$52*(2*$M61/$N$51-1)) -> 3.899768652e-17 | Z61: =Z$55-Z$56*COS($N$53*$M61/$N$51)+Z$57*COS($N$54*$M61/$N$51)-Z$58*COS($N$55*$M61/$N$51) -> -2.428612866e-17 | AA61: =0.5*(1+COS($N$52*((2*$M61/(AA$55*$N$51))-1)))*($M61<=(($N$51*AA$55)/2))+1*AND(($N$51/2)*AA$55<=$M61,$M61<=($N$51*(1-AA$55/2)))+0.5*(1+COS($N$52*((2*$M61/(AA$55*$N$51))-2/AA$55+1)))*(($N$51*(1-AA$55/2))<=$M61) -> 0
B62: 1 | C62: =IF($B62<=$K$61,1,0) -> 1 | D62: =Dashboard!K5*Setups!$C62 -> 1 | E62: =Dashboard!L5*Setups!$C62 -> 0 | F62: =Dashboard!M5*Setups!$C62 -> 0 | G62: =Dashboard!N5*Setups!$C62 -> 0 | H62: =Dashboard!O5*Setups!$C62 -> 0 | I62: =Dashboard!P5*Setups!$C62 -> 0 | J62: =Dashboard!Q5*Setups!$C62 -> 0 | M62: 1 | N62: 1 | O62: 1 | P62: 1 | Q62: =$Q$56-$Q$57*COS($N$53*$M62/$N$51)+$Q$58*COS(2*$N$53*$M62/$N$51) -> 1 | R62: 1 | S62: 1 | T62: 1 | U62: 3.86 | V62: 1 | W62: 1 | X62: 1 | Z62: 1 | AA62: 1 | AB62: =BESSELI($AB$55*SQRT(1-(2*$M61/($N$47-1)-1)^2),0)/BESSELI($AB$55,0) ->  | AC62: =2/($N$47-1)*(($N$47-1)/2-ABS(($M117-1)-($N$47-1)/2)) -> 
B63: 2 | C63: =IF($B63<=$C$61,1,0) -> 0 | D63: =Dashboard!K6*Setups!$C63 -> 0 | E63: =Dashboard!L6*Setups!$C63 -> 0 | F63: =Dashboard!M6*Setups!$C63 -> 0 | G63: =Dashboard!N6*Setups!$C63 -> 0 | H63: =Dashboard!O6*Setups!$C63 -> 0 | I63: =Dashboard!P6*Setups!$C63 -> 0 | J63: =Dashboard!Q6*Setups!$C63 -> 0 | M63: 2 | N63: 1 | O63: 0 | P63: 0 | Q63: 0 | R63: 6e-05 | S63: 0.0003628 | T63: 1.225148455e-16 | U63: 8.67361738e-17 | V63: 0.003865920139 | W63: 0.08 | X63: 0 | Y63: 3.899768652e-17 | Z63: -2.428612866e-17 | AA63: 0 | AB63: =BESSELI($AB$55*SQRT(1-(2*$M62/($N$47-1)-1)^2),0)/BESSELI($AB$55,0) -> 
B64: 3 | C64: 0 | D64: =Dashboard!K7*Setups!$C64 -> 0 | E64: =Dashboard!L7*Setups!$C64 -> 0 | F64: =Dashboard!M7*Setups!$C64 -> 0 | G64: =Dashboard!N7*Setups!$C64 -> 0 | H64: =Dashboard!O7*Setups!$C64 -> 0 | I64: =Dashboard!P7*Setups!$C64 -> 0 | J64: =Dashboard!Q7*Setups!$C64 -> 0 | M64: 3 | N64: 1 | O64: -1 | P64: 0.52 | Q64: 1 | R64: 1 | S64: 1 | T64: -1 | U64: 3.86 | V64: 2.233631436e-10 | W64: 1 | X64: 1 | Y64: -3.899768652e-17 | Z64: 1 | AA64: 0
B65: 4 | C65: 0 | D65: =Dashboard!K8*Setups!$C65 -> 0 | E65: =Dashboard!L8*Setups!$C65 -> 0 | F65: =Dashboard!M8*Setups!$C65 -> 0 | G65: =Dashboard!N8*Setups!$C65 -> 0 | H65: =Dashboard!O8*Setups!$C65 -> 0 | I65: =Dashboard!P8*Setups!$C65 -> 0 | J65: =Dashboard!Q8*Setups!$C65 -> 0 | M65: 4 | N65: 1 | O65: -2 | P65: -0.48 | Q65: 0 | R65: 6e-05 | S65: 0.0003628 | T65: -2.45029691e-16 | U65: 8.67361738e-17 | V65: 1.928749848e-22 | W65: 0.08 | X65: 0 | Y65: 3.899768652e-17 | Z65: -2.428612866e-17 | AA65: 0
B66: 5 | C66: 0 | D66: =Dashboard!K9*Setups!$C66 -> 0 | E66: =Dashboard!L9*Setups!$C66 -> 0 | F66: =Dashboard!M9*Setups!$C66 -> 0 | G66: =Dashboard!N9*Setups!$C66 -> 0 | H66: =Dashboard!O9*Setups!$C66 -> 0 | I66: =Dashboard!P9*Setups!$C66 -> 0 | J66: =Dashboard!Q9*Setups!$C66 -> 0 | M66: 5 | N66: 1 | O66: -3 | P66: 0.04 | Q66: 1 | R66: 1 | S66: 1 | T66: 1 | U66: 3.86 | V66: 2.489121253e-39 | W66: 1 | X66: 1 | Y66: -3.899768652e-17 | Z66: 1 | AA66: 0
B67: 6 | C67: 0 | D67: =Dashboard!K10*Setups!$C67 -> 0 | E67: =Dashboard!L10*Setups!$C67 -> 0 | F67: =Dashboard!M10*Setups!$C67 -> 0 | G67: =Dashboard!N10*Setups!$C67 -> 0 | H67: =Dashboard!O10*Setups!$C67 -> 0 | I67: =Dashboard!P10*Setups!$C67 -> 0 | J67: =Dashboard!Q10*Setups!$C67 -> 0 | M67: 6 | N67: 1 | O67: -4 | P67: -0.96 | Q67: 0 | R67: 6e-05 | S67: 0.0003628 | T67: 3.675445365e-16 | U67: 8.67361738e-17 | V67: 4.800892239e-61 | W67: 0.08 | X67: 0 | Y67: 3.899768652e-17 | Z67: -2.428612866e-17 | AA67: 0
B68: 7 | C68: 0 | D68: =Dashboard!K11*Setups!$C68 -> 0 | E68: =Dashboard!L11*Setups!$C68 -> 0 | F68: =Dashboard!M11*Setups!$C68 -> 0 | G68: =Dashboard!N11*Setups!$C68 -> 0 | H68: =Dashboard!O11*Setups!$C68 -> 0 | I68: =Dashboard!P11*Setups!$C68 -> 0 | J68: =Dashboard!Q11*Setups!$C68 -> 0 | M68: 7 | N68: 1 | O68: -5 | P68: -0.44 | Q68: 1 | R68: 1 | S68: 1 | T68: -1 | U68: 3.86 | V68: 1.383896527e-87 | W68: 1 | X68: 1 | Y68: -3.899768652e-17 | Z68: 1 | AA68: 0
B69: 8 | C69: 0 | D69: =Dashboard!K12*Setups!$C69 -> 0 | E69: =Dashboard!L12*Setups!$C69 -> 0 | F69: =Dashboard!M12*Setups!$C69 -> 0 | G69: =Dashboard!N12*Setups!$C69 -> 0 | H69: =Dashboard!O12*Setups!$C69 -> 0 | I69: =Dashboard!P12*Setups!$C69 -> 0 | J69: =Dashboard!Q12*Setups!$C69 -> 0 | M69: 8 | N69: 1 | O69: -6 | P69: -1.44 | Q69: 0 | R69: 6e-05 | S69: 0.0003628 | T69: -4.90059382e-16 | U69: 8.67361738e-17 | V69: 5.961987175e-119 | W69: 0.08 | X69: 0 | Y69: 3.899768652e-17 | Z69: -2.428612866e-17 | AA69: 0
B70: 9 | C70: 0 | D70: =Dashboard!K13*Setups!$C70 -> 0 | E70: =Dashboard!L13*Setups!$C70 -> 0 | F70: =Dashboard!M13*Setups!$C70 -> 0 | G70: =Dashboard!N13*Setups!$C70 -> 0 | H70: =Dashboard!O13*Setups!$C70 -> 0 | I70: =Dashboard!P13*Setups!$C70 -> 0 | J70: =Dashboard!Q13*Setups!$C70 -> 0 | M70: 9 | N70: 1 | O70: -7 | P70: -0.92 | Q70: 1 | R70: 1 | S70: 1 | T70: 1 | U70: 3.86 | V70: 3.838700349e-155 | W70: 1 | X70: 1 | Y70: -3.899768652e-17 | Z70: 1 | AA70: 0
B71: 10 | C71: 0 | D71: =Dashboard!K14*Setups!$C71 -> 0 | E71: =Dashboard!L14*Setups!$C71 -> 0 | F71: =Dashboard!M14*Setups!$C71 -> 0 | G71: =Dashboard!N14*Setups!$C71 -> 0 | H71: =Dashboard!O14*Setups!$C71 -> 0 | I71: =Dashboard!P14*Setups!$C71 -> 0 | J71: =Dashboard!Q14*Setups!$C71 -> 0 | M71: 10 | N71: 1 | O71: -8 | P71: -1.92 | Q71: 0 | R71: 6e-05 | S71: 0.0003628 | T71: 6.125742275e-16 | U71: 8.67361738e-17 | V71: 3.693883068e-196 | W71: 0.08 | X71: 0 | Y71: 3.899768652e-17 | Z71: -2.428612866e-17 | AA71: 0
B72: 11 | C72: 0 | D72: =Dashboard!K15*Setups!$C72 -> 0 | E72: =Dashboard!L15*Setups!$C72 -> 0 | F72: =Dashboard!M15*Setups!$C72 -> 0 | G72: =Dashboard!N15*Setups!$C72 -> 0 | H72: =Dashboard!O15*Setups!$C72 -> 0 | I72: =Dashboard!P15*Setups!$C72 -> 0 | J72: =Dashboard!Q15*Setups!$C72 -> 0 | M72: 11 | N72: 1 | O72: -9 | P72: -1.4 | Q72: 1 | R72: 1 | S72: 1 | T72: -1 | U72: 3.86 | V72: 5.31236408e-242 | W72: 1 | X72: 1 | Y72: -3.899768652e-17 | Z72: 1 | AA72: 0
B73: 12 | C73: 0 | D73: =Dashboard!K16*Setups!$C73 -> 0 | E73: =Dashboard!L16*Setups!$C73 -> 0 | F73: =Dashboard!M16*Setups!$C73 -> 0 | G73: =Dashboard!N16*Setups!$C73 -> 0 | H73: =Dashboard!O16*Setups!$C73 -> 0 | I73: =Dashboard!P16*Setups!$C73 -> 0 | J73: =Dashboard!Q16*Setups!$C73 -> 0 | M73: 12 | N73: 1 | O73: -10 | P73: -2.4 | Q73: 0 | R73: 6e-05 | S73: 0.0003628 | T73: -7.350890729e-16 | U73: 8.67361738e-17 | V73: 1.141821657e-292 | W73: 0.08 | X73: 0 | Y73: 1.418034944e-16 | Z73: -2.428612866e-17 | AA73: 0
M74: 13 | N74: 1 | O74: -11 | P74: -1.88 | Q74: 1 | R74: 1 | S74: 1 | T74: 1 | U74: 3.86 | V74: 0 | W74: 1 | X74: 1 | Y74: -3.899768652e-17 | Z74: 1 | AA74: 0
C75: INDEX HELPERS
C77: setup | D77: =Dashboard!$D$2 -> 1 | M77: norm | N77: 1 | O77: =MAX(O62:INDEX(O62:O74,$N$47)) -> 1 | P77: =MAX(P62:INDEX(P62:P74,$N$47)) -> 1 | Q77: =MAX(Q62:INDEX(Q62:Q74,$N$47)) -> 1 | R77: =MAX(R62:INDEX(R62:R74,$N$47)) -> 1 | S77: =MAX(S62:INDEX(S62:S74,$N$47)) -> 1 | T77: =MAX(T62:INDEX(T62:T74,$N$47)) -> 1 | U77: =MAX(U62:INDEX(U62:U74,$N$47)) -> 3.86 | V77: =MAX(V62:INDEX(V62:V74,$N$47)) -> 1 | W77: =MAX(W62:INDEX(W62:W74,$N$47)) -> 1 | X77: =MAX(X62:INDEX(X62:X74,$N$47)) -> 1 | Y77: =MAX(Y62:INDEX(Y62:Y74,$N$47)) ->  | Z77: =MAX(Z62:INDEX(Z62:Z74,$N$47)) -> 1 | AA77: =MAX(AA62:INDEX(AA62:AA74,$N$47)) -> 1 | AB77: =MAX(AB62:INDEX(AB62:AB74,$N$47)) ->  | AC77: =MAX(AC62:INDEX(AC62:AC74,$N$47)) -> 
C78: row sel | D78: =(D77-1)*14+1 -> 1
M79: Index | N79: Rectangular | O79: Bartlett | P79: Bartlett-Hann | Q79: Blackman | R79: Blackman-Harris | S79: Blackman-Nutall | T79: Cosine | U79: Flat Top | V79: Gaussian | W79: Hamming | X79: Hanning | Y79: Lanczos | Z79: Nutall | AA79: Tukey | AB79: Kaiser | AC79: Log
C80: OUTPUT DATA | E80: speakers (MAX 12) | G80: =INDEX(K5:K61,$D$78) -> 1 | I80: block level | J80: =20*LOG(SUM(D83:D94)) -> 0 | M80: 0 | N80: 1 | O80: =O61/O$77 -> 0 | P80: 0 | Q80: 0 | R80: 6e-05 | S80: 0.0003628 | T80: 0 | U80: 2.247051135e-17 | V80: 0.003865920139 | W80: 0.08 | X80: 0 | Z80: -2.428612866e-17 | AA80: 0 | AB80: =AB61/AB$77 -> 
M81: 1 | N81: 1 | O81: =O62/O$77 -> 1 | P81: 1 | Q81: 1 | R81: 1 | S81: 1 | T81: 1 | U81: 1 | V81: 1 | W81: 1 | X81: 1 | Z81: 1 | AA81: 1 | AB81: =AB62/AB$77 ->  | AC81: =AC62/AC$77 -> 
C82: no. | D82: on / off | E82: x (m) | F82: y (m) | G82: rot (°) | H82: level (dB) | I82: t (ms) | J82: pol inv | M82: 2 | N82: 1 | O82: =O63/O$77 -> 0 | P82: 0 | Q82: 0 | R82: 6e-05 | S82: 0.0003628 | T82: 1.225148455e-16 | U82: 2.247051135e-17 | V82: 0.003865920139 | W82: 0.08 | X82: 0 | Z82: -2.428612866e-17 | AA82: 0 | AB82: =AB63/AB$77 -> 
C83: 1 | D83: =INDEX(D6:D62,$D$78) -> 1 | E83: 0 | F83: 0 | G83: 0 | H83: 0 | I83: 0 | J83: 0 | M83: 3 | N83: 1 | O83: =O64/O$77 -> -1 | P83: 0.52 | Q83: 1 | R83: 1 | S83: 1 | T83: -1 | U83: 1 | V83: 2.233631436e-10 | W83: 1 | X83: 1 | Z83: 1 | AA83: 0 | AB83: =AB64/AB$77 -> 
C84: 2 | D84: 0 | E84: 0 | F84: 0 | G84: 0 | H84: 0 | I84: 0 | J84: 0 | M84: 4 | N84: 1 | O84: =O65/O$77 -> -2 | P84: -0.48 | Q84: 0 | R84: 6e-05 | S84: 0.0003628 | T84: -2.45029691e-16 | U84: 2.247051135e-17 | V84: 1.928749848e-22 | W84: 0.08 | X84: 0 | Z84: -2.428612866e-17 | AA84: 0 | AB84: =AB65/AB$77 -> 
C85: 3 | D85: 0 | E85: 0 | F85: 0 | G85: 0 | H85: 0 | I85: 0 | J85: 0 | M85: 5 | N85: 1 | O85: =O66/O$77 -> -3 | P85: 0.04 | Q85: 1 | R85: 1 | S85: 1 | T85: 1 | U85: 1 | V85: 2.489121253e-39 | W85: 1 | X85: 1 | Z85: 1 | AA85: 0 | AB85: =AB66/AB$77 -> 
C86: 4 | D86: 0 | E86: 0 | F86: 0 | G86: 0 | H86: 0 | I86: 0 | J86: 0 | M86: 6 | N86: 1 | O86: =O67/O$77 -> -4 | P86: -0.96 | Q86: 0 | R86: 6e-05 | S86: 0.0003628 | T86: 3.675445365e-16 | U86: 2.247051135e-17 | V86: 4.800892239e-61 | W86: 0.08 | X86: 0 | Z86: -2.428612866e-17 | AA86: 0 | AB86: =AB67/AB$77 -> 
C87: 5 | D87: 0 | E87: 0 | F87: 0 | G87: 0 | H87: 0 | I87: 0 | J87: 0 | M87: 7 | N87: 1 | O87: =O68/O$77 -> -5 | P87: -0.44 | Q87: 1 | R87: 1 | S87: 1 | T87: -1 | U87: 1 | V87: 1.383896527e-87 | W87: 1 | X87: 1 | Z87: 1 | AA87: 0 | AB87: =AB68/AB$77 -> 
C88: 6 | D88: 0 | E88: 0 | F88: 0 | G88: 0 | H88: 0 | I88: 0 | J88: 0 | M88: 8 | N88: 1 | O88: =O69/O$77 -> -6 | P88: -1.44 | Q88: 0 | R88: 6e-05 | S88: 0.0003628 | T88: -4.90059382e-16 | U88: 2.247051135e-17 | V88: 5.961987175e-119 | W88: 0.08 | X88: 0 | Z88: -2.428612866e-17 | AA88: 0 | AB88: =AB69/AB$77 -> 
C89: 7 | D89: 0 | E89: 0 | F89: 0 | G89: 0 | H89: 0 | I89: 0 | J89: 0 | M89: 9 | N89: 1 | O89: =O70/O$77 -> -7 | P89: -0.92 | Q89: 1 | R89: 1 | S89: 1 | T89: 1 | U89: 1 | V89: 3.838700349e-155 | W89: 1 | X89: 1 | Z89: 1 | AA89: 0 | AB89: =AB70/AB$77 -> 
C90: 8 | D90: 0 | E90: 0 | F90: 0 | G90: 0 | H90: 0 | I90: 0 | J90: 0 | M90: 10 | N90: 1 | O90: =O71/O$77 -> -8 | P90: -1.92 | Q90: 0 | R90: 6e-05 | S90: 0.0003628 | T90: 6.125742275e-16 | U90: 2.247051135e-17 | V90: 3.693883068e-196 | W90: 0.08 | X90: 0 | Z90: -2.428612866e-17 | AA90: 0 | AB90: =AB71/AB$77 -> 
C91: 9 | D91: 0 | E91: 0 | F91: 0 | G91: 0 | H91: 0 | I91: 0 | J91: 0 | M91: 11 | N91: 1 | O91: =O72/O$77 -> -9 | P91: -1.4 | Q91: 1 | R91: 1 | S91: 1 | T91: -1 | U91: 1 | V91: 5.31236408e-242 | W91: 1 | X91: 1 | Z91: 1 | AA91: 0 | AB91: =AB72/AB$77 -> 
C92: 10 | D92: 0 | E92: 0 | F92: 0 | G92: 0 | H92: 0 | I92: 0 | J92: 0 | M92: 12 | N92: 1 | O92: =O73/O$77 -> -10 | P92: -2.4 | Q92: 0 | R92: 6e-05 | S92: 0.0003628 | T92: -7.350890729e-16 | U92: 2.247051135e-17 | V92: 1.141821657e-292 | W92: 0.08 | X92: 0 | Z92: -2.428612866e-17 | AA92: 0 | AB92: =AB73/AB$77 -> 
C93: 11 | D93: 0 | E93: 0 | F93: 0 | G93: 0 | H93: 0 | I93: 0 | J93: 0 | M93: 13 | N93: 1 | O93: =O74/O$77 -> -11 | P93: -1.88 | Q93: 1 | R93: 1 | S93: 1 | T93: 1 | U93: 1 | V93: 0 | W93: 1 | X93: 1 | Z93: 1 | AA93: 0 | AB93: =AB74/AB$77 -> 
C94: 12 | D94: 0 | E94: 0 | F94: 0 | G94: 0 | H94: 0 | I94: 0 | J94: 0
C96: HELPER CELLS | F96: INFO VALUE MATH | M96: Index | N96: Rectangular | O96: Bartlett | P96: Bartlett-Hann | Q96: Blackman | R96: Blackman-Harris | S96: Blackman-Nutall | T96: Cosine | U96: Flat Top | V96: Gaussian | W96: Hamming | X96: Hanning | Y96: Lanczos | Z96: Nutall | AA96: Tukey | AB96: Kaiser | AC96: Log
M97: 0 | N97: 1 | O97: =ABS(O80*$N$49-$N$49+1) -> 0 | P97: 0 | Q97: 0 | R97: 6e-05 | S97: 0.0003628 | T97: 0 | U97: 0 | V97: 0.003865920139 | W97: 0.08 | X97: 0 | Z97: 0 | AA97: 0 | AB97: =ABS(AB80*$N$49-$N$49+1) -> 
C98: spacing | D98: =Dashboard!$H$4 -> 1 | G98: 1 | H98: 2 | I98: 3 | J98: 4 | M98: 1 | N98: 1 | O98: =ABS(O81*$N$49-$N$49+1) -> 1 | P98: 1 | Q98: 1 | R98: 1 | S98: 1 | T98: 1 | U98: 1 | V98: 1 | W98: 1 | X98: 1 | Z98: 1 | AA98: 1 | AB98: =ABS(AB81*$N$49-$N$49+1) ->  | AC98: =10^(AC117/20) -> 
C99: c | D99: =Dashboard!$AH$6 -> 339.898 | G99: phys hor | H99: del hor | I99: end-fire | J99: gradient | M99: 2 | N99: 1 | O99: =ABS(O82*$N$49-$N$49+1) -> 0 | P99: 0 | Q99: 0 | R99: 6e-05 | S99: 0.0003628 | T99: 1.110223025e-16 | U99: 0 | V99: 0.003865920139 | W99: 0.08 | X99: 0 | Z99: 0 | AA99: 0 | AB99: =ABS(AB82*$N$49-$N$49+1) ->  | AC99: =10^(AC118/20) -> 
C100: mic arc | D100: =Dashboard!$AH$35 -> 30 | F100: array length | G100: =G80*D98 -> 1 | H100: =G100 -> 1 | I100: =G100 -> 1 | M100: 3 | N100: 1 | O100: =ABS(O83*$N$49-$N$49+1) -> 1 | P100: 0.52 | Q100: 1 | R100: 1 | S100: 1 | T100: 1 | U100: 1 | V100: 2.233631058e-10 | W100: 1 | X100: 1 | Z100: 1 | AA100: 0 | AB100: =ABS(AB83*$N$49-$N$49+1) -> 
C101: radius | D101: =Dashboard!$AH$43 -> 25 | F101: black | G101: =D99/G100 -> 339.898 | H101: =G101 -> 339.898 | I101: =G102/G80 -> 169.949 | M101: 4 | N101: 1 | O101: =ABS(O84*$N$49-$N$49+1) -> 2 | P101: 0.48 | Q101: 0 | R101: 6e-05 | S101: 0.0003628 | T101: 2.220446049e-16 | U101: 0 | V101: 0 | W101: 0.08 | X101: 0 | Z101: 0 | AA101: 0 | AB101: =ABS(AB84*$N$49-$N$49+1) -> 
C102: origin | D102: =Dashboard!$G$19 -> 0 | F102: green | G102: =D99/D98/2 -> 169.949 | H102: =G102 -> 169.949 | J102: =G102/2 -> 84.9745 | M102: 5 | N102: 1 | O102: =ABS(O85*$N$49-$N$49+1) -> 3 | P102: 0.04 | Q102: 1 | R102: 1 | S102: 1 | T102: 1 | U102: 1 | V102: 0 | W102: 1 | X102: 1 | Z102: 1 | AA102: 0 | AB102: =ABS(AB85*$N$49-$N$49+1) -> 
C103: array arc | D103: =Dashboard!$H$8 -> 60 | F103: yellow 1 | G103: =2*$G$102/3*2 -> 226.5986667 | H103: =G103 -> 226.5986667 | M103: 6 | N103: 1 | O103: =ABS(O86*$N$49-$N$49+1) -> 4 | P103: 0.96 | Q103: 0 | R103: 6e-05 | S103: 0.0003628 | T103: 3.330669074e-16 | U103: 0 | V103: 0 | W103: 0.08 | X103: 0 | Z103: 0 | AA103: 0 | AB103: =ABS(AB86*$N$49-$N$49+1) -> 
C104: max angle | D104: =2/3*D103 -> 40 | F104: yellow 2 | I104: =H103/2 -> 113.2993333 | M104: 7 | N104: 1 | O104: =ABS(O87*$N$49-$N$49+1) -> 5 | P104: 0.44 | Q104: 1 | R104: 1 | S104: 1 | T104: 1 | U104: 1 | V104: 0 | W104: 1 | X104: 1 | Z104: 1 | AA104: 0 | AB104: =ABS(AB87*$N$49-$N$49+1) -> 
C105: max x | D105: =COS(RADIANS(D104/2))*($D$101+$D$102)-$D$102 -> 23.49231552 | F105: red 1 | G105: =D99/D98 -> 339.898 | H105: =G105 -> 339.898 | I105: =G102 -> 169.949 | M105: 8 | N105: 1 | O105: =ABS(O88*$N$49-$N$49+1) -> 6 | P105: 1.44 | Q105: 0 | R105: 6e-05 | S105: 0.0003628 | T105: 4.440892099e-16 | U105: 0 | V105: 0 | W105: 0.08 | X105: 0 | Z105: 0 | AA105: 0 | AB105: =ABS(AB88*$N$49-$N$49+1) -> 
C106: max y | D106: =SIN(RADIANS(D104/2))*($D$101+$D$102) -> 8.550503583 | F106: red 2 | M106: 9 | N106: 1 | O106: =ABS(O89*$N$49-$N$49+1) -> 7 | P106: 0.92 | Q106: 1 | R106: 1 | S106: 1 | T106: 1 | U106: 1 | V106: 0 | W106: 1 | X106: 1 | Z106: 1 | AA106: 0 | AB106: =ABS(AB89*$N$49-$N$49+1) -> 
C107: mic angle | D107: =ROUND(2*DEGREES(ATAN(D106/D105)),0) -> 40 | M107: 10 | N107: 1 | O107: =ABS(O90*$N$49-$N$49+1) -> 8 | P107: 1.92 | Q107: 0 | R107: 6e-05 | S107: 0.0003628 | T107: 6.661338148e-16 | U107: 0 | V107: 0 | W107: 0.08 | X107: 0 | Z107: 0 | AA107: 0 | AB107: =ABS(AB90*$N$49-$N$49+1) -> 
M108: 11 | N108: 1 | O108: =ABS(O91*$N$49-$N$49+1) -> 9 | P108: 1.4 | Q108: 1 | R108: 1 | S108: 1 | T108: 1 | U108: 1 | V108: 0 | W108: 1 | X108: 1 | Z108: 1 | AA108: 0 | AB108: =ABS(AB91*$N$49-$N$49+1) -> 
M109: 12 | N109: 1 | O109: =ABS(O92*$N$49-$N$49+1) -> 10 | P109: 2.4 | Q109: 0 | R109: 6e-05 | S109: 0.0003628 | T109: 6.661338148e-16 | U109: 0 | V109: 0 | W109: 0.08 | X109: 0 | Z109: 0 | AA109: 0 | AB109: =ABS(AB92*$N$49-$N$49+1) -> 
M110: 13 | N110: 1 | O110: =ABS(O93*$N$49-$N$49+1) -> 11 | P110: 1.88 | Q110: 1 | R110: 1 | S110: 1 | T110: 1 | U110: 1 | V110: 0 | W110: 1 | X110: 1 | Z110: 1 | AA110: 0 | AB110: =ABS(AB93*$N$49-$N$49+1) -> 
M112: taper loss | N112: 1 | O112: =SUM(O98:INDEX(O98:O109,$N$47))/$N$47 -> 1 | P112: =SUM(P98:INDEX(P98:P109,$N$47))/$N$47 -> 1 | Q112: =SUM(Q98:INDEX(Q98:Q109,$N$47))/$N$47 -> 1 | R112: =SUM(R98:INDEX(R98:R109,$N$47))/$N$47 -> 1 | S112: =SUM(S98:INDEX(S98:S109,$N$47))/$N$47 -> 1 | T112: =SUM(T98:INDEX(T98:T109,$N$47))/$N$47 -> 1 | U112: =SUM(U98:INDEX(U98:U109,$N$47))/$N$47 -> 1 | V112: =SUM(V98:INDEX(V98:V109,$N$47))/$N$47 -> 1 | W112: =SUM(W98:INDEX(W98:W109,$N$47))/$N$47 -> 1 | X112: =SUM(X98:INDEX(X98:X109,$N$47))/$N$47 -> 1 | Y112: =SUM(Y98:INDEX(Y98:Y109,$N$47))/$N$47 ->  | Z112: =SUM(Z98:INDEX(Z98:Z109,$N$47))/$N$47 -> 1 | AA112: =SUM(AA98:INDEX(AA98:AA109,$N$47))/$N$47 -> 1 | AB112: =SUM(AB98:INDEX(AB98:AB109,$N$47))/$N$47 ->  | AC112: =SUM(AC98:INDEX(AC98:AC109,$N$47))/$N$47 -> 
M115: Index | N115: Rectangular | O115: Bartlett | P115: Bartlett-Hann | Q115: Blackman | R115: Blackman-Harris | S115: Blackman-Nutall | T115: Cosine | U115: Flat Top | V115: Gaussian | W115: Hamming | X115: Hanning | Y115: Lanczos | Z115: Nutall | AA115: Tukey | AB115: Kaiser | AC115: Log
M116: 0 | N116: 0 | O116: =IFERROR(20*LOG(O97),-320) -> -320 | P116: -320 | Q116: -320 | R116: -84.43697499 | S116: -68.80665443 | T116: -320 | U116: -320 | V116: -48.25494243 | W116: -21.93820026 | X116: -320 | Y116: -320 | Z116: -320 | AA116: -320 | AB116: =IFERROR(20*LOG(AB97),-320) -> -320
M117: 1 | N117: 0 | O117: =IFERROR(20*LOG(O98),-320) -> 0 | P117: 0 | Q117: 0 | R117: 0 | S117: 0 | T117: 0 | U117: 0 | V117: 0 | W117: 0 | X117: 0 | Y117: -320 | Z117: 0 | AA117: 0 | AB117: =IFERROR(20*LOG(AB98),-320) -> -320 | AC117: =(1-AC81)*-$AC$55 -> 
M118: 2 | N118: 0 | O118: =IFERROR(20*LOG(O99),-320) -> -320 | P118: -320 | Q118: -320 | R118: -84.43697499 | S118: -68.80665443 | T118: -319.0917954 | U118: -320 | V118: -48.25494243 | W118: -21.93820026 | X118: -320 | Y118: -320 | Z118: -320 | AA118: -320 | AB118: =IFERROR(20*LOG(AB99),-320) -> -320
M119: 3 | N119: 0 | O119: =IFERROR(20*LOG(O100),-320) -> 0 | P119: -5.679933127 | Q119: 0 | R119: 0 | S119: 0 | T119: 0 | U119: 0 | V119: -193.0197712 | W119: 0 | X119: 0 | Y119: -320 | Z119: 0 | AA119: -320 | AB119: =IFERROR(20*LOG(AB100),-320) -> -320
M120: 4 | N120: 0 | O120: =IFERROR(20*LOG(O101),-320) -> 6.020599913 | P120: -6.375175252 | Q120: -320 | R120: -84.43697499 | S120: -68.80665443 | T120: -313.0711955 | U120: -320 | V120: -320 | W120: -21.93820026 | X120: -320 | Y120: -320 | Z120: -320 | AA120: -320 | AB120: =IFERROR(20*LOG(AB101),-320) -> -320
M121: 5 | N121: 0 | O121: =IFERROR(20*LOG(O102),-320) -> 9.542425094 | P121: -27.95880017 | Q121: 0 | R121: 0 | S121: 0 | T121: 0 | U121: 0 | V121: -320 | W121: 0 | X121: 0 | Y121: -320 | Z121: 0 | AA121: -320 | AB121: =IFERROR(20*LOG(AB102),-320) -> -320
M122: 6 | N122: 0 | O122: =IFERROR(20*LOG(O103),-320) -> 12.04119983 | P122: -0.3545753392 | Q122: -320 | R122: -84.43697499 | S122: -68.80665443 | T122: -309.5493703 | U122: -320 | V122: -320 | W122: -21.93820026 | X122: -320 | Y122: -320 | Z122: -320 | AA122: -320 | AB122: =IFERROR(20*LOG(AB103),-320) -> -320
M123: 7 | N123: 0 | O123: =IFERROR(20*LOG(O104),-320) -> 13.97940009 | P123: -7.13094647 | Q123: 0 | R123: 0 | S123: 0 | T123: 0 | U123: 0 | V123: -320 | W123: 0 | X123: 0 | Y123: -320 | Z123: 0 | AA123: -320 | AB123: =IFERROR(20*LOG(AB104),-320) -> -320
M124: 8 | N124: 0 | O124: =IFERROR(20*LOG(O105),-320) -> 15.56302501 | P124: 3.167249842 | Q124: -320 | R124: -84.43697499 | S124: -68.80665443 | T124: -307.0505956 | U124: -320 | V124: -320 | W124: -21.93820026 | X124: -320 | Y124: -320 | Z124: -320 | AA124: -320 | AB124: =IFERROR(20*LOG(AB105),-320) -> -320
M125: 9 | N125: 0 | O125: =IFERROR(20*LOG(O106),-320) -> 16.9019608 | P125: -0.7242434531 | Q125: 0 | R125: 0 | S125: 0 | T125: 0 | U125: 0 | V125: -320 | W125: 0 | X125: 0 | Y125: -320 | Z125: 0 | AA125: -320 | AB125: =IFERROR(20*LOG(AB106),-320) -> -320
M126: 10 | N126: 0 | O126: =IFERROR(20*LOG(O107),-320) -> 18.06179974 | P126: 5.666024574 | Q126: -320 | R126: -84.43697499 | S126: -68.80665443 | T126: -303.5287704 | U126: -320 | V126: -320 | W126: -21.93820026 | X126: -320 | Y126: -320 | Z126: -320 | AA126: -320 | AB126: =IFERROR(20*LOG(AB107),-320) -> -320
M127: 11 | N127: 0 | O127: =IFERROR(20*LOG(O108),-320) -> 19.08485019 | P127: 2.922560714 | Q127: 0 | R127: 0 | S127: 0 | T127: 0 | U127: 0 | V127: -320 | W127: 0 | X127: 0 | Y127: -320 | Z127: 0 | AA127: -320 | AB127: =IFERROR(20*LOG(AB108),-320) -> -320
M128: 12 | N128: 0 | O128: =IFERROR(20*LOG(O109),-320) -> 20 | P128: 7.604224834 | Q128: -320 | R128: -84.43697499 | S128: -68.80665443 | T128: -303.5287704 | U128: -320 | V128: -320 | W128: -21.93820026 | X128: -320 | Y128: -320 | Z128: -320 | AA128: -320 | AB128: =IFERROR(20*LOG(AB109),-320) -> -320
M129: 13 | N129: 0 | O129: =IFERROR(20*LOG(O110),-320) -> 20.8278537 | P129: 5.483156985 | Q129: 0 | R129: 0 | S129: 0 | T129: 0 | U129: 0 | V129: -320 | W129: 0 | X129: 0 | Y129: -320 | Z129: 0 | AA129: -320 | AB129: =IFERROR(20*LOG(AB110),-320) -> -320
M131: taper loss | N131: 0 | O131: =20*LOG(O112) -> 0 | P131: 0 | Q131: 0 | R131: 0 | S131: 0 | T131: 0 | U131: 0 | V131: 0 | W131: 0 | X131: 0 | Z131: 0 | AA131: 0 | AC131: =20*LOG(AC112) -> 

Sheet Calc_Transfer (hidden)
E2: 1 | G2: S1 | H2: S2 | I2: S3 | J2: S4 | K2: S5 | L2: S6 | M2: S7 | N2: S8 | O2: S9 | P2: S10 | Q2: S11 | R2: S12 | BC2: 2 | BE2: S1 | BF2: S2 | BG2: S3 | BH2: S4 | BI2: S5 | BJ2: S6 | BK2: S7 | BL2: S8 | BM2: S9 | BN2: S10 | BO2: S11 | BP2: S12 | DA2: 3 | DC2: S1 | DD2: S2 | DE2: S3 | DF2: S4 | DG2: S5 | DH2: S6 | DI2: S7 | DJ2: S8 | DK2: S9 | DL2: S10 | DM2: S11 | DN2: S12 | EY2: 4 | FA2: S1 | FB2: S2 | FC2: S3 | FD2: S4 | FE2: S5 | FF2: S6 | FG2: S7 | FH2: S8 | FI2: S9 | FJ2: S10 | FK2: S11 | FL2: S12 | GW2: 5 | GY2: S1 | GZ2: S2 | HA2: S3 | HB2: S4 | HC2: S5 | HD2: S6 | HE2: S7 | HF2: S8 | HG2: S9 | HH2: S10 | HI2: S11 | HJ2: S12 | IU2: 6 | IW2: S1 | IX2: S2 | IY2: S3 | IZ2: S4 | JA2: S5 | JB2: S6 | JC2: S7 | JD2: S8 | JE2: S9 | JF2: S10 | JG2: S11 | JH2: S12 | KS2: 7 | KU2: S1 | KV2: S2 | KW2: S3 | KX2: S4 | KY2: S5 | KZ2: S6 | LA2: S7 | LB2: S8 | LC2: S9 | LD2: S10 | LE2: S11 | LF2: S12
A3: HELPER CELLS | D3: plot label | E3: 0 | X3: MIC POSITIONS | AE3: setup 2 row | AF3: =($B$5-1)*3+1 -> 1 | BB3: plot label | BC3: =INDEX($Z$6:$AF$17,$AF$3+2,BC$2) -> 5 | CZ3: plot label | DA3: =INDEX($Z$6:$AF$17,$AF$3+2,DA$2) -> 10 | EX3: plot label | EY3: =INDEX($Z$6:$AF$17,$AF$3+2,EY$2) -> 15 | GV3: plot label | GW3: =INDEX($Z$6:$AF$17,$AF$3+2,GW$2) -> 20 | IT3: plot label | IU3: =INDEX($Z$6:$AF$17,$AF$3+2,IU$2) -> 25 | KR3: plot label | KS3: =INDEX($Z$6:$AF$17,$AF$3+2,KS$2) -> 30 | NN3: NORM SEL INDV.
A5: mic setup | B5: =Dashboard!$AH$33 -> 1 | D5: radius | E5: =Dashboard!$AH$43 -> 25 | Z5: 1 | AA5: 2 | AB5: 3 | AC5: 4 | AD5: 5 | AE5: 6 | AF5: 7 | BB5: radius | BC5: =E5 -> 25 | CZ5: radius | DA5: =E5 -> 25 | EX5: radius | EY5: =E5 -> 25 | GV5: radius | GW5: =E5 -> 25 | IT5: radius | IU5: =E5 -> 25 | KR5: radius | KS5: =E5 -> 25 | NN5: mic | NO5: column nr. | NP5: prox | RI5: MAX ANGLE LEVEL
A6: radius | B6: =Dashboard!$AH$43 -> 25 | D6: a | E6: =Dashboard!$I$21 -> 1 | X6: 1 | Y6: x | Z6: =Setups!O30 -> 25 | AA6: =Setups!P30 -> 24.90486745 | AB6: =Setups!Q30 -> 24.62019383 | AC6: =Setups!R30 -> 24.14814566 | AD6: =Setups!S30 -> 23.49231552 | AE6: =Setups!T30 -> 22.65769468 | AF6: =Setups!U30 -> 21.65063509 | BB6: a | BC6: 1 | CZ6: a | DA6: 1 | EX6: a | EY6: 1 | GV6: a | GW6: 1 | IT6: a | IU6: 1 | KR6: a | KS6: 1
A7: pi | B7: 3.141592654 | D7: b | E7: =Dashboard!$J$21 -> 0 | X7: arc | Y7: y | Z7: =Setups!O31 -> 0 | AA7: =Setups!P31 -> -2.178893569 | AB7: =Setups!Q31 -> -4.341204442 | AC7: =Setups!R31 -> -6.470476128 | AD7: =Setups!S31 -> -8.550503583 | AE7: =Setups!T31 -> -10.56545654 | AF7: =Setups!U31 -> -12.5 | BB7: b | BC7: 0 | CZ7: b | DA7: 0 | EX7: b | EY7: 0 | GV7: b | GW7: 0 | IT7: b | IU7: 0 | KR7: b | KS7: 0 | NN7: 1 | NO7: 1 | NP7: =E37 -> 1 | RI7: min | RJ7: =MIN($RS$41:INDEX($RS$41:$RS$217,$RJ$23)) -> 0.9999999749
A8: 2pi | B8: 6.283185307 | Y8: angle label | Z8: =Setups!O32 -> 0 | AA8: =Setups!P32 -> 5 | AB8: =Setups!Q32 -> 10 | AC8: =Setups!R32 -> 15 | AD8: =Setups!S32 -> 20 | AE8: =Setups!T32 -> 25 | AF8: =Setups!U32 -> 30 | NN8: 2 | NO8: 51 | NP8: =BC37 -> 1 | RI8: match | RJ8: =MATCH(RJ7,$RS$41:INDEX($RS$41:$RS$217,$RJ$23),0) -> 177
A9: c | B9: =Dashboard!$AH$6 -> 339.898 | D9: x | E9: =INDEX($Z$6:$AF$17,$AF$3,E$2) -> 25 | G9: =TRANSPOSE(Setups!$E$83:$E$94) -> 0 | H9: 0 | I9: 0 | J9: 0 | K9: 0 | L9: 0 | M9: 0 | N9: 0 | O9: 0 | P9: 0 | Q9: 0 | R9: 0 | X9: 2 | Y9: x | Z9: =Setups!O33 -> 25 | AA9: =Setups!P33 -> 24.90486745 | AB9: =Setups!Q33 -> 24.62019383 | AC9: =Setups!R33 -> 24.14814566 | AD9: =Setups!S33 -> 23.49231552 | AE9: =Setups!T33 -> 22.65769468 | AF9: =Setups!U33 -> 21.65063509 | BB9: x | BC9: =INDEX($Z$6:$AF$17,$AF$3,BC$2) -> 24.90486745 | BE9: =G9 -> 0 | BF9: 0 | BG9: 0 | BH9: 0 | BI9: 0 | BJ9: 0 | BK9: 0 | BL9: 0 | BM9: 0 | BN9: 0 | BO9: 0 | BP9: 0 | CZ9: x | DA9: =INDEX($Z$6:$AF$17,$AF$3,DA$2) -> 24.62019383 | DC9: =G9 -> 0 | DD9: 0 | DE9: 0 | DF9: 0 | DG9: 0 | DH9: 0 | DI9: 0 | DJ9: 0 | DK9: 0 | DL9: 0 | DM9: 0 | DN9: 0 | EX9: x | EY9: =INDEX($Z$6:$AF$17,$AF$3,EY$2) -> 24.14814566 | FA9: =G9 -> 0 | FB9: 0 | FC9: 0 | FD9: 0 | FE9: 0 | FF9: 0 | FG9: 0 | FH9: 0 | FI9: 0 | FJ9: 0 | FK9: 0 | FL9: 0 | GV9: x | GW9: =INDEX($Z$6:$AF$17,$AF$3,GW$2) -> 23.49231552 | GY9: =G9 -> 0 | GZ9: 0 | HA9: 0 | HB9: 0 | HC9: 0 | HD9: 0 | HE9: 0 | HF9: 0 | HG9: 0 | HH9: 0 | HI9: 0 | HJ9: 0 | IT9: x | IU9: =INDEX($Z$6:$AF$17,$AF$3,IU$2) -> 22.65769468 | IW9: =G9 -> 0 | IX9: 0 | IY9: 0 | IZ9: 0 | JA9: 0 | JB9: 0 | JC9: 0 | JD9: 0 | JE9: 0 | JF9: 0 | JG9: 0 | JH9: 0 | KR9: x | KS9: =INDEX($Z$6:$AF$17,$AF$3,KS$2) -> 21.65063509 | KU9: =G9 -> 0 | KV9: 0 | KW9: 0 | KX9: 0 | KY9: 0 | KZ9: 0 | LA9: 0 | LB9: 0 | LC9: 0 | LD9: 0 | LE9: 0 | LF9: 0 | NN9: 3 | NO9: 101 | NP9: =DA37 -> 1 | RI9: freq | RJ9: =INDEX($C$41:$C$217,$RJ$8) -> 251.7850824
D10: y | E10: =INDEX($Z$6:$AF$17,$AF$3+1,E$2) -> 0 | G10: =TRANSPOSE(Setups!$F$83:$F$94) -> 0 | H10: 0 | I10: 0 | J10: 0 | K10: 0 | L10: 0 | M10: 0 | N10: 0 | O10: 0 | P10: 0 | Q10: 0 | R10: 0 | X10: array | Y10: y | Z10: =Setups!O34 -> 0 | AA10: =Setups!P34 -> -2.178893569 | AB10: =Setups!Q34 -> -4.341204442 | AC10: =Setups!R34 -> -6.470476128 | AD10: =Setups!S34 -> -8.550503583 | AE10: =Setups!T34 -> -10.56545654 | AF10: =Setups!U34 -> -12.5 | BB10: y | BC10: =INDEX($Z$6:$AF$17,$AF$3+1,BC$2) -> -2.178893569 | BE10: 0 | BF10: 0 | BG10: 0 | BH10: 0 | BI10: 0 | BJ10: 0 | BK10: 0 | BL10: 0 | BM10: 0 | BN10: 0 | BO10: 0 | BP10: 0 | CZ10: y | DA10: =INDEX($Z$6:$AF$17,$AF$3+1,DA$2) -> -4.341204442 | DC10: 0 | DD10: 0 | DE10: 0 | DF10: 0 | DG10: 0 | DH10: 0 | DI10: 0 | DJ10: 0 | DK10: 0 | DL10: 0 | DM10: 0 | DN10: 0 | EX10: y | EY10: =INDEX($Z$6:$AF$17,$AF$3+1,EY$2) -> -6.470476128 | FA10: 0 | FB10: 0 | FC10: 0 | FD10: 0 | FE10: 0 | FF10: 0 | FG10: 0 | FH10: 0 | FI10: 0 | FJ10: 0 | FK10: 0 | FL10: 0 | GV10: y | GW10: =INDEX($Z$6:$AF$17,$AF$3+1,GW$2) -> -8.550503583 | GY10: 0 | GZ10: 0 | HA10: 0 | HB10: 0 | HC10: 0 | HD10: 0 | HE10: 0 | HF10: 0 | HG10: 0 | HH10: 0 | HI10: 0 | HJ10: 0 | IT10: y | IU10: =INDEX($Z$6:$AF$17,$AF$3+1,IU$2) -> -10.56545654 | IW10: 0 | IX10: 0 | IY10: 0 | IZ10: 0 | JA10: 0 | JB10: 0 | JC10: 0 | JD10: 0 | JE10: 0 | JF10: 0 | JG10: 0 | JH10: 0 | KR10: y | KS10: =INDEX($Z$6:$AF$17,$AF$3+1,KS$2) -> -12.5 | KU10: 0 | KV10: 0 | KW10: 0 | KX10: 0 | KY10: 0 | KZ10: 0 | LA10: 0 | LB10: 0 | LC10: 0 | LD10: 0 | LE10: 0 | LF10: 0 | NN10: 4 | NO10: 151 | NP10: =EY37 -> 1
A11: transfer arc | B11: =-Dashboard!$AH$35 -> -30 | Y11: angle label | Z11: =Setups!O35 -> 0 | AA11: =Setups!P35 -> 5 | AB11: =Setups!Q35 -> 10 | AC11: =Setups!R35 -> 15 | AD11: =Setups!S35 -> 20 | AE11: =Setups!T35 -> 25 | AF11: =Setups!U35 -> 30 | NN11: 5 | NO11: 201 | NP11: =GW37 -> 1
A12: step size | B12: =B11/6 -> -5 | D12: dx | G12: =$E$9-G9 -> 25 | H12: 25 | I12: 25 | J12: 25 | K12: 25 | L12: 25 | M12: 25 | N12: 25 | O12: 25 | P12: 25 | Q12: 25 | R12: 25 | X12: 3 | Y12: x | Z12: =Setups!O36 -> 25 | AA12: =Setups!P36 -> 25 | AB12: =Setups!Q36 -> 25 | AC12: =Setups!R36 -> 25 | AD12: =Setups!S36 -> 25 | AE12: =Setups!T36 -> 25 | AF12: =Setups!U36 -> 25 | BB12: dx | BE12: =$BC$9-BE9 -> 24.90486745 | BF12: 24.90486745 | BG12: 24.90486745 | BH12: 24.90486745 | BI12: 24.90486745 | BJ12: 24.90486745 | BK12: 24.90486745 | BL12: 24.90486745 | BM12: 24.90486745 | BN12: 24.90486745 | BO12: 24.90486745 | BP12: 24.90486745 | CZ12: dx | DC12: =$DA$9-DC9 -> 24.62019383 | DD12: =$DA$9-DD9 -> 24.62019383 | DE12: 24.62019383 | DF12: 24.62019383 | DG12: 24.62019383 | DH12: 24.62019383 | DI12: 24.62019383 | DJ12: 24.62019383 | DK12: 24.62019383 | DL12: 24.62019383 | DM12: 24.62019383 | DN12: 24.62019383 | EX12: dx | FA12: =$EY$9-FA9 -> 24.14814566 | FB12: =$EY$9-FB9 -> 24.14814566 | FC12: 24.14814566 | FD12: 24.14814566 | FE12: 24.14814566 | FF12: 24.14814566 | FG12: 24.14814566 | FH12: 24.14814566 | FI12: 24.14814566 | FJ12: 24.14814566 | FK12: 24.14814566 | FL12: 24.14814566 | GV12: dx | GY12: =$GW$9-GY9 -> 23.49231552 | GZ12: =$GW$9-GZ9 -> 23.49231552 | HA12: 23.49231552 | HB12: 23.49231552 | HC12: 23.49231552 | HD12: 23.49231552 | HE12: 23.49231552 | HF12: 23.49231552 | HG12: 23.49231552 | HH12: 23.49231552 | HI12: 23.49231552 | HJ12: 23.49231552 | IT12: dx | IW12: =$IU$9-IW9 -> 22.65769468 | IX12: =$IU$9-IX9 -> 22.65769468 | IY12: 22.65769468 | IZ12: 22.65769468 | JA12: 22.65769468 | JB12: 22.65769468 | JC12: 22.65769468 | JD12: 22.65769468 | JE12: 22.65769468 | JF12: 22.65769468 | JG12: 22.65769468 | JH12: 22.65769468 | KR12: dx | KU12: =$KS$9-KU9 -> 21.65063509 | KV12: =$KS$9-KV9 -> 21.65063509 | KW12: 21.65063509 | KX12: 21.65063509 | KY12: 21.65063509 | KZ12: 21.65063509 | LA12: 21.65063509 | LB12: 21.65063509 | LC12: 21.65063509 | LD12: 21.65063509 | LE12: 21.65063509 | LF12: 21.65063509 | NN12: 6 | NO12: 251 | NP12: =IU37 -> 1 | RE12: F2B END-FIRE | RI12: F2B GRADIENT | RK12: ="-3 dB" -> -3 dB | RL12: ="-6 dB" -> -6 dB
D13: dy | G13: =$E$10-G10 -> 0 | H13: 0 | I13: 0 | J13: 0 | K13: 0 | L13: 0 | M13: 0 | N13: 0 | O13: 0 | P13: 0 | Q13: 0 | R13: 0 | X13: edge | Y13: y | Z13: =Setups!O37 -> 0 | AA13: =Setups!P37 -> 0 | AB13: =Setups!Q37 -> 0 | AC13: =Setups!R37 -> 0 | AD13: =Setups!S37 -> 0 | AE13: =Setups!T37 -> 0 | AF13: =Setups!U37 -> 0 | BB13: dy | BE13: =$BC$10-BE10 -> -2.178893569 | BF13: -2.178893569 | BG13: -2.178893569 | BH13: -2.178893569 | BI13: -2.178893569 | BJ13: -2.178893569 | BK13: -2.178893569 | BL13: -2.178893569 | BM13: -2.178893569 | BN13: -2.178893569 | BO13: -2.178893569 | BP13: -2.178893569 | CZ13: dy | DC13: =$DA$10-DC10 -> -4.341204442 | DD13: =$DA$10-DD10 -> -4.341204442 | DE13: -4.341204442 | DF13: -4.341204442 | DG13: -4.341204442 | DH13: -4.341204442 | DI13: -4.341204442 | DJ13: -4.341204442 | DK13: -4.341204442 | DL13: -4.341204442 | DM13: -4.341204442 | DN13: -4.341204442 | EX13: dy | FA13: =$EY$10-FA10 -> -6.470476128 | FB13: =$EY$10-FB10 -> -6.470476128 | FC13: -6.470476128 | FD13: -6.470476128 | FE13: -6.470476128 | FF13: -6.470476128 | FG13: -6.470476128 | FH13: -6.470476128 | FI13: -6.470476128 | FJ13: -6.470476128 | FK13: -6.470476128 | FL13: -6.470476128 | GV13: dy | GY13: =$GW$10-GY10 -> -8.550503583 | GZ13: =$GW$10-GZ10 -> -8.550503583 | HA13: -8.550503583 | HB13: -8.550503583 | HC13: -8.550503583 | HD13: -8.550503583 | HE13: -8.550503583 | HF13: -8.550503583 | HG13: -8.550503583 | HH13: -8.550503583 | HI13: -8.550503583 | HJ13: -8.550503583 | IT13: dy | IW13: =$IU$10-IW10 -> -10.56545654 | IX13: =$IU$10-IX10 -> -10.56545654 | IY13: -10.56545654 | IZ13: -10.56545654 | JA13: -10.56545654 | JB13: -10.56545654 | JC13: -10.56545654 | JD13: -10.56545654 | JE13: -10.56545654 | JF13: -10.56545654 | JG13: -10.56545654 | JH13: -10.56545654 | KR13: dy | KU13: =$KS$10-KU10 -> -12.5 | KV13: =$KS$10-KV10 -> -12.5 | KW13: -12.5 | KX13: -12.5 | KY13: -12.5 | KZ13: -12.5 | LA13: -12.5 | LB13: -12.5 | LC13: -12.5 | LD13: -12.5 | LE13: -12.5 | LF13: -12.5 | NN13: 7 | NO13: 301 | NP13: =KS37 -> 1
A14: speakers | B14: =Setups!$G$80 -> 1 | Y14: angle label | Z14: =Setups!O38 -> 0 | AA14: =Setups!P38 -> 0 | AB14: =Setups!Q38 -> 0 | AC14: =Setups!R38 -> 0 | AD14: =Setups!S38 -> 0 | AE14: =Setups!T38 -> 0 | AF14: =Setups!U38 -> 0 | RE14: row | RG14: =MATCH(IFERROR($RG$26,20),$C$41:$C$217,1) -> 1 | RI14: row | RK14: =MATCH(IFERROR($RR$24,20),$C$41:$C$217,1) -> 101 | RL14: =MATCH(IFERROR($RR$26,20),$C$41:$C$217,1) -> 13
D15: dist | G15: =SQRT(G12^2+G13^2) -> 25 | H15: 25 | I15: 25 | J15: 25 | K15: 25 | L15: 25 | M15: 25 | N15: 25 | O15: 25 | P15: 25 | Q15: 25 | R15: 25 | X15: 4 | Y15: x | Z15: =Setups!O39 -> 25 | AA15: =Setups!P39 -> 24.99518101 | AB15: =Setups!Q39 -> 24.98072591 | AC15: =Setups!R39 -> 24.92293334 | AD15: =Setups!S39 -> 24.69220851 | AE15: =Setups!T39 -> 23.77641291 | AF15: =Setups!U39 -> 20.22542486 | BB15: dist | BE15: =SQRT(BE12^2+BE13^2) -> 25 | BF15: 25 | BG15: 25 | BH15: 25 | BI15: 25 | BJ15: 25 | BK15: 25 | BL15: 25 | BM15: 25 | BN15: 25 | BO15: 25 | BP15: 25 | CZ15: dist | DC15: =SQRT(DC12^2+DC13^2) -> 25 | DD15: 25 | DE15: 25 | DF15: 25 | DG15: 25 | DH15: 25 | DI15: 25 | DJ15: 25 | DK15: 25 | DL15: 25 | DM15: 25 | DN15: 25 | EX15: dist | FA15: =SQRT(FA12^2+FA13^2) -> 25 | FB15: 25 | FC15: 25 | FD15: 25 | FE15: 25 | FF15: 25 | FG15: 25 | FH15: 25 | FI15: 25 | FJ15: 25 | FK15: 25 | FL15: 25 | GV15: dist | GY15: =SQRT(GY12^2+GY13^2) -> 25 | GZ15: 25 | HA15: 25 | HB15: 25 | HC15: 25 | HD15: 25 | HE15: 25 | HF15: 25 | HG15: 25 | HH15: 25 | HI15: 25 | HJ15: 25 | IT15: dist | IW15: =SQRT(IW12^2+IW13^2) -> 25 | IX15: 25 | IY15: 25 | IZ15: 25 | JA15: 25 | JB15: 25 | JC15: 25 | JD15: 25 | JE15: 25 | JF15: 25 | JG15: 25 | JH15: 25 | KR15: dist | KU15: =SQRT(KU12^2+KU13^2) -> 25 | KV15: 25 | KW15: 25 | KX15: 25 | KY15: 25 | KZ15: 25 | LA15: 25 | LB15: 25 | LC15: 25 | LD15: 25 | LE15: 25 | LF15: 25 | NN15: data mic | NO15: =Dashboard!$C$47 -> 1 | RE15: row | RG15: =MATCH($RQ$25,$C$41:$C$217,1) -> 121 | RI15: row | RK15: =MATCH($RR$25,$C$41:$C$217,1) ->  | RL15: =MATCH($RR$27,$C$41:$C$217,1) -> 101
A16: silence | B16: 1e-16 | D16: Lv lin dist ratio | G16: =$E$5/G15 -> 1 | H16: 1 | I16: 1 | J16: 1 | K16: 1 | L16: 1 | M16: 1 | N16: 1 | O16: 1 | P16: 1 | Q16: 1 | R16: 1 | X16: exp 72 | Y16: y | Z16: =Setups!O40 -> 0 | AA16: =Setups!P40 -> -0.4908423115 | AB16: =Setups!Q40 -> -0.981495394 | AC16: =Setups!R40 -> -1.961477393 | AD16: =Setups!S40 -> -3.910861626 | AE16: =Setups!T40 -> -7.725424859 | AF16: =Setups!U40 -> -14.69463131 | BB16: Lv lin dist ratio | BE16: =$E$5/BE15 -> 1 | BF16: 1 | BG16: 1 | BH16: 1 | BI16: 1 | BJ16: 1 | BK16: 1 | BL16: 1 | BM16: 1 | BN16: 1 | BO16: 1 | BP16: 1 | CZ16: Lv lin dist ratio | DC16: =$E$5/DC15 -> 1 | DD16: 1 | DE16: 1 | DF16: 1 | DG16: 1 | DH16: 1 | DI16: 1 | DJ16: 1 | DK16: 1 | DL16: 1 | DM16: 1 | DN16: 1 | EX16: Lv lin dist ratio | FA16: =$E$5/FA15 -> 1 | FB16: 1 | FC16: 1 | FD16: 1 | FE16: 1 | FF16: 1 | FG16: 1 | FH16: 1 | FI16: 1 | FJ16: 1 | FK16: 1 | FL16: 1 | GV16: Lv lin dist ratio | GY16: =$E$5/GY15 -> 1 | GZ16: 1 | HA16: 1 | HB16: 1 | HC16: 1 | HD16: 1 | HE16: 1 | HF16: 1 | HG16: 1 | HH16: 1 | HI16: 1 | HJ16: 1 | IT16: Lv lin dist ratio | IW16: =$E$5/IW15 -> 1 | IX16: 1 | IY16: 1 | IZ16: 1 | JA16: 1 | JB16: 1 | JC16: 1 | JD16: 1 | JE16: 1 | JF16: 1 | JG16: 1 | JH16: 1 | KR16: Lv lin dist ratio | KU16: =$E$5/KU15 -> 1 | KV16: 1 | KW16: 1 | KX16: 1 | KY16: 1 | KZ16: 1 | LA16: 1 | LB16: 1 | LC16: 1 | LD16: 1 | LE16: 1 | LF16: 1 | RE16: RMS lin front | RG16: =SQRT(SUMSQ(INDEX(RE$41:RE$217,$RG$14):INDEX(RE$41:RE$217,$RG$15))/COUNT(INDEX(RE$41:RE$217,$RG$14):INDEX(RE$41:RE$217,$RG$15))) -> 1 | RI16: RMS lin front | RK16: =SQRT(SUMSQ(INDEX(RE$41:RE$217,$RK$14):INDEX(RE$41:RE$217,$RK$15))/COUNT(INDEX(RE$41:RE$217,$RK$14):INDEX(RE$41:RE$217,$RK$15))) ->  | RL16: =SQRT(SUMSQ(INDEX(RE$41:RE$217,$RL$14):INDEX(RE$41:RE$217,$RL$15))/COUNT(INDEX(RE$41:RE$217,$RL$14):INDEX(RE$41:RE$217,$RL$15))) -> 1 | RN16: INFO PANEL DATA COLLECTION & MARKERS
Y17: angle label | Z17: =Setups!O41 -> 0 | AA17: =Setups!P41 -> 1.125 | AB17: =Setups!Q41 -> 2.25 | AC17: =Setups!R41 -> 4.5 | AD17: =Setups!S41 -> 9 | AE17: =Setups!T41 -> 18 | AF17: =Setups!U41 -> 36 | NN17: data column | NO17: =VLOOKUP($NO$15,NN7:NO13,2,FALSE) -> 1 | RE17: RMS lin rear | RG17: =SQRT(SUMSQ(INDEX(RF$41:RF$217,$RG$14):INDEX(RF$41:RF$217,$RG$15))/COUNT(INDEX(RF$41:RF$217,$RG$14):INDEX(RF$41:RF$217,$RG$15))) -> 1 | RI17: RMS lin rear | RK17: =SQRT(SUMSQ(INDEX(RF$41:RF$217,$RK$14):INDEX(RF$41:RF$217,$RK$15))/COUNT(INDEX(RF$41:RF$217,$RK$14):INDEX(RF$41:RF$217,$RK$15))) ->  | RL17: =SQRT(SUMSQ(INDEX(RF$41:RF$217,$RL$14):INDEX(RF$41:RF$217,$RL$15))/COUNT(INDEX(RF$41:RF$217,$RL$14):INDEX(RF$41:RF$217,$RL$15))) -> 1
D18: rel angle | G18: =DEGREES(IMARGUMENT(COMPLEX(G12/$E$5,G13/$E$5))) -> 0 | H18: 0 | I18: 0 | J18: 0 | K18: 0 | L18: 0 | M18: 0 | N18: 0 | O18: 0 | P18: 0 | Q18: 0 | R18: 0 | BB18: rel angle | BE18: =DEGREES(IMARGUMENT(COMPLEX(BE12/$E$5,BE13/$E$5))) -> -5 | BF18: -5 | BG18: -5 | BH18: -5 | BI18: -5 | BJ18: -5 | BK18: -5 | BL18: -5 | BM18: -5 | BN18: -5 | BO18: -5 | BP18: -5 | CZ18: rel angle | DC18: =DEGREES(IMARGUMENT(COMPLEX(DC12/$E$5,DC13/$E$5))) -> -10 | DD18: -10 | DE18: -10 | DF18: -10 | DG18: -10 | DH18: -10 | DI18: -10 | DJ18: -10 | DK18: -10 | DL18: -10 | DM18: -10 | DN18: -10 | EX18: rel angle | FA18: =DEGREES(IMARGUMENT(COMPLEX(FA12/$E$5,FA13/$E$5))) -> -15 | FB18: -15 | FC18: -15 | FD18: -15 | FE18: -15 | FF18: -15 | FG18: -15 | FH18: -15 | FI18: -15 | FJ18: -15 | FK18: -15 | FL18: -15 | GV18: rel angle | GY18: =DEGREES(IMARGUMENT(COMPLEX(GY12/$E$5,GY13/$E$5))) -> -20 | GZ18: -20 | HA18: -20 | HB18: -20 | HC18: -20 | HD18: -20 | HE18: -20 | HF18: -20 | HG18: -20 | HH18: -20 | HI18: -20 | HJ18: -20 | IT18: rel angle | IW18: =DEGREES(IMARGUMENT(COMPLEX(IW12/$E$5,IW13/$E$5))) -> -25 | IX18: -25 | IY18: -25 | IZ18: -25 | JA18: -25 | JB18: -25 | JC18: -25 | JD18: -25 | JE18: -25 | JF18: -25 | JG18: -25 | JH18: -25 | KR18: rel angle | KU18: =DEGREES(IMARGUMENT(COMPLEX(KU12/$E$5,KU13/$E$5))) -> -30 | KV18: -30 | KW18: -30 | KX18: -30 | KY18: -30 | KZ18: -30 | LA18: -30 | LB18: -30 | LC18: -30 | LD18: -30 | LE18: -30 | LF18: -30 | RE18: F2B | RG18: =20*LOG(RG16/RG17) -> 0 | RI18: F2B | RK18: =20*LOG(RK16/RK17) ->  | RL18: =20*LOG(RL16/RL17) -> 0 | RN18: Setup | RO18: =Dashboard!$D$2 -> 1
D19: rot subs | G19: =TRANSPOSE(Setups!$G$83:$G$94) -> 0 | H19: 0 | I19: 0 | J19: 0 | K19: 0 | L19: 0 | M19: 0 | N19: 0 | O19: 0 | P19: 0 | Q19: 0 | R19: 0 | BB19: rot subs | BE19: =G19 -> 0 | BF19: 0 | BG19: 0 | BH19: 0 | BI19: 0 | BJ19: 0 | BK19: 0 | BL19: 0 | BM19: 0 | BN19: 0 | BO19: 0 | BP19: 0 | CZ19: rot subs | DC19: =G19 -> 0 | DD19: 0 | DE19: 0 | DF19: 0 | DG19: 0 | DH19: 0 | DI19: 0 | DJ19: 0 | DK19: 0 | DL19: 0 | DM19: 0 | DN19: 0 | EX19: rot subs | FA19: =G19 -> 0 | FB19: 0 | FC19: 0 | FD19: 0 | FE19: 0 | FF19: 0 | FG19: 0 | FH19: 0 | FI19: 0 | FJ19: 0 | FK19: 0 | FL19: 0 | GV19: rot subs | GY19: =G19 -> 0 | GZ19: 0 | HA19: 0 | HB19: 0 | HC19: 0 | HD19: 0 | HE19: 0 | HF19: 0 | HG19: 0 | HH19: 0 | HI19: 0 | HJ19: 0 | IT19: rot subs | IW19: =G19 -> 0 | IX19: 0 | IY19: 0 | IZ19: 0 | JA19: 0 | JB19: 0 | JC19: 0 | JD19: 0 | JE19: 0 | JF19: 0 | JG19: 0 | JH19: 0 | KR19: rot subs | KU19: =G19 -> 0 | KV19: 0 | KW19: 0 | KX19: 0 | KY19: 0 | KZ19: 0 | LA19: 0 | LB19: 0 | LC19: 0 | LD19: 0 | LE19: 0 | LF19: 0 | NN19: norm | NO19: =Dashboard!$C$49 -> 1 | OC19: spk 1 | OD19: spk 2 | OE19: spk 3 | OF19: spk 4 | OG19: spk 5 | OH19: spk 6 | OI19: spk 7 | OJ19: spk 8 | OK19: spk 9 | OL19: spk 10 | OM19: spk 11 | ON19: spk 12
RE20: END-FIRE ANALYSIS | RI20: HOR ARRAY ANALYSIS | RO20: phys. | RP20: del. | RQ20: end-fire | RR20: gradient | RS20: manual
D21: angle | G21: =G18-G19 -> 0 | H21: 0 | I21: 0 | J21: 0 | K21: 0 | L21: 0 | M21: 0 | N21: 0 | O21: 0 | P21: 0 | Q21: 0 | R21: 0 | BB21: angle | BE21: =BE18-BE19 -> -5 | BF21: -5 | BG21: -5 | BH21: -5 | BI21: -5 | BJ21: -5 | BK21: -5 | BL21: -5 | BM21: -5 | BN21: -5 | BO21: -5 | BP21: -5 | CZ21: angle | DC21: =DC18-DC19 -> -10 | DD21: -10 | DE21: -10 | DF21: -10 | DG21: -10 | DH21: -10 | DI21: -10 | DJ21: -10 | DK21: -10 | DL21: -10 | DM21: -10 | DN21: -10 | EX21: angle | FA21: =FA18-FA19 -> -15 | FB21: -15 | FC21: -15 | FD21: -15 | FE21: -15 | FF21: -15 | FG21: -15 | FH21: -15 | FI21: -15 | FJ21: -15 | FK21: -15 | FL21: -15 | GV21: angle | GY21: =GY18-GY19 -> -20 | GZ21: -20 | HA21: -20 | HB21: -20 | HC21: -20 | HD21: -20 | HE21: -20 | HF21: -20 | HG21: -20 | HH21: -20 | HI21: -20 | HJ21: -20 | IT21: angle | IW21: =IW18-IW19 -> -25 | IX21: -25 | IY21: -25 | IZ21: -25 | JA21: -25 | JB21: -25 | JC21: -25 | JD21: -25 | JE21: -25 | JF21: -25 | JG21: -25 | JH21: -25 | KR21: angle | KU21: =KU18-KU19 -> -30 | KV21: -30 | KW21: -30 | KX21: -30 | KY21: -30 | KZ21: -30 | LA21: -30 | LB21: -30 | LC21: -30 | LD21: -30 | LE21: -30 | LF21: -30 | NN21: track prox. | NO21: =Dashboard!$C$51 -> 1 | RN21: freq | RO21: 1 | RP21: 2 | RQ21: 3 | RR21: 4 | RS21: 5
D22: angel att lin | G22: =ABS($E$6+$E$7*COS(RADIANS(G21))) -> 1 | H22: 1 | I22: 1 | J22: 1 | K22: 1 | L22: 1 | M22: 1 | N22: 1 | O22: 1 | P22: 1 | Q22: 1 | R22: 1 | BB22: angel att lin | BE22: =ABS($E$6+$E$7*COS(RADIANS(BE21))) -> 1 | BF22: 1 | BG22: 1 | BH22: 1 | BI22: 1 | BJ22: 1 | BK22: 1 | BL22: 1 | BM22: 1 | BN22: 1 | BO22: 1 | BP22: 1 | CZ22: angel att lin | DC22: =ABS($E$6+$E$7*COS(RADIANS(DC21))) -> 1 | DD22: 1 | DE22: 1 | DF22: 1 | DG22: 1 | DH22: 1 | DI22: 1 | DJ22: 1 | DK22: 1 | DL22: 1 | DM22: 1 | DN22: 1 | EX22: angel att lin | FA22: =ABS($E$6+$E$7*COS(RADIANS(FA21))) -> 1 | FB22: 1 | FC22: 1 | FD22: 1 | FE22: 1 | FF22: 1 | FG22: 1 | FH22: 1 | FI22: 1 | FJ22: 1 | FK22: 1 | FL22: 1 | GV22: angel att lin | GY22: =ABS($E$6+$E$7*COS(RADIANS(GY21))) -> 1 | GZ22: 1 | HA22: 1 | HB22: 1 | HC22: 1 | HD22: 1 | HE22: 1 | HF22: 1 | HG22: 1 | HH22: 1 | HI22: 1 | HJ22: 1 | IT22: angel att lin | IW22: =ABS($E$6+$E$7*COS(RADIANS(IW21))) -> 1 | IX22: 1 | IY22: 1 | IZ22: 1 | JA22: 1 | JB22: 1 | JC22: 1 | JD22: 1 | JE22: 1 | JF22: 1 | JG22: 1 | JH22: 1 | KR22: angel att lin | KU22: =ABS($E$6+$E$7*COS(RADIANS(KU21))) -> 1 | KV22: 1 | KW22: 1 | KX22: 1 | KY22: 1 | KZ22: 1 | LA22: 1 | LB22: 1 | LC22: 1 | LD22: 1 | LE22: 1 | LF22: 1 | NY22: nearest | NZ22: =MIN(OC22:INDEX(OC22:ON22,,$B$14)) -> 25 | OB22: distance | OC22: =INDEX(G15:LF15,$NO$17):INDEX(G15:LF15,$NO$17+$B$14-1) -> 25 | OD22: 25 | OE22: 25 | OF22: 25 | OG22: 25 | OH22: 25 | OI22: 25 | OJ22: 25 | OK22: 25 | OL22: 25 | OM22: 25 | ON22: 25 | RE22: max value ONAX | RG22: =MAX($RH$41:$RH$217) -> 1.15719296e-14 | RI22: ="-6 dB ONAX" -> -6 dB ONAX | RJ22: 6 | RN22: black | RO22: =Setups!G101 -> 339.898 | RP22: =Setups!H101 -> 339.898 | RQ22: =Setups!I101 -> 169.949
D23: angle silence | G23: =IF(G22=0,$B$16,G22) -> 1 | H23: =IF(H22=0,$B$16,H22) -> 1 | I23: 1 | J23: 1 | K23: 1 | L23: 1 | M23: 1 | N23: 1 | O23: 1 | P23: 1 | Q23: 1 | R23: 1 | BB23: angle silence | BE23: =IF(BE22=0,$B$16,BE22) -> 1 | BF23: =IF(BF22=0,$B$16,BF22) -> 1 | BG23: =IF(BG22=0,$B$16,BG22) -> 1 | BH23: =IF(BH22=0,$B$16,BH22) -> 1 | BI23: =IF(BI22=0,$B$16,BI22) -> 1 | BJ23: =IF(BJ22=0,$B$16,BJ22) -> 1 | BK23: =IF(BK22=0,$B$16,BK22) -> 1 | BL23: =IF(BL22=0,$B$16,BL22) -> 1 | BM23: =IF(BM22=0,$B$16,BM22) -> 1 | BN23: =IF(BN22=0,$B$16,BN22) -> 1 | BO23: =IF(BO22=0,$B$16,BO22) -> 1 | BP23: =IF(BP22=0,$B$16,BP22) -> 1 | CZ23: angle silence | DC23: =IF(DC22=0,$B$16,DC22) -> 1 | DD23: =IF(DD22=0,$B$16,DD22) -> 1 | DE23: =IF(DE22=0,$B$16,DE22) -> 1 | DF23: =IF(DF22=0,$B$16,DF22) -> 1 | DG23: =IF(DG22=0,$B$16,DG22) -> 1 | DH23: =IF(DH22=0,$B$16,DH22) -> 1 | DI23: =IF(DI22=0,$B$16,DI22) -> 1 | DJ23: =IF(DJ22=0,$B$16,DJ22) -> 1 | DK23: =IF(DK22=0,$B$16,DK22) -> 1 | DL23: =IF(DL22=0,$B$16,DL22) -> 1 | DM23: =IF(DM22=0,$B$16,DM22) -> 1 | DN23: =IF(DN22=0,$B$16,DN22) -> 1 | EX23: angle silence | FA23: =IF(FA22=0,$B$16,FA22) -> 1 | FB23: =IF(FB22=0,$B$16,FB22) -> 1 | FC23: =IF(FC22=0,$B$16,FC22) -> 1 | FD23: =IF(FD22=0,$B$16,FD22) -> 1 | FE23: =IF(FE22=0,$B$16,FE22) -> 1 | FF23: =IF(FF22=0,$B$16,FF22) -> 1 | FG23: =IF(FG22=0,$B$16,FG22) -> 1 | FH23: =IF(FH22=0,$B$16,FH22) -> 1 | FI23: =IF(FI22=0,$B$16,FI22) -> 1 | FJ23: =IF(FJ22=0,$B$16,FJ22) -> 1 | FK23: =IF(FK22=0,$B$16,FK22) -> 1 | FL23: =IF(FL22=0,$B$16,FL22) -> 1 | GV23: angle silence | GY23: =IF(GY22=0,$B$16,GY22) -> 1 | GZ23: =IF(GZ22=0,$B$16,GZ22) -> 1 | HA23: =IF(HA22=0,$B$16,HA22) -> 1 | HB23: =IF(HB22=0,$B$16,HB22) -> 1 | HC23: =IF(HC22=0,$B$16,HC22) -> 1 | HD23: =IF(HD22=0,$B$16,HD22) -> 1 | HE23: =IF(HE22=0,$B$16,HE22) -> 1 | HF23: =IF(HF22=0,$B$16,HF22) -> 1 | HG23: =IF(HG22=0,$B$16,HG22) -> 1 | HH23: =IF(HH22=0,$B$16,HH22) -> 1 | HI23: =IF(HI22=0,$B$16,HI22) -> 1 | HJ23: =IF(HJ22=0,$B$16,HJ22) -> 1 | IT23: angle silence | IW23: =IF(IW22=0,$B$16,IW22) -> 1 | IX23: =IF(IX22=0,$B$16,IX22) -> 1 | IY23: =IF(IY22=0,$B$16,IY22) -> 1 | IZ23: =IF(IZ22=0,$B$16,IZ22) -> 1 | JA23: =IF(JA22=0,$B$16,JA22) -> 1 | JB23: =IF(JB22=0,$B$16,JB22) -> 1 | JC23: =IF(JC22=0,$B$16,JC22) -> 1 | JD23: =IF(JD22=0,$B$16,JD22) -> 1 | JE23: =IF(JE22=0,$B$16,JE22) -> 1 | JF23: =IF(JF22=0,$B$16,JF22) -> 1 | JG23: =IF(JG22=0,$B$16,JG22) -> 1 | JH23: =IF(JH22=0,$B$16,JH22) -> 1 | KR23: angle silence | KU23: =IF(KU22=0,$B$16,KU22) -> 1 | KV23: =IF(KV22=0,$B$16,KV22) -> 1 | KW23: =IF(KW22=0,$B$16,KW22) -> 1 | KX23: =IF(KX22=0,$B$16,KX22) -> 1 | KY23: =IF(KY22=0,$B$16,KY22) -> 1 | KZ23: =IF(KZ22=0,$B$16,KZ22) -> 1 | LA23: =IF(LA22=0,$B$16,LA22) -> 1 | LB23: =IF(LB22=0,$B$16,LB22) -> 1 | LC23: =IF(LC22=0,$B$16,LC22) -> 1 | LD23: =IF(LD22=0,$B$16,LD22) -> 1 | LE23: =IF(LE22=0,$B$16,LE22) -> 1 | LF23: =IF(LF22=0,$B$16,LF22) -> 1 | NN23: ref spk man | NO23: =Dashboard!$D$49 -> 1 | NY23: spk | NZ23: =MATCH(NZ22,OC22:INDEX(OC22:ON22,,$B$14),0) -> 1 | OB23: time | OC23: =OC22/$B$9*1000 -> 73.55147721 | OD23: =OD22/$B$9*1000 -> 73.55147721 | OE23: 73.55147721 | OF23: 73.55147721 | OG23: 73.55147721 | OH23: 73.55147721 | OI23: 73.55147721 | OJ23: 73.55147721 | OK23: 73.55147721 | OL23: 73.55147721 | OM23: 73.55147721 | ON23: 73.55147721 | RE23: BL | RG23: =Setups!J80 -> 0 | RI23: f reference | RJ23: =MATCH($RJ$22,$RK$41:$RK$217,1) -> 177 | RN23: green | RO23: =Setups!G102 -> 169.949 | RP23: =Setups!H102 -> 169.949 | RR23: =Setups!J102 -> 84.9745
D24: Lv log | G24: =TRANSPOSE(Setups!$H$83:$H$94) -> 0 | H24: 0 | I24: 0 | J24: 0 | K24: 0 | L24: 0 | M24: 0 | N24: 0 | O24: 0 | P24: 0 | Q24: 0 | R24: 0 | BB24: Lv log | BE24: =G24 -> 0 | BF24: 0 | BG24: 0 | BH24: 0 | BI24: 0 | BJ24: 0 | BK24: 0 | BL24: 0 | BM24: 0 | BN24: 0 | BO24: 0 | BP24: 0 | DC24: =G24 -> 0 | DD24: 0 | DE24: 0 | DF24: 0 | DG24: 0 | DH24: 0 | DI24: 0 | DJ24: 0 | DK24: 0 | DL24: 0 | DM24: 0 | DN24: 0 | FA24: =G24 -> 0 | FB24: 0 | FC24: 0 | FD24: 0 | FE24: 0 | FF24: 0 | FG24: 0 | FH24: 0 | FI24: 0 | FJ24: 0 | FK24: 0 | FL24: 0 | GY24: =G24 -> 0 | GZ24: 0 | HA24: 0 | HB24: 0 | HC24: 0 | HD24: 0 | HE24: 0 | HF24: 0 | HG24: 0 | HH24: 0 | HI24: 0 | HJ24: 0 | IW24: =G24 -> 0 | IX24: 0 | IY24: 0 | IZ24: 0 | JA24: 0 | JB24: 0 | JC24: 0 | JD24: 0 | JE24: 0 | JF24: 0 | JG24: 0 | JH24: 0 | KU24: =G24 -> 0 | KV24: 0 | KW24: 0 | KX24: 0 | KY24: 0 | KZ24: 0 | LA24: 0 | LB24: 0 | LC24: 0 | LD24: 0 | LE24: 0 | LF24: 0 | NA24: NORM SEL SUMMED | NY24: odd/even | NZ24: =IF(AND(ISEVEN($B$14),$RO$18<3,$B$14<=12,$NO$15=1),NZ23+1,NZ23) -> 1 | OB24: delay | OC24: =TRANSPOSE(Setups!I83:I94) -> 0 | OD24: 0 | OE24: 0 | OF24: 0 | OG24: 0 | OH24: 0 | OI24: 0 | OJ24: 0 | OK24: 0 | OL24: 0 | OM24: 0 | ON24: 0 | RE24: max value minus BL | RG24: =RG22-RG23 -> 1.15719296e-14 | RI24: f frequency | RJ24: =INDEX($C41:$C217,$RJ$23) -> 251.7850824 | RN24: yellow 1 | RO24: =Setups!G103 -> 226.5986667 | RP24: =Setups!H103 -> 226.5986667 | RQ24: =RG26 ->  | RR24: =RG34 -> 84.33930069
D25: on / off | G25: =TRANSPOSE(Setups!$D$83:$D$94) -> 1 | H25: 0 | I25: 0 | J25: 0 | K25: 0 | L25: 0 | M25: 0 | N25: 0 | O25: 0 | P25: 0 | Q25: 0 | R25: 0 | BB25: on / off | BE25: =G25 -> 1 | BF25: 0 | BG25: 0 | BH25: 0 | BI25: 0 | BJ25: 0 | BK25: 0 | BL25: 0 | BM25: 0 | BN25: 0 | BO25: 0 | BP25: 0 | CZ25: on / off | DC25: 1 | DD25: 0 | DE25: 0 | DF25: 0 | DG25: 0 | DH25: 0 | DI25: 0 | DJ25: 0 | DK25: 0 | DL25: 0 | DM25: 0 | DN25: 0 | EX25: on / off | FA25: 1 | FB25: 0 | FC25: 0 | FD25: 0 | FE25: 0 | FF25: 0 | FG25: 0 | FH25: 0 | FI25: 0 | FJ25: 0 | FK25: 0 | FL25: 0 | GV25: on / off | GY25: 1 | GZ25: 0 | HA25: 0 | HB25: 0 | HC25: 0 | HD25: 0 | HE25: 0 | HF25: 0 | HG25: 0 | HH25: 0 | HI25: 0 | HJ25: 0 | IT25: on / off | IW25: 1 | IX25: 0 | IY25: 0 | IZ25: 0 | JA25: 0 | JB25: 0 | JC25: 0 | JD25: 0 | JE25: 0 | JF25: 0 | JG25: 0 | JH25: 0 | KR25: on / off | KU25: 1 | KV25: 0 | KW25: 0 | KX25: 0 | KY25: 0 | KZ25: 0 | LA25: 0 | LB25: 0 | LC25: 0 | LD25: 0 | LE25: 0 | LF25: 0 | NY25: earliest | NZ25: =MIN(OC25:INDEX(OC25:ON25,,$B$14)) -> 73.55147721 | OB25: tot time | OC25: =OC23+OC24 -> 73.55147721 | OD25: =OD23+OD24 -> 73.55147721 | OE25: 73.55147721 | OF25: 73.55147721 | OG25: 73.55147721 | OH25: 73.55147721 | OI25: 73.55147721 | OJ25: 73.55147721 | OK25: 73.55147721 | OL25: 73.55147721 | OM25: 73.55147721 | ON25: 73.55147721 | RE25: row | RG25: =MATCH(RG24,RI41:RI217,-1) ->  | RN25: yellow 2 | RQ25: =Setups!I104 -> 113.2993333 | RR25: =RG35 -> 
D26: Lv lin | G26: =10^(G24/20) -> 1 | H26: =10^(H24/20) -> 1 | I26: 1 | J26: 1 | K26: 1 | L26: 1 | M26: 1 | N26: 1 | O26: 1 | P26: 1 | Q26: 1 | R26: 1 | BB26: Lv lin | BE26: =G26 -> 1 | BF26: 1 | BG26: 1 | BH26: 1 | BI26: 1 | BJ26: 1 | BK26: 1 | BL26: 1 | BM26: 1 | BN26: 1 | BO26: 1 | BP26: 1 | DC26: 1 | DD26: 1 | DE26: 1 | DF26: 1 | DG26: 1 | DH26: 1 | DI26: 1 | DJ26: 1 | DK26: 1 | DL26: 1 | DM26: 1 | DN26: 1 | FA26: 1 | FB26: 1 | FC26: 1 | FD26: 1 | FE26: 1 | FF26: 1 | FG26: 1 | FH26: 1 | FI26: 1 | FJ26: 1 | FK26: 1 | FL26: 1 | GY26: 1 | GZ26: 1 | HA26: 1 | HB26: 1 | HC26: 1 | HD26: 1 | HE26: 1 | HF26: 1 | HG26: 1 | HH26: 1 | HI26: 1 | HJ26: 1 | IW26: 1 | IX26: 1 | IY26: 1 | IZ26: 1 | JA26: 1 | JB26: 1 | JC26: 1 | JD26: 1 | JE26: 1 | JF26: 1 | JG26: 1 | JH26: 1 | KU26: 1 | KV26: 1 | KW26: 1 | KX26: 1 | KY26: 1 | KZ26: 1 | LA26: 1 | LB26: 1 | LC26: 1 | LD26: 1 | LE26: 1 | LF26: 1 | NA26: mic | NB26: =Dashboard!$D$43 -> 1 | NY26: spk | NZ26: =MATCH(NZ25,OC25:INDEX(OC25:ON25,,$B$14),0) -> 1 | RE26: freq | RG26: =INDEX($C41:$C217,$RG$25) ->  | RI26: 6 dB diff | RJ26: -6 | RN26: red 1 | RO26: =Setups!G105 -> 339.898 | RP26: =Setups!H105 -> 339.898 | RQ26: =Setups!I105 -> 169.949 | RR26: =RG33 -> 23.77004455
D27: tot Lv lin | G27: =G16*G23*(10^-16)^(FACT(G25)-G25)*G26 -> 1 | H27: =H16*H23*(10^-16)^(FACT(H25)-H25)*H26 -> 1e-16 | I27: 1e-16 | J27: 1e-16 | K27: 1e-16 | L27: 1e-16 | M27: 1e-16 | N27: 1e-16 | O27: 1e-16 | P27: 1e-16 | Q27: 1e-16 | R27: 1e-16 | BB27: tot Lv lin | BE27: =BE16*BE23*(10^-16)^(FACT(BE25)-BE25)*BE26 -> 1 | BF27: =BF16*BF23*(10^-16)^(FACT(BF25)-BF25)*BF26 -> 1e-16 | BG27: =BG16*BG23*(10^-16)^(FACT(BG25)-BG25)*BG26 -> 1e-16 | BH27: =BH16*BH23*(10^-16)^(FACT(BH25)-BH25)*BH26 -> 1e-16 | BI27: =BI16*BI23*(10^-16)^(FACT(BI25)-BI25)*BI26 -> 1e-16 | BJ27: =BJ16*BJ23*(10^-16)^(FACT(BJ25)-BJ25)*BJ26 -> 1e-16 | BK27: =BK16*BK23*(10^-16)^(FACT(BK25)-BK25)*BK26 -> 1e-16 | BL27: =BL16*BL23*(10^-16)^(FACT(BL25)-BL25)*BL26 -> 1e-16 | BM27: =BM16*BM23*(10^-16)^(FACT(BM25)-BM25)*BM26 -> 1e-16 | BN27: =BN16*BN23*(10^-16)^(FACT(BN25)-BN25)*BN26 -> 1e-16 | BO27: =BO16*BO23*(10^-16)^(FACT(BO25)-BO25)*BO26 -> 1e-16 | BP27: =BP16*BP23*(10^-16)^(FACT(BP25)-BP25)*BP26 -> 1e-16 | CZ27: tot Lv lin | DC27: =DC16*DC23*(10^-16)^(FACT(DC25)-DC25)*DC26 -> 1 | DD27: =DD16*DD23*(10^-16)^(FACT(DD25)-DD25)*DD26 -> 1e-16 | DE27: =DE16*DE23*(10^-16)^(FACT(DE25)-DE25)*DE26 -> 1e-16 | DF27: =DF16*DF23*(10^-16)^(FACT(DF25)-DF25)*DF26 -> 1e-16 | DG27: =DG16*DG23*(10^-16)^(FACT(DG25)-DG25)*DG26 -> 1e-16 | DH27: =DH16*DH23*(10^-16)^(FACT(DH25)-DH25)*DH26 -> 1e-16 | DI27: =DI16*DI23*(10^-16)^(FACT(DI25)-DI25)*DI26 -> 1e-16 | DJ27: =DJ16*DJ23*(10^-16)^(FACT(DJ25)-DJ25)*DJ26 -> 1e-16 | DK27: =DK16*DK23*(10^-16)^(FACT(DK25)-DK25)*DK26 -> 1e-16 | DL27: =DL16*DL23*(10^-16)^(FACT(DL25)-DL25)*DL26 -> 1e-16 | DM27: =DM16*DM23*(10^-16)^(FACT(DM25)-DM25)*DM26 -> 1e-16 | DN27: =DN16*DN23*(10^-16)^(FACT(DN25)-DN25)*DN26 -> 1e-16 | EX27: tot Lv lin | FA27: =FA16*FA23*(10^-16)^(FACT(FA25)-FA25)*FA26 -> 1 | FB27: =FB16*FB23*(10^-16)^(FACT(FB25)-FB25)*FB26 -> 1e-16 | FC27: =FC16*FC23*(10^-16)^(FACT(FC25)-FC25)*FC26 -> 1e-16 | FD27: =FD16*FD23*(10^-16)^(FACT(FD25)-FD25)*FD26 -> 1e-16 | FE27: =FE16*FE23*(10^-16)^(FACT(FE25)-FE25)*FE26 -> 1e-16 | FF27: =FF16*FF23*(10^-16)^(FACT(FF25)-FF25)*FF26 -> 1e-16 | FG27: =FG16*FG23*(10^-16)^(FACT(FG25)-FG25)*FG26 -> 1e-16 | FH27: =FH16*FH23*(10^-16)^(FACT(FH25)-FH25)*FH26 -> 1e-16 | FI27: =FI16*FI23*(10^-16)^(FACT(FI25)-FI25)*FI26 -> 1e-16 | FJ27: =FJ16*FJ23*(10^-16)^(FACT(FJ25)-FJ25)*FJ26 -> 1e-16 | FK27: =FK16*FK23*(10^-16)^(FACT(FK25)-FK25)*FK26 -> 1e-16 | FL27: =FL16*FL23*(10^-16)^(FACT(FL25)-FL25)*FL26 -> 1e-16 | GV27: tot Lv lin | GY27: =GY16*GY23*(10^-16)^(FACT(GY25)-GY25)*GY26 -> 1 | GZ27: =GZ16*GZ23*(10^-16)^(FACT(GZ25)-GZ25)*GZ26 -> 1e-16 | HA27: =HA16*HA23*(10^-16)^(FACT(HA25)-HA25)*HA26 -> 1e-16 | HB27: =HB16*HB23*(10^-16)^(FACT(HB25)-HB25)*HB26 -> 1e-16 | HC27: =HC16*HC23*(10^-16)^(FACT(HC25)-HC25)*HC26 -> 1e-16 | HD27: =HD16*HD23*(10^-16)^(FACT(HD25)-HD25)*HD26 -> 1e-16 | HE27: =HE16*HE23*(10^-16)^(FACT(HE25)-HE25)*HE26 -> 1e-16 | HF27: =HF16*HF23*(10^-16)^(FACT(HF25)-HF25)*HF26 -> 1e-16 | HG27: =HG16*HG23*(10^-16)^(FACT(HG25)-HG25)*HG26 -> 1e-16 | HH27: =HH16*HH23*(10^-16)^(FACT(HH25)-HH25)*HH26 -> 1e-16 | HI27: =HI16*HI23*(10^-16)^(FACT(HI25)-HI25)*HI26 -> 1e-16 | HJ27: =HJ16*HJ23*(10^-16)^(FACT(HJ25)-HJ25)*HJ26 -> 1e-16 | IT27: tot Lv lin | IW27: =IW16*IW23*(10^-16)^(FACT(IW25)-IW25)*IW26 -> 1 | IX27: =IX16*IX23*(10^-16)^(FACT(IX25)-IX25)*IX26 -> 1e-16 | IY27: =IY16*IY23*(10^-16)^(FACT(IY25)-IY25)*IY26 -> 1e-16 | IZ27: =IZ16*IZ23*(10^-16)^(FACT(IZ25)-IZ25)*IZ26 -> 1e-16 | JA27: =JA16*JA23*(10^-16)^(FACT(JA25)-JA25)*JA26 -> 1e-16 | JB27: =JB16*JB23*(10^-16)^(FACT(JB25)-JB25)*JB26 -> 1e-16 | JC27: =JC16*JC23*(10^-16)^(FACT(JC25)-JC25)*JC26 -> 1e-16 | JD27: =JD16*JD23*(10^-16)^(FACT(JD25)-JD25)*JD26 -> 1e-16 | JE27: =JE16*JE23*(10^-16)^(FACT(JE25)-JE25)*JE26 -> 1e-16 | JF27: =JF16*JF23*(10^-16)^(FACT(JF25)-JF25)*JF26 -> 1e-16 | JG27: =JG16*JG23*(10^-16)^(FACT(JG25)-JG25)*JG26 -> 1e-16 | JH27: =JH16*JH23*(10^-16)^(FACT(JH25)-JH25)*JH26 -> 1e-16 | KR27: tot Lv lin | KU27: =KU16*KU23*(10^-16)^(FACT(KU25)-KU25)*KU26 -> 1 | KV27: =KV16*KV23*(10^-16)^(FACT(KV25)-KV25)*KV26 -> 1e-16 | KW27: =KW16*KW23*(10^-16)^(FACT(KW25)-KW25)*KW26 -> 1e-16 | KX27: =KX16*KX23*(10^-16)^(FACT(KX25)-KX25)*KX26 -> 1e-16 | KY27: =KY16*KY23*(10^-16)^(FACT(KY25)-KY25)*KY26 -> 1e-16 | KZ27: =KZ16*KZ23*(10^-16)^(FACT(KZ25)-KZ25)*KZ26 -> 1e-16 | LA27: =LA16*LA23*(10^-16)^(FACT(LA25)-LA25)*LA26 -> 1e-16 | LB27: =LB16*LB23*(10^-16)^(FACT(LB25)-LB25)*LB26 -> 1e-16 | LC27: =LC16*LC23*(10^-16)^(FACT(LC25)-LC25)*LC26 -> 1e-16 | LD27: =LD16*LD23*(10^-16)^(FACT(LD25)-LD25)*LD26 -> 1e-16 | LE27: =LE16*LE23*(10^-16)^(FACT(LE25)-LE25)*LE26 -> 1e-16 | LF27: =LF16*LF23*(10^-16)^(FACT(LF25)-LF25)*LF26 -> 1e-16 | NN27: near/early | NO27: =IF(Dashboard!D51=1,NZ24,NZ27) -> 1 | NY27: odd/even | NZ27: =IF(AND(ISEVEN($B$14),$RO$18<3,$B$14<=12,$NO$15=1),NZ26+1,NZ26) -> 1 | RI27: f reference | RJ27: =MATCH($RJ$26,$NH$41:$NH$217,-1) -> 177 | RN27: red 2 | RR27: =RG36 -> 84.33930069
NA28: normalize | NB28: =Dashboard!$C$43 -> 0 | RE28: GRADIENT ANALYSIS | RI28: f frequency | RJ28: =INDEX($C41:$C217,$RJ$27,1) -> 251.7850824
D29: T.O.F. | G29: =G15/$B$9*1000 -> 73.55147721 | H29: 73.55147721 | I29: 73.55147721 | J29: 73.55147721 | K29: 73.55147721 | L29: 73.55147721 | M29: 73.55147721 | N29: 73.55147721 | O29: 73.55147721 | P29: 73.55147721 | Q29: 73.55147721 | R29: 73.55147721 | BB29: T.O.F. | BE29: =BE15/$B$9*1000 -> 73.55147721 | BF29: 73.55147721 | BG29: 73.55147721 | BH29: 73.55147721 | BI29: 73.55147721 | BJ29: 73.55147721 | BK29: 73.55147721 | BL29: 73.55147721 | BM29: 73.55147721 | BN29: 73.55147721 | BO29: 73.55147721 | BP29: 73.55147721 | CZ29: T.O.F. | DC29: =DC15/$B$9*1000 -> 73.55147721 | DD29: 73.55147721 | DE29: 73.55147721 | DF29: 73.55147721 | DG29: 73.55147721 | DH29: 73.55147721 | DI29: 73.55147721 | DJ29: 73.55147721 | DK29: 73.55147721 | DL29: 73.55147721 | DM29: 73.55147721 | DN29: 73.55147721 | EX29: T.O.F. | FA29: =FA15/$B$9*1000 -> 73.55147721 | FB29: 73.55147721 | FC29: 73.55147721 | FD29: 73.55147721 | FE29: 73.55147721 | FF29: 73.55147721 | FG29: 73.55147721 | FH29: 73.55147721 | FI29: 73.55147721 | FJ29: 73.55147721 | FK29: 73.55147721 | FL29: 73.55147721 | GV29: T.O.F. | GY29: =GY15/$B$9*1000 -> 73.55147721 | GZ29: 73.55147721 | HA29: 73.55147721 | HB29: 73.55147721 | HC29: 73.55147721 | HD29: 73.55147721 | HE29: 73.55147721 | HF29: 73.55147721 | HG29: 73.55147721 | HH29: 73.55147721 | HI29: 73.55147721 | HJ29: 73.55147721 | IT29: T.O.F. | IW29: =IW15/$B$9*1000 -> 73.55147721 | IX29: 73.55147721 | IY29: 73.55147721 | IZ29: 73.55147721 | JA29: 73.55147721 | JB29: 73.55147721 | JC29: 73.55147721 | JD29: 73.55147721 | JE29: 73.55147721 | JF29: 73.55147721 | JG29: 73.55147721 | JH29: 73.55147721 | KR29: T.O.F. | KU29: =KU15/$B$9*1000 -> 73.55147721 | KV29: 73.55147721 | KW29: 73.55147721 | KX29: 73.55147721 | KY29: 73.55147721 | KZ29: 73.55147721 | LA29: 73.55147721 | LB29: 73.55147721 | LC29: 73.55147721 | LD29: 73.55147721 | LE29: 73.55147721 | LF29: 73.55147721 | NN29: result spk | NO29: =IF(NO21=1,NO27,NO23) -> 1 | OA29: norm time | OC29: Rel Arr Time | RO29: phys. | RP29: del. | RQ29: end-fire | RR29: gradient | RS29: manual
D30: delay | G30: =TRANSPOSE(Setups!$I$83:$I$94) -> 0 | H30: 0 | I30: 0 | J30: 0 | K30: 0 | L30: 0 | M30: 0 | N30: 0 | O30: 0 | P30: 0 | Q30: 0 | R30: 0 | BB30: delay | BE30: =G30 -> 0 | BF30: 0 | BG30: 0 | BH30: 0 | BI30: 0 | BJ30: 0 | BK30: 0 | BL30: 0 | BM30: 0 | BN30: 0 | BO30: 0 | BP30: 0 | CZ30: delay | DC30: =G30 -> 0 | DD30: 0 | DE30: 0 | DF30: 0 | DG30: 0 | DH30: 0 | DI30: 0 | DJ30: 0 | DK30: 0 | DL30: 0 | DM30: 0 | DN30: 0 | EX30: delay | FA30: =G30 -> 0 | FB30: 0 | FC30: 0 | FD30: 0 | FE30: 0 | FF30: 0 | FG30: 0 | FH30: 0 | FI30: 0 | FJ30: 0 | FK30: 0 | FL30: 0 | GV30: delay | GY30: =G30 -> 0 | GZ30: 0 | HA30: 0 | HB30: 0 | HC30: 0 | HD30: 0 | HE30: 0 | HF30: 0 | HG30: 0 | HH30: 0 | HI30: 0 | HJ30: 0 | IT30: delay | IW30: =G30 -> 0 | IX30: 0 | IY30: 0 | IZ30: 0 | JA30: 0 | JB30: 0 | JC30: 0 | JD30: 0 | JE30: 0 | JF30: 0 | JG30: 0 | JH30: 0 | KR30: delay | KU30: =G30 -> 0 | KV30: 0 | KW30: 0 | KX30: 0 | KY30: 0 | KZ30: 0 | LA30: 0 | LB30: 0 | LC30: 0 | LD30: 0 | LE30: 0 | LF30: 0 | PO30: PLOT DISPLAY LOGIC | RE30: row (split @ max sum) | RG30: =MATCH(RR23,C41:C217,1) -> 101 | RN30: rows | RO30: 1 | RP30: 2 | RQ30: 3 | RR30: 4 | RS30: 5
D31: sum | G31: =G29+G30 -> 73.55147721 | H31: 73.55147721 | I31: 73.55147721 | J31: 73.55147721 | K31: 73.55147721 | L31: 73.55147721 | M31: 73.55147721 | N31: 73.55147721 | O31: 73.55147721 | P31: 73.55147721 | Q31: 73.55147721 | R31: 73.55147721 | BB31: sum | BE31: =BE29+BE30 -> 73.55147721 | BF31: 73.55147721 | BG31: 73.55147721 | BH31: 73.55147721 | BI31: 73.55147721 | BJ31: 73.55147721 | BK31: 73.55147721 | BL31: 73.55147721 | BM31: 73.55147721 | BN31: 73.55147721 | BO31: 73.55147721 | BP31: =BP29+BP30 -> 73.55147721 | CZ31: sum | DC31: =DC29+DC30 -> 73.55147721 | DD31: =DD29+DD30 -> 73.55147721 | DE31: =DE29+DE30 -> 73.55147721 | DF31: =DF29+DF30 -> 73.55147721 | DG31: =DG29+DG30 -> 73.55147721 | DH31: =DH29+DH30 -> 73.55147721 | DI31: =DI29+DI30 -> 73.55147721 | DJ31: =DJ29+DJ30 -> 73.55147721 | DK31: =DK29+DK30 -> 73.55147721 | DL31: =DL29+DL30 -> 73.55147721 | DM31: =DM29+DM30 -> 73.55147721 | DN31: =DN29+DN30 -> 73.55147721 | EX31: sum | FA31: =FA29+FA30 -> 73.55147721 | FB31: =FB29+FB30 -> 73.55147721 | FC31: =FC29+FC30 -> 73.55147721 | FD31: =FD29+FD30 -> 73.55147721 | FE31: =FE29+FE30 -> 73.55147721 | FF31: =FF29+FF30 -> 73.55147721 | FG31: =FG29+FG30 -> 73.55147721 | FH31: =FH29+FH30 -> 73.55147721 | FI31: =FI29+FI30 -> 73.55147721 | FJ31: =FJ29+FJ30 -> 73.55147721 | FK31: =FK29+FK30 -> 73.55147721 | FL31: =FL29+FL30 -> 73.55147721 | GV31: sum | GY31: =GY29+GY30 -> 73.55147721 | GZ31: =GZ29+GZ30 -> 73.55147721 | HA31: =HA29+HA30 -> 73.55147721 | HB31: =HB29+HB30 -> 73.55147721 | HC31: =HC29+HC30 -> 73.55147721 | HD31: =HD29+HD30 -> 73.55147721 | HE31: =HE29+HE30 -> 73.55147721 | HF31: =HF29+HF30 -> 73.55147721 | HG31: =HG29+HG30 -> 73.55147721 | HH31: =HH29+HH30 -> 73.55147721 | HI31: =HI29+HI30 -> 73.55147721 | HJ31: =HJ29+HJ30 -> 73.55147721 | IT31: sum | IW31: =IW29+IW30 -> 73.55147721 | IX31: =IX29+IX30 -> 73.55147721 | IY31: =IY29+IY30 -> 73.55147721 | IZ31: =IZ29+IZ30 -> 73.55147721 | JA31: =JA29+JA30 -> 73.55147721 | JB31: =JB29+JB30 -> 73.55147721 | JC31: =JC29+JC30 -> 73.55147721 | JD31: =JD29+JD30 -> 73.55147721 | JE31: =JE29+JE30 -> 73.55147721 | JF31: =JF29+JF30 -> 73.55147721 | JG31: =JG29+JG30 -> 73.55147721 | JH31: =JH29+JH30 -> 73.55147721 | KR31: sum | KU31: =KU29+KU30 -> 73.55147721 | KV31: =KV29+KV30 -> 73.55147721 | KW31: =KW29+KW30 -> 73.55147721 | KX31: =KX29+KX30 -> 73.55147721 | KY31: =KY29+KY30 -> 73.55147721 | KZ31: =KZ29+KZ30 -> 73.55147721 | LA31: =LA29+LA30 -> 73.55147721 | LB31: =LB29+LB30 -> 73.55147721 | LC31: =LC29+LC30 -> 73.55147721 | LD31: =LD29+LD30 -> 73.55147721 | LE31: =LE29+LE30 -> 73.55147721 | LF31: =LF29+LF30 -> 73.55147721 | MM31: FILTERS | NA31: PLOT DISPLAY LOGIC | OA31: =INDEX(OC25:ON25,,$NO$29)*$NO$19 -> 73.55147721 | OC31: =OC25-$OA$31 -> 0 | OD31: 0 | OE31: 0 | OF31: 0 | OG31: 0 | OH31: 0 | OI31: 0 | OJ31: 0 | OK31: 0 | OL31: 0 | OM31: 0 | ON31: 0 | RI31: min val mic 7 | RJ31: =MIN($NH$41:INDEX($NH$41:$NH$217,RO32)) -> -4.353257707e-08 | RN31: black | RO31: =MATCH(RO22,$C$41:$C$217,1) -> 177 | RP31: =RO31 -> 177 | RQ31: =MATCH(RQ22,$C$41:$C$217,1) -> 149
NB32: =TRANSPOSE(Dashboard!D32:D38) -> 1 | NC32: 1 | ND32: 1 | NE32: 1 | NF32: 1 | NG32: 1 | NH32: 1 | PO32: trace | PP32: 1 | PQ32: 2 | PR32: 3 | PS32: 4 | PT32: 5 | PU32: 6 | PV32: 7 | PW32: 8 | PX32: 9 | PY32: 10 | PZ32: 11 | QA32: 12 | QC32: avg | RF32: row | RG32: freq | RI32: row | RJ32: =MATCH(RJ31,$NH$41:$NH$217,0) -> 149 | RN32: green | RO32: =MATCH(RO23,$C$41:$C$217,1) -> 149 | RP32: =RO32 -> 149 | RR32: =MATCH(RR23,$C$41:$C$217,1) -> 101
D33: pol rad | G33: =TRANSPOSE(Setups!$J$83:$J$94)*$B$7 -> 0 | H33: 0 | I33: 0 | J33: 0 | K33: 0 | L33: 0 | M33: 0 | N33: 0 | O33: 0 | P33: 0 | Q33: 0 | R33: 0 | BB33: pol rad | BE33: =G33 -> 0 | BF33: 0 | BG33: 0 | BH33: 0 | BI33: 0 | BJ33: 0 | BK33: 0 | BL33: 0 | BM33: 0 | BN33: 0 | BO33: 0 | BP33: 0 | CZ33: pol rad | DC33: =G33 -> 0 | DD33: 0 | DE33: 0 | DF33: 0 | DG33: 0 | DH33: 0 | DI33: 0 | DJ33: 0 | DK33: 0 | DL33: 0 | DM33: 0 | DN33: 0 | EX33: pol rad | FA33: =G33 -> 0 | FB33: 0 | FC33: 0 | FD33: 0 | FE33: 0 | FF33: 0 | FG33: 0 | FH33: 0 | FI33: 0 | FJ33: 0 | FK33: 0 | FL33: 0 | GV33: pol rad | GY33: =G33 -> 0 | GZ33: 0 | HA33: 0 | HB33: 0 | HC33: 0 | HD33: 0 | HE33: 0 | HF33: 0 | HG33: 0 | HH33: 0 | HI33: 0 | HJ33: 0 | IT33: pol rad | IW33: =G33 -> 0 | IX33: 0 | IY33: 0 | IZ33: 0 | JA33: 0 | JB33: 0 | JC33: 0 | JD33: 0 | JE33: 0 | JF33: 0 | JG33: 0 | JH33: 0 | KR33: pol rad | KU33: =G33 -> 0 | KV33: 0 | KW33: 0 | KX33: 0 | KY33: 0 | KZ33: 0 | LA33: 0 | LB33: 0 | LC33: 0 | LD33: 0 | LE33: 0 | LF33: 0 | MN33: HPF | MO33: LPF | NA33: =IF(Dashboard!$D$40=0,NA(),1) -> 1 | NB33: =IF(NB32=1,1,NA()) -> 1 | NC33: =IF(NC32=1,1,NA()) -> 1 | ND33: 1 | NE33: 1 | NF33: 1 | NG33: 1 | NH33: 1 | PO33: on/off | PP33: =G25 -> 1 | PQ33: 0 | PR33: 0 | PS33: 0 | PT33: 0 | PU33: 0 | PV33: 0 | PW33: 0 | PX33: 0 | PY33: 0 | PZ33: 0 | QA33: 0 | RE33: ="-6 dB low" -> -6 dB low | RF33: =IFERROR(MATCH(0,$RH$41:INDEX($RH$41:$RH$217,$RG$30),1),1) -> 13 | RG33: =INDEX($C$41:INDEX($C$41:$C$217,$RG$30),RF33) -> 23.77004455 | RI33: freq | RJ33: =INDEX($C41:$C217,$RJ$32,1) -> 168.2790283 | RN33: yellow 1 | RO33: =MATCH(RO24,$C$41:$C$217,1) -> 169 | RP33: =RO33 -> 169 | RQ33: =RG25 ->  | RR33: =RF34 -> 101
MM34: freq | MN34: =Dashboard!$G$14 -> 0 | MO34: =Dashboard!$H$14 -> 20000 | PO34: display | PP34: =TRANSPOSE(Dashboard!D57:D68) -> 1 | PQ34: 1 | PR34: 1 | PS34: 1 | PT34: 1 | PU34: 1 | PV34: 1 | PW34: 1 | PX34: 1 | PY34: 1 | PZ34: 1 | QA34: 1 | QC34: =Dashboard!$D$70 -> 0 | RE34: ="-3 dB low" -> -3 dB low | RF34: =MATCH(3,$RH$41:INDEX($RH$41:$RH$217,$RG$30),1) -> 101 | RG34: =INDEX($C$41:INDEX($C$41:$C$217,$RG$30),RF34) -> 84.33930069 | RN34: yellow 2 | RQ34: =MATCH(RQ25,$C$41:$C$217,1) -> 121 | RR34: =RF35+RG30 -> 
D35: prox | E35: =MIN(G15:INDEX(G15:R15,1,$B$14)) -> 25 | BB35: prox | BC35: =MIN(BE15:INDEX(BE15:BP15,1,$B$14)) -> 25 | CZ35: prox | DA35: =MIN(DC15:INDEX(DC15:DN15,1,$B$14)) -> 25 | EX35: prox | EY35: =MIN(FA15:INDEX(FA15:FL15,1,$B$14)) -> 25 | GV35: prox | GW35: =MIN(GY15:INDEX(GY15:HJ15,1,$B$14)) -> 25 | IT35: prox | IU35: =MIN(IW15:INDEX(IW15:JH15,1,$B$14)) -> 25 | KR35: prox | KS35: =MIN(KU15:INDEX(KU15:LF15,1,$B$14)) -> 25 | MM35: order | MN35: =Dashboard!$G$15 -> 8 | MO35: =Dashboard!$H$15 -> 4 | PO35: result | PP35: =IF(AND(PP$34=1,PP$32<=$B$14,PP$33<>0),1,NA()) -> 1 | PQ35: =IF(AND(PQ$34=1,PQ$32<=$B$14,PQ$33<>0),1,NA()) ->  | QC35: =IF(QC34=0,NA(),QC34) ->  | RE35: ="-3 dB high" -> -3 dB high | RF35: =MATCH(3,INDEX($RH$41:$RH$217,$RG$30):$RH$217,-1) ->  | RG35: =INDEX(INDEX($C$41:$C$217,$RG$30):$C$217,RF35) ->  | RN35: red 1 | RO35: =MATCH(RO26,$C$41:$C$217,1) -> 177 | RP35: =RO35 -> 177 | RQ35: =RO32 -> 149 | RR35: =RF33 -> 13
D36: norm | G36: =G15/$E$35 -> 1 | H36: 1 | I36: 1 | J36: 1 | K36: 1 | L36: 1 | M36: 1 | N36: 1 | O36: 1 | P36: 1 | Q36: 1 | R36: 1 | BB36: norm | BE36: =BE15/$BC$35 -> 1 | BF36: 1 | BG36: 1 | BH36: 1 | BI36: 1 | BJ36: 1 | BK36: 1 | BL36: 1 | BM36: 1 | BN36: 1 | BO36: 1 | BP36: 1 | CZ36: norm | DC36: =DC15/$DA$35 -> 1 | DD36: =DD15/$DA$35 -> 1 | DE36: 1 | DF36: 1 | DG36: 1 | DH36: 1 | DI36: 1 | DJ36: 1 | DK36: 1 | DL36: 1 | DM36: 1 | DN36: 1 | EX36: norm | FA36: =FA15/$EY$35 -> 1 | FB36: =FB15/$EY$35 -> 1 | FC36: 1 | FD36: 1 | FE36: 1 | FF36: 1 | FG36: 1 | FH36: 1 | FI36: 1 | FJ36: 1 | FK36: 1 | FL36: 1 | GV36: norm | GY36: =GY15/$GW$35 -> 1 | GZ36: =GZ15/$GW$35 -> 1 | HA36: 1 | HB36: 1 | HC36: 1 | HD36: 1 | HE36: 1 | HF36: 1 | HG36: 1 | HH36: 1 | HI36: 1 | HJ36: 1 | IT36: norm | IW36: =IW15/$IU$35 -> 1 | IX36: =IX15/$IU$35 -> 1 | IY36: 1 | IZ36: 1 | JA36: 1 | JB36: 1 | JC36: 1 | JD36: 1 | JE36: 1 | JF36: 1 | JG36: 1 | JH36: 1 | KR36: norm | KU36: =KU15/$KS$35 -> 1 | KV36: =KV15/$KS$35 -> 1 | KW36: 1 | KX36: 1 | KY36: 1 | KZ36: 1 | LA36: 1 | LB36: 1 | LC36: 1 | LD36: 1 | LE36: 1 | LF36: 1 | NJ36: avg phase selection | RE36: ="-6 dB high" -> -6 dB high | RF36: =MATCH(0,INDEX($RH$41:$RH$217,$RG$30):$RH$217,-1) -> 1 | RG36: =INDEX(INDEX($C$41:$C$217,$RG$30):$C$217,RF36) -> 84.33930069 | RN36: red 2 | RR36: =RF36+RG30 -> 102
D37: match | E37: =MATCH(1,G36:R36,0) -> 1 | BB37: match | BC37: =MATCH(1,BE36:BP36,0) -> 1 | CZ37: match | DA37: =MATCH(1,DC36:DN36,0) -> 1 | EX37: match | EY37: =MATCH(1,FA36:FL36,0) -> 1 | GV37: match | GW37: =MATCH(1,GY36:HJ36,0) -> 1 | IT37: match | IU37: =MATCH(1,IW36:JH36,0) -> 1 | KR37: match | KS37: =MATCH(1,KU36:LF36,0) -> 1 | MR37: Level Data lin | MZ37: Norm Lv | NA37: Plot log | NN37: Phase Data rad | OA37: Norm Phase | OC37: cycles | OP37: 360 | PC37: <180 | PP37: >180 | QC37: Level Data lin | QP37: Norm level | QR37: Plot log | RV37: avg phase
NJ38: re | NK38: im | QC38: 445 | QD38: 446 | QE38: 447 | QF38: 448 | QG38: 449 | QH38: 450 | QI38: 451 | QJ38: 452 | QK38: 453 | QL38: 454 | QM38: 455 | QN38: 456 | RN38: red | RO38: yellow | RP38: green | RQ38: black | RR38: column | RS38: =IF($B$5<>2,3,1) -> 3 | RV38: cycles | RW38: 360 | RX38: <180 | RY38: >180
B39: points | C39: f | D39: ISO f | E39: period | G39: theta 1 | H39: theta 2 | I39: theta 3 | J39: theta 4 | K39: theta 5 | L39: theta 6 | M39: theta 7 | N39: theta 8 | O39: theta 9 | P39: theta 10 | Q39: theta 11 | R39: theta 12 | T39: re (x) 1 | U39: re (x) 2 | V39: re (x) 3 | W39: re (x) 4 | X39: re (x) 5 | Y39: re (x) 6 | Z39: re (x) 7 | AA39: re (x) 8 | AB39: re (x) 9 | AC39: re (x) 10 | AD39: re (x) 11 | AE39: re (x) 12 | AG39: im (y) 1 | AH39: im (y) 2 | AI39: im (y) 3 | AJ39: im (y) 4 | AK39: im (y) 5 | AL39: im (y) 6 | AM39: im (y) 7 | AN39: im (y) 8 | AO39: im (y) 9 | AP39: im (y) 10 | AQ39: im (y) 11 | AR39: im (y) 12 | AT39: sum re (x) | AU39: sum im (y) | AW39: Lv abs lin | BA39: f | BB39: ISO f | BC39: period | BE39: theta 1 | BF39: theta 2 | BG39: theta 3 | BH39: theta 4 | BI39: theta 5 | BJ39: theta 6 | BK39: theta 7 | BL39: theta 8 | BM39: theta 9 | BN39: theta 10 | BO39: theta 11 | BP39: theta 12 | BR39: re (x) 1 | BS39: re (x) 2 | BT39: re (x) 3 | BU39: re (x) 4 | BV39: re (x) 5 | BW39: re (x) 6 | BX39: re (x) 7 | BY39: re (x) 8 | BZ39: re (x) 9 | CA39: re (x) 10 | CB39: re (x) 11 | CC39: re (x) 12 | CE39: im (y) 1 | CF39: im (y) 2 | CG39: im (y) 3 | CH39: im (y) 4 | CI39: im (y) 5 | CJ39: im (y) 6 | CK39: im (y) 7 | CL39: im (y) 8 | CM39: im (y) 9 | CN39: im (y) 10 | CO39: im (y) 11 | CP39: im (y) 12 | CR39: sum re (x) | CS39: sum im (y) | CU39: Lv abs lin | CY39: f | CZ39: ISO f | DA39: period | DC39: theta 1 | DD39: theta 2 | DE39: theta 3 | DF39: theta 4 | DG39: theta 5 | DH39: theta 6 | DI39: theta 7 | DJ39: theta 8 | DK39: theta 9 | DL39: theta 10 | DM39: theta 11 | DN39: theta 12 | DP39: re (x) 1 | DQ39: re (x) 2 | DR39: re (x) 3 | DS39: re (x) 4 | DT39: re (x) 5 | DU39: re (x) 6 | DV39: re (x) 7 | DW39: re (x) 8 | DX39: re (x) 9 | DY39: re (x) 10 | DZ39: re (x) 11 | EA39: re (x) 12 | EC39: im (y) 1 | ED39: im (y) 2 | EE39: im (y) 3 | EF39: im (y) 4 | EG39: im (y) 5 | EH39: im (y) 6 | EI39: im (y) 7 | EJ39: im (y) 8 | EK39: im (y) 9 | EL39: im (y) 10 | EM39: im (y) 11 | EN39: im (y) 12 | EP39: sum re (x) | EQ39: sum im (y) | ES39: Lv abs lin | EW39: f | EX39: ISO f | EY39: period | FA39: theta 1 | FB39: theta 2 | FC39: theta 3 | FD39: theta 4 | FE39: theta 5 | FF39: theta 6 | FG39: theta 7 | FH39: theta 8 | FI39: theta 9 | FJ39: theta 10 | FK39: theta 11 | FL39: theta 12 | FN39: re (x) 1 | FO39: re (x) 2 | FP39: re (x) 3 | FQ39: re (x) 4 | FR39: re (x) 5 | FS39: re (x) 6 | FT39: re (x) 7 | FU39: re (x) 8 | FV39: re (x) 9 | FW39: re (x) 10 | FX39: re (x) 11 | FY39: re (x) 12 | GA39: im (y) 1 | GB39: im (y) 2 | GC39: im (y) 3 | GD39: im (y) 4 | GE39: im (y) 5 | GF39: im (y) 6 | GG39: im (y) 7 | GH39: im (y) 8 | GI39: im (y) 9 | GJ39: im (y) 10 | GK39: im (y) 11 | GL39: im (y) 12 | GN39: sum re (x) | GO39: sum im (y) | GQ39: Lv abs lin | GU39: f | GV39: ISO f | GW39: period | GY39: theta 1 | GZ39: theta 2 | HA39: theta 3 | HB39: theta 4 | HC39: theta 5 | HD39: theta 6 | HE39: theta 7 | HF39: theta 8 | HG39: theta 9 | HH39: theta 10 | HI39: theta 11 | HJ39: theta 12 | HL39: re (x) 1 | HM39: re (x) 2 | HN39: re (x) 3 | HO39: re (x) 4 | HP39: re (x) 5 | HQ39: re (x) 6 | HR39: re (x) 7 | HS39: re (x) 8 | HT39: re (x) 9 | HU39: re (x) 10 | HV39: re (x) 11 | HW39: re (x) 12 | HY39: im (y) 1 | HZ39: im (y) 2 | IA39: im (y) 3 | IB39: im (y) 4 | IC39: im (y) 5 | ID39: im (y) 6 | IE39: im (y) 7 | IF39: im (y) 8 | IG39: im (y) 9 | IH39: im (y) 10 | II39: im (y) 11 | IJ39: im (y) 12 | IL39: sum re (x) | IM39: sum im (y) | IO39: Lv abs lin | IS39: f | IT39: ISO f | IU39: period | IW39: theta 1 | IX39: theta 2 | IY39: theta 3 | IZ39: theta 4 | JA39: theta 5 | JB39: theta 6 | JC39: theta 7 | JD39: theta 8 | JE39: theta 9 | JF39: theta 10 | JG39: theta 11 | JH39: theta 12 | JJ39: re (x) 1 | JK39: re (x) 2 | JL39: re (x) 3 | JM39: re (x) 4 | JN39: re (x) 5 | JO39: re (x) 6 | JP39: re (x) 7 | JQ39: re (x) 8 | JR39: re (x) 9 | JS39: re (x) 10 | JT39: re (x) 11 | JU39: re (x) 12 | JW39: im (y) 1 | JX39: im (y) 2 | JY39: im (y) 3 | JZ39: im (y) 4 | KA39: im (y) 5 | KB39: im (y) 6 | KC39: im (y) 7 | KD39: im (y) 8 | KE39: im (y) 9 | KF39: im (y) 10 | KG39: im (y) 11 | KH39: im (y) 12 | KJ39: sum re (x) | KK39: sum im (y) | KM39: Lv abs lin | KQ39: f | KR39: ISO f | KS39: period | KU39: theta 1 | KV39: theta 2 | KW39: theta 3 | KX39: theta 4 | KY39: theta 5 | KZ39: theta 6 | LA39: theta 7 | LB39: theta 8 | LC39: theta 9 | LD39: theta 10 | LE39: theta 11 | LF39: theta 12 | LH39: re (x) 1 | LI39: re (x) 2 | LJ39: re (x) 3 | LK39: re (x) 4 | LL39: re (x) 5 | LM39: re (x) 6 | LN39: re (x) 7 | LO39: re (x) 8 | LP39: re (x) 9 | LQ39: re (x) 10 | LR39: re (x) 11 | LS39: re (x) 12 | LU39: im (y) 1 | LV39: im (y) 2 | LW39: im (y) 3 | LX39: im (y) 4 | LY39: im (y) 5 | LZ39: im (y) 6 | MA39: im (y) 7 | MB39: im (y) 8 | MC39: im (y) 9 | MD39: im (y) 10 | ME39: im (y) 11 | MF39: im (y) 12 | MH39: sum re (x) | MI39: sum im (y) | MK39: Lv abs lin | MM39: HPF | MN39: LPF | MO39: mod prod | MR39: mic 1 | MS39: mic 2 | MT39: mic 3 | MU39: mic 4 | MV39: mic 5 | MW39: mic 6 | MX39: mic 7 | MY39: BL lin | NA39: BL | NB39: mic 1 | NC39: mic 2 | ND39: mic 3 | NE39: mic 4 | NF39: mic 5 | NG39: mic 6 | NH39: mic 7 | NN39: spk 1 | NO39: spk 2 | NP39: spk 3 | NQ39: spk 4 | NR39: spk 5 | NS39: spk 6 | NT39: spk 7 | NU39: spk 8 | NV39: spk 9 | NW39: spk 10 | NX39: spk 11 | NY39: spk 12 | OC39: spk 1 | OD39: spk 2 | OE39: spk 3 | OF39: spk 4 | OG39: spk 5 | OH39: spk 6 | OI39: spk 7 | OJ39: spk 8 | OK39: spk 9 | OL39: spk 10 | OM39: spk 11 | ON39: spk 12 | OP39: spk 1 | OQ39: spk 2 | OR39: spk 3 | OS39: spk 4 | OT39: spk 5 | OU39: spk 6 | OV39: spk 7 | OW39: spk 8 | OX39: spk 9 | OY39: spk 10 | OZ39: spk 11 | PA39: spk 12 | PC39: spk 1 | PD39: spk 2 | PE39: spk 3 | PF39: spk 4 | PG39: spk 5 | PH39: spk 6 | PI39: spk 7 | PJ39: spk 8 | PK39: spk 9 | PL39: spk 10 | PM39: spk 11 | PN39: spk 12 | PP39: spk 1 | PQ39: spk 2 | PR39: spk 3 | PS39: spk 4 | PT39: spk 5 | PU39: spk 6 | PV39: spk 7 | PW39: spk 8 | PX39: spk 9 | PY39: spk 10 | PZ39: spk 11 | QA39: spk 12 | QC39: spk 1 | QD39: spk 2 | QE39: spk 3 | QF39: spk 4 | QG39: spk 5 | QH39: spk 6 | QI39: spk 7 | QJ39: spk 8 | QK39: spk 9 | QL39: spk 10 | QM39: spk 11 | QN39: spk 12 | QR39: spk 1 | QS39: spk 2 | QT39: spk 3 | QU39: spk 4 | QV39: spk 5 | QW39: spk 6 | QX39: spk 7 | QY39: spk 8 | QZ39: spk 9 | RA39: spk 10 | RB39: spk 11 | RC39: spk 12 | RE39: onax pre filter !!! | RF39: rear (mic7) pre filter !!! | RH39: onax log | RI39: rear (mic7) log | RK39: diff block / ONAX | RM39: marker 1 | RN39: =IFERROR(INDEX(RO35:RS35,$RO$18),0) -> 177 | RO39: =IFERROR(INDEX(RO33:RS33,$RO$18),0) -> 169 | RP39: =IFERROR(INDEX(RO32:RS32,RO18),0) -> 149 | RQ39: =IFERROR(INDEX(RO31:RS31,RO18),0) -> 177 | RS39: diff mic 5 or 7 / ONAX
RM40: marker 2 | RN40: =IFERROR(INDEX(RO36:RS36,$RO$18),0) -> 0 | RO40: =IFERROR(INDEX(RO34:RS34,$RO$18),0) -> 0
B41: 0 | C41: 20 | D41: 20 | E41: 50 | G41: =G$31/$E41*G$25*$B$8+G$33 -> 9.242751218 | H41: 0 | I41: 0 | J41: 0 | K41: 0 | L41: 0 | M41: 0 | N41: 0 | O41: 0 | P41: 0 | Q41: 0 | R41: 0 | T41: =G$27*COS(G41) -> -0.9834788255 | U41: =H$27*COS(H41) -> 1e-16 | V41: =I$27*COS(I41) -> 1e-16 | W41: =J$27*COS(J41) -> 1e-16 | X41: =K$27*COS(K41) -> 1e-16 | Y41: =L$27*COS(L41) -> 1e-16 | Z41: =M$27*COS(M41) -> 1e-16 | AA41: =N$27*COS(N41) -> 1e-16 | AB41: =O$27*COS(O41) -> 1e-16 | AC41: =P$27*COS(P41) -> 1e-16 | AD41: =Q$27*COS(Q41) -> 1e-16 | AE41: =R$27*COS(R41) -> 1e-16 | AG41: =G$27*SIN(G41) -> 0.1810232022 | AH41: =H$27*SIN(H41) -> 0 | AI41: =I$27*SIN(I41) -> 0 | AJ41: =J$27*SIN(J41) -> 0 | AK41: =K$27*SIN(K41) -> 0 | AL41: =L$27*SIN(L41) -> 0 | AM41: =M$27*SIN(M41) -> 0 | AN41: =N$27*SIN(N41) -> 0 | AO41: =O$27*SIN(O41) -> 0 | AP41: =P$27*SIN(P41) -> 0 | AQ41: =Q$27*SIN(Q41) -> 0 | AR41: =R$27*SIN(R41) -> 0 | AT41: =SUM(T41:AE41) -> -0.9834788255 | AU41: =SUM(AG41:AR41) -> 0.1810232022 | AW41: =SQRT(AT41^2+AU41^2)*$MO41 -> 1 | BA41: 20 | BB41: 20 | BC41: 50 | BE41: =BE$31/$E41*BE$25*$B$8+BE$33 -> 9.242751218 | BF41: 0 | BG41: 0 | BH41: 0 | BI41: 0 | BJ41: 0 | BK41: 0 | BL41: 0 | BM41: 0 | BN41: 0 | BO41: 0 | BP41: 0 | BR41: =BE$27*COS(BE41) -> -0.9834788255 | BS41: =BF$27*COS(BF41) -> 1e-16 | BT41: =BG$27*COS(BG41) -> 1e-16 | BU41: =BH$27*COS(BH41) -> 1e-16 | BV41: =BI$27*COS(BI41) -> 1e-16 | BW41: =BJ$27*COS(BJ41) -> 1e-16 | BX41: =BK$27*COS(BK41) -> 1e-16 | BY41: =BL$27*COS(BL41) -> 1e-16 | BZ41: =BM$27*COS(BM41) -> 1e-16 | CA41: =BN$27*COS(BN41) -> 1e-16 | CB41: =BO$27*COS(BO41) -> 1e-16 | CC41: =BP$27*COS(BP41) -> 1e-16 | CE41: =BE$27*SIN(BE41) -> 0.1810232022 | CF41: =BF$27*SIN(BF41) -> 0 | CG41: =BG$27*SIN(BG41) -> 0 | CH41: =BH$27*SIN(BH41) -> 0 | CI41: =BI$27*SIN(BI41) -> 0 | CJ41: =BJ$27*SIN(BJ41) -> 0 | CK41: =BK$27*SIN(BK41) -> 0 | CL41: =BL$27*SIN(BL41) -> 0 | CM41: =BM$27*SIN(BM41) -> 0 | CN41: =BN$27*SIN(BN41) -> 0 | CO41: =BO$27*SIN(BO41) -> 0 | CP41: =BP$27*SIN(BP41) -> 0 | CR41: =SUM(BR41:CC41) -> -0.9834788255 | CS41: =SUM(CE41:CP41) -> 0.1810232022 | CU41: =SQRT(CR41^2+CS41^2)*$MO41 -> 1 | CY41: 20 | CZ41: 20 | DA41: 50 | DC41: =DC$31/$E41*DC$25*$B$8+DC$33 -> 9.242751218 | DD41: 0 | DE41: 0 | DF41: 0 | DG41: 0 | DH41: 0 | DI41: 0 | DJ41: 0 | DK41: 0 | DL41: 0 | DM41: 0 | DN41: 0 | DP41: =DC$27*COS(DC41) -> -0.9834788255 | DQ41: =DD$27*COS(DD41) -> 1e-16 | DR41: =DE$27*COS(DE41) -> 1e-16 | DS41: =DF$27*COS(DF41) -> 1e-16 | DT41: =DG$27*COS(DG41) -> 1e-16 | DU41: =DH$27*COS(DH41) -> 1e-16 | DV41: =DI$27*COS(DI41) -> 1e-16 | DW41: =DJ$27*COS(DJ41) -> 1e-16 | DX41: =DK$27*COS(DK41) -> 1e-16 | DY41: =DL$27*COS(DL41) -> 1e-16 | DZ41: =DM$27*COS(DM41) -> 1e-16 | EA41: =DN$27*COS(DN41) -> 1e-16 | EC41: =DC$27*SIN(DC41) -> 0.1810232022 | ED41: =DD$27*SIN(DD41) -> 0 | EE41: =DE$27*SIN(DE41) -> 0 | EF41: =DF$27*SIN(DF41) -> 0 | EG41: =DG$27*SIN(DG41) -> 0 | EH41: =DH$27*SIN(DH41) -> 0 | EI41: =DI$27*SIN(DI41) -> 0 | EJ41: =DJ$27*SIN(DJ41) -> 0 | EK41: =DK$27*SIN(DK41) -> 0 | EL41: =DL$27*SIN(DL41) -> 0 | EM41: =DM$27*SIN(DM41) -> 0 | EN41: =DN$27*SIN(DN41) -> 0 | EP41: =SUM(DP41:EA41) -> -0.9834788255 | EQ41: =SUM(EC41:EN41) -> 0.1810232022 | ES41: =SQRT(EP41^2+EQ41^2)*$MO41 -> 1 | EW41: 20 | EX41: 20 | EY41: 50 | FA41: =FA$31/$E41*FA$25*$B$8+FA$33 -> 9.242751218 | FB41: 0 | FC41: 0 | FD41: 0 | FE41: 0 | FF41: 0 | FG41: 0 | FH41: 0 | FI41: 0 | FJ41: 0 | FK41: 0 | FL41: 0 | FN41: =FA$27*COS(FA41) -> -0.9834788255 | FO41: =FB$27*COS(FB41) -> 1e-16 | FP41: =FC$27*COS(FC41) -> 1e-16 | FQ41: =FD$27*COS(FD41) -> 1e-16 | FR41: =FE$27*COS(FE41) -> 1e-16 | FS41: =FF$27*COS(FF41) -> 1e-16 | FT41: =FG$27*COS(FG41) -> 1e-16 | FU41: =FH$27*COS(FH41) -> 1e-16 | FV41: =FI$27*COS(FI41) -> 1e-16 | FW41: =FJ$27*COS(FJ41) -> 1e-16 | FX41: =FK$27*COS(FK41) -> 1e-16 | FY41: =FL$27*COS(FL41) -> 1e-16 | GA41: =FA$27*SIN(FA41) -> 0.1810232022 | GB41: =FB$27*SIN(FB41) -> 0 | GC41: =FC$27*SIN(FC41) -> 0 | GD41: =FD$27*SIN(FD41) -> 0 | GE41: =FE$27*SIN(FE41) -> 0 | GF41: =FF$27*SIN(FF41) -> 0 | GG41: =FG$27*SIN(FG41) -> 0 | GH41: =FH$27*SIN(FH41) -> 0 | GI41: =FI$27*SIN(FI41) -> 0 | GJ41: =FJ$27*SIN(FJ41) -> 0 | GK41: =FK$27*SIN(FK41) -> 0 | GL41: =FL$27*SIN(FL41) -> 0 | GN41: =SUM(FN41:FY41) -> -0.9834788255 | GO41: =SUM(GA41:GL41) -> 0.1810232022 | GQ41: =SQRT(GN41^2+GO41^2)*$MO41 -> 1 | GU41: 20 | GV41: 20 | GW41: 50 | GY41: =GY$31/$E41*GY$25*$B$8+GY$33 -> 9.242751218 | GZ41: 0 | HA41: 0 | HB41: 0 | HC41: 0 | HD41: 0 | HE41: 0 | HF41: 0 | HG41: 0 | HH41: 0 | HI41: 0 | HJ41: 0 | HL41: =GY$27*COS(GY41) -> -0.9834788255 | HM41: =GZ$27*COS(GZ41) -> 1e-16 | HN41: =HA$27*COS(HA41) -> 1e-16 | HO41: =HB$27*COS(HB41) -> 1e-16 | HP41: =HC$27*COS(HC41) -> 1e-16 | HQ41: =HD$27*COS(HD41) -> 1e-16 | HR41: =HE$27*COS(HE41) -> 1e-16 | HS41: =HF$27*COS(HF41) -> 1e-16 | HT41: =HG$27*COS(HG41) -> 1e-16 | HU41: =HH$27*COS(HH41) -> 1e-16 | HV41: =HI$27*COS(HI41) -> 1e-16 | HW41: =HJ$27*COS(HJ41) -> 1e-16 | HY41: =GY$27*SIN(GY41) -> 0.1810232022 | HZ41: =GZ$27*SIN(GZ41) -> 0 | IA41: =HA$27*SIN(HA41) -> 0 | IB41: =HB$27*SIN(HB41) -> 0 | IC41: =HC$27*SIN(HC41) -> 0 | ID41: =HD$27*SIN(HD41) -> 0 | IE41: =HE$27*SIN(HE41) -> 0 | IF41: =HF$27*SIN(HF41) -> 0 | IG41: =HG$27*SIN(HG41) -> 0 | IH41: =HH$27*SIN(HH41) -> 0 | II41: =HI$27*SIN(HI41) -> 0 | IJ41: =HJ$27*SIN(HJ41) -> 0 | IL41: =SUM(HL41:HW41) -> -0.9834788255 | IM41: =SUM(HY41:IJ41) -> 0.1810232022 | IO41: =SQRT(IL41^2+IM41^2)*$MO41 -> 1 | IS41: 20 | IT41: 20 | IU41: 50 | IW41: =IW$31/$E41*IW$25*$B$8+IW$33 -> 9.242751218 | IX41: 0 | IY41: 0 | IZ41: 0 | JA41: 0 | JB41: 0 | JC41: 0 | JD41: 0 | JE41: 0 | JF41: 0 | JG41: 0 | JH41: 0 | JJ41: =IW$27*COS(IW41) -> -0.9834788255 | JK41: =IX$27*COS(IX41) -> 1e-16 | JL41: =IY$27*COS(IY41) -> 1e-16 | JM41: =IZ$27*COS(IZ41) -> 1e-16 | JN41: =JA$27*COS(JA41) -> 1e-16 | JO41: =JB$27*COS(JB41) -> 1e-16 | JP41: =JC$27*COS(JC41) -> 1e-16 | JQ41: =JD$27*COS(JD41) -> 1e-16 | JR41: =JE$27*COS(JE41) -> 1e-16 | JS41: =JF$27*COS(JF41) -> 1e-16 | JT41: =JG$27*COS(JG41) -> 1e-16 | JU41: =JH$27*COS(JH41) -> 1e-16 | JW41: =IW$27*SIN(IW41) -> 0.1810232022 | JX41: =IX$27*SIN(IX41) -> 0 | JY41: =IY$27*SIN(IY41) -> 0 | JZ41: =IZ$27*SIN(IZ41) -> 0 | KA41: =JA$27*SIN(JA41) -> 0 | KB41: =JB$27*SIN(JB41) -> 0 | KC41: =JC$27*SIN(JC41) -> 0 | KD41: =JD$27*SIN(JD41) -> 0 | KE41: =JE$27*SIN(JE41) -> 0 | KF41: =JF$27*SIN(JF41) -> 0 | KG41: =JG$27*SIN(JG41) -> 0 | KH41: =JH$27*SIN(JH41) -> 0 | KJ41: =SUM(JJ41:JU41) -> -0.9834788255 | KK41: =SUM(JW41:KH41) -> 0.1810232022 | KM41: =SQRT(KJ41^2+KK41^2)*$MO41 -> 1 | KQ41: 20 | KR41: 20 | KS41: 50 | KU41: =KU$31/$E41*KU$25*$B$8+KU$33 -> 9.242751218 | KV41: 0 | KW41: 0 | KX41: 0 | KY41: 0 | KZ41: 0 | LA41: 0 | LB41: 0 | LC41: 0 | LD41: 0 | LE41: 0 | LF41: 0 | LH41: =KU$27*COS(KU41) -> -0.9834788255 | LI41: =KV$27*COS(KV41) -> 1e-16 | LJ41: =KW$27*COS(KW41) -> 1e-16 | LK41: =KX$27*COS(KX41) -> 1e-16 | LL41: =KY$27*COS(KY41) -> 1e-16 | LM41: =KZ$27*COS(KZ41) -> 1e-16 | LN41: =LA$27*COS(LA41) -> 1e-16 | LO41: =LB$27*COS(LB41) -> 1e-16 | LP41: =LC$27*COS(LC41) -> 1e-16 | LQ41: =LD$27*COS(LD41) -> 1e-16 | LR41: =LE$27*COS(LE41) -> 1e-16 | LS41: =LF$27*COS(LF41) -> 1e-16 | LU41: =KU$27*SIN(KU41) -> 0.1810232022 | LV41: =KV$27*SIN(KV41) -> 0 | LW41: =KW$27*SIN(KW41) -> 0 | LX41: =KX$27*SIN(KX41) -> 0 | LY41: =KY$27*SIN(KY41) -> 0 | LZ41: =KZ$27*SIN(KZ41) -> 0 | MA41: =LA$27*SIN(LA41) -> 0 | MB41: =LB$27*SIN(LB41) -> 0 | MC41: =LC$27*SIN(LC41) -> 0 | MD41: =LD$27*SIN(LD41) -> 0 | ME41: =LE$27*SIN(LE41) -> 0 | MF41: =LF$27*SIN(LF41) -> 0 | MH41: =SUM(LH41:LS41) -> -0.9834788255 | MI41: =SUM(LU41:MF41) -> 0.1810232022 | MK41: =SQRT(MH41^2+MI41^2)*$MO41 -> 1 | MM41: =1/(1+($MN$34/$C41)^($MN$35)) -> 1 | MN41: =1/(1+($C41/$MO$34)^($MO$35)) -> 1 | MO41: =MM41*MN41 -> 1 | MR41: =AW41 -> 1 | MS41: =CU41 -> 1 | MT41: =ES41 -> 1 | MU41: =GQ41 -> 1 | MV41: =IO41 -> 1 | MW41: =KM41 -> 1 | MX41: =MK41 -> 1 | MY41: =$B$14*MO41 -> 1 | MZ41: =INDEX(MR41:MY41,$NB$26)^$NB$28 -> 1 | NA41: =20*LOG(MY41/MZ41)*$NA$33 -> -8.686661819e-12 | NB41: =IFERROR((20*LOG(MR41/$MZ41))*NB$33,NA()) -> -8.697269421e-12 | NC41: =IFERROR((20*LOG(MS41/$MZ41))*NC$33,NA()) -> -8.697269421e-12 | ND41: =IFERROR((20*LOG(MT41/$MZ41))*ND$33,NA()) -> -8.697269421e-12 | NE41: =IFERROR((20*LOG(MU41/$MZ41))*NE$33,NA()) -> -8.695340766e-12 | NF41: =IFERROR((20*LOG(MV41/$MZ41))*NF$33,NA()) -> -8.697269421e-12 | NG41: =IFERROR((20*LOG(MW41/$MZ41))*NG$33,NA()) -> -8.697269421e-12 | NH41: =IFERROR((20*LOG(MX41/$MZ41))*NH$33,NA()) -> -8.697269421e-12 | NJ41: =INDEX(AT41:MH41,,$NO$15*50-49) -> -0.9834788255 | NK41: =INDEX(AU41:MI41,,$NO$15*50-49) -> 0.1810232022 | NN41: =INDEX(G41:LF41,$NO$17):INDEX(G217:LF217,$NO$17+$B$14-1) -> 9.242751218 | NO41: 9.242751218 | NP41: 9.242751218 | NQ41: 9.242751218 | NR41: 9.242751218 | NS41: 9.242751218 | NT41: 9.242751218 | NU41: 9.242751218 | NV41: 9.242751218 | NW41: 9.242751218 | NX41: 9.242751218 | NY41: 9.242751218 | OA41: =INDEX(NN41:NY41,$NO$29)*$NO$19 -> 9.242751218 | OC41: =(NN41-$OA41)/$B$8 -> 0 | OD41: =(NO41-$OA41)/$B$8 -> 0 | OE41: =(NP41-$OA41)/$B$8 -> 0 | OF41: =(NQ41-$OA41)/$B$8 -> 0 | OG41: =(NR41-$OA41)/$B$8 -> 0 | OH41: =(NS41-$OA41)/$B$8 -> 0 | OI41: =(NT41-$OA41)/$B$8 -> 0 | OJ41: =(NU41-$OA41)/$B$8 -> 0 | OK41: =(NV41-$OA41)/$B$8 -> 0 | OL41: =(NW41-$OA41)/$B$8 -> 0 | OM41: =(NX41-$OA41)/$B$8 -> 0 | ON41: =(NY41-$OA41)/$B$8 -> 0 | OP41: =(OC41-TRUNC(OC41,0))*360 -> 0 | OQ41: =(OD41-TRUNC(OD41,0))*360 -> 0 | OR41: =(OE41-TRUNC(OE41,0))*360 -> 0 | OS41: =(OF41-TRUNC(OF41,0))*360 -> 0 | OT41: =(OG41-TRUNC(OG41,0))*360 -> 0 | OU41: =(OH41-TRUNC(OH41,0))*360 -> 0 | OV41: =(OI41-TRUNC(OI41,0))*360 -> 0 | OW41: =(OJ41-TRUNC(OJ41,0))*360 -> 0 | OX41: =(OK41-TRUNC(OK41,0))*360 -> 0 | OY41: =(OL41-TRUNC(OL41,0))*360 -> 0 | OZ41: =(OM41-TRUNC(OM41,0))*360 -> 0 | PA41: =(ON41-TRUNC(ON41,0))*360 -> 0 | PC41: =IF(OP41 < 180,- OP41,360 - OP41) -> 0 | PD41: =IF(OQ41 < 180,- OQ41,360 - OQ41) -> 0 | PE41: =IF(OR41 < 180,- OR41,360 - OR41) -> 0 | PF41: =IF(OS41 < 180,- OS41,360 - OS41) -> 0 | PG41: =IF(OT41 < 180,- OT41,360 - OT41) -> 0 | PH41: =IF(OU41 < 180,- OU41,360 - OU41) -> 0 | PI41: =IF(OV41 < 180,- OV41,360 - OV41) -> 0 | PJ41: =IF(OW41 < 180,- OW41,360 - OW41) -> 0 | PK41: =IF(OX41 < 180,- OX41,360 - OX41) -> 0 | PL41: =IF(OY41 < 180,- OY41,360 - OY41) -> 0 | PM41: =IF(OZ41 < 180,- OZ41,360 - OZ41) -> 0 | PN41: =IF(PA41 < 180,- PA41,360 - PA41) -> 0 | PP41: =IF(PC41 > 180,-360+PC41,PC41)*PP$35 -> 0 | PQ41: =IF(PD41 > 180,-360+PD41,PD41)*PQ$35 ->  | PR41: =IF(PE41 > 180,-360+PE41,PE41)*PR$35 ->  | PS41: =IF(PF41 > 180,-360+PF41,PF41)*PS$35 ->  | PT41: =IF(PG41 > 180,-360+PG41,PG41)*PT$35 ->  | PU41: =IF(PH41 > 180,-360+PH41,PH41)*PU$35 ->  | PV41: =IF(PI41 > 180,-360+PI41,PI41)*PV$35 ->  | PW41: =IF(PJ41 > 180,-360+PJ41,PJ41)*PW$35 ->  | PX41: =IF(PK41 > 180,-360+PK41,PK41)*PX$35 ->  | PY41: =IF(PL41 > 180,-360+PL41,PL41)*PY$35 ->  | PZ41: =IF(PM41 > 180,-360+PM41,PM41)*PZ$35 ->  | QA41: =IF(PN41 > 180,-360+PN41,PN41)*QA$35 ->  | QC41: =INDEX(G27:LF27,$NO$17):INDEX(G27:LF27,$NO$17+$B$14-1) -> 1 | QD41: 1 | QE41: 1 | QF41: 1 | QG41: 1 | QH41: 1 | QI41: 1 | QJ41: 1 | QK41: 1 | QL41: 1 | QM41: 1 | QN41: 1 | QP41: =INDEX(QC41:QN41,$NO$29)^$NO$19 -> 1 | QR41: =20*LOG(QC41/$QP$41)*PP$35 -> 0 | QS41: =20*LOG(QD41/$QP$41)*PQ$35 ->  | RE41: =SQRT(AT41^2+AU41^2) -> 1 | RF41: =SQRT(MH41^2+MI41^2) -> 1 | RH41: =20*LOG(RE41) -> -1.060760213e-14 | RI41: -1.060760213e-14 | RK41: =$RG$23-RH41 -> 1.060760213e-14 | RM41: 1 | RN41: =IF(OR($RM41=$RN$39,$RM41=$RN$40),-24,NA()) ->  | RO41: =IF(OR($RM41=$RO$39,$RM41=$RO$40),-24,NA()) ->  | RP41: =IF($RM41=$RP$39,-24,NA()) ->  | RQ41: =IF($RM41=$RQ$39,-24,NA()) ->  | RS41: =INDEX(MV41:MX41,,$RS$38)/RE41 -> 1 | RV41: =(IMARGUMENT(COMPLEX(NJ41,NK41))-OA41)/$B$8 -> -1 | RW41: =(RV41-TRUNC(RV41,0))*360 -> 0 | RX41: =IF(RW41 < 180,- RW41,360 - RW41) -> 0 | RY41: =IFERROR(IF(RX41 > 180,-360+RX41,RX41),NA())*$QC$35 -> 
B42: 1 | C42: 20.28990416 | D42: 20.28990416 | E42: 49.28559505 | G42: 9.37672682 | H42: 0 | I42: 0 | J42: 0 | K42: 0 | L42: 0 | M42: 0 | N42: 0 | O42: 0 | P42: 0 | Q42: 0 | R42: 0 | T42: -0.9988457661 | U42: 1e-16 | V42: 1e-16 | W42: 1e-16 | X42: 1e-16 | Y42: 1e-16 | Z42: 1e-16 | AA42: 1e-16 | AB42: 1e-16 | AC42: 1e-16 | AD42: 1e-16 | AE42: 1e-16 | AG42: 0.04803265161 | AH42: 0 | AI42: 0 | AJ42: 0 | AK42: 0 | AL42: 0 | AM42: 0 | AN42: 0 | AO42: 0 | AP42: 0 | AQ42: 0 | AR42: 0 | AT42: -0.9988457661 | AU42: 0.04803265161 | AW42: 1 | BA42: 20.28990416 | BB42: 20.28990416 | BC42: 49.28559505 | BE42: 9.37672682 | BF42: 0 | BG42: 0 | BH42: 0 | BI42: 0 | BJ42: 0 | BK42: 0 | BL42: 0 | BM42: 0 | BN42: 0 | BO42: 0 | BP42: 0 | BR42: -0.9988457661 | BS42: 1e-16 | BT42: 1e-16 | BU42: 1e-16 | BV42: 1e-16 | BW42: 1e-16 | BX42: 1e-16 | BY42: 1e-16 | BZ42: 1e-16 | CA42: 1e-16 | CB42: 1e-16 | CC42: 1e-16 | CE42: 0.04803265161 | CF42: 0 | CG42: 0 | CH42: 0 | CI42: 0 | CJ42: 0 | CK42: 0 | CL42: 0 | CM42: 0 | CN42: 0 | CO42: 0 | CP42: 0 | CR42: =SUM(BR42:CC42) -> -0.9988457661 | CS42: =SUM(CE42:CP42) -> 0.04803265161 | CU42: 1 | CY42: 20.28990416 | CZ42: 20.28990416 | DA42: 49.28559505 | DC42: 9.37672682 | DD42: 0 | DE42: 0 | DF42: 0 | DG42: 0 | DH42: 0 | DI42: 0 | DJ42: 0 | DK42: 0 | DL42: 0 | DM42: 0 | DN42: 0 | DP42: =DC$27*COS(DC42) -> -0.9988457661 | DQ42: 1e-16 | DR42: 1e-16 | DS42: 1e-16 | DT42: 1e-16 | DU42: 1e-16 | DV42: 1e-16 | DW42: 1e-16 | DX42: 1e-16 | DY42: 1e-16 | DZ42: 1e-16 | EA42: 1e-16 | EC42: =DC$27*SIN(DC42) -> 0.04803265161 | ED42: 0 | EE42: 0 | EF42: 0 | EG42: 0 | EH42: 0 | EI42: 0 | EJ42: 0 | EK42: 0 | EL42: 0 | EM42: 0 | EN42: 0 | EP42: =SUM(DP42:EA42) -> -0.9988457661 | EQ42: =SUM(EC42:EN42) -> 0.04803265161 | ES42: 1 | EW42: 20.28990416 | EX42: 20.28990416 | EY42: 49.28559505 | FA42: 9.37672682 | FB42: 0 | FC42: 0 | FD42: 0 | FE42: 0 | FF42: 0 | FG42: 0 | FH42: 0 | FI42: 0 | FJ42: 0 | FK42: 0 | FL42: 0 | FN42: =FA$27*COS(FA42) -> -0.9988457661 | FO42: 1e-16 | FP42: 1e-16 | FQ42: 1e-16 | FR42: 1e-16 | FS42: 1e-16 | FT42: 1e-16 | FU42: 1e-16 | FV42: 1e-16 | FW42: 1e-16 | FX42: 1e-16 | FY42: 1e-16 | GA42: =FA$27*SIN(FA42) -> 0.04803265161 | GB42: 0 | GC42: 0 | GD42: 0 | GE42: 0 | GF42: 0 | GG42: 0 | GH42: 0 | GI42: 0 | GJ42: 0 | GK42: 0 | GL42: 0 | GN42: =SUM(FN42:FY42) -> -0.9988457661 | GO42: =SUM(GA42:GL42) -> 0.04803265161 | GQ42: 1 | GU42: 20.28990416 | GV42: 20.28990416 | GW42: 49.28559505 | GY42: 9.37672682 | GZ42: 0 | HA42: 0 | HB42: 0 | HC42: 0 | HD42: 0 | HE42: 0 | HF42: 0 | HG42: 0 | HH42: 0 | HI42: 0 | HJ42: 0 | HL42: =GY$27*COS(GY42) -> -0.9988457661 | HM42: 1e-16 | HN42: 1e-16 | HO42: 1e-16 | HP42: 1e-16 | HQ42: 1e-16 | HR42: 1e-16 | HS42: 1e-16 | HT42: 1e-16 | HU42: 1e-16 | HV42: 1e-16 | HW42: 1e-16 | HY42: =GY$27*SIN(GY42) -> 0.04803265161 | HZ42: 0 | IA42: 0 | IB42: 0 | IC42: 0 | ID42: 0 | IE42: 0 | IF42: 0 | IG42: 0 | IH42: 0 | II42: 0 | IJ42: 0 | IL42: =SUM(HL42:HW42) -> -0.9988457661 | IM42: =SUM(HY42:IJ42) -> 0.04803265161 | IO42: 1 | IS42: 20.28990416 | IT42: 20.28990416 | IU42: 49.28559505 | IW42: 9.37672682 | IX42: 0 | IY42: 0 | IZ42: 0 | JA42: 0 | JB42: 0 | JC42: 0 | JD42: 0 | JE42: 0 | JF42: 0 | JG42: 0 | JH42: 0 | JJ42: =IW$27*COS(IW42) -> -0.9988457661 | JK42: 1e-16 | JL42: 1e-16 | JM42: 1e-16 | JN42: 1e-16 | JO42: 1e-16 | JP42: 1e-16 | JQ42: 1e-16 | JR42: 1e-16 | JS42: 1e-16 | JT42: 1e-16 | JU42: 1e-16 | JW42: =IW$27*SIN(IW42) -> 0.04803265161 | JX42: 0 | JY42: 0 | JZ42: 0 | KA42: 0 | KB42: 0 | KC42: 0 | KD42: 0 | KE42: 0 | KF42: 0 | KG42: 0 | KH42: 0 | KJ42: =SUM(JJ42:JU42) -> -0.9988457661 | KK42: =SUM(JW42:KH42) -> 0.04803265161 | KM42: 1 | KQ42: 20.28990416 | KR42: 20.28990416 | KS42: 49.28559505 | KU42: 9.37672682 | KV42: 0 | KW42: 0 | KX42: 0 | KY42: 0 | KZ42: 0 | LA42: 0 | LB42: 0 | LC42: 0 | LD42: 0 | LE42: 0 | LF42: 0 | LH42: =KU$27*COS(KU42) -> -0.9988457661 | LI42: 1e-16 | LJ42: 1e-16 | LK42: 1e-16 | LL42: 1e-16 | LM42: 1e-16 | LN42: 1e-16 | LO42: 1e-16 | LP42: 1e-16 | LQ42: 1e-16 | LR42: 1e-16 | LS42: 1e-16 | LU42: =KU$27*SIN(KU42) -> 0.04803265161 | LV42: 0 | LW42: 0 | LX42: 0 | LY42: 0 | LZ42: 0 | MA42: 0 | MB42: 0 | MC42: 0 | MD42: 0 | ME42: 0 | MF42: 0 | MH42: =SUM(LH42:LS42) -> -0.9988457661 | MI42: =SUM(LU42:MF42) -> 0.04803265161 | MK42: 1 | MM42: 1 | MN42: 1 | MO42: 1 | MR42: =AW42 -> 1 | MS42: =CU42 -> 1 | MT42: =ES42 -> 1 | MU42: =GQ42 -> 1 | MV42: =IO42 -> 1 | MW42: =KM42 -> 1 | MX42: =MK42 -> 1 | MY42: 1 | MZ42: 1 | NA42: -9.199684031e-12 | NB42: -9.211255961e-12 | NC42: -9.211255961e-12 | ND42: -9.211255961e-12 | NE42: -9.207398651e-12 | NF42: -9.211255961e-12 | NG42: -9.211255961e-12 | NH42: -9.211255961e-12 | NJ42: =INDEX(AT42:MH42,,$NO$15*50-49) -> -0.9988457661 | NK42: =INDEX(AU42:MI42,,$NO$15*50-49) -> 0.04803265161 | NN42: 9.37672682 | NO42: 9.37672682 | NP42: 9.37672682 | NQ42: 9.37672682 | NR42: 9.37672682 | NS42: 9.37672682 | NT42: 9.37672682 | NU42: 9.37672682 | NV42: 9.37672682 | NW42: 9.37672682 | NX42: 9.37672682 | NY42: 9.37672682 | OA42: =INDEX(NN42:NY42,$NO$29)*$NO$19 -> 9.37672682 | OC42: 0 | OD42: 0 | OE42: 0 | OF42: 0 | OG42: 0 | OH42: 0 | OI42: 0 | OJ42: 0 | OK42: 0 | OL42: 0 | OM42: 0 | ON42: 0 | OP42: 0 | OQ42: 0 | OR42: 0 | OS42: 0 | OT42: 0 | OU42: 0 | OV42: 0 | OW42: 0 | OX42: 0 | OY42: 0 | OZ42: 0 | PA42: 0 | PC42: 0 | PD42: 0 | PE42: 0 | PF42: 0 | PG42: 0 | PH42: 0 | PI42: 0 | PJ42: 0 | PK42: 0 | PL42: 0 | PM42: 0 | PN42: 0 | PP42: 0 | QR42: =QR$41 -> 0 | RE42: 1 | RF42: 1 | RH42: -1.15719296e-14 | RI42: -1.15719296e-14 | RK42: =$RG$23-RH42 -> 1.15719296e-14 | RM42: 2 | RS42: 1 | RV42: =(IMARGUMENT(COMPLEX(NJ42,NK42))-OA42)/$B$8 -> -1 | RW42: =(RV42-TRUNC(RV42,0))*360 -> 0 | RX42: =IF(RW42 < 180,- RW42,360 - RW42) -> 0 | RY42: =IFERROR(IF(RX42 > 180,-360+RX42,RX42),NA())*$QC$35 -> 
B43: 2 | C43: 20.58401054 | D43: 20.58401054 | E43: 48.58139758 | G43: 9.512644427 | H43: 0 | I43: 0 | J43: 0 | K43: 0 | L43: 0 | M43: 0 | N43: 0 | O43: 0 | P43: 0 | Q43: 0 | R43: 0 | T43: -0.9961422251 | U43: 1e-16 | V43: 1e-16 | W43: 1e-16 | X43: 1e-16 | Y43: 1e-16 | Z43: 1e-16 | AA43: 1e-16 | AB43: 1e-16 | AC43: 1e-16 | AD43: 1e-16 | AE43: 1e-16 | AG43: -0.08775344704 | AH43: 0 | AI43: 0 | AJ43: 0 | AK43: 0 | AL43: 0 | AM43: 0 | AN43: 0 | AO43: 0 | AP43: 0 | AQ43: 0 | AR43: 0 | AT43: -0.9961422251 | AU43: -0.08775344704 | AW43: 1 | BA43: 20.58401054 | BB43: 20.58401054 | BC43: 48.58139758 | BE43: 9.512644427 | BF43: 0 | BG43: 0 | BH43: 0 | BI43: 0 | BJ43: 0 | BK43: 0 | BL43: 0 | BM43: 0 | BN43: 0 | BO43: 0 | BP43: 0 | BR43: -0.9961422251 | BS43: 1e-16 | BT43: 1e-16 | BU43: 1e-16 | BV43: 1e-16 | BW43: 1e-16 | BX43: 1e-16 | BY43: 1e-16 | BZ43: 1e-16 | CA43: 1e-16 | CB43: 1e-16 | CC43: 1e-16 | CE43: -0.08775344704 | CF43: 0 | CG43: 0 | CH43: 0 | CI43: 0 | CJ43: 0 | CK43: 0 | CL43: 0 | CM43: 0 | CN43: 0 | CO43: 0 | CP43: 0 | CR43: -0.9961422251 | CS43: -0.08775344704 | CU43: 1 | CY43: 20.58401054 | CZ43: 20.58401054 | DA43: 48.58139758 | DC43: 9.512644427 | DD43: 0 | DE43: 0 | DF43: 0 | DG43: 0 | DH43: 0 | DI43: 0 | DJ43: 0 | DK43: 0 | DL43: 0 | DM43: 0 | DN43: 0 | DP43: -0.9961422251 | DQ43: 1e-16 | DR43: 1e-16 | DS43: 1e-16 | DT43: 1e-16 | DU43: 1e-16 | DV43: 1e-16 | DW43: 1e-16 | DX43: 1e-16 | DY43: 1e-16 | DZ43: 1e-16 | EA43: 1e-16 | EC43: -0.08775344704 | ED43: 0 | EE43: 0 | EF43: 0 | EG43: 0 | EH43: 0 | EI43: 0 | EJ43: 0 | EK43: 0 | EL43: 0 | EM43: 0 | EN43: 0 | EP43: -0.9961422251 | EQ43: -0.08775344704 | ES43: 1 | EW43: 20.58401054 | EX43: 20.58401054 | EY43: 48.58139758 | FA43: 9.512644427 | FB43: 0 | FC43: 0 | FD43: 0 | FE43: 0 | FF43: 0 | FG43: 0 | FH43: 0 | FI43: 0 | FJ43: 0 | FK43: 0 | FL43: 0 | FN43: -0.9961422251 | FO43: 1e-16 | FP43: 1e-16 | FQ43: 1e-16 | FR43: 1e-16 | FS43: 1e-16 | FT43: 1e-16 | FU43: 1e-16 | FV43: 1e-16 | FW43: 1e-16 | FX43: 1e-16 | FY43: 1e-16 | GA43: -0.08775344704 | GB43: 0 | GC43: 0 | GD43: 0 | GE43: 0 | GF43: 0 | GG43: 0 | GH43: 0 | GI43: 0 | GJ43: 0 | GK43: 0 | GL43: 0 | GN43: -0.9961422251 | GO43: -0.08775344704 | GQ43: 1 | GU43: 20.58401054 | GV43: 20.58401054 | GW43: 48.58139758 | GY43: 9.512644427 | GZ43: 0 | HA43: 0 | HB43: 0 | HC43: 0 | HD43: 0 | HE43: 0 | HF43: 0 | HG43: 0 | HH43: 0 | HI43: 0 | HJ43: 0 | HL43: -0.9961422251 | HM43: 1e-16 | HN43: 1e-16 | HO43: 1e-16 | HP43: 1e-16 | HQ43: 1e-16 | HR43: 1e-16 | HS43: 1e-16 | HT43: 1e-16 | HU43: 1e-16 | HV43: 1e-16 | HW43: 1e-16 | HY43: -0.08775344704 | HZ43: 0 | IA43: 0 | IB43: 0 | IC43: 0 | ID43: 0 | IE43: 0 | IF43: 0 | IG43: 0 | IH43: 0 | II43: 0 | IJ43: 0 | IL43: -0.9961422251 | IM43: -0.08775344704 | IO43: 1 | IS43: 20.58401054 | IT43: 20.58401054 | IU43: 48.58139758 | IW43: 9.512644427 | IX43: 0 | IY43: 0 | IZ43: 0 | JA43: 0 | JB43: 0 | JC43: 0 | JD43: 0 | JE43: 0 | JF43: 0 | JG43: 0 | JH43: 0 | JJ43: -0.9961422251 | JK43: 1e-16 | JL43: 1e-16 | JM43: 1e-16 | JN43: 1e-16 | JO43: 1e-16 | JP43: 1e-16 | JQ43: 1e-16 | JR43: 1e-16 | JS43: 1e-16 | JT43: 1e-16 | JU43: 1e-16 | JW43: -0.08775344704 | JX43: 0 | JY43: 0 | JZ43: 0 | KA43: 0 | KB43: 0 | KC43: 0 | KD43: 0 | KE43: 0 | KF43: 0 | KG43: 0 | KH43: 0 | KJ43: -0.9961422251 | KK43: -0.08775344704 | KM43: 1 | KQ43: 20.58401054 | KR43: 20.58401054 | KS43: 48.58139758 | KU43: 9.512644427 | KV43: 0 | KW43: 0 | KX43: 0 | KY43: 0 | KZ43: 0 | LA43: 0 | LB43: 0 | LC43: 0 | LD43: 0 | LE43: 0 | LF43: 0 | LH43: -0.9961422251 | LI43: 1e-16 | LJ43: 1e-16 | LK43: 1e-16 | LL43: 1e-16 | LM43: 1e-16 | LN43: 1e-16 | LO43: 1e-16 | LP43: 1e-16 | LQ43: 1e-16 | LR43: 1e-16 | LS43: 1e-16 | LU43: -0.08775344704 | LV43: 0 | LW43: 0 | LX43: 0 | LY43: 0 | LZ43: 0 | MA43: 0 | MB43: 0 | MC43: 0 | MD43: 0 | ME43: 0 | MF43: 0 | MH43: -0.9961422251 | MI43: -0.08775344704 | MK43: 1 | MM43: 1 | MN43: 1 | MO43: 1 | MR43: 1 | MS43: 1 | MT43: 1 | MU43: 1 | MV43: 1 | MW43: 1 | MX43: 1 | MY43: 1 | MZ43: 1 | NA43: -9.745493377e-12 | NB43: -9.756100979e-12 | NC43: -9.756100979e-12 | ND43: -9.756100979e-12 | NE43: -9.753207997e-12 | NF43: -9.756100979e-12 | NG43: -9.756100979e-12 | NH43: -9.756100979e-12 | NJ43: -0.9961422251 | NK43: -0.08775344704 | NN43: 9.512644427 | NO43: 9.512644427 | NP43: 9.512644427 | NQ43: 9.512644427 | NR43: 9.512644427 | NS43: 9.512644427 | NT43: 9.512644427 | NU43: 9.512644427 | NV43: 9.512644427 | NW43: 9.512644427 | NX43: 9.512644427 | NY43: 9.512644427 | OA43: 9.512644427 | OC43: 0 | OD43: 0 | OE43: 0 | OF43: 0 | OG43: 0 | OH43: 0 | OI43: 0 | OJ43: 0 | OK43: 0 | OL43: 0 | OM43: 0 | ON43: 0 | OP43: 0 | OQ43: 0 | OR43: 0 | OS43: 0 | OT43: 0 | OU43: 0 | OV43: 0 | OW43: 0 | OX43: 0 | OY43: 0 | OZ43: 0 | PA43: 0 | PC43: 0 | PD43: 0 | PE43: 0 | PF43: 0 | PG43: 0 | PH43: 0 | PI43: 0 | PJ43: 0 | PK43: 0 | PL43: 0 | PM43: 0 | PN43: 0 | PP43: 0 | QR43: 0 | RE43: 1 | RF43: 1 | RH43: -1.060760213e-14 | RI43: -1.060760213e-14 | RK43: 1.060760213e-14 | RM43: 3 | RS43: 1 | RV43: -2 | RW43: 0 | RX43: 0
B44: 3 | C44: 20.88238006 | D44: 20.88238006 | E44: 47.88726176 | G44: 9.650532187 | H44: 0 | I44: 0 | J44: 0 | K44: 0 | L44: 0 | M44: 0 | N44: 0 | O44: 0 | P44: 0 | Q44: 0 | R44: 0 | T44: -0.9746255572 | U44: 1e-16 | V44: 1e-16 | W44: 1e-16 | X44: 1e-16 | Y44: 1e-16 | Z44: 1e-16 | AA44: 1e-16 | AB44: 1e-16 | AC44: 1e-16 | AD44: 1e-16 | AE44: 1e-16 | AG44: -0.2238415137 | AH44: 0 | AI44: 0 | AJ44: 0 | AK44: 0 | AL44: 0 | AM44: 0 | AN44: 0 | AO44: 0 | AP44: 0 | AQ44: 0 | AR44: 0 | AT44: -0.9746255572 | AU44: -0.2238415137 | AW44: 1 | BA44: 20.88238006 | BB44: 20.88238006 | BC44: 47.88726176 | BE44: 9.650532187 | BF44: 0 | BG44: 0 | BH44: 0 | BI44: 0 | BJ44: 0 | BK44: 0 | BL44: 0 | BM44: 0 | BN44: 0 | BO44: 0 | BP44: 0 | BR44: -0.9746255572 | BS44: 1e-16 | BT44: 1e-16 | BU44: 1e-16 | BV44: 1e-16 | BW44: 1e-16 | BX44: 1e-16 | BY44: 1e-16 | BZ44: 1e-16 | CA44: 1e-16 | CB44: 1e-16 | CC44: 1e-16 | CE44: -0.2238415137 | CF44: 0 | CG44: 0 | CH44: 0 | CI44: 0 | CJ44: 0 | CK44: 0 | CL44: 0 | CM44: 0 | CN44: 0 | CO44: 0 | CP44: 0 | CR44: -0.9746255572 | CS44: -0.2238415137 | CU44: 1 | CY44: 20.88238006 | CZ44: 20.88238006 | DA44: 47.88726176 | DC44: 9.650532187 | DD44: 0 | DE44: 0 | DF44: 0 | DG44: 0 | DH44: 0 | DI44: 0 | DJ44: 0 | DK44: 0 | DL44: 0 | DM44: 0 | DN44: 0 | DP44: -0.9746255572 | DQ44: 1e-16 | DR44: 1e-16 | DS44: 1e-16 | DT44: 1e-16 | DU44: 1e-16 | DV44: 1e-16 | DW44: 1e-16 | DX44: 1e-16 | DY44: 1e-16 | DZ44: 1e-16 | EA44: 1e-16 | EC44: -0.2238415137 | ED44: 0 | EE44: 0 | EF44: 0 | EG44: 0 | EH44: 0 | EI44: 0 | EJ44: 0 | EK44: 0 | EL44: 0 | EM44: 0 | EN44: 0 | EP44: -0.9746255572 | EQ44: -0.2238415137 | ES44: 1 | EW44: 20.88238006 | EX44: 20.88238006 | EY44: 47.88726176 | FA44: 9.650532187 | FB44: 0 | FC44: 0 | FD44: 0 | FE44: 0 | FF44: 0 | FG44: 0 | FH44: 0 | FI44: 0 | FJ44: 0 | FK44: 0 | FL44: 0 | FN44: -0.9746255572 | FO44: 1e-16 | FP44: 1e-16 | FQ44: 1e-16 | FR44: 1e-16 | FS44: 1e-16 | FT44: 1e-16 | FU44: 1e-16 | FV44: 1e-16 | FW44: 1e-16 | FX44: 1e-16 | FY44: 1e-16 | GA44: -0.2238415137 | GB44: 0 | GC44: 0 | GD44: 0 | GE44: 0 | GF44: 0 | GG44: 0 | GH44: 0 | GI44: 0 | GJ44: 0 | GK44: 0 | GL44: 0 | GN44: -0.9746255572 | GO44: -0.2238415137 | GQ44: 1 | GU44: 20.88238006 | GV44: 20.88238006 | GW44: 47.88726176 | GY44: 9.650532187 | GZ44: 0 | HA44: 0 | HB44: 0 | HC44: 0 | HD44: 0 | HE44: 0 | HF44: 0 | HG44: 0 | HH44: 0 | HI44: 0 | HJ44: 0 | HL44: -0.9746255572 | HM44: 1e-16 | HN44: 1e-16 | HO44: 1e-16 | HP44: 1e-16 | HQ44: 1e-16 | HR44: 1e-16 | HS44: 1e-16 | HT44: 1e-16 | HU44: 1e-16 | HV44: 1e-16 | HW44: 1e-16 | HY44: -0.2238415137 | HZ44: 0 | IA44: 0 | IB44: 0 | IC44: 0 | ID44: 0 | IE44: 0 | IF44: 0 | IG44: 0 | IH44: 0 | II44: 0 | IJ44: 0 | IL44: -0.9746255572 | IM44: -0.2238415137 | IO44: 1 | IS44: 20.88238006 | IT44: 20.88238006 | IU44: 47.88726176 | IW44: 9.650532187 | IX44: 0 | IY44: 0 | IZ44: 0 | JA44: 0 | JB44: 0 | JC44: 0 | JD44: 0 | JE44: 0 | JF44: 0 | JG44: 0 | JH44: 0 | JJ44: -0.9746255572 | JK44: 1e-16 | JL44: 1e-16 | JM44: 1e-16 | JN44: 1e-16 | JO44: 1e-16 | JP44: 1e-16 | JQ44: 1e-16 | JR44: 1e-16 | JS44: 1e-16 | JT44: 1e-16 | JU44: 1e-16 | JW44: -0.2238415137 | JX44: 0 | JY44: 0 | JZ44: 0 | KA44: 0 | KB44: 0 | KC44: 0 | KD44: 0 | KE44: 0 | KF44: 0 | KG44: 0 | KH44: 0 | KJ44: -0.9746255572 | KK44: -0.2238415137 | KM44: 1 | KQ44: 20.88238006 | KR44: 20.88238006 | KS44: 47.88726176 | KU44: 9.650532187 | KV44: 0 | KW44: 0 | KX44: 0 | KY44: 0 | KZ44: 0 | LA44: 0 | LB44: 0 | LC44: 0 | LD44: 0 | LE44: 0 | LF44: 0 | LH44: -0.9746255572 | LI44: 1e-16 | LJ44: 1e-16 | LK44: 1e-16 | LL44: 1e-16 | LM44: 1e-16 | LN44: 1e-16 | LO44: 1e-16 | LP44: 1e-16 | LQ44: 1e-16 | LR44: 1e-16 | LS44: 1e-16 | LU44: -0.2238415137 | LV44: 0 | LW44: 0 | LX44: 0 | LY44: 0 | LZ44: 0 | MA44: 0 | MB44: 0 | MC44: 0 | MD44: 0 | ME44: 0 | MF44: 0 | MH44: -0.9746255572 | MI44: -0.2238415137 | MK44: 1 | MM44: 1 | MN44: 1 | MO44: 1 | MR44: 1 | MS44: 1 | MT44: 1 | MU44: 1 | MV44: 1 | MW44: 1 | MX44: 1 | MY44: 1 | MZ44: 1 | NA44: -1.032408986e-11 | NB44: -1.033469746e-11 | NC44: -1.033469746e-11 | ND44: -1.033469746e-11 | NE44: -1.033180448e-11 | NF44: -1.033469746e-11 | NG44: -1.033469746e-11 | NH44: -1.033469746e-11 | NJ44: -0.9746255572 | NK44: -0.2238415137 | NN44: 9.650532187 | NO44: 9.650532187 | NP44: 9.650532187 | NQ44: 9.650532187 | NR44: 9.650532187 | NS44: 9.650532187 | NT44: 9.650532187 | NU44: 9.650532187 | NV44: 9.650532187 | NW44: 9.650532187 | NX44: 9.650532187 | NY44: 9.650532187 | OA44: 9.650532187 | OC44: 0 | OD44: 0 | OE44: 0 | OF44: 0 | OG44: 0 | OH44: 0 | OI44: 0 | OJ44: 0 | OK44: 0 | OL44: 0 | OM44: 0 | ON44: 0 | OP44: 0 | OQ44: 0 | OR44: 0 | OS44: 0 | OT44: 0 | OU44: 0 | OV44: 0 | OW44: 0 | OX44: 0 | OY44: 0 | OZ44: 0 | PA44: 0 | PC44: 0 | PD44: 0 | PE44: 0 | PF44: 0 | PG44: 0 | PH44: 0 | PI44: 0 | PJ44: 0 | PK44: 0 | PL44: 0 | PM44: 0 | PN44: 0 | PP44: 0 | QR44: 0 | RE44: 1 | RF44: 1 | RH44: -1.060760213e-14 | RI44: -1.060760213e-14 | RK44: 1.060760213e-14 | RM44: 4 | RS44: 1 | RV44: -2 | RW44: 0 | RX44: 0
B45: 4 | C45: 21.1850745 | D45: 21.1850745 | E45: 47.20304381 | G45: 9.790418659 | H45: 0 | I45: 0 | J45: 0 | K45: 0 | L45: 0 | M45: 0 | N45: 0 | O45: 0 | P45: 0 | Q45: 0 | R45: 0 | T45: -0.9338948727 | U45: 1e-16 | V45: 1e-16 | W45: 1e-16 | X45: 1e-16 | Y45: 1e-16 | Z45: 1e-16 | AA45: 1e-16 | AB45: 1e-16 | AC45: 1e-16 | AD45: 1e-16 | AE45: 1e-16 | AG45: -0.3575477125 | AH45: 0 | AI45: 0 | AJ45: 0 | AK45: 0 | AL45: 0 | AM45: 0 | AN45: 0 | AO45: 0 | AP45: 0 | AQ45: 0 | AR45: 0 | AT45: -0.9338948727 | AU45: -0.3575477125 | AW45: 1 | BA45: 21.1850745 | BB45: 21.1850745 | BC45: 47.20304381 | BE45: 9.790418659 | BF45: 0 | BG45: 0 | BH45: 0 | BI45: 0 | BJ45: 0 | BK45: 0 | BL45: 0 | BM45: 0 | BN45: 0 | BO45: 0 | BP45: 0 | BR45: -0.9338948727 | BS45: 1e-16 | BT45: 1e-16 | BU45: 1e-16 | BV45: 1e-16 | BW45: 1e-16 | BX45: 1e-16 | BY45: 1e-16 | BZ45: 1e-16 | CA45: 1e-16 | CB45: 1e-16 | CC45: 1e-16 | CE45: -0.3575477125 | CF45: 0 | CG45: 0 | CH45: 0 | CI45: 0 | CJ45: 0 | CK45: 0 | CL45: 0 | CM45: 0 | CN45: 0 | CO45: 0 | CP45: 0 | CR45: -0.9338948727 | CS45: -0.3575477125 | CU45: 1 | CY45: 21.1850745 | CZ45: 21.1850745 | DA45: 47.20304381 | DC45: 9.790418659 | DD45: 0 | DE45: 0 | DF45: 0 | DG45: 0 | DH45: 0 | DI45: 0 | DJ45: 0 | DK45: 0 | DL45: 0 | DM45: 0 | DN45: 0 | DP45: -0.9338948727 | DQ45: 1e-16 | DR45: 1e-16 | DS45: 1e-16 | DT45: 1e-16 | DU45: 1e-16 | DV45: 1e-16 | DW45: 1e-16 | DX45: 1e-16 | DY45: 1e-16 | DZ45: 1e-16 | EA45: 1e-16 | EC45: -0.3575477125 | ED45: 0 | EE45: 0 | EF45: 0 | EG45: 0 | EH45: 0 | EI45: 0 | EJ45: 0 | EK45: 0 | EL45: 0 | EM45: 0 | EN45: 0 | EP45: -0.9338948727 | EQ45: -0.3575477125 | ES45: 1 | EW45: 21.1850745 | EX45: 21.1850745 | EY45: 47.20304381 | FA45: 9.790418659 | FB45: 0 | FC45: 0 | FD45: 0 | FE45: 0 | FF45: 0 | FG45: 0 | FH45: 0 | FI45: 0 | FJ45: 0 | FK45: 0 | FL45: 0 | FN45: -0.9338948727 | FO45: 1e-16 | FP45: 1e-16 | FQ45: 1e-16 | FR45: 1e-16 | FS45: 1e-16 | FT45: 1e-16 | FU45: 1e-16 | FV45: 1e-16 | FW45: 1e-16 | FX45: 1e-16 | FY45: 1e-16 | GA45: -0.3575477125 | GB45: 0 | GC45: 0 | GD45: 0 | GE45: 0 | GF45: 0 | GG45: 0 | GH45: 0 | GI45: 0 | GJ45: 0 | GK45: 0 | GL45: 0 | GN45: -0.9338948727 | GO45: -0.3575477125 | GQ45: 1 | GU45: 21.1850745 | GV45: 21.1850745 | GW45: 47.20304381 | GY45: 9.790418659 | GZ45: 0 | HA45: 0 | HB45: 0 | HC45: 0 | HD45: 0 | HE45: 0 | HF45: 0 | HG45: 0 | HH45: 0 | HI45: 0 | HJ45: 0 | HL45: -0.9338948727 | HM45: 1e-16 | HN45: 1e-16 | HO45: 1e-16 | HP45: 1e-16 | HQ45: 1e-16 | HR45: 1e-16 | HS45: 1e-16 | HT45: 1e-16 | HU45: 1e-16 | HV45: 1e-16 | HW45: 1e-16 | HY45: -0.3575477125 | HZ45: 0 | IA45: 0 | IB45: 0 | IC45: 0 | ID45: 0 | IE45: 0 | IF45: 0 | IG45: 0 | IH45: 0 | II45: 0 | IJ45: 0 | IL45: -0.9338948727 | IM45: -0.3575477125 | IO45: 1 | IS45: 21.1850745 | IT45: 21.1850745 | IU45: 47.20304381 | IW45: 9.790418659 | IX45: 0 | IY45: 0 | IZ45: 0 | JA45: 0 | JB45: 0 | JC45: 0 | JD45: 0 | JE45: 0 | JF45: 0 | JG45: 0 | JH45: 0 | JJ45: -0.9338948727 | JK45: 1e-16 | JL45: 1e-16 | JM45: 1e-16 | JN45: 1e-16 | JO45: 1e-16 | JP45: 1e-16 | JQ45: 1e-16 | JR45: 1e-16 | JS45: 1e-16 | JT45: 1e-16 | JU45: 1e-16 | JW45: -0.3575477125 | JX45: 0 | JY45: 0 | JZ45: 0 | KA45: 0 | KB45: 0 | KC45: 0 | KD45: 0 | KE45: 0 | KF45: 0 | KG45: 0 | KH45: 0 | KJ45: -0.9338948727 | KK45: -0.3575477125 | KM45: 1 | KQ45: 21.1850745 | KR45: 21.1850745 | KS45: 47.20304381 | KU45: 9.790418659 | KV45: 0 | KW45: 0 | KX45: 0 | KY45: 0 | KZ45: 0 | LA45: 0 | LB45: 0 | LC45: 0 | LD45: 0 | LE45: 0 | LF45: 0 | LH45: -0.9338948727 | LI45: 1e-16 | LJ45: 1e-16 | LK45: 1e-16 | LL45: 1e-16 | LM45: 1e-16 | LN45: 1e-16 | LO45: 1e-16 | LP45: 1e-16 | LQ45: 1e-16 | LR45: 1e-16 | LS45: 1e-16 | LU45: -0.3575477125 | LV45: 0 | LW45: 0 | LX45: 0 | LY45: 0 | LZ45: 0 | MA45: 0 | MB45: 0 | MC45: 0 | MD45: 0 | ME45: 0 | MF45: 0 | MH45: -0.9338948727 | MI45: -0.3575477125 | MK45: 1 | MM45: 1 | MN45: 1 | MO45: 1 | MR45: 1 | MS45: 1 | MT45: 1 | MU45: 1 | MV45: 1 | MW45: 1 | MX45: 1 | MY45: 1 | MZ45: 1 | NA45: -1.093547347e-11 | NB45: -1.094511675e-11 | NC45: -1.094511675e-11 | ND45: -1.094511675e-11 | NE45: -1.094318809e-11 | NF45: -1.094511675e-11 | NG45: -1.094511675e-11 | NH45: -1.094511675e-11 | NJ45: -0.9338948727 | NK45: -0.3575477125 | NN45: 9.790418659 | NO45: 9.790418659 | NP45: 9.790418659 | NQ45: 9.790418659 | NR45: 9.790418659 | NS45: 9.790418659 | NT45: 9.790418659 | NU45: 9.790418659 | NV45: 9.790418659 | NW45: 9.790418659 | NX45: 9.790418659 | NY45: 9.790418659 | OA45: 9.790418659 | OC45: 0 | OD45: 0 | OE45: 0 | OF45: 0 | OG45: 0 | OH45: 0 | OI45: 0 | OJ45: 0 | OK45: 0 | OL45: 0 | OM45: 0 | ON45: 0 | OP45: 0 | OQ45: 0 | OR45: 0 | OS45: 0 | OT45: 0 | OU45: 0 | OV45: 0 | OW45: 0 | OX45: 0 | OY45: 0 | OZ45: 0 | PA45: 0 | PC45: 0 | PD45: 0 | PE45: 0 | PF45: 0 | PG45: 0 | PH45: 0 | PI45: 0 | PJ45: 0 | PK45: 0 | PL45: 0 | PM45: 0 | PN45: 0 | PP45: 0 | QR45: 0 | RE45: 1 | RF45: 1 | RH45: -9.643274666e-15 | RI45: -9.643274666e-15 | RK45: 9.643274666e-15 | RM45: 5 | RS45: 1 | RV45: -2 | RW45: 0 | RX45: 0
B46: 5 | C46: 21.49215657 | D46: 21.49215657 | E46: 46.52860205 | G46: 9.932332814 | H46: 0 | I46: 0 | J46: 0 | K46: 0 | L46: 0 | M46: 0 | N46: 0 | O46: 0 | P46: 0 | Q46: 0 | R46: 0 | T46: -0.8739355623 | U46: 1e-16 | V46: 1e-16 | W46: 1e-16 | X46: 1e-16 | Y46: 1e-16 | Z46: 1e-16 | AA46: 1e-16 | AB46: 1e-16 | AC46: 1e-16 | AD46: 1e-16 | AE46: 1e-16 | AG46: -0.4860418016 | AH46: 0 | AI46: 0 | AJ46: 0 | AK46: 0 | AL46: 0 | AM46: 0 | AN46: 0 | AO46: 0 | AP46: 0 | AQ46: 0 | AR46: 0 | AT46: -0.8739355623 | AU46: -0.4860418016 | AW46: 1 | BA46: 21.49215657 | BB46: 21.49215657 | BC46: 46.52860205 | BE46: 9.932332814 | BF46: 0 | BG46: 0 | BH46: 0 | BI46: 0 | BJ46: 0 | BK46: 0 | BL46: 0 | BM46: 0 | BN46: 0 | BO46: 0 | BP46: 0 | BR46: -0.8739355623 | BS46: 1e-16 | BT46: 1e-16 | BU46: 1e-16 | BV46: 1e-16 | BW46: 1e-16 | BX46: 1e-16 | BY46: 1e-16 | BZ46: 1e-16 | CA46: 1e-16 | CB46: 1e-16 | CC46: 1e-16 | CE46: -0.4860418016 | CF46: 0 | CG46: 0 | CH46: 0 | CI46: 0 | CJ46: 0 | CK46: 0 | CL46: 0 | CM46: 0 | CN46: 0 | CO46: 0 | CP46: 0 | CR46: -0.8739355623 | CS46: -0.4860418016 | CU46: 1 | CY46: 21.49215657 | CZ46: 21.49215657 | DA46: 46.52860205 | DC46: 9.932332814 | DD46: 0 | DE46: 0 | DF46: 0 | DG46: 0 | DH46: 0 | DI46: 0 | DJ46: 0 | DK46: 0 | DL46: 0 | DM46: 0 | DN46: 0 | DP46: -0.8739355623 | DQ46: 1e-16 | DR46: 1e-16 | DS46: 1e-16 | DT46: 1e-16 | DU46: 1e-16 | DV46: 1e-16 | DW46: 1e-16 | DX46: 1e-16 | DY46: 1e-16 | DZ46: 1e-16 | EA46: 1e-16 | EC46: -0.4860418016 | ED46: 0 | EE46: 0 | EF46: 0 | EG46: 0 | EH46: 0 | EI46: 0 | EJ46: 0 | EK46: 0 | EL46: 0 | EM46: 0 | EN46: 0 | EP46: -0.8739355623 | EQ46: -0.4860418016 | ES46: 1 | EW46: 21.49215657 | EX46: 21.49215657 | EY46: 46.52860205 | FA46: 9.932332814 | FB46: 0 | FC46: 0 | FD46: 0 | FE46: 0 | FF46: 0 | FG46: 0 | FH46: 0 | FI46: 0 | FJ46: 0 | FK46: 0 | FL46: 0 | FN46: -0.8739355623 | FO46: 1e-16 | FP46: 1e-16 | FQ46: 1e-16 | FR46: 1e-16 | FS46: 1e-16 | FT46: 1e-16 | FU46: 1e-16 | FV46: 1e-16 | FW46: 1e-16 | FX46: 1e-16 | FY46: 1e-16 | GA46: -0.4860418016 | GB46: 0 | GC46: 0 | GD46: 0 | GE46: 0 | GF46: 0 | GG46: 0 | GH46: 0 | GI46: 0 | GJ46: 0 | GK46: 0 | GL46: 0 | GN46: -0.8739355623 | GO46: -0.4860418016 | GQ46: 1 | GU46: 21.49215657 | GV46: 21.49215657 | GW46: 46.52860205 | GY46: 9.932332814 | GZ46: 0 | HA46: 0 | HB46: 0 | HC46: 0 | HD46: 0 | HE46: 0 | HF46: 0 | HG46: 0 | HH46: 0 | HI46: 0 | HJ46: 0 | HL46: -0.8739355623 | HM46: 1e-16 | HN46: 1e-16 | HO46: 1e-16 | HP46: 1e-16 | HQ46: 1e-16 | HR46: 1e-16 | HS46: 1e-16 | HT46: 1e-16 | HU46: 1e-16 | HV46: 1e-16 | HW46: 1e-16 | HY46: -0.4860418016 | HZ46: 0 | IA46: 0 | IB46: 0 | IC46: 0 | ID46: 0 | IE46: 0 | IF46: 0 | IG46: 0 | IH46: 0 | II46: 0 | IJ46: 0 | IL46: -0.8739355623 | IM46: -0.4860418016 | IO46: 1 | IS46: 21.49215657 | IT46: 21.49215657 | IU46: 46.52860205 | IW46: 9.932332814 | IX46: 0 | IY46: 0 | IZ46: 0 | JA46: 0 | JB46: 0 | JC46: 0 | JD46: 0 | JE46: 0 | JF46: 0 | JG46: 0 | JH46: 0 | JJ46: -0.8739355623 | JK46: 1e-16 | JL46: 1e-16 | JM46: 1e-16 | JN46: 1e-16 | JO46: 1e-16 | JP46: 1e-16 | JQ46: 1e-16 | JR46: 1e-16 | JS46: 1e-16 | JT46: 1e-16 | JU46: 1e-16 | JW46: -0.4860418016 | JX46: 0 | JY46: 0 | JZ46: 0 | KA46: 0 | KB46: 0 | KC46: 0 | KD46: 0 | KE46: 0 | KF46: 0 | KG46: 0 | KH46: 0 | KJ46: -0.8739355623 | KK46: -0.4860418016 | KM46: 1 | KQ46: 21.49215657 | KR46: 21.49215657 | KS46: 46.52860205 | KU46: 9.932332814 | KV46: 0 | KW46: 0 | KX46: 0 | KY46: 0 | KZ46: 0 | LA46: 0 | LB46: 0 | LC46: 0 | LD46: 0 | LE46: 0 | LF46: 0 | LH46: -0.8739355623 | LI46: 1e-16 | LJ46: 1e-16 | LK46: 1e-16 | LL46: 1e-16 | LM46: 1e-16 | LN46: 1e-16 | LO46: 1e-16 | LP46: 1e-16 | LQ46: 1e-16 | LR46: 1e-16 | LS46: 1e-16 | LU46: -0.4860418016 | LV46: 0 | LW46: 0 | LX46: 0 | LY46: 0 | LZ46: 0 | MA46: 0 | MB46: 0 | MC46: 0 | MD46: 0 | ME46: 0 | MF46: 0 | MH46: -0.8739355623 | MI46: -0.4860418016 | MK46: 1 | MM46: 1 | MN46: 1 | MO46: 1 | MR46: 1 | MS46: 1 | MT46: 1 | MU46: 1 | MV46: 1 | MW46: 1 | MX46: 1 | MY46: 1 | MZ46: 1 | NA46: -1.158350153e-11 | NB46: -1.15931448e-11 | NC46: -1.15931448e-11 | ND46: -1.15931448e-11 | NE46: -1.159121615e-11 | NF46: -1.15931448e-11 | NG46: -1.15931448e-11 | NH46: -1.15931448e-11 | NJ46: -0.8739355623 | NK46: -0.4860418016 | NN46: 9.932332814 | NO46: 9.932332814 | NP46: 9.932332814 | NQ46: 9.932332814 | NR46: 9.932332814 | NS46: 9.932332814 | NT46: 9.932332814 | NU46: 9.932332814 | NV46: 9.932332814 | NW46: 9.932332814 | NX46: 9.932332814 | NY46: 9.932332814 | OA46: 9.932332814 | OC46: 0 | OD46: 0 | OE46: 0 | OF46: 0 | OG46: 0 | OH46: 0 | OI46: 0 | OJ46: 0 | OK46: 0 | OL46: 0 | OM46: 0 | ON46: 0 | OP46: 0 | OQ46: 0 | OR46: 0 | OS46: 0 | OT46: 0 | OU46: 0 | OV46: 0 | OW46: 0 | OX46: 0 | OY46: 0 | OZ46: 0 | PA46: 0 | PC46: 0 | PD46: 0 | PE46: 0 | PF46: 0 | PG46: 0 | PH46: 0 | PI46: 0 | PJ46: 0 | PK46: 0 | PL46: 0 | PM46: 0 | PN46: 0 | PP46: 0 | QR46: 0 | RE46: 1 | RF46: 1 | RH46: -9.643274666e-15 | RI46: -9.643274666e-15 | RK46: 9.643274666e-15 | RM46: 6 | RS46: 1 | RV46: -2 | RW46: 0 | RX46: 0
B47: 6 | C47: 21.80368985 | D47: 21.80368985 | E47: 45.86379677 | G47: 10.07630405 | H47: 0 | I47: 0 | J47: 0 | K47: 0 | L47: 0 | M47: 0 | N47: 0 | O47: 0 | P47: 0 | Q47: 0 | R47: 0 | T47: -0.7951593064 | U47: 1e-16 | V47: 1e-16 | W47: 1e-16 | X47: 1e-16 | Y47: 1e-16 | Z47: 1e-16 | AA47: 1e-16 | AB47: 1e-16 | AC47: 1e-16 | AD47: 1e-16 | AE47: 1e-16 | AG47: -0.6064005916 | AH47: 0 | AI47: 0 | AJ47: 0 | AK47: 0 | AL47: 0 | AM47: 0 | AN47: 0 | AO47: 0 | AP47: 0 | AQ47: 0 | AR47: 0 | AT47: -0.7951593064 | AU47: -0.6064005916 | AW47: 1 | BA47: 21.80368985 | BB47: 21.80368985 | BC47: 45.86379677 | BE47: 10.07630405 | BF47: 0 | BG47: 0 | BH47: 0 | BI47: 0 | BJ47: 0 | BK47: 0 | BL47: 0 | BM47: 0 | BN47: 0 | BO47: 0 | BP47: 0 | BR47: -0.7951593064 | BS47: 1e-16 | BT47: 1e-16 | BU47: 1e-16 | BV47: 1e-16 | BW47: 1e-16 | BX47: 1e-16 | BY47: 1e-16 | BZ47: 1e-16 | CA47: 1e-16 | CB47: 1e-16 | CC47: 1e-16 | CE47: -0.6064005916 | CF47: 0 | CG47: 0 | CH47: 0 | CI47: 0 | CJ47: 0 | CK47: 0 | CL47: 0 | CM47: 0 | CN47: 0 | CO47: 0 | CP47: 0 | CR47: -0.7951593064 | CS47: -0.6064005916 | CU47: 1 | CY47: 21.80368985 | CZ47: 21.80368985 | DA47: 45.86379677 | DC47: 10.07630405 | DD47: 0 | DE47: 0 | DF47: 0 | DG47: 0 | DH47: 0 | DI47: 0 | DJ47: 0 | DK47: 0 | DL47: 0 | DM47: 0 | DN47: 0 | DP47: -0.7951593064 | DQ47: 1e-16 | DR47: 1e-16 | DS47: 1e-16 | DT47: 1e-16 | DU47: 1e-16 | DV47: 1e-16 | DW47: 1e-16 | DX47: 1e-16 | DY47: 1e-16 | DZ47: 1e-16 | EA47: 1e-16 | EC47: -0.6064005916 | ED47: 0 | EE47: 0 | EF47: 0 | EG47: 0 | EH47: 0 | EI47: 0 | EJ47: 0 | EK47: 0 | EL47: 0 | EM47: 0 | EN47: 0 | EP47: -0.7951593064 | EQ47: -0.6064005916 | ES47: 1 | EW47: 21.80368985 | EX47: 21.80368985 | EY47: 45.86379677 | FA47: 10.07630405 | FB47: 0 | FC47: 0 | FD47: 0 | FE47: 0 | FF47: 0 | FG47: 0 | FH47: 0 | FI47: 0 | FJ47: 0 | FK47: 0 | FL47: 0 | FN47: -0.7951593064 | FO47: 1e-16 | FP47: 1e-16 | FQ47: 1e-16 | FR47: 1e-16 | FS47: 1e-16 | FT47: 1e-16 | FU47: 1e-16 | FV47: 1e-16 | FW47: 1e-16 | FX47: 1e-16 | FY47: 1e-16 | GA47: -0.6064005916 | GB47: 0 | GC47: 0 | GD47: 0 | GE47: 0 | GF47: 0 | GG47: 0 | GH47: 0 | GI47: 0 | GJ47: 0 | GK47: 0 | GL47: 0 | GN47: -0.7951593064 | GO47: -0.6064005916 | GQ47: 1 | GU47: 21.80368985 | GV47: 21.80368985 | GW47: 45.86379677 | GY47: 10.07630405 | GZ47: 0 | HA47: 0 | HB47: 0 | HC47: 0 | HD47: 0 | HE47: 0 | HF47: 0 | HG47: 0 | HH47: 0 | HI47: 0 | HJ47: 0 | HL47: -0.7951593064 | HM47: 1e-16 | HN47: 1e-16 | HO47: 1e-16 | HP47: 1e-16 | HQ47: 1e-16 | HR47: 1e-16 | HS47: 1e-16 | HT47: 1e-16 | HU47: 1e-16 | HV47: 1e-16 | HW47: 1e-16 | HY47: -0.6064005916 | HZ47: 0 | IA47: 0 | IB47: 0 | IC47: 0 | ID47: 0 | IE47: 0 | IF47: 0 | IG47: 0 | IH47: 0 | II47: 0 | IJ47: 0 | IL47: -0.7951593064 | IM47: -0.6064005916 | IO47: 1 | IS47: 21.80368985 | IT47: 21.80368985 | IU47: 45.86379677 | IW47: 10.07630405 | IX47: 0 | IY47: 0 | IZ47: 0 | JA47: 0 | JB47: 0 | JC47: 0 | JD47: 0 | JE47: 0 | JF47: 0 | JG47: 0 | JH47: 0 | JJ47: -0.7951593064 | JK47: 1e-16 | JL47: 1e-16 | JM47: 1e-16 | JN47: 1e-16 | JO47: 1e-16 | JP47: 1e-16 | JQ47: 1e-16 | JR47: 1e-16 | JS47: 1e-16 | JT47: 1e-16 | JU47: 1e-16 | JW47: -0.6064005916 | JX47: 0 | JY47: 0 | JZ47: 0 | KA47: 0 | KB47: 0 | KC47: 0 | KD47: 0 | KE47: 0 | KF47: 0 | KG47: 0 | KH47: 0 | KJ47: -0.7951593064 | KK47: -0.6064005916 | KM47: 1 | KQ47: 21.80368985 | KR47: 21.80368985 | KS47: 45.86379677 | KU47: 10.07630405 | KV47: 0 | KW47: 0 | KX47: 0 | KY47: 0 | KZ47: 0 | LA47: 0 | LB47: 0 | LC47: 0 | LD47: 0 | LE47: 0 | LF47: 0 | LH47: -0.7951593064 | LI47: 1e-16 | LJ47: 1e-16 | LK47: 1e-16 | LL47: 1e-16 | LM47: 1e-16 | LN47: 1e-16 | LO47: 1e-16 | LP47: 1e-16 | LQ47: 1e-16 | LR47: 1e-16 | LS47: 1e-16 | LU47: -0.6064005916 | LV47: 0 | LW47: 0 | LX47: 0 | LY47: 0 | LZ47: 0 | MA47: 0 | MB47: 0 | MC47: 0 | MD47: 0 | ME47: 0 | MF47: 0 | MH47: -0.7951593064 | MI47: -0.6064005916 | MK47: 1 | MM47: 1 | MN47: 1 | MO47: 1 | MR47: 1 | MS47: 1 | MT47: 1 | MU47: 1 | MV47: 1 | MW47: 1 | MX47: 1 | MY47: 1 | MZ47: 1 | NA47: -1.227010268e-11 | NB47: -1.227878163e-11 | NC47: -1.227878163e-11 | ND47: -1.227878163e-11 | NE47: -1.227685298e-11 | NF47: -1.227878163e-11 | NG47: -1.227878163e-11 | NH47: -1.227878163e-11 | NJ47: -0.7951593064 | NK47: -0.6064005916 | NN47: 10.07630405 | NO47: 10.07630405 | NP47: 10.07630405 | NQ47: 10.07630405 | NR47: 10.07630405 | NS47: 10.07630405 | NT47: 10.07630405 | NU47: 10.07630405 | NV47: 10.07630405 | NW47: 10.07630405 | NX47: 10.07630405 | NY47: 10.07630405 | OA47: 10.07630405 | OC47: 0 | OD47: 0 | OE47: 0 | OF47: 0 | OG47: 0 | OH47: 0 | OI47: 0 | OJ47: 0 | OK47: 0 | OL47: 0 | OM47: 0 | ON47: 0 | OP47: 0 | OQ47: 0 | OR47: 0 | OS47: 0 | OT47: 0 | OU47: 0 | OV47: 0 | OW47: 0 | OX47: 0 | OY47: 0 | OZ47: 0 | PA47: 0 | PC47: 0 | PD47: 0 | PE47: 0 | PF47: 0 | PG47: 0 | PH47: 0 | PI47: 0 | PJ47: 0 | PK47: 0 | PL47: 0 | PM47: 0 | PN47: 0 | PP47: 0 | QR47: 0 | RE47: 1 | RF47: 1 | RH47: -8.678947199e-15 | RI47: -8.678947199e-15 | RK47: 8.678947199e-15 | RM47: 7 | RS47: 1 | RV47: -2 | RW47: 0 | RX47: 0
B48: 7 | C48: 22.11973887 | D48: 22.11973887 | E48: 45.2084903 | G48: 10.22236217 | H48: 0 | I48: 0 | J48: 0 | K48: 0 | L48: 0 | M48: 0 | N48: 0 | O48: 0 | P48: 0 | Q48: 0 | R48: 0 | T48: -0.6984376577 | U48: 1e-16 | V48: 1e-16 | W48: 1e-16 | X48: 1e-16 | Y48: 1e-16 | Z48: 1e-16 | AA48: 1e-16 | AB48: 1e-16 | AC48: 1e-16 | AD48: 1e-16 | AE48: 1e-16 | AG48: -0.7156709008 | AH48: 0 | AI48: 0 | AJ48: 0 | AK48: 0 | AL48: 0 | AM48: 0 | AN48: 0 | AO48: 0 | AP48: 0 | AQ48: 0 | AR48: 0 | AT48: -0.6984376577 | AU48: -0.7156709008 | AW48: 1 | BA48: 22.11973887 | BB48: 22.11973887 | BC48: 45.2084903 | BE48: 10.22236217 | BF48: 0 | BG48: 0 | BH48: 0 | BI48: 0 | BJ48: 0 | BK48: 0 | BL48: 0 | BM48: 0 | BN48: 0 | BO48: 0 | BP48: 0 | BR48: -0.6984376577 | BS48: 1e-16 | BT48: 1e-16 | BU48: 1e-16 | BV48: 1e-16 | BW48: 1e-16 | BX48: 1e-16 | BY48: 1e-16 | BZ48: 1e-16 | CA48: 1e-16 | CB48: 1e-16 | CC48: 1e-16 | CE48: -0.7156709008 | CF48: 0 | CG48: 0 | CH48: 0 | CI48: 0 | CJ48: 0 | CK48: 0 | CL48: 0 | CM48: 0 | CN48: 0 | CO48: 0 | CP48: 0 | CR48: -0.6984376577 | CS48: -0.7156709008 | CU48: 1 | CY48: 22.11973887 | CZ48: 22.11973887 | DA48: 45.2084903 | DC48: 10.22236217 | DD48: 0 | DE48: 0 | DF48: 0 | DG48: 0 | DH48: 0 | DI48: 0 | DJ48: 0 | DK48: 0 | DL48: 0 | DM48: 0 | DN48: 0 | DP48: -0.6984376577 | DQ48: 1e-16 | DR48: 1e-16 | DS48: 1e-16 | DT48: 1e-16 | DU48: 1e-16 | DV48: 1e-16 | DW48: 1e-16 | DX48: 1e-16 | DY48: 1e-16 | DZ48: 1e-16 | EA48: 1e-16 | EC48: -0.7156709008 | ED48: 0 | EE48: 0 | EF48: 0 | EG48: 0 | EH48: 0 | EI48: 0 | EJ48: 0 | EK48: 0 | EL48: 0 | EM48: 0 | EN48: 0 | EP48: -0.6984376577 | EQ48: -0.7156709008 | ES48: 1 | EW48: 22.11973887 | EX48: 22.11973887 | EY48: 45.2084903 | FA48: 10.22236217 | FB48: 0 | FC48: 0 | FD48: 0 | FE48: 0 | FF48: 0 | FG48: 0 | FH48: 0 | FI48: 0 | FJ48: 0 | FK48: 0 | FL48: 0 | FN48: -0.6984376577 | FO48: 1e-16 | FP48: 1e-16 | FQ48: 1e-16 | FR48: 1e-16 | FS48: 1e-16 | FT48: 1e-16 | FU48: 1e-16 | FV48: 1e-16 | FW48: 1e-16 | FX48: 1e-16 | FY48: 1e-16 | GA48: -0.7156709008 | GB48: 0 | GC48: 0 | GD48: 0 | GE48: 0 | GF48: 0 | GG48: 0 | GH48: 0 | GI48: 0 | GJ48: 0 | GK48: 0 | GL48: 0 | GN48: -0.6984376577 | GO48: -0.7156709008 | GQ48: 1 | GU48: 22.11973887 | GV48: 22.11973887 | GW48: 45.2084903 | GY48: 10.22236217 | GZ48: 0 | HA48: 0 | HB48: 0 | HC48: 0 | HD48: 0 | HE48: 0 | HF48: 0 | HG48: 0 | HH48: 0 | HI48: 0 | HJ48: 0 | HL48: -0.6984376577 | HM48: 1e-16 | HN48: 1e-16 | HO48: 1e-16 | HP48: 1e-16 | HQ48: 1e-16 | HR48: 1e-16 | HS48: 1e-16 | HT48: 1e-16 | HU48: 1e-16 | HV48: 1e-16 | HW48: 1e-16 | HY48: -0.7156709008 | HZ48: 0 | IA48: 0 | IB48: 0 | IC48: 0 | ID48: 0 | IE48: 0 | IF48: 0 | IG48: 0 | IH48: 0 | II48: 0 | IJ48: 0 | IL48: -0.6984376577 | IM48: -0.7156709008 | IO48: 1 | IS48: 22.11973887 | IT48: 22.11973887 | IU48: 45.2084903 | IW48: 10.22236217 | IX48: 0 | IY48: 0 | IZ48: 0 | JA48: 0 | JB48: 0 | JC48: 0 | JD48: 0 | JE48: 0 | JF48: 0 | JG48: 0 | JH48: 0 | JJ48: -0.6984376577 | JK48: 1e-16 | JL48: 1e-16 | JM48: 1e-16 | JN48: 1e-16 | JO48: 1e-16 | JP48: 1e-16 | JQ48: 1e-16 | JR48: 1e-16 | JS48: 1e-16 | JT48: 1e-16 | JU48: 1e-16 | JW48: -0.7156709008 | JX48: 0 | JY48: 0 | JZ48: 0 | KA48: 0 | KB48: 0 | KC48: 0 | KD48: 0 | KE48: 0 | KF48: 0 | KG48: 0 | KH48: 0 | KJ48: -0.6984376577 | KK48: -0.7156709008 | KM48: 1 | KQ48: 22.11973887 | KR48: 22.11973887 | KS48: 45.2084903 | KU48: 10.22236217 | KV48: 0 | KW48: 0 | KX48: 0 | KY48: 0 | KZ48: 0 | LA48: 0 | LB48: 0 | LC48: 0 | LD48: 0 | LE48: 0 | LF48: 0 | LH48: -0.6984376577 | LI48: 1e-16 | LJ48: 1e-16 | LK48: 1e-16 | LL48: 1e-16 | LM48: 1e-16 | LN48: 1e-16 | LO48: 1e-16 | LP48: 1e-16 | LQ48: 1e-16 | LR48: 1e-16 | LS48: 1e-16 | LU48: -0.7156709008 | LV48: 0 | LW48: 0 | LX48: 0 | LY48: 0 | LZ48: 0 | MA48: 0 | MB48: 0 | MC48: 0 | MD48: 0 | ME48: 0 | MF48: 0 | MH48: -0.6984376577 | MI48: -0.7156709008 | MK48: 1 | MM48: 1 | MN48: 1 | MO48: 1 | MR48: 1 | MS48: 1 | MT48: 1 | MU48: 1 | MV48: 1 | MW48: 1 | MX48: 1 | MY48: 1 | MZ48: 1 | NA48: -1.299527694e-11 | NB48: -1.300299156e-11 | NC48: -1.300299156e-11 | ND48: -1.300299156e-11 | NE48: -1.30010629e-11 | NF48: -1.300299156e-11 | NG48: -1.300299156e-11 | NH48: -1.300299156e-11 | NJ48: -0.6984376577 | NK48: -0.7156709008 | NN48: 10.22236217 | NO48: 10.22236217 | NP48: 10.22236217 | NQ48: 10.22236217 | NR48: 10.22236217 | NS48: 10.22236217 | NT48: 10.22236217 | NU48: 10.22236217 | NV48: 10.22236217 | NW48: 10.22236217 | NX48: 10.22236217 | NY48: 10.22236217 | OA48: 10.22236217 | OC48: 0 | OD48: 0 | OE48: 0 | OF48: 0 | OG48: 0 | OH48: 0 | OI48: 0 | OJ48: 0 | OK48: 0 | OL48: 0 | OM48: 0 | ON48: 0 | OP48: 0 | OQ48: 0 | OR48: 0 | OS48: 0 | OT48: 0 | OU48: 0 | OV48: 0 | OW48: 0 | OX48: 0 | OY48: 0 | OZ48: 0 | PA48: 0 | PC48: 0 | PD48: 0 | PE48: 0 | PF48: 0 | PG48: 0 | PH48: 0 | PI48: 0 | PJ48: 0 | PK48: 0 | PL48: 0 | PM48: 0 | PN48: 0 | PP48: 0 | QR48: 0 | RE48: 1 | RF48: 1 | RH48: -7.714619732e-15 | RI48: -7.714619732e-15 | RK48: 7.714619732e-15 | RM48: 8 | RS48: 1 | RV48: -2 | RW48: 0 | RX48: 0
B49: 8 | C49: 22.44036909 | D49: 22.44036909 | E49: 44.56254691 | G49: 10.37053744 | H49: 0 | I49: 0 | J49: 0 | K49: 0 | L49: 0 | M49: 0 | N49: 0 | O49: 0 | P49: 0 | Q49: 0 | R49: 0 | T49: -0.5851271583 | U49: 1e-16 | V49: 1e-16 | W49: 1e-16 | X49: 1e-16 | Y49: 1e-16 | Z49: 1e-16 | AA49: 1e-16 | AB49: 1e-16 | AC49: 1e-16 | AD49: 1e-16 | AE49: 1e-16 | AG49: -0.8109415569 | AH49: 0 | AI49: 0 | AJ49: 0 | AK49: 0 | AL49: 0 | AM49: 0 | AN49: 0 | AO49: 0 | AP49: 0 | AQ49: 0 | AR49: 0 | AT49: -0.5851271583 | AU49: -0.8109415569 | AW49: 1 | BA49: 22.44036909 | BB49: 22.44036909 | BC49: 44.56254691 | BE49: 10.37053744 | BF49: 0 | BG49: 0 | BH49: 0 | BI49: 0 | BJ49: 0 | BK49: 0 | BL49: 0 | BM49: 0 | BN49: 0 | BO49: 0 | BP49: 0 | BR49: -0.5851271583 | BS49: 1e-16 | BT49: 1e-16 | BU49: 1e-16 | BV49: 1e-16 | BW49: 1e-16 | BX49: 1e-16 | BY49: 1e-16 | BZ49: 1e-16 | CA49: 1e-16 | CB49: 1e-16 | CC49: 1e-16 | CE49: -0.8109415569 | CF49: 0 | CG49: 0 | CH49: 0 | CI49: 0 | CJ49: 0 | CK49: 0 | CL49: 0 | CM49: 0 | CN49: 0 | CO49: 0 | CP49: 0 | CR49: -0.5851271583 | CS49: -0.8109415569 | CU49: 1 | CY49: 22.44036909 | CZ49: 22.44036909 | DA49: 44.56254691 | DC49: 10.37053744 | DD49: 0 | DE49: 0 | DF49: 0 | DG49: 0 | DH49: 0 | DI49: 0 | DJ49: 0 | DK49: 0 | DL49: 0 | DM49: 0 | DN49: 0 | DP49: -0.5851271583 | DQ49: 1e-16 | DR49: 1e-16 | DS49: 1e-16 | DT49: 1e-16 | DU49: 1e-16 | DV49: 1e-16 | DW49: 1e-16 | DX49: 1e-16 | DY49: 1e-16 | DZ49: 1e-16 | EA49: 1e-16 | EC49: -0.8109415569 | ED49: 0 | EE49: 0 | EF49: 0 | EG49: 0 | EH49: 0 | EI49: 0 | EJ49: 0 | EK49: 0 | EL49: 0 | EM49: 0 | EN49: 0 | EP49: -0.5851271583 | EQ49: -0.8109415569 | ES49: 1 | EW49: 22.44036909 | EX49: 22.44036909 | EY49: 44.56254691 | FA49: 10.37053744 | FB49: 0 | FC49: 0 | FD49: 0 | FE49: 0 | FF49: 0 | FG49: 0 | FH49: 0 | FI49: 0 | FJ49: 0 | FK49: 0 | FL49: 0 | FN49: -0.5851271583 | FO49: 1e-16 | FP49: 1e-16 | FQ49: 1e-16 | FR49: 1e-16 | FS49: 1e-16 | FT49: 1e-16 | FU49: 1e-16 | FV49: 1e-16 | FW49: 1e-16 | FX49: 1e-16 | FY49: 1e-16 | GA49: -0.8109415569 | GB49: 0 | GC49: 0 | GD49: 0 | GE49: 0 | GF49: 0 | GG49: 0 | GH49: 0 | GI49: 0 | GJ49: 0 | GK49: 0 | GL49: 0 | GN49: -0.5851271583 | GO49: -0.8109415569 | GQ49: 1 | GU49: 22.44036909 | GV49: 22.44036909 | GW49: 44.56254691 | GY49: 10.37053744 | GZ49: 0 | HA49: 0 | HB49: 0 | HC49: 0 | HD49: 0 | HE49: 0 | HF49: 0 | HG49: 0 | HH49: 0 | HI49: 0 | HJ49: 0 | HL49: -0.5851271583 | HM49: 1e-16 | HN49: 1e-16 | HO49: 1e-16 | HP49: 1e-16 | HQ49: 1e-16 | HR49: 1e-16 | HS49: 1e-16 | HT49: 1e-16 | HU49: 1e-16 | HV49: 1e-16 | HW49: 1e-16 | HY49: -0.8109415569 | HZ49: 0 | IA49: 0 | IB49: 0 | IC49: 0 | ID49: 0 | IE49: 0 | IF49: 0 | IG49: 0 | IH49: 0 | II49: 0 | IJ49: 0 | IL49: -0.5851271583 | IM49: -0.8109415569 | IO49: 1 | IS49: 22.44036909 | IT49: 22.44036909 | IU49: 44.56254691 | IW49: 10.37053744 | IX49: 0 | IY49: 0 | IZ49: 0 | JA49: 0 | JB49: 0 | JC49: 0 | JD49: 0 | JE49: 0 | JF49: 0 | JG49: 0 | JH49: 0 | JJ49: -0.5851271583 | JK49: 1e-16 | JL49: 1e-16 | JM49: 1e-16 | JN49: 1e-16 | JO49: 1e-16 | JP49: 1e-16 | JQ49: 1e-16 | JR49: 1e-16 | JS49: 1e-16 | JT49: 1e-16 | JU49: 1e-16 | JW49: -0.8109415569 | JX49: 0 | JY49: 0 | JZ49: 0 | KA49: 0 | KB49: 0 | KC49: 0 | KD49: 0 | KE49: 0 | KF49: 0 | KG49: 0 | KH49: 0 | KJ49: -0.5851271583 | KK49: -0.8109415569 | KM49: 1 | KQ49: 22.44036909 | KR49: 22.44036909 | KS49: 44.56254691 | KU49: 10.37053744 | KV49: 0 | KW49: 0 | KX49: 0 | KY49: 0 | KZ49: 0 | LA49: 0 | LB49: 0 | LC49: 0 | LD49: 0 | LE49: 0 | LF49: 0 | LH49: -0.5851271583 | LI49: 1e-16 | LJ49: 1e-16 | LK49: 1e-16 | LL49: 1e-16 | LM49: 1e-16 | LN49: 1e-16 | LO49: 1e-16 | LP49: 1e-16 | LQ49: 1e-16 | LR49: 1e-16 | LS49: 1e-16 | LU49: -0.8109415569 | LV49: 0 | LW49: 0 | LX49: 0 | LY49: 0 | LZ49: 0 | MA49: 0 | MB49: 0 | MC49: 0 | MD49: 0 | ME49: 0 | MF49: 0 | MH49: -0.5851271583 | MI49: -0.8109415569 | MK49: 1 | MM49: 1 | MN49: 1 | MO49: 1 | MR49: 1 | MS49: 1 | MT49: 1 | MU49: 1 | MV49: 1 | MW49: 1 | MX49: 1 | MY49: 1 | MZ49: 1 | NA49: -1.376673891e-11 | NB49: -1.37734892e-11 | NC49: -1.37734892e-11 | ND49: -1.37734892e-11 | NE49: -1.377059622e-11 | NF49: -1.37734892e-11 | NG49: -1.37734892e-11 | NH49: -1.37734892e-11 | NJ49: -0.5851271583 | NK49: -0.8109415569 | NN49: 10.37053744 | NO49: 10.37053744 | NP49: 10.37053744 | NQ49: 10.37053744 | NR49: 10.37053744 | NS49: 10.37053744 | NT49: 10.37053744 | NU49: 10.37053744 | NV49: 10.37053744 | NW49: 10.37053744 | NX49: 10.37053744 | NY49: 10.37053744 | OA49: 10.37053744 | OC49: 0 | OD49: 0 | OE49: 0 | OF49: 0 | OG49: 0 | OH49: 0 | OI49: 0 | OJ49: 0 | OK49: 0 | OL49: 0 | OM49: 0 | ON49: 0 | OP49: 0 | OQ49: 0 | OR49: 0 | OS49: 0 | OT49: 0 | OU49: 0 | OV49: 0 | OW49: 0 | OX49: 0 | OY49: 0 | OZ49: 0 | PA49: 0 | PC49: 0 | PD49: 0 | PE49: 0 | PF49: 0 | PG49: 0 | PH49: 0 | PI49: 0 | PJ49: 0 | PK49: 0 | PL49: 0 | PM49: 0 | PN49: 0 | PP49: 0 | QR49: 0 | RE49: 1 | RF49: 1 | RH49: -6.750292266e-15 | RI49: -6.750292266e-15 | RK49: 6.750292266e-15 | RM49: 9 | RS49: 1 | RV49: -2 | RW49: 0 | RX49: 0
B50: 9 | C50: 22.76564691 | D50: 22.76564691 | E50: 43.92583282 | G50: 10.52086053 | H50: 0 | I50: 0 | J50: 0 | K50: 0 | L50: 0 | M50: 0 | N50: 0 | O50: 0 | P50: 0 | Q50: 0 | R50: 0 | T50: -0.4570838722 | U50: 1e-16 | V50: 1e-16 | W50: 1e-16 | X50: 1e-16 | Y50: 1e-16 | Z50: 1e-16 | AA50: 1e-16 | AB50: 1e-16 | AC50: 1e-16 | AD50: 1e-16 | AE50: 1e-16 | AG50: -0.8894235964 | AH50: 0 | AI50: 0 | AJ50: 0 | AK50: 0 | AL50: 0 | AM50: 0 | AN50: 0 | AO50: 0 | AP50: 0 | AQ50: 0 | AR50: 0 | AT50: -0.4570838722 | AU50: -0.8894235964 | AW50: 1 | BA50: 22.76564691 | BB50: 22.76564691 | BC50: 43.92583282 | BE50: 10.52086053 | BF50: 0 | BG50: 0 | BH50: 0 | BI50: 0 | BJ50: 0 | BK50: 0 | BL50: 0 | BM50: 0 | BN50: 0 | BO50: 0 | BP50: 0 | BR50: -0.4570838722 | BS50: 1e-16 | BT50: 1e-16 | BU50: 1e-16 | BV50: 1e-16 | BW50: 1e-16 | BX50: 1e-16 | BY50: 1e-16 | BZ50: 1e-16 | CA50: 1e-16 | CB50: 1e-16 | CC50: 1e-16 | CE50: -0.8894235964 | CF50: 0 | CG50: 0 | CH50: 0 | CI50: 0 | CJ50: 0 | CK50: 0 | CL50: 0 | CM50: 0 | CN50: 0 | CO50: 0 | CP50: 0 | CR50: -0.4570838722 | CS50: -0.8894235964 | CU50: 1 | CY50: 22.76564691 | CZ50: 22.76564691 | DA50: 43.92583282 | DC50: 10.52086053 | DD50: 0 | DE50: 0 | DF50: 0 | DG50: 0 | DH50: 0 | DI50: 0 | DJ50: 0 | DK50: 0 | DL50: 0 | DM50: 0 | DN50: 0 | DP50: -0.4570838722 | DQ50: 1e-16 | DR50: 1e-16 | DS50: 1e-16 | DT50: 1e-16 | DU50: 1e-16 | DV50: 1e-16 | DW50: 1e-16 | DX50: 1e-16 | DY50: 1e-16 | DZ50: 1e-16 | EA50: 1e-16 | EC50: -0.8894235964 | ED50: 0 | EE50: 0 | EF50: 0 | EG50: 0 | EH50: 0 | EI50: 0 | EJ50: 0 | EK50: 0 | EL50: 0 | EM50: 0 | EN50: 0 | EP50: -0.4570838722 | EQ50: -0.8894235964 | ES50: 1 | EW50: 22.76564691 | EX50: 22.76564691 | EY50: 43.92583282 | FA50: 10.52086053 | FB50: 0 | FC50: 0 | FD50: 0 | FE50: 0 | FF50: 0 | FG50: 0 | FH50: 0 | FI50: 0 | FJ50: 0 | FK50: 0 | FL50: 0 | FN50: -0.4570838722 | FO50: 1e-16 | FP50: 1e-16 | FQ50: 1e-16 | FR50: 1e-16 | FS50: 1e-16 | FT50: 1e-16 | FU50: 1e-16 | FV50: 1e-16 | FW50: 1e-16 | FX50: 1e-16 | FY50: 1e-16 | GA50: -0.8894235964 | GB50: 0 | GC50: 0 | GD50: 0 | GE50: 0 | GF50: 0 | GG50: 0 | GH50: 0 | GI50: 0 | GJ50: 0 | GK50: 0 | GL50: 0 | GN50: -0.4570838722 | GO50: -0.8894235964 | GQ50: 1 | GU50: 22.76564691 | GV50: 22.76564691 | GW50: 43.92583282 | GY50: 10.52086053 | GZ50: 0 | HA50: 0 | HB50: 0 | HC50: 0 | HD50: 0 | HE50: 0 | HF50: 0 | HG50: 0 | HH50: 0 | HI50: 0 | HJ50: 0 | HL50: -0.4570838722 | HM50: 1e-16 | HN50: 1e-16 | HO50: 1e-16 | HP50: 1e-16 | HQ50: 1e-16 | HR50: 1e-16 | HS50: 1e-16 | HT50: 1e-16 | HU50: 1e-16 | HV50: 1e-16 | HW50: 1e-16 | HY50: -0.8894235964 | HZ50: 0 | IA50: 0 | IB50: 0 | IC50: 0 | ID50: 0 | IE50: 0 | IF50: 0 | IG50: 0 | IH50: 0 | II50: 0 | IJ50: 0 | IL50: -0.4570838722 | IM50: -0.8894235964 | IO50: 1 | IS50: 22.76564691 | IT50: 22.76564691 | IU50: 43.92583282 | IW50: 10.52086053 | IX50: 0 | IY50: 0 | IZ50: 0 | JA50: 0 | JB50: 0 | JC50: 0 | JD50: 0 | JE50: 0 | JF50: 0 | JG50: 0 | JH50: 0 | JJ50: -0.4570838722 | JK50: 1e-16 | JL50: 1e-16 | JM50: 1e-16 | JN50: 1e-16 | JO50: 1e-16 | JP50: 1e-16 | JQ50: 1e-16 | JR50: 1e-16 | JS50: 1e-16 | JT50: 1e-16 | JU50: 1e-16 | JW50: -0.8894235964 | JX50: 0 | JY50: 0 | JZ50: 0 | KA50: 0 | KB50: 0 | KC50: 0 | KD50: 0 | KE50: 0 | KF50: 0 | KG50: 0 | KH50: 0 | KJ50: -0.4570838722 | KK50: -0.8894235964 | KM50: 1 | KQ50: 22.76564691 | KR50: 22.76564691 | KS50: 43.92583282 | KU50: 10.52086053 | KV50: 0 | KW50: 0 | KX50: 0 | KY50: 0 | KZ50: 0 | LA50: 0 | LB50: 0 | LC50: 0 | LD50: 0 | LE50: 0 | LF50: 0 | LH50: -0.4570838722 | LI50: 1e-16 | LJ50: 1e-16 | LK50: 1e-16 | LL50: 1e-16 | LM50: 1e-16 | LN50: 1e-16 | LO50: 1e-16 | LP50: 1e-16 | LQ50: 1e-16 | LR50: 1e-16 | LS50: 1e-16 | LU50: -0.8894235964 | LV50: 0 | LW50: 0 | LX50: 0 | LY50: 0 | LZ50: 0 | MA50: 0 | MB50: 0 | MC50: 0 | MD50: 0 | ME50: 0 | MF50: 0 | MH50: -0.4570838722 | MI50: -0.8894235964 | MK50: 1 | MM50: 1 | MN50: 1 | MO50: 1 | MR50: 1 | MS50: 1 | MT50: 1 | MU50: 1 | MV50: 1 | MW50: 1 | MX50: 1 | MY50: 1 | MZ50: 1 | NA50: -1.458255995e-11 | NB50: -1.458738159e-11 | NC50: -1.458738159e-11 | ND50: -1.458738159e-11 | NE50: -1.458545293e-11 | NF50: -1.458738159e-11 | NG50: -1.458738159e-11 | NH50: -1.458738159e-11 | NJ50: -0.4570838722 | NK50: -0.8894235964 | NN50: 10.52086053 | NO50: 10.52086053 | NP50: 10.52086053 | NQ50: 10.52086053 | NR50: 10.52086053 | NS50: 10.52086053 | NT50: 10.52086053 | NU50: 10.52086053 | NV50: 10.52086053 | NW50: 10.52086053 | NX50: 10.52086053 | NY50: 10.52086053 | OA50: 10.52086053 | OC50: 0 | OD50: 0 | OE50: 0 | OF50: 0 | OG50: 0 | OH50: 0 | OI50: 0 | OJ50: 0 | OK50: 0 | OL50: 0 | OM50: 0 | ON50: 0 | OP50: 0 | OQ50: 0 | OR50: 0 | OS50: 0 | OT50: 0 | OU50: 0 | OV50: 0 | OW50: 0 | OX50: 0 | OY50: 0 | OZ50: 0 | PA50: 0 | PC50: 0 | PD50: 0 | PE50: 0 | PF50: 0 | PG50: 0 | PH50: 0 | PI50: 0 | PJ50: 0 | PK50: 0 | PL50: 0 | PM50: 0 | PN50: 0 | PP50: 0 | QR50: 0 | RE50: 1 | RF50: 1 | RH50: -4.821637333e-15 | RI50: -4.821637333e-15 | RK50: 4.821637333e-15 | RM50: 10 | RS50: 1 | RV50: -2 | RW50: 0 | RX50: 0
B51: 10 | C51: 23.09563969 | D51: 23.09563969 | E51: 43.29821617 | G51: =G$31/$E51*G$25*$B$8+G$33 -> 10.6733626 | H51: 0 | I51: 0 | J51: 0 | K51: 0 | L51: 0 | M51: 0 | N51: 0 | O51: 0 | P51: 0 | Q51: 0 | R51: 0 | T51: -0.3166652057 | U51: 1e-16 | V51: 1e-16 | W51: 1e-16 | X51: 1e-16 | Y51: 1e-16 | Z51: 1e-16 | AA51: 1e-16 | AB51: 1e-16 | AC51: 1e-16 | AD51: 1e-16 | AE51: 1e-16 | AG51: -0.9485373728 | AH51: 0 | AI51: 0 | AJ51: 0 | AK51: 0 | AL51: 0 | AM51: 0 | AN51: 0 | AO51: 0 | AP51: 0 | AQ51: 0 | AR51: 0 | AT51: -0.3166652057 | AU51: -0.9485373728 | AW51: 1 | BA51: 23.09563969 | BB51: 23.09563969 | BC51: 43.29821617 | BE51: =BE$31/$E51*BE$25*$B$8+BE$33 -> 10.6733626 | BF51: 0 | BG51: 0 | BH51: 0 | BI51: 0 | BJ51: 0 | BK51: 0 | BL51: 0 | BM51: 0 | BN51: 0 | BO51: 0 | BP51: 0 | BR51: -0.3166652057 | BS51: 1e-16 | BT51: 1e-16 | BU51: 1e-16 | BV51: 1e-16 | BW51: 1e-16 | BX51: 1e-16 | BY51: 1e-16 | BZ51: 1e-16 | CA51: 1e-16 | CB51: 1e-16 | CC51: 1e-16 | CE51: -0.9485373728 | CF51: 0 | CG51: 0 | CH51: 0 | CI51: 0 | CJ51: 0 | CK51: 0 | CL51: 0 | CM51: 0 | CN51: 0 | CO51: 0 | CP51: 0 | CR51: -0.3166652057 | CS51: -0.9485373728 | CU51: 1 | CY51: 23.09563969 | CZ51: 23.09563969 | DA51: 43.29821617 | DC51: =DC$31/$E51*DC$25*$B$8+DC$33 -> 10.6733626 | DD51: 0 | DE51: 0 | DF51: 0 | DG51: 0 | DH51: 0 | DI51: 0 | DJ51: 0 | DK51: 0 | DL51: 0 | DM51: 0 | DN51: 0 | DP51: -0.3166652057 | DQ51: 1e-16 | DR51: 1e-16 | DS51: 1e-16 | DT51: 1e-16 | DU51: 1e-16 | DV51: 1e-16 | DW51: 1e-16 | DX51: 1e-16 | DY51: 1e-16 | DZ51: 1e-16 | EA51: 1e-16 | EC51: -0.9485373728 | ED51: 0 | EE51: 0 | EF51: 0 | EG51: 0 | EH51: 0 | EI51: 0 | EJ51: 0 | EK51: 0 | EL51: 0 | EM51: 0 | EN51: 0 | EP51: -0.3166652057 | EQ51: -0.9485373728 | ES51: 1 | EW51: 23.09563969 | EX51: 23.09563969 | EY51: 43.29821617 | FA51: =FA$31/$E51*FA$25*$B$8+FA$33 -> 10.6733626 | FB51: 0 | FC51: 0 | FD51: 0 | FE51: 0 | FF51: 0 | FG51: 0 | FH51: 0 | FI51: 0 | FJ51: 0 | FK51: 0 | FL51: 0 | FN51: -0.3166652057 | FO51: 1e-16 | FP51: 1e-16 | FQ51: 1e-16 | FR51: 1e-16 | FS51: 1e-16 | FT51: 1e-16 | FU51: 1e-16 | FV51: 1e-16 | FW51: 1e-16 | FX51: 1e-16 | FY51: 1e-16 | GA51: -0.9485373728 | GB51: 0 | GC51: 0 | GD51: 0 | GE51: 0 | GF51: 0 | GG51: 0 | GH51: 0 | GI51: 0 | GJ51: 0 | GK51: 0 | GL51: 0 | GN51: -0.3166652057 | GO51: -0.9485373728 | GQ51: 1 | GU51: 23.09563969 | GV51: 23.09563969 | GW51: 43.29821617 | GY51: =GY$31/$E51*GY$25*$B$8+GY$33 -> 10.6733626 | GZ51: 0 | HA51: 0 | HB51: 0 | HC51: 0 | HD51: 0 | HE51: 0 | HF51: 0 | HG51: 0 | HH51: 0 | HI51: 0 | HJ51: 0 | HL51: -0.3166652057 | HM51: 1e-16 | HN51: 1e-16 | HO51: 1e-16 | HP51: 1e-16 | HQ51: 1e-16 | HR51: 1e-16 | HS51: 1e-16 | HT51: 1e-16 | HU51: 1e-16 | HV51: 1e-16 | HW51: 1e-16 | HY51: -0.9485373728 | HZ51: 0 | IA51: 0 | IB51: 0 | IC51: 0 | ID51: 0 | IE51: 0 | IF51: 0 | IG51: 0 | IH51: 0 | II51: 0 | IJ51: 0 | IL51: -0.3166652057 | IM51: -0.9485373728 | IO51: 1 | IS51: 23.09563969 | IT51: 23.09563969 | IU51: 43.29821617 | IW51: =IW$31/$E51*IW$25*$B$8+IW$33 -> 10.6733626 | IX51: 0 | IY51: 0 | IZ51: 0 | JA51: 0 | JB51: 0 | JC51: 0 | JD51: 0 | JE51: 0 | JF51: 0 | JG51: 0 | JH51: 0 | JJ51: -0.3166652057 | JK51: 1e-16 | JL51: 1e-16 | JM51: 1e-16 | JN51: 1e-16 | JO51: 1e-16 | JP51: 1e-16 | JQ51: 1e-16 | JR51: 1e-16 | JS51: 1e-16 | JT51: 1e-16 | JU51: 1e-16 | JW51: -0.9485373728 | JX51: 0 | JY51: 0 | JZ51: 0 | KA51: 0 | KB51: 0 | KC51: 0 | KD51: 0 | KE51: 0 | KF51: 0 | KG51: 0 | KH51: 0 | KJ51: -0.3166652057 | KK51: -0.9485373728 | KM51: 1 | KQ51: 23.09563969 | KR51: 23.09563969 | KS51: 43.29821617 | KU51: =KU$31/$E51*KU$25*$B$8+KU$33 -> 10.6733626 | KV51: 0 | KW51: 0 | KX51: 0 | KY51: 0 | KZ51: 0 | LA51: 0 | LB51: 0 | LC51: 0 | LD51: 0 | LE51: 0 | LF51: 0 | LH51: -0.3166652057 | LI51: 1e-16 | LJ51: 1e-16 | LK51: 1e-16 | LL51: 1e-16 | LM51: 1e-16 | LN51: 1e-16 | LO51: 1e-16 | LP51: 1e-16 | LQ51: 1e-16 | LR51: 1e-16 | LS51: 1e-16 | LU51: -0.9485373728 | LV51: 0 | LW51: 0 | LX51: 0 | LY51: 0 | LZ51: 0 | MA51: 0 | MB51: 0 | MC51: 0 | MD51: 0 | ME51: 0 | MF51: 0 | MH51: -0.3166652057 | MI51: -0.9485373728 | MK51: 1 | MM51: 1 | MN51: 1 | MO51: 1 | MR51: 1 | MS51: 1 | MT51: 1 | MU51: 1 | MV51: 1 | MW51: 1 | MX51: 1 | MY51: 1 | MZ51: 1 | NA51: -1.544659736e-11 | NB51: -1.545045467e-11 | NC51: -1.545045467e-11 | ND51: -1.545045467e-11 | NE51: -1.544852601e-11 | NF51: -1.545045467e-11 | NG51: -1.545045467e-11 | NH51: -1.545045467e-11 | NJ51: -0.3166652057 | NK51: -0.9485373728 | NN51: 10.6733626 | NO51: 10.6733626 | NP51: 10.6733626 | NQ51: 10.6733626 | NR51: 10.6733626 | NS51: 10.6733626 | NT51: 10.6733626 | NU51: 10.6733626 | NV51: 10.6733626 | NW51: 10.6733626 | NX51: 10.6733626 | NY51: 10.6733626 | OA51: 10.6733626 | OC51: 0 | OD51: 0 | OE51: 0 | OF51: 0 | OG51: 0 | OH51: 0 | OI51: 0 | OJ51: 0 | OK51: 0 | OL51: 0 | OM51: 0 | ON51: 0 | OP51: 0 | OQ51: 0 | OR51: 0 | OS51: 0 | OT51: 0 | OU51: 0 | OV51: 0 | OW51: 0 | OX51: 0 | OY51: 0 | OZ51: 0 | PA51: 0 | PC51: 0 | PD51: 0 | PE51: 0 | PF51: 0 | PG51: 0 | PH51: 0 | PI51: 0 | PJ51: 0 | PK51: 0 | PL51: 0 | PM51: 0 | PN51: 0 | PP51: 0 | QR51: 0 | RE51: 1 | RF51: 1 | RH51: -3.857309866e-15 | RI51: -3.857309866e-15 | RK51: 3.857309866e-15 | RM51: 11 | RS51: 1 | RV51: -2 | RW51: 0 | RX51: 0
B52: 11 | C52: 23.4304158 | D52: 23.4304158 | E52: 42.67956696 | G52: 10.82807521 | H52: 0 | I52: 0 | J52: 0 | K52: 0 | L52: 0 | M52: 0 | N52: 0 | O52: 0 | P52: 0 | Q52: 0 | R52: 0 | T52: -0.166716954 | U52: 1e-16 | V52: 1e-16 | W52: 1e-16 | X52: 1e-16 | Y52: 1e-16 | Z52: 1e-16 | AA52: 1e-16 | AB52: 1e-16 | AC52: 1e-16 | AD52: 1e-16 | AE52: 1e-16 | AG52: -0.9860047958 | AH52: 0 | AI52: 0 | AJ52: 0 | AK52: 0 | AL52: 0 | AM52: 0 | AN52: 0 | AO52: 0 | AP52: 0 | AQ52: 0 | AR52: 0 | AT52: -0.166716954 | AU52: -0.9860047958 | AW52: 1 | BA52: 23.4304158 | BB52: 23.4304158 | BC52: 42.67956696 | BE52: 10.82807521 | BF52: 0 | BG52: 0 | BH52: 0 | BI52: 0 | BJ52: 0 | BK52: 0 | BL52: 0 | BM52: 0 | BN52: 0 | BO52: 0 | BP52: 0 | BR52: -0.166716954 | BS52: 1e-16 | BT52: 1e-16 | BU52: 1e-16 | BV52: 1e-16 | BW52: 1e-16 | BX52: 1e-16 | BY52: 1e-16 | BZ52: 1e-16 | CA52: 1e-16 | CB52: 1e-16 | CC52: 1e-16 | CE52: -0.9860047958 | CF52: 0 | CG52: 0 | CH52: 0 | CI52: 0 | CJ52: 0 | CK52: 0 | CL52: 0 | CM52: 0 | CN52: 0 | CO52: 0 | CP52: 0 | CR52: -0.166716954 | CS52: -0.9860047958 | CU52: 1 | CY52: 23.4304158 | CZ52: 23.4304158 | DA52: 42.67956696 | DC52: 10.82807521 | DD52: 0 | DE52: 0 | DF52: 0 | DG52: 0 | DH52: 0 | DI52: 0 | DJ52: 0 | DK52: 0 | DL52: 0 | DM52: 0 | DN52: 0 | DP52: -0.166716954 | DQ52: 1e-16 | DR52: 1e-16 | DS52: 1e-16 | DT52: 1e-16 | DU52: 1e-16 | DV52: 1e-16 | DW52: 1e-16 | DX52: 1e-16 | DY52: 1e-16 | DZ52: 1e-16 | EA52: 1e-16 | EC52: -0.9860047958 | ED52: 0 | EE52: 0 | EF52: 0 | EG52: 0 | EH52: 0 | EI52: 0 | EJ52: 0 | EK52: 0 | EL52: 0 | EM52: 0 | EN52: 0 | EP52: -0.166716954 | EQ52: -0.9860047958 | ES52: 1 | EW52: 23.4304158 | EX52: 23.4304158 | EY52: 42.67956696 | FA52: 10.82807521 | FB52: 0 | FC52: 0 | FD52: 0 | FE52: 0 | FF52: 0 | FG52: 0 | FH52: 0 | FI52: 0 | FJ52: 0 | FK52: 0 | FL52: 0 | FN52: -0.166716954 | FO52: 1e-16 | FP52: 1e-16 | FQ52: 1e-16 | FR52: 1e-16 | FS52: 1e-16 | FT52: 1e-16 | FU52: 1e-16 | FV52: 1e-16 | FW52: 1e-16 | FX52: 1e-16 | FY52: 1e-16 | GA52: -0.9860047958 | GB52: 0 | GC52: 0 | GD52: 0 | GE52: 0 | GF52: 0 | GG52: 0 | GH52: 0 | GI52: 0 | GJ52: 0 | GK52: 0 | GL52: 0 | GN52: -0.166716954 | GO52: -0.9860047958 | GQ52: 1 | GU52: 23.4304158 | GV52: 23.4304158 | GW52: 42.67956696 | GY52: 10.82807521 | GZ52: 0 | HA52: 0 | HB52: 0 | HC52: 0 | HD52: 0 | HE52: 0 | HF52: 0 | HG52: 0 | HH52: 0 | HI52: 0 | HJ52: 0 | HL52: -0.166716954 | HM52: 1e-16 | HN52: 1e-16 | HO52: 1e-16 | HP52: 1e-16 | HQ52: 1e-16 | HR52: 1e-16 | HS52: 1e-16 | HT52: 1e-16 | HU52: 1e-16 | HV52: 1e-16 | HW52: 1e-16 | HY52: -0.9860047958 | HZ52: 0 | IA52: 0 | IB52: 0 | IC52: 0 | ID52: 0 | IE52: 0 | IF52: 0 | IG52: 0 | IH52: 0 | II52: 0 | IJ52: 0 | IL52: -0.166716954 | IM52: -0.9860047958 | IO52: 1 | IS52: 23.4304158 | IT52: 23.4304158 | IU52: 42.67956696 | IW52: 10.82807521 | IX52: 0 | IY52: 0 | IZ52: 0 | JA52: 0 | JB52: 0 | JC52: 0 | JD52: 0 | JE52: 0 | JF52: 0 | JG52: 0 | JH52: 0 | JJ52: -0.166716954 | JK52: 1e-16 | JL52: 1e-16 | JM52: 1e-16 | JN52: 1e-16 | JO52: 1e-16 | JP52: 1e-16 | JQ52: 1e-16 | JR52: 1e-16 | JS52: 1e-16 | JT52: 1e-16 | JU52: 1e-16 | JW52: -0.9860047958 | JX52: 0 | JY52: 0 | JZ52: 0 | KA52: 0 | KB52: 0 | KC52: 0 | KD52: 0 | KE52: 0 | KF52: 0 | KG52: 0 | KH52: 0 | KJ52: -0.166716954 | KK52: -0.9860047958 | KM52: 1 | KQ52: 23.4304158 | KR52: 23.4304158 | KS52: 42.67956696 | KU52: 10.82807521 | KV52: 0 | KW52: 0 | KX52: 0 | KY52: 0 | KZ52: 0 | LA52: 0 | LB52: 0 | LC52: 0 | LD52: 0 | LE52: 0 | LF52: 0 | LH52: -0.166716954 | LI52: 1e-16 | LJ52: 1e-16 | LK52: 1e-16 | LL52: 1e-16 | LM52: 1e-16 | LN52: 1e-16 | LO52: 1e-16 | LP52: 1e-16 | LQ52: 1e-16 | LR52: 1e-16 | LS52: 1e-16 | LU52: -0.9860047958 | LV52: 0 | LW52: 0 | LX52: 0 | LY52: 0 | LZ52: 0 | MA52: 0 | MB52: 0 | MC52: 0 | MD52: 0 | ME52: 0 | MF52: 0 | MH52: -0.166716954 | MI52: -0.9860047958 | MK52: 1 | MM52: 1 | MN52: 1 | MO52: 1 | MR52: 1 | MS52: 1 | MT52: 1 | MU52: 1 | MV52: 1 | MW52: 1 | MX52: 1 | MY52: 1 | MZ52: 1 | NA52: -1.63607798e-11 | NB52: -1.636270845e-11 | NC52: -1.636270845e-11 | ND52: -1.636270845e-11 | NE52: -1.63607798e-11 | NF52: -1.636270845e-11 | NG52: -1.636270845e-11 | NH52: -1.636270845e-11 | NJ52: -0.166716954 | NK52: -0.9860047958 | NN52: 10.82807521 | NO52: 10.82807521 | NP52: 10.82807521 | NQ52: 10.82807521 | NR52: 10.82807521 | NS52: 10.82807521 | NT52: 10.82807521 | NU52: 10.82807521 | NV52: 10.82807521 | NW52: 10.82807521 | NX52: 10.82807521 | NY52: 10.82807521 | OA52: 10.82807521 | OC52: 0 | OD52: 0 | OE52: 0 | OF52: 0 | OG52: 0 | OH52: 0 | OI52: 0 | OJ52: 0 | OK52: 0 | OL52: 0 | OM52: 0 | ON52: 0 | OP52: 0 | OQ52: 0 | OR52: 0 | OS52: 0 | OT52: 0 | OU52: 0 | OV52: 0 | OW52: 0 | OX52: 0 | OY52: 0 | OZ52: 0 | PA52: 0 | PC52: 0 | PD52: 0 | PE52: 0 | PF52: 0 | PG52: 0 | PH52: 0 | PI52: 0 | PJ52: 0 | PK52: 0 | PL52: 0 | PM52: 0 | PN52: 0 | PP52: 0 | QR52: =QR$41 -> 0 | RE52: 1 | RF52: 1 | RH52: -1.928654933e-15 | RI52: -1.928654933e-15 | RK52: 1.928654933e-15 | RM52: 12 | RS52: 1 | RV52: -2 | RW52: 7.993605777e-14 | RX52: -7.993605777e-14
B53: 12 | C53: 23.77004455 | D53: 23.77004455 | E53: 42.06975708 | G53: 10.98503041 | H53: 0 | I53: 0 | J53: 0 | K53: 0 | L53: 0 | M53: 0 | N53: 0 | O53: 0 | P53: 0 | Q53: 0 | R53: 0 | T53: -0.01054368163 | U53: 1e-16 | V53: 1e-16 | W53: 1e-16 | X53: 1e-16 | Y53: 1e-16 | Z53: 1e-16 | AA53: 1e-16 | AB53: 1e-16 | AC53: 1e-16 | AD53: 1e-16 | AE53: 1e-16 | AG53: -0.9999444138 | AH53: 0 | AI53: 0 | AJ53: 0 | AK53: 0 | AL53: 0 | AM53: 0 | AN53: 0 | AO53: 0 | AP53: 0 | AQ53: 0 | AR53: 0 | AT53: -0.01054368163 | AU53: -0.9999444138 | AW53: 1 | BA53: 23.77004455 | BB53: 23.77004455 | BC53: 42.06975708 | BE53: 10.98503041 | BF53: 0 | BG53: 0 | BH53: 0 | BI53: 0 | BJ53: 0 | BK53: 0 | BL53: 0 | BM53: 0 | BN53: 0 | BO53: 0 | BP53: 0 | BR53: -0.01054368163 | BS53: 1e-16 | BT53: 1e-16 | BU53: 1e-16 | BV53: 1e-16 | BW53: 1e-16 | BX53: 1e-16 | BY53: 1e-16 | BZ53: 1e-16 | CA53: 1e-16 | CB53: 1e-16 | CC53: 1e-16 | CE53: -0.9999444138 | CF53: 0 | CG53: 0 | CH53: 0 | CI53: 0 | CJ53: 0 | CK53: 0 | CL53: 0 | CM53: 0 | CN53: 0 | CO53: 0 | CP53: 0 | CR53: -0.01054368163 | CS53: -0.9999444138 | CU53: 1 | CY53: 23.77004455 | CZ53: 23.77004455 | DA53: 42.06975708 | DC53: 10.98503041 | DD53: 0 | DE53: 0 | DF53: 0 | DG53: 0 | DH53: 0 | DI53: 0 | DJ53: 0 | DK53: 0 | DL53: 0 | DM53: 0 | DN53: 0 | DP53: -0.01054368163 | DQ53: 1e-16 | DR53: 1e-16 | DS53: 1e-16 | DT53: 1e-16 | DU53: 1e-16 | DV53: 1e-16 | DW53: 1e-16 | DX53: 1e-16 | DY53: 1e-16 | DZ53: 1e-16 | EA53: 1e-16 | EC53: -0.9999444138 | ED53: 0 | EE53: 0 | EF53: 0 | EG53: 0 | EH53: 0 | EI53: 0 | EJ53: 0 | EK53: 0 | EL53: 0 | EM53: 0 | EN53: 0 | EP53: -0.01054368163 | EQ53: -0.9999444138 | ES53: 1 | EW53: 23.77004455 | EX53: 23.77004455 | EY53: 42.06975708 | FA53: 10.98503041 | FB53: 0 | FC53: 0 | FD53: 0 | FE53: 0 | FF53: 0 | FG53: 0 | FH53: 0 | FI53: 0 | FJ53: 0 | FK53: 0 | FL53: 0 | FN53: -0.01054368163 | FO53: 1e-16 | FP53: 1e-16 | FQ53: 1e-16 | FR53: 1e-16 | FS53: 1e-16 | FT53: 1e-16 | FU53: 1e-16 | FV53: 1e-16 | FW53: 1e-16 | FX53: 1e-16 | FY53: 1e-16 | GA53: -0.9999444138 | GB53: 0 | GC53: 0 | GD53: 0 | GE53: 0 | GF53: 0 | GG53: 0 | GH53: 0 | GI53: 0 | GJ53: 0 | GK53: 0 | GL53: 0 | GN53: -0.01054368163 | GO53: -0.9999444138 | GQ53: 1 | GU53: 23.77004455 | GV53: 23.77004455 | GW53: 42.06975708 | GY53: 10.98503041 | GZ53: 0 | HA53: 0 | HB53: 0 | HC53: 0 | HD53: 0 | HE53: 0 | HF53: 0 | HG53: 0 | HH53: 0 | HI53: 0 | HJ53: 0 | HL53: -0.01054368163 | HM53: 1e-16 | HN53: 1e-16 | HO53: 1e-16 | HP53: 1e-16 | HQ53: 1e-16 | HR53: 1e-16 | HS53: 1e-16 | HT53: 1e-16 | HU53: 1e-16 | HV53: 1e-16 | HW53: 1e-16 | HY53: -0.9999444138 | HZ53: 0 | IA53: 0 | IB53: 0 | IC53: 0 | ID53: 0 | IE53: 0 | IF53: 0 | IG53: 0 | IH53: 0 | II53: 0 | IJ53: 0 | IL53: -0.01054368163 | IM53: -0.9999444138 | IO53: 1 | IS53: 23.77004455 | IT53: 23.77004455 | IU53: 42.06975708 | IW53: 10.98503041 | IX53: 0 | IY53: 0 | IZ53: 0 | JA53: 0 | JB53: 0 | JC53: 0 | JD53: 0 | JE53: 0 | JF53: 0 | JG53: 0 | JH53: 0 | JJ53: -0.01054368163 | JK53: 1e-16 | JL53: 1e-16 | JM53: 1e-16 | JN53: 1e-16 | JO53: 1e-16 | JP53: 1e-16 | JQ53: 1e-16 | JR53: 1e-16 | JS53: 1e-16 | JT53: 1e-16 | JU53: 1e-16 | JW53: -0.9999444138 | JX53: 0 | JY53: 0 | JZ53: 0 | KA53: 0 | KB53: 0 | KC53: 0 | KD53: 0 | KE53: 0 | KF53: 0 | KG53: 0 | KH53: 0 | KJ53: -0.01054368163 | KK53: -0.9999444138 | KM53: 1 | KQ53: 23.77004455 | KR53: 23.77004455 | KS53: 42.06975708 | KU53: 10.98503041 | KV53: 0 | KW53: 0 | KX53: 0 | KY53: 0 | KZ53: 0 | LA53: 0 | LB53: 0 | LC53: 0 | LD53: 0 | LE53: 0 | LF53: 0 | LH53: -0.01054368163 | LI53: 1e-16 | LJ53: 1e-16 | LK53: 1e-16 | LL53: 1e-16 | LM53: 1e-16 | LN53: 1e-16 | LO53: 1e-16 | LP53: 1e-16 | LQ53: 1e-16 | LR53: 1e-16 | LS53: 1e-16 | LU53: -0.9999444138 | LV53: 0 | LW53: 0 | LX53: 0 | LY53: 0 | LZ53: 0 | MA53: 0 | MB53: 0 | MC53: 0 | MD53: 0 | ME53: 0 | MF53: 0 | MH53: -0.01054368163 | MI53: -0.9999444138 | MK53: 1 | MM53: 1 | MN53: 1 | MO53: 1 | MR53: 1 | MS53: 1 | MT53: 1 | MU53: 1 | MV53: 1 | MW53: 1 | MX53: 1 | MY53: 1 | MZ53: 1 | NA53: -1.733089323e-11 | NB53: -1.733089323e-11 | NC53: -1.733089323e-11 | ND53: -1.733089323e-11 | NE53: -1.732896457e-11 | NF53: -1.733089323e-11 | NG53: -1.733089323e-11 | NH53: -1.733089323e-11 | NJ53: -0.01054368163 | NK53: -0.9999444138 | NN53: 10.98503041 | NO53: 10.98503041 | NP53: 10.98503041 | NQ53: 10.98503041 | NR53: 10.98503041 | NS53: 10.98503041 | NT53: 10.98503041 | NU53: 10.98503041 | NV53: 10.98503041 | NW53: 10.98503041 | NX53: 10.98503041 | NY53: 10.98503041 | OA53: 10.98503041 | OC53: 0 | OD53: 0 | OE53: 0 | OF53: 0 | OG53: 0 | OH53: 0 | OI53: 0 | OJ53: 0 | OK53: 0 | OL53: 0 | OM53: 0 | ON53: 0 | OP53: 0 | OQ53: 0 | OR53: 0 | OS53: 0 | OT53: 0 | OU53: 0 | OV53: 0 | OW53: 0 | OX53: 0 | OY53: 0 | OZ53: 0 | PA53: 0 | PC53: 0 | PD53: 0 | PE53: 0 | PF53: 0 | PG53: 0 | PH53: 0 | PI53: 0 | PJ53: 0 | PK53: 0 | PL53: 0 | PM53: 0 | PN53: 0 | PP53: 0 | QR53: 0 | RE53: 1 | RF53: 1 | RH53: 0 | RI53: 0 | RK53: 0 | RM53: 13 | RS53: 1 | RV53: -2 | RW53: 0 | RX53: 0
B54: 13 | C54: 24.11459629 | D54: 24.11459629 | E54: 41.46866022 | G54: 11.14426071 | H54: 0 | I54: 0 | J54: 0 | K54: 0 | L54: 0 | M54: 0 | N54: 0 | O54: 0 | P54: 0 | Q54: 0 | R54: 0 | T54: 0.1481391784 | U54: 1e-16 | V54: 1e-16 | W54: 1e-16 | X54: 1e-16 | Y54: 1e-16 | Z54: 1e-16 | AA54: 1e-16 | AB54: 1e-16 | AC54: 1e-16 | AD54: 1e-16 | AE54: 1e-16 | AG54: -0.9889665231 | AH54: 0 | AI54: 0 | AJ54: 0 | AK54: 0 | AL54: 0 | AM54: 0 | AN54: 0 | AO54: 0 | AP54: 0 | AQ54: 0 | AR54: 0 | AT54: 0.1481391784 | AU54: -0.9889665231 | AW54: 1 | BA54: 24.11459629 | BB54: 24.11459629 | BC54: 41.46866022 | BE54: 11.14426071 | BF54: 0 | BG54: 0 | BH54: 0 | BI54: 0 | BJ54: 0 | BK54: 0 | BL54: 0 | BM54: 0 | BN54: 0 | BO54: 0 | BP54: 0 | BR54: 0.1481391784 | BS54: 1e-16 | BT54: 1e-16 | BU54: 1e-16 | BV54: 1e-16 | BW54: 1e-16 | BX54: 1e-16 | BY54: 1e-16 | BZ54: 1e-16 | CA54: 1e-16 | CB54: 1e-16 | CC54: 1e-16 | CE54: -0.9889665231 | CF54: 0 | CG54: 0 | CH54: 0 | CI54: 0 | CJ54: 0 | CK54: 0 | CL54: 0 | CM54: 0 | CN54: 0 | CO54: 0 | CP54: 0 | CR54: 0.1481391784 | CS54: -0.9889665231 | CU54: 1 | CY54: 24.11459629 | CZ54: 24.11459629 | DA54: 41.46866022 | DC54: 11.14426071 | DD54: 0 | DE54: 0 | DF54: 0 | DG54: 0 | DH54: 0 | DI54: 0 | DJ54: 0 | DK54: 0 | DL54: 0 | DM54: 0 | DN54: 0 | DP54: 0.1481391784 | DQ54: 1e-16 | DR54: 1e-16 | DS54: 1e-16 | DT54: 1e-16 | DU54: 1e-16 | DV54: 1e-16 | DW54: 1e-16 | DX54: 1e-16 | DY54: 1e-16 | DZ54: 1e-16 | EA54: 1e-16 | EC54: -0.9889665231 | ED54: 0 | EE54: 0 | EF54: 0 | EG54: 0 | EH54: 0 | EI54: 0 | EJ54: 0 | EK54: 0 | EL54: 0 | EM54: 0 | EN54: 0 | EP54: 0.1481391784 | EQ54: -0.9889665231 | ES54: 1 | EW54: 24.11459629 | EX54: 24.11459629 | EY54: 41.46866022 | FA54: 11.14426071 | FB54: 0 | FC54: 0 | FD54: 0 | FE54: 0 | FF54: 0 | FG54: 0 | FH54: 0 | FI54: 0 | FJ54: 0 | FK54: 0 | FL54: 0 | FN54: 0.1481391784 | FO54: 1e-16 | FP54: 1e-16 | FQ54: 1e-16 | FR54: 1e-16 | FS54: 1e-16 | FT54: 1e-16 | FU54: 1e-16 | FV54: 1e-16 | FW54: 1e-16 | FX54: 1e-16 | FY54: 1e-16 | GA54: -0.9889665231 | GB54: 0 | GC54: 0 | GD54: 0 | GE54: 0 | GF54: 0 | GG54: 0 | GH54: 0 | GI54: 0 | GJ54: 0 | GK54: 0 | GL54: 0 | GN54: 0.1481391784 | GO54: -0.9889665231 | GQ54: 1 | GU54: 24.11459629 | GV54: 24.11459629 | GW54: 41.46866022 | GY54: 11.14426071 | GZ54: 0 | HA54: 0 | HB54: 0 | HC54: 0 | HD54: 0 | HE54: 0 | HF54: 0 | HG54: 0 | HH54: 0 | HI54: 0 | HJ54: 0 | HL54: 0.1481391784 | HM54: 1e-16 | HN54: 1e-16 | HO54: 1e-16 | HP54: 1e-16 | HQ54: 1e-16 | HR54: 1e-16 | HS54: 1e-16 | HT54: 1e-16 | HU54: 1e-16 | HV54: 1e-16 | HW54: 1e-16 | HY54: -0.9889665231 | HZ54: 0 | IA54: 0 | IB54: 0 | IC54: 0 | ID54: 0 | IE54: 0 | IF54: 0 | IG54: 0 | IH54: 0 | II54: 0 | IJ54: 0 | IL54: 0.1481391784 | IM54: -0.9889665231 | IO54: 1 | IS54: 24.11459629 | IT54: 24.11459629 | IU54: 41.46866022 | IW54: 11.14426071 | IX54: 0 | IY54: 0 | IZ54: 0 | JA54: 0 | JB54: 0 | JC54: 0 | JD54: 0 | JE54: 0 | JF54: 0 | JG54: 0 | JH54: 0 | JJ54: 0.1481391784 | JK54: 1e-16 | JL54: 1e-16 | JM54: 1e-16 | JN54: 1e-16 | JO54: 1e-16 | JP54: 1e-16 | JQ54: 1e-16 | JR54: 1e-16 | JS54: 1e-16 | JT54: 1e-16 | JU54: 1e-16 | JW54: -0.9889665231 | JX54: 0 | JY54: 0 | JZ54: 0 | KA54: 0 | KB54: 0 | KC54: 0 | KD54: 0 | KE54: 0 | KF54: 0 | KG54: 0 | KH54: 0 | KJ54: 0.1481391784 | KK54: -0.9889665231 | KM54: 1 | KQ54: 24.11459629 | KR54: 24.11459629 | KS54: 41.46866022 | KU54: 11.14426071 | KV54: 0 | KW54: 0 | KX54: 0 | KY54: 0 | KZ54: 0 | LA54: 0 | LB54: 0 | LC54: 0 | LD54: 0 | LE54: 0 | LF54: 0 | LH54: 0.1481391784 | LI54: 1e-16 | LJ54: 1e-16 | LK54: 1e-16 | LL54: 1e-16 | LM54: 1e-16 | LN54: 1e-16 | LO54: 1e-16 | LP54: 1e-16 | LQ54: 1e-16 | LR54: 1e-16 | LS54: 1e-16 | LU54: -0.9889665231 | LV54: 0 | LW54: 0 | LX54: 0 | LY54: 0 | LZ54: 0 | MA54: 0 | MB54: 0 | MC54: 0 | MD54: 0 | ME54: 0 | MF54: 0 | MH54: 0.1481391784 | MI54: -0.9889665231 | MK54: 1 | MM54: 1 | MN54: 1 | MO54: 1 | MR54: 1 | MS54: 1 | MT54: 1 | MU54: 1 | MV54: 1 | MW54: 1 | MX54: 1 | MY54: 1 | MZ54: 1 | NA54: -1.835693765e-11 | NB54: -1.8355009e-11 | NC54: -1.8355009e-11 | ND54: -1.8355009e-11 | NE54: -1.835308034e-11 | NF54: -1.8355009e-11 | NG54: -1.8355009e-11 | NH54: -1.8355009e-11 | NJ54: 0.1481391784 | NK54: -0.9889665231 | NN54: 11.14426071 | NO54: 11.14426071 | NP54: 11.14426071 | NQ54: 11.14426071 | NR54: 11.14426071 | NS54: 11.14426071 | NT54: 11.14426071 | NU54: 11.14426071 | NV54: 11.14426071 | NW54: 11.14426071 | NX54: 11.14426071 | NY54: 11.14426071 | OA54: 11.14426071 | OC54: 0 | OD54: 0 | OE54: 0 | OF54: 0 | OG54: 0 | OH54: 0 | OI54: 0 | OJ54: 0 | OK54: 0 | OL54: 0 | OM54: 0 | ON54: 0 | OP54: 0 | OQ54: 0 | OR54: 0 | OS54: 0 | OT54: 0 | OU54: 0 | OV54: 0 | OW54: 0 | OX54: 0 | OY54: 0 | OZ54: 0 | PA54: 0 | PC54: 0 | PD54: 0 | PE54: 0 | PF54: 0 | PG54: 0 | PH54: 0 | PI54: 0 | PJ54: 0 | PK54: 0 | PL54: 0 | PM54: 0 | PN54: 0 | PP54: 0 | QR54: 0 | RE54: 1 | RF54: 1 | RH54: 1.928654933e-15 | RI54: 1.928654933e-15 | RK54: -1.928654933e-15 | RM54: 14 | RS54: 1 | RV54: -2 | RW54: 0 | RX54: 0
B55: 14 | C55: 24.46414238 | D55: 24.46414238 | E55: 40.8761519 | G55: 11.30579909 | H55: 0 | I55: 0 | J55: 0 | K55: 0 | L55: 0 | M55: 0 | N55: 0 | O55: 0 | P55: 0 | Q55: 0 | R55: 0 | T55: 0.3052727155 | U55: 1e-16 | V55: 1e-16 | W55: 1e-16 | X55: 1e-16 | Y55: 1e-16 | Z55: 1e-16 | AA55: 1e-16 | AB55: 1e-16 | AC55: 1e-16 | AD55: 1e-16 | AE55: 1e-16 | AG55: -0.952264968 | AH55: 0 | AI55: 0 | AJ55: 0 | AK55: 0 | AL55: 0 | AM55: 0 | AN55: 0 | AO55: 0 | AP55: 0 | AQ55: 0 | AR55: 0 | AT55: 0.3052727155 | AU55: -0.952264968 | AW55: 1 | BA55: 24.46414238 | BB55: 24.46414238 | BC55: 40.8761519 | BE55: 11.30579909 | BF55: 0 | BG55: 0 | BH55: 0 | BI55: 0 | BJ55: 0 | BK55: 0 | BL55: 0 | BM55: 0 | BN55: 0 | BO55: 0 | BP55: 0 | BR55: 0.3052727155 | BS55: 1e-16 | BT55: 1e-16 | BU55: 1e-16 | BV55: 1e-16 | BW55: 1e-16 | BX55: 1e-16 | BY55: 1e-16 | BZ55: 1e-16 | CA55: 1e-16 | CB55: 1e-16 | CC55: 1e-16 | CE55: -0.952264968 | CF55: 0 | CG55: 0 | CH55: 0 | CI55: 0 | CJ55: 0 | CK55: 0 | CL55: 0 | CM55: 0 | CN55: 0 | CO55: 0 | CP55: 0 | CR55: 0.3052727155 | CS55: -0.952264968 | CU55: 1 | CY55: 24.46414238 | CZ55: 24.46414238 | DA55: 40.8761519 | DC55: 11.30579909 | DD55: 0 | DE55: 0 | DF55: 0 | DG55: 0 | DH55: 0 | DI55: 0 | DJ55: 0 | DK55: 0 | DL55: 0 | DM55: 0 | DN55: 0 | DP55: 0.3052727155 | DQ55: 1e-16 | DR55: 1e-16 | DS55: 1e-16 | DT55: 1e-16 | DU55: 1e-16 | DV55: 1e-16 | DW55: 1e-16 | DX55: 1e-16 | DY55: 1e-16 | DZ55: 1e-16 | EA55: 1e-16 | EC55: -0.952264968 | ED55: 0 | EE55: 0 | EF55: 0 | EG55: 0 | EH55: 0 | EI55: 0 | EJ55: 0 | EK55: 0 | EL55: 0 | EM55: 0 | EN55: 0 | EP55: 0.3052727155 | EQ55: -0.952264968 | ES55: 1 | EW55: 24.46414238 | EX55: 24.46414238 | EY55: 40.8761519 | FA55: 11.30579909 | FB55: 0 | FC55: 0 | FD55: 0 | FE55: 0 | FF55: 0 | FG55: 0 | FH55: 0 | FI55: 0 | FJ55: 0 | FK55: 0 | FL55: 0 | FN55: 0.3052727155 | FO55: 1e-16 | FP55: 1e-16 | FQ55: 1e-16 | FR55: 1e-16 | FS55: 1e-16 | FT55: 1e-16 | FU55: 1e-16 | FV55: 1e-16 | FW55: 1e-16 | FX55: 1e-16 | FY55: 1e-16 | GA55: -0.952264968 | GB55: 0 | GC55: 0 | GD55: 0 | GE55: 0 | GF55: 0 | GG55: 0 | GH55: 0 | GI55: 0 | GJ55: 0 | GK55: 0 | GL55: 0 | GN55: 0.3052727155 | GO55: -0.952264968 | GQ55: 1 | GU55: 24.46414238 | GV55: 24.46414238 | GW55: 40.8761519 | GY55: 11.30579909 | GZ55: 0 | HA55: 0 | HB55: 0 | HC55: 0 | HD55: 0 | HE55: 0 | HF55: 0 | HG55: 0 | HH55: 0 | HI55: 0 | HJ55: 0 | HL55: 0.3052727155 | HM55: 1e-16 | HN55: 1e-16 | HO55: 1e-16 | HP55: 1e-16 | HQ55: 1e-16 | HR55: 1e-16 | HS55: 1e-16 | HT55: 1e-16 | HU55: 1e-16 | HV55: 1e-16 | HW55: 1e-16 | HY55: -0.952264968 | HZ55: 0 | IA55: 0 | IB55: 0 | IC55: 0 | ID55: 0 | IE55: 0 | IF55: 0 | IG55: 0 | IH55: 0 | II55: 0 | IJ55: 0 | IL55: 0.3052727155 | IM55: -0.952264968 | IO55: 1 | IS55: 24.46414238 | IT55: 24.46414238 | IU55: 40.8761519 | IW55: 11.30579909 | IX55: 0 | IY55: 0 | IZ55: 0 | JA55: 0 | JB55: 0 | JC55: 0 | JD55: 0 | JE55: 0 | JF55: 0 | JG55: 0 | JH55: 0 | JJ55: 0.3052727155 | JK55: 1e-16 | JL55: 1e-16 | JM55: 1e-16 | JN55: 1e-16 | JO55: 1e-16 | JP55: 1e-16 | JQ55: 1e-16 | JR55: 1e-16 | JS55: 1e-16 | JT55: 1e-16 | JU55: 1e-16 | JW55: -0.952264968 | JX55: 0 | JY55: 0 | JZ55: 0 | KA55: 0 | KB55: 0 | KC55: 0 | KD55: 0 | KE55: 0 | KF55: 0 | KG55: 0 | KH55: 0 | KJ55: 0.3052727155 | KK55: -0.952264968 | KM55: 1 | KQ55: 24.46414238 | KR55: 24.46414238 | KS55: 40.8761519 | KU55: 11.30579909 | KV55: 0 | KW55: 0 | KX55: 0 | KY55: 0 | KZ55: 0 | LA55: 0 | LB55: 0 | LC55: 0 | LD55: 0 | LE55: 0 | LF55: 0 | LH55: 0.3052727155 | LI55: 1e-16 | LJ55: 1e-16 | LK55: 1e-16 | LL55: 1e-16 | LM55: 1e-16 | LN55: 1e-16 | LO55: 1e-16 | LP55: 1e-16 | LQ55: 1e-16 | LR55: 1e-16 | LS55: 1e-16 | LU55: -0.952264968 | LV55: 0 | LW55: 0 | LX55: 0 | LY55: 0 | LZ55: 0 | MA55: 0 | MB55: 0 | MC55: 0 | MD55: 0 | ME55: 0 | MF55: 0 | MH55: 0.3052727155 | MI55: -0.952264968 | MK55: 1 | MM55: 1 | MN55: 1 | MO55: 1 | MR55: 1 | MS55: 1 | MT55: 1 | MU55: 1 | MV55: 1 | MW55: 1 | MX55: 1 | MY55: 1 | MZ55: 1 | NA55: -1.944469904e-11 | NB55: -1.944084173e-11 | NC55: -1.944084173e-11 | ND55: -1.944084173e-11 | NE55: -1.944084173e-11 | NF55: -1.944084173e-11 | NG55: -1.944084173e-11 | NH55: -1.944084173e-11 | NJ55: 0.3052727155 | NK55: -0.952264968 | NN55: 11.30579909 | NO55: 11.30579909 | NP55: 11.30579909 | NQ55: 11.30579909 | NR55: 11.30579909 | NS55: 11.30579909 | NT55: 11.30579909 | NU55: 11.30579909 | NV55: 11.30579909 | NW55: 11.30579909 | NX55: 11.30579909 | NY55: 11.30579909 | OA55: 11.30579909 | OC55: 0 | OD55: 0 | OE55: 0 | OF55: 0 | OG55: 0 | OH55: 0 | OI55: 0 | OJ55: 0 | OK55: 0 | OL55: 0 | OM55: 0 | ON55: 0 | OP55: 0 | OQ55: 0 | OR55: 0 | OS55: 0 | OT55: 0 | OU55: 0 | OV55: 0 | OW55: 0 | OX55: 0 | OY55: 0 | OZ55: 0 | PA55: 0 | PC55: 0 | PD55: 0 | PE55: 0 | PF55: 0 | PG55: 0 | PH55: 0 | PI55: 0 | PJ55: 0 | PK55: 0 | PL55: 0 | PM55: 0 | PN55: 0 | PP55: 0 | QR55: 0 | RE55: 1 | RF55: 1 | RH55: 3.857309866e-15 | RI55: 3.857309866e-15 | RK55: -3.857309866e-15 | RM55: 15 | RS55: 1 | RV55: -2 | RW55: 0 | RX55: 0
B56: 15 | C56: 24.81875522 | D56: 24.81875522 | E56: 40.29210939 | G56: 11.469679 | H56: 0 | I56: 0 | J56: 0 | K56: 0 | L56: 0 | M56: 0 | N56: 0 | O56: 0 | P56: 0 | Q56: 0 | R56: 0 | T56: 0.4565420913 | U56: 1e-16 | V56: 1e-16 | W56: 1e-16 | X56: 1e-16 | Y56: 1e-16 | Z56: 1e-16 | AA56: 1e-16 | AB56: 1e-16 | AC56: 1e-16 | AD56: 1e-16 | AE56: 1e-16 | AG56: -0.8897018146 | AH56: 0 | AI56: 0 | AJ56: 0 | AK56: 0 | AL56: 0 | AM56: 0 | AN56: 0 | AO56: 0 | AP56: 0 | AQ56: 0 | AR56: 0 | AT56: 0.4565420913 | AU56: -0.8897018146 | AW56: 1 | BA56: 24.81875522 | BB56: 24.81875522 | BC56: 40.29210939 | BE56: 11.469679 | BF56: 0 | BG56: 0 | BH56: 0 | BI56: 0 | BJ56: 0 | BK56: 0 | BL56: 0 | BM56: 0 | BN56: 0 | BO56: 0 | BP56: 0 | BR56: 0.4565420913 | BS56: 1e-16 | BT56: 1e-16 | BU56: 1e-16 | BV56: 1e-16 | BW56: 1e-16 | BX56: 1e-16 | BY56: 1e-16 | BZ56: 1e-16 | CA56: 1e-16 | CB56: 1e-16 | CC56: 1e-16 | CE56: -0.8897018146 | CF56: 0 | CG56: 0 | CH56: 0 | CI56: 0 | CJ56: 0 | CK56: 0 | CL56: 0 | CM56: 0 | CN56: 0 | CO56: 0 | CP56: 0 | CR56: 0.4565420913 | CS56: -0.8897018146 | CU56: 1 | CY56: 24.81875522 | CZ56: 24.81875522 | DA56: 40.29210939 | DC56: 11.469679 | DD56: 0 | DE56: 0 | DF56: 0 | DG56: 0 | DH56: 0 | DI56: 0 | DJ56: 0 | DK56: 0 | DL56: 0 | DM56: 0 | DN56: 0 | DP56: 0.4565420913 | DQ56: 1e-16 | DR56: 1e-16 | DS56: 1e-16 | DT56: 1e-16 | DU56: 1e-16 | DV56: 1e-16 | DW56: 1e-16 | DX56: 1e-16 | DY56: 1e-16 | DZ56: 1e-16 | EA56: 1e-16 | EC56: -0.8897018146 | ED56: 0 | EE56: 0 | EF56: 0 | EG56: 0 | EH56: 0 | EI56: 0 | EJ56: 0 | EK56: 0 | EL56: 0 | EM56: 0 | EN56: 0 | EP56: 0.4565420913 | EQ56: -0.8897018146 | ES56: 1 | EW56: 24.81875522 | EX56: 24.81875522 | EY56: 40.29210939 | FA56: 11.469679 | FB56: 0 | FC56: 0 | FD56: 0 | FE56: 0 | FF56: 0 | FG56: 0 | FH56: 0 | FI56: 0 | FJ56: 0 | FK56: 0 | FL56: 0 | FN56: 0.4565420913 | FO56: 1e-16 | FP56: 1e-16 | FQ56: 1e-16 | FR56: 1e-16 | FS56: 1e-16 | FT56: 1e-16 | FU56: 1e-16 | FV56: 1e-16 | FW56: 1e-16 | FX56: 1e-16 | FY56: 1e-16 | GA56: -0.8897018146 | GB56: 0 | GC56: 0 | GD56: 0 | GE56: 0 | GF56: 0 | GG56: 0 | GH56: 0 | GI56: 0 | GJ56: 0 | GK56: 0 | GL56: 0 | GN56: 0.4565420913 | GO56: -0.8897018146 | GQ56: 1 | GU56: 24.81875522 | GV56: 24.81875522 | GW56: 40.29210939 | GY56: 11.469679 | GZ56: 0 | HA56: 0 | HB56: 0 | HC56: 0 | HD56: 0 | HE56: 0 | HF56: 0 | HG56: 0 | HH56: 0 | HI56: 0 | HJ56: 0 | HL56: 0.4565420913 | HM56: 1e-16 | HN56: 1e-16 | HO56: 1e-16 | HP56: 1e-16 | HQ56: 1e-16 | HR56: 1e-16 | HS56: 1e-16 | HT56: 1e-16 | HU56: 1e-16 | HV56: 1e-16 | HW56: 1e-16 | HY56: -0.8897018146 | HZ56: 0 | IA56: 0 | IB56: 0 | IC56: 0 | ID56: 0 | IE56: 0 | IF56: 0 | IG56: 0 | IH56: 0 | II56: 0 | IJ56: 0 | IL56: 0.4565420913 | IM56: -0.8897018146 | IO56: 1 | IS56: 24.81875522 | IT56: 24.81875522 | IU56: 40.29210939 | IW56: 11.469679 | IX56: 0 | IY56: 0 | IZ56: 0 | JA56: 0 | JB56: 0 | JC56: 0 | JD56: 0 | JE56: 0 | JF56: 0 | JG56: 0 | JH56: 0 | JJ56: 0.4565420913 | JK56: 1e-16 | JL56: 1e-16 | JM56: 1e-16 | JN56: 1e-16 | JO56: 1e-16 | JP56: 1e-16 | JQ56: 1e-16 | JR56: 1e-16 | JS56: 1e-16 | JT56: 1e-16 | JU56: 1e-16 | JW56: -0.8897018146 | JX56: 0 | JY56: 0 | JZ56: 0 | KA56: 0 | KB56: 0 | KC56: 0 | KD56: 0 | KE56: 0 | KF56: 0 | KG56: 0 | KH56: 0 | KJ56: 0.4565420913 | KK56: -0.8897018146 | KM56: 1 | KQ56: 24.81875522 | KR56: 24.81875522 | KS56: 40.29210939 | KU56: 11.469679 | KV56: 0 | KW56: 0 | KX56: 0 | KY56: 0 | KZ56: 0 | LA56: 0 | LB56: 0 | LC56: 0 | LD56: 0 | LE56: 0 | LF56: 0 | LH56: 0.4565420913 | LI56: 1e-16 | LJ56: 1e-16 | LK56: 1e-16 | LL56: 1e-16 | LM56: 1e-16 | LN56: 1e-16 | LO56: 1e-16 | LP56: 1e-16 | LQ56: 1e-16 | LR56: 1e-16 | LS56: 1e-16 | LU56: -0.8897018146 | LV56: 0 | LW56: 0 | LX56: 0 | LY56: 0 | LZ56: 0 | MA56: 0 | MB56: 0 | MC56: 0 | MD56: 0 | ME56: 0 | MF56: 0 | MH56: 0.4565420913 | MI56: -0.8897018146 | MK56: 1 | MM56: 1 | MN56: 1 | MO56: 1 | MR56: 1 | MS56: 1 | MT56: 1 | MU56: 1 | MV56: 1 | MW56: 1 | MX56: 1 | MY56: 1 | MZ56: 1 | NA56: -2.059803469e-11 | NB56: -2.059417738e-11 | NC56: -2.059417738e-11 | ND56: -2.059417738e-11 | NE56: -2.059032007e-11 | NF56: -2.059417738e-11 | NG56: -2.059417738e-11 | NH56: -2.059417738e-11 | NJ56: 0.4565420913 | NK56: -0.8897018146 | NN56: 11.469679 | NO56: 11.469679 | NP56: 11.469679 | NQ56: 11.469679 | NR56: 11.469679 | NS56: 11.469679 | NT56: 11.469679 | NU56: 11.469679 | NV56: 11.469679 | NW56: 11.469679 | NX56: 11.469679 | NY56: 11.469679 | OA56: 11.469679 | OC56: 0 | OD56: 0 | OE56: 0 | OF56: 0 | OG56: 0 | OH56: 0 | OI56: 0 | OJ56: 0 | OK56: 0 | OL56: 0 | OM56: 0 | ON56: 0 | OP56: 0 | OQ56: 0 | OR56: 0 | OS56: 0 | OT56: 0 | OU56: 0 | OV56: 0 | OW56: 0 | OX56: 0 | OY56: 0 | OZ56: 0 | PA56: 0 | PC56: 0 | PD56: 0 | PE56: 0 | PF56: 0 | PG56: 0 | PH56: 0 | PI56: 0 | PJ56: 0 | PK56: 0 | PL56: 0 | PM56: 0 | PN56: 0 | PP56: 0 | QR56: 0 | RE56: 1 | RF56: 1 | RH56: 3.857309866e-15 | RI56: 3.857309866e-15 | RK56: -3.857309866e-15 | RM56: 16 | RS56: 1 | RV56: -2 | RW56: 7.993605777e-14 | RX56: -7.993605777e-14
B57: 16 | C57: 25.17850824 | D57: 25 | E57: 39.71641174 | G57: 11.63593438 | H57: 0 | I57: 0 | J57: 0 | K57: 0 | L57: 0 | M57: 0 | N57: 0 | O57: 0 | P57: 0 | Q57: 0 | R57: 0 | T57: 0.5974842341 | U57: 1e-16 | V57: 1e-16 | W57: 1e-16 | X57: 1e-16 | Y57: 1e-16 | Z57: 1e-16 | AA57: 1e-16 | AB57: 1e-16 | AC57: 1e-16 | AD57: 1e-16 | AE57: 1e-16 | AG57: -0.8018806582 | AH57: 0 | AI57: 0 | AJ57: 0 | AK57: 0 | AL57: 0 | AM57: 0 | AN57: 0 | AO57: 0 | AP57: 0 | AQ57: 0 | AR57: 0 | AT57: 0.5974842341 | AU57: -0.8018806582 | AW57: 1 | BA57: 25.17850824 | BB57: 25 | BC57: 39.71641174 | BE57: 11.63593438 | BF57: 0 | BG57: 0 | BH57: 0 | BI57: 0 | BJ57: 0 | BK57: 0 | BL57: 0 | BM57: 0 | BN57: 0 | BO57: 0 | BP57: 0 | BR57: 0.5974842341 | BS57: 1e-16 | BT57: 1e-16 | BU57: 1e-16 | BV57: 1e-16 | BW57: 1e-16 | BX57: 1e-16 | BY57: 1e-16 | BZ57: 1e-16 | CA57: 1e-16 | CB57: 1e-16 | CC57: 1e-16 | CE57: -0.8018806582 | CF57: 0 | CG57: 0 | CH57: 0 | CI57: 0 | CJ57: 0 | CK57: 0 | CL57: 0 | CM57: 0 | CN57: 0 | CO57: 0 | CP57: 0 | CR57: 0.5974842341 | CS57: -0.8018806582 | CU57: 1 | CY57: 25.17850824 | CZ57: 25 | DA57: 39.71641174 | DC57: 11.63593438 | DD57: 0 | DE57: 0 | DF57: 0 | DG57: 0 | DH57: 0 | DI57: 0 | DJ57: 0 | DK57: 0 | DL57: 0 | DM57: 0 | DN57: 0 | DP57: 0.5974842341 | DQ57: 1e-16 | DR57: 1e-16 | DS57: 1e-16 | DT57: 1e-16 | DU57: 1e-16 | DV57: 1e-16 | DW57: 1e-16 | DX57: 1e-16 | DY57: 1e-16 | DZ57: 1e-16 | EA57: 1e-16 | EC57: -0.8018806582 | ED57: 0 | EE57: 0 | EF57: 0 | EG57: 0 | EH57: 0 | EI57: 0 | EJ57: 0 | EK57: 0 | EL57: 0 | EM57: 0 | EN57: 0 | EP57: 0.5974842341 | EQ57: -0.8018806582 | ES57: 1 | EW57: 25.17850824 | EX57: 25 | EY57: 39.71641174 | FA57: 11.63593438 | FB57: 0 | FC57: 0 | FD57: 0 | FE57: 0 | FF57: 0 | FG57: 0 | FH57: 0 | FI57: 0 | FJ57: 0 | FK57: 0 | FL57: 0 | FN57: 0.5974842341 | FO57: 1e-16 | FP57: 1e-16 | FQ57: 1e-16 | FR57: 1e-16 | FS57: 1e-16 | FT57: 1e-16 | FU57: 1e-16 | FV57: 1e-16 | FW57: 1e-16 | FX57: 1e-16 | FY57: 1e-16 | GA57: -0.8018806582 | GB57: 0 | GC57: 0 | GD57: 0 | GE57: 0 | GF57: 0 | GG57: 0 | GH57: 0 | GI57: 0 | GJ57: 0 | GK57: 0 | GL57: 0 | GN57: 0.5974842341 | GO57: -0.8018806582 | GQ57: 1 | GU57: 25.17850824 | GV57: 25 | GW57: 39.71641174 | GY57: 11.63593438 | GZ57: 0 | HA57: 0 | HB57: 0 | HC57: 0 | HD57: 0 | HE57: 0 | HF57: 0 | HG57: 0 | HH57: 0 | HI57: 0 | HJ57: 0 | HL57: 0.5974842341 | HM57: 1e-16 | HN57: 1e-16 | HO57: 1e-16 | HP57: 1e-16 | HQ57: 1e-16 | HR57: 1e-16 | HS57: 1e-16 | HT57: 1e-16 | HU57: 1e-16 | HV57: 1e-16 | HW57: 1e-16 | HY57: -0.8018806582 | HZ57: 0 | IA57: 0 | IB57: 0 | IC57: 0 | ID57: 0 | IE57: 0 | IF57: 0 | IG57: 0 | IH57: 0 | II57: 0 | IJ57: 0 | IL57: 0.5974842341 | IM57: -0.8018806582 | IO57: 1 | IS57: 25.17850824 | IT57: 25 | IU57: 39.71641174 | IW57: 11.63593438 | IX57: 0 | IY57: 0 | IZ57: 0 | JA57: 0 | JB57: 0 | JC57: 0 | JD57: 0 | JE57: 0 | JF57: 0 | JG57: 0 | JH57: 0 | JJ57: 0.5974842341 | JK57: 1e-16 | JL57: 1e-16 | JM57: 1e-16 | JN57: 1e-16 | JO57: 1e-16 | JP57: 1e-16 | JQ57: 1e-16 | JR57: 1e-16 | JS57: 1e-16 | JT57: 1e-16 | JU57: 1e-16 | JW57: -0.8018806582 | JX57: 0 | JY57: 0 | JZ57: 0 | KA57: 0 | KB57: 0 | KC57: 0 | KD57: 0 | KE57: 0 | KF57: 0 | KG57: 0 | KH57: 0 | KJ57: 0.5974842341 | KK57: -0.8018806582 | KM57: 1 | KQ57: 25.17850824 | KR57: 25 | KS57: 39.71641174 | KU57: 11.63593438 | KV57: 0 | KW57: 0 | KX57: 0 | KY57: 0 | KZ57: 0 | LA57: 0 | LB57: 0 | LC57: 0 | LD57: 0 | LE57: 0 | LF57: 0 | LH57: 0.5974842341 | LI57: 1e-16 | LJ57: 1e-16 | LK57: 1e-16 | LL57: 1e-16 | LM57: 1e-16 | LN57: 1e-16 | LO57: 1e-16 | LP57: 1e-16 | LQ57: 1e-16 | LR57: 1e-16 | LS57: 1e-16 | LU57: -0.8018806582 | LV57: 0 | LW57: 0 | LX57: 0 | LY57: 0 | LZ57: 0 | MA57: 0 | MB57: 0 | MC57: 0 | MD57: 0 | ME57: 0 | MF57: 0 | MH57: 0.5974842341 | MI57: -0.8018806582 | MK57: 1 | MM57: 1 | MN57: 1 | MO57: 1 | MR57: 1 | MS57: 1 | MT57: 1 | MU57: 1 | MV57: 1 | MW57: 1 | MX57: 1 | MY57: 1 | MZ57: 1 | NA57: -2.181887326e-11 | NB57: -2.181308729e-11 | NC57: -2.181308729e-11 | ND57: -2.181308729e-11 | NE57: -2.181115864e-11 | NF57: -2.181308729e-11 | NG57: -2.181308729e-11 | NH57: -2.181308729e-11 | NJ57: 0.5974842341 | NK57: -0.8018806582 | NN57: 11.63593438 | NO57: 11.63593438 | NP57: 11.63593438 | NQ57: 11.63593438 | NR57: 11.63593438 | NS57: 11.63593438 | NT57: 11.63593438 | NU57: 11.63593438 | NV57: 11.63593438 | NW57: 11.63593438 | NX57: 11.63593438 | NY57: 11.63593438 | OA57: 11.63593438 | OC57: 0 | OD57: 0 | OE57: 0 | OF57: 0 | OG57: 0 | OH57: 0 | OI57: 0 | OJ57: 0 | OK57: 0 | OL57: 0 | OM57: 0 | ON57: 0 | OP57: 0 | OQ57: 0 | OR57: 0 | OS57: 0 | OT57: 0 | OU57: 0 | OV57: 0 | OW57: 0 | OX57: 0 | OY57: 0 | OZ57: 0 | PA57: 0 | PC57: 0 | PD57: 0 | PE57: 0 | PF57: 0 | PG57: 0 | PH57: 0 | PI57: 0 | PJ57: 0 | PK57: 0 | PL57: 0 | PM57: 0 | PN57: 0 | PP57: 0 | QR57: 0 | RE57: 1 | RF57: 1 | RH57: 5.785964799e-15 | RI57: 5.785964799e-15 | RK57: -5.785964799e-15 | RM57: 17 | RS57: 1 | RV57: -2 | RW57: 0 | RX57: 0
B58: 17 | C58: 25.54347595 | D58: 25.54347595 | E58: 39.14893971 | G58: 11.80459967 | H58: 0 | I58: 0 | J58: 0 | K58: 0 | L58: 0 | M58: 0 | N58: 0 | O58: 0 | P58: 0 | Q58: 0 | R58: 0 | T58: 0.7236148356 | U58: 1e-16 | V58: 1e-16 | W58: 1e-16 | X58: 1e-16 | Y58: 1e-16 | Z58: 1e-16 | AA58: 1e-16 | AB58: 1e-16 | AC58: 1e-16 | AD58: 1e-16 | AE58: 1e-16 | AG58: -0.6902040058 | AH58: 0 | AI58: 0 | AJ58: 0 | AK58: 0 | AL58: 0 | AM58: 0 | AN58: 0 | AO58: 0 | AP58: 0 | AQ58: 0 | AR58: 0 | AT58: 0.7236148356 | AU58: -0.6902040058 | AW58: 1 | BA58: 25.54347595 | BB58: 25.54347595 | BC58: 39.14893971 | BE58: 11.80459967 | BF58: 0 | BG58: 0 | BH58: 0 | BI58: 0 | BJ58: 0 | BK58: 0 | BL58: 0 | BM58: 0 | BN58: 0 | BO58: 0 | BP58: 0 | BR58: 0.7236148356 | BS58: 1e-16 | BT58: 1e-16 | BU58: 1e-16 | BV58: 1e-16 | BW58: 1e-16 | BX58: 1e-16 | BY58: 1e-16 | BZ58: 1e-16 | CA58: 1e-16 | CB58: 1e-16 | CC58: 1e-16 | CE58: -0.6902040058 | CF58: 0 | CG58: 0 | CH58: 0 | CI58: 0 | CJ58: 0 | CK58: 0 | CL58: 0 | CM58: 0 | CN58: 0 | CO58: 0 | CP58: 0 | CR58: 0.7236148356 | CS58: -0.6902040058 | CU58: 1 | CY58: 25.54347595 | CZ58: 25.54347595 | DA58: 39.14893971 | DC58: 11.80459967 | DD58: 0 | DE58: 0 | DF58: 0 | DG58: 0 | DH58: 0 | DI58: 0 | DJ58: 0 | DK58: 0 | DL58: 0 | DM58: 0 | DN58: 0 | DP58: 0.7236148356 | DQ58: 1e-16 | DR58: 1e-16 | DS58: 1e-16 | DT58: 1e-16 | DU58: 1e-16 | DV58: 1e-16 | DW58: 1e-16 | DX58: 1e-16 | DY58: 1e-16 | DZ58: 1e-16 | EA58: 1e-16 | EC58: -0.6902040058 | ED58: 0 | EE58: 0 | EF58: 0 | EG58: 0 | EH58: 0 | EI58: 0 | EJ58: 0 | EK58: 0 | EL58: 0 | EM58: 0 | EN58: 0 | EP58: 0.7236148356 | EQ58: -0.6902040058 | ES58: 1 | EW58: 25.54347595 | EX58: 25.54347595 | EY58: 39.14893971 | FA58: 11.80459967 | FB58: 0 | FC58: 0 | FD58: 0 | FE58: 0 | FF58: 0 | FG58: 0 | FH58: 0 | FI58: 0 | FJ58: 0 | FK58: 0 | FL58: 0 | FN58: 0.7236148356 | FO58: 1e-16 | FP58: 1e-16 | FQ58: 1e-16 | FR58: 1e-16 | FS58: 1e-16 | FT58: 1e-16 | FU58: 1e-16 | FV58: 1e-16 | FW58: 1e-16 | FX58: 1e-16 | FY58: 1e-16 | GA58: -0.6902040058 | GB58: 0 | GC58: 0 | GD58: 0 | GE58: 0 | GF58: 0 | GG58: 0 | GH58: 0 | GI58: 0 | GJ58: 0 | GK58: 0 | GL58: 0 | GN58: 0.7236148356 | GO58: -0.6902040058 | GQ58: 1 | GU58: 25.54347595 | GV58: 25.54347595 | GW58: 39.14893971 | GY58: 11.80459967 | GZ58: 0 | HA58: 0 | HB58: 0 | HC58: 0 | HD58: 0 | HE58: 0 | HF58: 0 | HG58: 0 | HH58: 0 | HI58: 0 | HJ58: 0 | HL58: 0.7236148356 | HM58: 1e-16 | HN58: 1e-16 | HO58: 1e-16 | HP58: 1e-16 | HQ58: 1e-16 | HR58: 1e-16 | HS58: 1e-16 | HT58: 1e-16 | HU58: 1e-16 | HV58: 1e-16 | HW58: 1e-16 | HY58: -0.6902040058 | HZ58: 0 | IA58: 0 | IB58: 0 | IC58: 0 | ID58: 0 | IE58: 0 | IF58: 0 | IG58: 0 | IH58: 0 | II58: 0 | IJ58: 0 | IL58: 0.7236148356 | IM58: -0.6902040058 | IO58: 1 | IS58: 25.54347595 | IT58: 25.54347595 | IU58: 39.14893971 | IW58: 11.80459967 | IX58: 0 | IY58: 0 | IZ58: 0 | JA58: 0 | JB58: 0 | JC58: 0 | JD58: 0 | JE58: 0 | JF58: 0 | JG58: 0 | JH58: 0 | JJ58: 0.7236148356 | JK58: 1e-16 | JL58: 1e-16 | JM58: 1e-16 | JN58: 1e-16 | JO58: 1e-16 | JP58: 1e-16 | JQ58: 1e-16 | JR58: 1e-16 | JS58: 1e-16 | JT58: 1e-16 | JU58: 1e-16 | JW58: -0.6902040058 | JX58: 0 | JY58: 0 | JZ58: 0 | KA58: 0 | KB58: 0 | KC58: 0 | KD58: 0 | KE58: 0 | KF58: 0 | KG58: 0 | KH58: 0 | KJ58: 0.7236148356 | KK58: -0.6902040058 | KM58: 1 | KQ58: 25.54347595 | KR58: 25.54347595 | KS58: 39.14893971 | KU58: 11.80459967 | KV58: 0 | KW58: 0 | KX58: 0 | KY58: 0 | KZ58: 0 | LA58: 0 | LB58: 0 | LC58: 0 | LD58: 0 | LE58: 0 | LF58: 0 | LH58: 0.7236148356 | LI58: 1e-16 | LJ58: 1e-16 | LK58: 1e-16 | LL58: 1e-16 | LM58: 1e-16 | LN58: 1e-16 | LO58: 1e-16 | LP58: 1e-16 | LQ58: 1e-16 | LR58: 1e-16 | LS58: 1e-16 | LU58: -0.6902040058 | LV58: 0 | LW58: 0 | LX58: 0 | LY58: 0 | LZ58: 0 | MA58: 0 | MB58: 0 | MC58: 0 | MD58: 0 | ME58: 0 | MF58: 0 | MH58: 0.7236148356 | MI58: -0.6902040058 | MK58: 1 | MM58: 1 | MN58: 1 | MO58: 1 | MR58: 1 | MS58: 1 | MT58: 1 | MU58: 1 | MV58: 1 | MW58: 1 | MX58: 1 | MY58: 1 | MZ58: 1 | NA58: -2.311107206e-11 | NB58: -2.310335744e-11 | NC58: -2.310335744e-11 | ND58: -2.310335744e-11 | NE58: -2.310335744e-11 | NF58: -2.310335744e-11 | NG58: -2.310335744e-11 | NH58: -2.310335744e-11 | NJ58: 0.7236148356 | NK58: -0.6902040058 | NN58: 11.80459967 | NO58: 11.80459967 | NP58: 11.80459967 | NQ58: 11.80459967 | NR58: 11.80459967 | NS58: 11.80459967 | NT58: 11.80459967 | NU58: 11.80459967 | NV58: 11.80459967 | NW58: 11.80459967 | NX58: 11.80459967 | NY58: 11.80459967 | OA58: 11.80459967 | OC58: 0 | OD58: 0 | OE58: 0 | OF58: 0 | OG58: 0 | OH58: 0 | OI58: 0 | OJ58: 0 | OK58: 0 | OL58: 0 | OM58: 0 | ON58: 0 | OP58: 0 | OQ58: 0 | OR58: 0 | OS58: 0 | OT58: 0 | OU58: 0 | OV58: 0 | OW58: 0 | OX58: 0 | OY58: 0 | OZ58: 0 | PA58: 0 | PC58: 0 | PD58: 0 | PE58: 0 | PF58: 0 | PG58: 0 | PH58: 0 | PI58: 0 | PJ58: 0 | PK58: 0 | PL58: 0 | PM58: 0 | PN58: 0 | PP58: 0 | QR58: 0 | RE58: 1 | RF58: 1 | RH58: 7.714619732e-15 | RI58: 7.714619732e-15 | RK58: -7.714619732e-15 | RM58: 18 | RS58: 1 | RV58: -2 | RW58: 0 | RX58: 0
B59: 18 | C59: 25.91373395 | D59: 25.91373395 | E59: 38.58957578 | G59: 11.9757098 | H59: 0 | I59: 0 | J59: 0 | K59: 0 | L59: 0 | M59: 0 | N59: 0 | O59: 0 | P59: 0 | Q59: 0 | R59: 0 | T59: 0.8305728475 | U59: 1e-16 | V59: 1e-16 | W59: 1e-16 | X59: 1e-16 | Y59: 1e-16 | Z59: 1e-16 | AA59: 1e-16 | AB59: 1e-16 | AC59: 1e-16 | AD59: 1e-16 | AE59: 1e-16 | AG59: -0.5569099973 | AH59: 0 | AI59: 0 | AJ59: 0 | AK59: 0 | AL59: 0 | AM59: 0 | AN59: 0 | AO59: 0 | AP59: 0 | AQ59: 0 | AR59: 0 | AT59: 0.8305728475 | AU59: -0.5569099973 | AW59: 1 | BA59: 25.91373395 | BB59: 25.91373395 | BC59: 38.58957578 | BE59: 11.9757098 | BF59: 0 | BG59: 0 | BH59: 0 | BI59: 0 | BJ59: 0 | BK59: 0 | BL59: 0 | BM59: 0 | BN59: 0 | BO59: 0 | BP59: 0 | BR59: 0.8305728475 | BS59: 1e-16 | BT59: 1e-16 | BU59: 1e-16 | BV59: 1e-16 | BW59: 1e-16 | BX59: 1e-16 | BY59: 1e-16 | BZ59: 1e-16 | CA59: 1e-16 | CB59: 1e-16 | CC59: 1e-16 | CE59: -0.5569099973 | CF59: 0 | CG59: 0 | CH59: 0 | CI59: 0 | CJ59: 0 | CK59: 0 | CL59: 0 | CM59: 0 | CN59: 0 | CO59: 0 | CP59: 0 | CR59: 0.8305728475 | CS59: -0.5569099973 | CU59: 1 | CY59: 25.91373395 | CZ59: 25.91373395 | DA59: 38.58957578 | DC59: 11.9757098 | DD59: 0 | DE59: 0 | DF59: 0 | DG59: 0 | DH59: 0 | DI59: 0 | DJ59: 0 | DK59: 0 | DL59: 0 | DM59: 0 | DN59: 0 | DP59: 0.8305728475 | DQ59: 1e-16 | DR59: 1e-16 | DS59: 1e-16 | DT59: 1e-16 | DU59: 1e-16 | DV59: 1e-16 | DW59: 1e-16 | DX59: 1e-16 | DY59: 1e-16 | DZ59: 1e-16 | EA59: 1e-16 | EC59: -0.5569099973 | ED59: 0 | EE59: 0 | EF59: 0 | EG59: 0 | EH59: 0 | EI59: 0 | EJ59: 0 | EK59: 0 | EL59: 0 | EM59: 0 | EN59: 0 | EP59: 0.8305728475 | EQ59: -0.5569099973 | ES59: 1 | EW59: 25.91373395 | EX59: 25.91373395 | EY59: 38.58957578 | FA59: 11.9757098 | FB59: 0 | FC59: 0 | FD59: 0 | FE59: 0 | FF59: 0 | FG59: 0 | FH59: 0 | FI59: 0 | FJ59: 0 | FK59: 0 | FL59: 0 | FN59: 0.8305728475 | FO59: 1e-16 | FP59: 1e-16 | FQ59: 1e-16 | FR59: 1e-16 | FS59: 1e-16 | FT59: 1e-16 | FU59: 1e-16 | FV59: 1e-16 | FW59: 1e-16 | FX59: 1e-16 | FY59: 1e-16 | GA59: -0.5569099973 | GB59: 0 | GC59: 0 | GD59: 0 | GE59: 0 | GF59: 0 | GG59: 0 | GH59: 0 | GI59: 0 | GJ59: 0 | GK59: 0 | GL59: 0 | GN59: 0.8305728475 | GO59: -0.5569099973 | GQ59: 1 | GU59: 25.91373395 | GV59: 25.91373395 | GW59: 38.58957578 | GY59: 11.9757098 | GZ59: 0 | HA59: 0 | HB59: 0 | HC59: 0 | HD59: 0 | HE59: 0 | HF59: 0 | HG59: 0 | HH59: 0 | HI59: 0 | HJ59: 0 | HL59: 0.8305728475 | HM59: 1e-16 | HN59: 1e-16 | HO59: 1e-16 | HP59: 1e-16 | HQ59: 1e-16 | HR59: 1e-16 | HS59: 1e-16 | HT59: 1e-16 | HU59: 1e-16 | HV59: 1e-16 | HW59: 1e-16 | HY59: -0.5569099973 | HZ59: 0 | IA59: 0 | IB59: 0 | IC59: 0 | ID59: 0 | IE59: 0 | IF59: 0 | IG59: 0 | IH59: 0 | II59: 0 | IJ59: 0 | IL59: 0.8305728475 | IM59: -0.5569099973 | IO59: 1 | IS59: 25.91373395 | IT59: 25.91373395 | IU59: 38.58957578 | IW59: 11.9757098 | IX59: 0 | IY59: 0 | IZ59: 0 | JA59: 0 | JB59: 0 | JC59: 0 | JD59: 0 | JE59: 0 | JF59: 0 | JG59: 0 | JH59: 0 | JJ59: 0.8305728475 | JK59: 1e-16 | JL59: 1e-16 | JM59: 1e-16 | JN59: 1e-16 | JO59: 1e-16 | JP59: 1e-16 | JQ59: 1e-16 | JR59: 1e-16 | JS59: 1e-16 | JT59: 1e-16 | JU59: 1e-16 | JW59: -0.5569099973 | JX59: 0 | JY59: 0 | JZ59: 0 | KA59: 0 | KB59: 0 | KC59: 0 | KD59: 0 | KE59: 0 | KF59: 0 | KG59: 0 | KH59: 0 | KJ59: 0.8305728475 | KK59: -0.5569099973 | KM59: 1 | KQ59: 25.91373395 | KR59: 25.91373395 | KS59: 38.58957578 | KU59: 11.9757098 | KV59: 0 | KW59: 0 | KX59: 0 | KY59: 0 | KZ59: 0 | LA59: 0 | LB59: 0 | LC59: 0 | LD59: 0 | LE59: 0 | LF59: 0 | LH59: 0.8305728475 | LI59: 1e-16 | LJ59: 1e-16 | LK59: 1e-16 | LL59: 1e-16 | LM59: 1e-16 | LN59: 1e-16 | LO59: 1e-16 | LP59: 1e-16 | LQ59: 1e-16 | LR59: 1e-16 | LS59: 1e-16 | LU59: -0.5569099973 | LV59: 0 | LW59: 0 | LX59: 0 | LY59: 0 | LZ59: 0 | MA59: 0 | MB59: 0 | MC59: 0 | MD59: 0 | ME59: 0 | MF59: 0 | MH59: 0.8305728475 | MI59: -0.5569099973 | MK59: 1 | MM59: 1 | MN59: 1 | MO59: 1 | MR59: 1 | MS59: 1 | MT59: 1 | MU59: 1 | MV59: 1 | MW59: 1 | MX59: 1 | MY59: 1 | MZ59: 1 | NA59: -2.448041707e-11 | NB59: -2.447077379e-11 | NC59: -2.447077379e-11 | ND59: -2.447077379e-11 | NE59: -2.446884514e-11 | NF59: -2.447077379e-11 | NG59: -2.447077379e-11 | NH59: -2.447077379e-11 | NJ59: 0.8305728475 | NK59: -0.5569099973 | NN59: 11.9757098 | NO59: 11.9757098 | NP59: 11.9757098 | NQ59: 11.9757098 | NR59: 11.9757098 | NS59: 11.9757098 | NT59: 11.9757098 | NU59: 11.9757098 | NV59: 11.9757098 | NW59: 11.9757098 | NX59: 11.9757098 | NY59: 11.9757098 | OA59: 11.9757098 | OC59: 0 | OD59: 0 | OE59: 0 | OF59: 0 | OG59: 0 | OH59: 0 | OI59: 0 | OJ59: 0 | OK59: 0 | OL59: 0 | OM59: 0 | ON59: 0 | OP59: 0 | OQ59: 0 | OR59: 0 | OS59: 0 | OT59: 0 | OU59: 0 | OV59: 0 | OW59: 0 | OX59: 0 | OY59: 0 | OZ59: 0 | PA59: 0 | PC59: 0 | PD59: 0 | PE59: 0 | PF59: 0 | PG59: 0 | PH59: 0 | PI59: 0 | PJ59: 0 | PK59: 0 | PL59: 0 | PM59: 0 | PN59: 0 | PP59: 0 | QR59: 0 | RE59: 1 | RF59: 1 | RH59: 9.643274666e-15 | RI59: 9.643274666e-15 | RK59: -9.643274666e-15 | RM59: 19 | RS59: 1 | RV59: -2 | RW59: 0 | RX59: 0
B60: 19 | C60: 26.28935892 | D60: 26.28935892 | E60: 38.0382041 | G60: 12.14930021 | H60: 0 | I60: 0 | J60: 0 | K60: 0 | L60: 0 | M60: 0 | N60: 0 | O60: 0 | P60: 0 | Q60: 0 | R60: 0 | T60: 0.9142795925 | U60: 1e-16 | V60: 1e-16 | W60: 1e-16 | X60: 1e-16 | Y60: 1e-16 | Z60: 1e-16 | AA60: 1e-16 | AB60: 1e-16 | AC60: 1e-16 | AD60: 1e-16 | AE60: 1e-16 | AG60: -0.4050837281 | AH60: 0 | AI60: 0 | AJ60: 0 | AK60: 0 | AL60: 0 | AM60: 0 | AN60: 0 | AO60: 0 | AP60: 0 | AQ60: 0 | AR60: 0 | AT60: 0.9142795925 | AU60: -0.4050837281 | AW60: 1 | BA60: 26.28935892 | BB60: 26.28935892 | BC60: 38.0382041 | BE60: 12.14930021 | BF60: 0 | BG60: 0 | BH60: 0 | BI60: 0 | BJ60: 0 | BK60: 0 | BL60: 0 | BM60: 0 | BN60: 0 | BO60: 0 | BP60: 0 | BR60: 0.9142795925 | BS60: 1e-16 | BT60: 1e-16 | BU60: 1e-16 | BV60: 1e-16 | BW60: 1e-16 | BX60: 1e-16 | BY60: 1e-16 | BZ60: 1e-16 | CA60: 1e-16 | CB60: 1e-16 | CC60: 1e-16 | CE60: -0.4050837281 | CF60: 0 | CG60: 0 | CH60: 0 | CI60: 0 | CJ60: 0 | CK60: 0 | CL60: 0 | CM60: 0 | CN60: 0 | CO60: 0 | CP60: 0 | CR60: 0.9142795925 | CS60: -0.4050837281 | CU60: 1 | CY60: 26.28935892 | CZ60: 26.28935892 | DA60: 38.0382041 | DC60: 12.14930021 | DD60: 0 | DE60: 0 | DF60: 0 | DG60: 0 | DH60: 0 | DI60: 0 | DJ60: 0 | DK60: 0 | DL60: 0 | DM60: 0 | DN60: 0 | DP60: 0.9142795925 | DQ60: 1e-16 | DR60: 1e-16 | DS60: 1e-16 | DT60: 1e-16 | DU60: 1e-16 | DV60: 1e-16 | DW60: 1e-16 | DX60: 1e-16 | DY60: 1e-16 | DZ60: 1e-16 | EA60: 1e-16 | EC60: -0.4050837281 | ED60: 0 | EE60: 0 | EF60: 0 | EG60: 0 | EH60: 0 | EI60: 0 | EJ60: 0 | EK60: 0 | EL60: 0 | EM60: 0 | EN60: 0 | EP60: 0.9142795925 | EQ60: -0.4050837281 | ES60: 1 | EW60: 26.28935892 | EX60: 26.28935892 | EY60: 38.0382041 | FA60: 12.14930021 | FB60: 0 | FC60: 0 | FD60: 0 | FE60: 0 | FF60: 0 | FG60: 0 | FH60: 0 | FI60: 0 | FJ60: 0 | FK60: 0 | FL60: 0 | FN60: 0.9142795925 | FO60: 1e-16 | FP60: 1e-16 | FQ60: 1e-16 | FR60: 1e-16 | FS60: 1e-16 | FT60: 1e-16 | FU60: 1e-16 | FV60: 1e-16 | FW60: 1e-16 | FX60: 1e-16 | FY60: 1e-16 | GA60: -0.4050837281 | GB60: 0 | GC60: 0 | GD60: 0 | GE60: 0 | GF60: 0 | GG60: 0 | GH60: 0 | GI60: 0 | GJ60: 0 | GK60: 0 | GL60: 0 | GN60: 0.9142795925 | GO60: -0.4050837281 | GQ60: 1 | GU60: 26.28935892 | GV60: 26.28935892 | GW60: 38.0382041 | GY60: 12.14930021 | GZ60: 0 | HA60: 0 | HB60: 0 | HC60: 0 | HD60: 0 | HE60: 0 | HF60: 0 | HG60: 0 | HH60: 0 | HI60: 0 | HJ60: 0 | HL60: 0.9142795925 | HM60: 1e-16 | HN60: 1e-16 | HO60: 1e-16 | HP60: 1e-16 | HQ60: 1e-16 | HR60: 1e-16 | HS60: 1e-16 | HT60: 1e-16 | HU60: 1e-16 | HV60: 1e-16 | HW60: 1e-16 | HY60: -0.4050837281 | HZ60: 0 | IA60: 0 | IB60: 0 | IC60: 0 | ID60: 0 | IE60: 0 | IF60: 0 | IG60: 0 | IH60: 0 | II60: 0 | IJ60: 0 | IL60: 0.9142795925 | IM60: -0.4050837281 | IO60: 1 | IS60: 26.28935892 | IT60: 26.28935892 | IU60: 38.0382041 | IW60: 12.14930021 | IX60: 0 | IY60: 0 | IZ60: 0 | JA60: 0 | JB60: 0 | JC60: 0 | JD60: 0 | JE60: 0 | JF60: 0 | JG60: 0 | JH60: 0 | JJ60: 0.9142795925 | JK60: 1e-16 | JL60: 1e-16 | JM60: 1e-16 | JN60: 1e-16 | JO60: 1e-16 | JP60: 1e-16 | JQ60: 1e-16 | JR60: 1e-16 | JS60: 1e-16 | JT60: 1e-16 | JU60: 1e-16 | JW60: -0.4050837281 | JX60: 0 | JY60: 0 | JZ60: 0 | KA60: 0 | KB60: 0 | KC60: 0 | KD60: 0 | KE60: 0 | KF60: 0 | KG60: 0 | KH60: 0 | KJ60: 0.9142795925 | KK60: -0.4050837281 | KM60: 1 | KQ60: 26.28935892 | KR60: 26.28935892 | KS60: 38.0382041 | KU60: 12.14930021 | KV60: 0 | KW60: 0 | KX60: 0 | KY60: 0 | KZ60: 0 | LA60: 0 | LB60: 0 | LC60: 0 | LD60: 0 | LE60: 0 | LF60: 0 | LH60: 0.9142795925 | LI60: 1e-16 | LJ60: 1e-16 | LK60: 1e-16 | LL60: 1e-16 | LM60: 1e-16 | LN60: 1e-16 | LO60: 1e-16 | LP60: 1e-16 | LQ60: 1e-16 | LR60: 1e-16 | LS60: 1e-16 | LU60: -0.4050837281 | LV60: 0 | LW60: 0 | LX60: 0 | LY60: 0 | LZ60: 0 | MA60: 0 | MB60: 0 | MC60: 0 | MD60: 0 | ME60: 0 | MF60: 0 | MH60: 0.9142795925 | MI60: -0.4050837281 | MK60: 1 | MM60: 1 | MN60: 1 | MO60: 1 | MR60: 1 | MS60: 1 | MT60: 1 | MU60: 1 | MV60: 1 | MW60: 1 | MX60: 1 | MY60: 1 | MZ60: 1 | NA60: -2.593076558e-11 | NB60: -2.591919365e-11 | NC60: -2.591919365e-11 | ND60: -2.591919365e-11 | NE60: -2.591919365e-11 | NF60: -2.591919365e-11 | NG60: -2.591919365e-11 | NH60: -2.591919365e-11 | NJ60: 0.9142795925 | NK60: -0.4050837281 | NN60: 12.14930021 | NO60: 12.14930021 | NP60: 12.14930021 | NQ60: 12.14930021 | NR60: 12.14930021 | NS60: 12.14930021 | NT60: 12.14930021 | NU60: 12.14930021 | NV60: 12.14930021 | NW60: 12.14930021 | NX60: 12.14930021 | NY60: 12.14930021 | OA60: 12.14930021 | OC60: 0 | OD60: 0 | OE60: 0 | OF60: 0 | OG60: 0 | OH60: 0 | OI60: 0 | OJ60: 0 | OK60: 0 | OL60: 0 | OM60: 0 | ON60: 0 | OP60: 0 | OQ60: 0 | OR60: 0 | OS60: 0 | OT60: 0 | OU60: 0 | OV60: 0 | OW60: 0 | OX60: 0 | OY60: 0 | OZ60: 0 | PA60: 0 | PC60: 0 | PD60: 0 | PE60: 0 | PF60: 0 | PG60: 0 | PH60: 0 | PI60: 0 | PJ60: 0 | PK60: 0 | PL60: 0 | PM60: 0 | PN60: 0 | PP60: 0 | QR60: 0 | RE60: 1 | RF60: 1 | RH60: 1.15719296e-14 | RI60: 1.15719296e-14 | RK60: -1.15719296e-14 | RM60: 20 | RS60: 1 | RV60: -2 | RW60: 0 | RX60: 0
B61: 20 | C61: 26.67042864 | D61: 26.67042864 | E61: 37.49471047 | G61: =G$31/$E61*G$25*$B$8+G$33 -> 12.32540684 | H61: 0 | I61: 0 | J61: 0 | K61: 0 | L61: 0 | M61: 0 | N61: 0 | O61: 0 | P61: 0 | Q61: 0 | R61: 0 | T61: 0.9711084325 | U61: 1e-16 | V61: 1e-16 | W61: 1e-16 | X61: 1e-16 | Y61: 1e-16 | Z61: 1e-16 | AA61: 1e-16 | AB61: 1e-16 | AC61: 1e-16 | AD61: 1e-16 | AE61: 1e-16 | AG61: -0.2386386648 | AH61: 0 | AI61: 0 | AJ61: 0 | AK61: 0 | AL61: 0 | AM61: 0 | AN61: 0 | AO61: 0 | AP61: 0 | AQ61: 0 | AR61: 0 | AT61: 0.9711084325 | AU61: -0.2386386648 | AW61: 1 | BA61: 26.67042864 | BB61: 26.67042864 | BC61: 37.49471047 | BE61: =BE$31/$E61*BE$25*$B$8+BE$33 -> 12.32540684 | BF61: 0 | BG61: 0 | BH61: 0 | BI61: 0 | BJ61: 0 | BK61: 0 | BL61: 0 | BM61: 0 | BN61: 0 | BO61: 0 | BP61: 0 | BR61: 0.9711084325 | BS61: 1e-16 | BT61: 1e-16 | BU61: 1e-16 | BV61: 1e-16 | BW61: 1e-16 | BX61: 1e-16 | BY61: 1e-16 | BZ61: 1e-16 | CA61: 1e-16 | CB61: 1e-16 | CC61: 1e-16 | CE61: -0.2386386648 | CF61: 0 | CG61: 0 | CH61: 0 | CI61: 0 | CJ61: 0 | CK61: 0 | CL61: 0 | CM61: 0 | CN61: 0 | CO61: 0 | CP61: 0 | CR61: 0.9711084325 | CS61: -0.2386386648 | CU61: 1 | CY61: 26.67042864 | CZ61: 26.67042864 | DA61: 37.49471047 | DC61: =DC$31/$E61*DC$25*$B$8+DC$33 -> 12.32540684 | DD61: 0 | DE61: 0 | DF61: 0 | DG61: 0 | DH61: 0 | DI61: 0 | DJ61: 0 | DK61: 0 | DL61: 0 | DM61: 0 | DN61: 0 | DP61: 0.9711084325 | DQ61: 1e-16 | DR61: 1e-16 | DS61: 1e-16 | DT61: 1e-16 | DU61: 1e-16 | DV61: 1e-16 | DW61: 1e-16 | DX61: 1e-16 | DY61: 1e-16 | DZ61: 1e-16 | EA61: 1e-16 | EC61: -0.2386386648 | ED61: 0 | EE61: 0 | EF61: 0 | EG61: 0 | EH61: 0 | EI61: 0 | EJ61: 0 | EK61: 0 | EL61: 0 | EM61: 0 | EN61: 0 | EP61: 0.9711084325 | EQ61: -0.2386386648 | ES61: 1 | EW61: 26.67042864 | EX61: 26.67042864 | EY61: 37.49471047 | FA61: =FA$31/$E61*FA$25*$B$8+FA$33 -> 12.32540684 | FB61: 0 | FC61: 0 | FD61: 0 | FE61: 0 | FF61: 0 | FG61: 0 | FH61: 0 | FI61: 0 | FJ61: 0 | FK61: 0 | FL61: 0 | FN61: 0.9711084325 | FO61: 1e-16 | FP61: 1e-16 | FQ61: 1e-16 | FR61: 1e-16 | FS61: 1e-16 | FT61: 1e-16 | FU61: 1e-16 | FV61: 1e-16 | FW61: 1e-16 | FX61: 1e-16 | FY61: 1e-16 | GA61: -0.2386386648 | GB61: 0 | GC61: 0 | GD61: 0 | GE61: 0 | GF61: 0 | GG61: 0 | GH61: 0 | GI61: 0 | GJ61: 0 | GK61: 0 | GL61: 0 | GN61: 0.9711084325 | GO61: -0.2386386648 | GQ61: 1 | GU61: 26.67042864 | GV61: 26.67042864 | GW61: 37.49471047 | GY61: =GY$31/$E61*GY$25*$B$8+GY$33 -> 12.32540684 | GZ61: 0 | HA61: 0 | HB61: 0 | HC61: 0 | HD61: 0 | HE61: 0 | HF61: 0 | HG61: 0 | HH61: 0 | HI61: 0 | HJ61: 0 | HL61: 0.9711084325 | HM61: 1e-16 | HN61: 1e-16 | HO61: 1e-16 | HP61: 1e-16 | HQ61: 1e-16 | HR61: 1e-16 | HS61: 1e-16 | HT61: 1e-16 | HU61: 1e-16 | HV61: 1e-16 | HW61: 1e-16 | HY61: -0.2386386648 | HZ61: 0 | IA61: 0 | IB61: 0 | IC61: 0 | ID61: 0 | IE61: 0 | IF61: 0 | IG61: 0 | IH61: 0 | II61: 0 | IJ61: 0 | IL61: 0.9711084325 | IM61: -0.2386386648 | IO61: 1 | IS61: 26.67042864 | IT61: 26.67042864 | IU61: 37.49471047 | IW61: =IW$31/$E61*IW$25*$B$8+IW$33 -> 12.32540684 | IX61: 0 | IY61: 0 | IZ61: 0 | JA61: 0 | JB61: 0 | JC61: 0 | JD61: 0 | JE61: 0 | JF61: 0 | JG61: 0 | JH61: 0 | JJ61: 0.9711084325 | JK61: 1e-16 | JL61: 1e-16 | JM61: 1e-16 | JN61: 1e-16 | JO61: 1e-16 | JP61: 1e-16 | JQ61: 1e-16 | JR61: 1e-16 | JS61: 1e-16 | JT61: 1e-16 | JU61: 1e-16 | JW61: -0.2386386648 | JX61: 0 | JY61: 0 | JZ61: 0 | KA61: 0 | KB61: 0 | KC61: 0 | KD61: 0 | KE61: 0 | KF61: 0 | KG61: 0 | KH61: 0 | KJ61: 0.9711084325 | KK61: -0.2386386648 | KM61: 1 | KQ61: 26.67042864 | KR61: 26.67042864 | KS61: 37.49471047 | KU61: =KU$31/$E61*KU$25*$B$8+KU$33 -> 12.32540684 | KV61: 0 | KW61: 0 | KX61: 0 | KY61: 0 | KZ61: 0 | LA61: 0 | LB61: 0 | LC61: 0 | LD61: 0 | LE61: 0 | LF61: 0 | LH61: 0.9711084325 | LI61: 1e-16 | LJ61: 1e-16 | LK61: 1e-16 | LL61: 1e-16 | LM61: 1e-16 | LN61: 1e-16 | LO61: 1e-16 | LP61: 1e-16 | LQ61: 1e-16 | LR61: 1e-16 | LS61: 1e-16 | LU61: -0.2386386648 | LV61: 0 | LW61: 0 | LX61: 0 | LY61: 0 | LZ61: 0 | MA61: 0 | MB61: 0 | MC61: 0 | MD61: 0 | ME61: 0 | MF61: 0 | MH61: 0.9711084325 | MI61: -0.2386386648 | MK61: 1 | MM61: 1 | MN61: 1 | MO61: 1 | MR61: 1 | MS61: 1 | MT61: 1 | MU61: 1 | MV61: 1 | MW61: 1 | MX61: 1 | MY61: 1 | MZ61: 1 | NA61: -2.746790356e-11 | NB61: -2.745633163e-11 | NC61: -2.745633163e-11 | ND61: -2.745633163e-11 | NE61: -2.745633163e-11 | NF61: -2.745633163e-11 | NG61: -2.745633163e-11 | NH61: -2.745633163e-11 | NJ61: 0.9711084325 | NK61: -0.2386386648 | NN61: 12.32540684 | NO61: 12.32540684 | NP61: 12.32540684 | NQ61: 12.32540684 | NR61: 12.32540684 | NS61: 12.32540684 | NT61: 12.32540684 | NU61: 12.32540684 | NV61: 12.32540684 | NW61: 12.32540684 | NX61: 12.32540684 | NY61: 12.32540684 | OA61: 12.32540684 | OC61: 0 | OD61: 0 | OE61: 0 | OF61: 0 | OG61: 0 | OH61: 0 | OI61: 0 | OJ61: 0 | OK61: 0 | OL61: 0 | OM61: 0 | ON61: 0 | OP61: 0 | OQ61: 0 | OR61: 0 | OS61: 0 | OT61: 0 | OU61: 0 | OV61: 0 | OW61: 0 | OX61: 0 | OY61: 0 | OZ61: 0 | PA61: 0 | PC61: 0 | PD61: 0 | PE61: 0 | PF61: 0 | PG61: 0 | PH61: 0 | PI61: 0 | PJ61: 0 | PK61: 0 | PL61: 0 | PM61: 0 | PN61: 0 | PP61: 0 | QR61: 0 | RE61: 1 | RF61: 1 | RH61: 1.15719296e-14 | RI61: 1.15719296e-14 | RK61: -1.15719296e-14 | RM61: 21 | RS61: 1 | RV61: -2 | RW61: 0 | RX61: 0
B62: 21 | C62: 27.05702206 | D62: 27.05702206 | E62: 36.95898233 | G62: 12.50406618 | H62: 0 | I62: 0 | J62: 0 | K62: 0 | L62: 0 | M62: 0 | N62: 0 | O62: 0 | P62: 0 | Q62: 0 | R62: 0 | T62: 0.9980597064 | U62: 1e-16 | V62: 1e-16 | W62: 1e-16 | X62: 1e-16 | Y62: 1e-16 | Z62: 1e-16 | AA62: 1e-16 | AB62: 1e-16 | AC62: 1e-16 | AD62: 1e-16 | AE62: 1e-16 | AG62: -0.06226413442 | AH62: 0 | AI62: 0 | AJ62: 0 | AK62: 0 | AL62: 0 | AM62: 0 | AN62: 0 | AO62: 0 | AP62: 0 | AQ62: 0 | AR62: 0 | AT62: 0.9980597064 | AU62: -0.06226413442 | AW62: 1 | BA62: 27.05702206 | BB62: 27.05702206 | BC62: 36.95898233 | BE62: 12.50406618 | BF62: 0 | BG62: 0 | BH62: 0 | BI62: 0 | BJ62: 0 | BK62: 0 | BL62: 0 | BM62: 0 | BN62: 0 | BO62: 0 | BP62: 0 | BR62: 0.9980597064 | BS62: 1e-16 | BT62: 1e-16 | BU62: 1e-16 | BV62: 1e-16 | BW62: 1e-16 | BX62: 1e-16 | BY62: 1e-16 | BZ62: 1e-16 | CA62: 1e-16 | CB62: 1e-16 | CC62: 1e-16 | CE62: -0.06226413442 | CF62: 0 | CG62: 0 | CH62: 0 | CI62: 0 | CJ62: 0 | CK62: 0 | CL62: 0 | CM62: 0 | CN62: 0 | CO62: 0 | CP62: 0 | CR62: 0.9980597064 | CS62: -0.06226413442 | CU62: 1 | CY62: 27.05702206 | CZ62: 27.05702206 | DA62: 36.95898233 | DC62: 12.50406618 | DD62: 0 | DE62: 0 | DF62: 0 | DG62: 0 | DH62: 0 | DI62: 0 | DJ62: 0 | DK62: 0 | DL62: 0 | DM62: 0 | DN62: 0 | DP62: 0.9980597064 | DQ62: 1e-16 | DR62: 1e-16 | DS62: 1e-16 | DT62: 1e-16 | DU62: 1e-16 | DV62: 1e-16 | DW62: 1e-16 | DX62: 1e-16 | DY62: 1e-16 | DZ62: 1e-16 | EA62: 1e-16 | EC62: -0.06226413442 | ED62: 0 | EE62: 0 | EF62: 0 | EG62: 0 | EH62: 0 | EI62: 0 | EJ62: 0 | EK62: 0 | EL62: 0 | EM62: 0 | EN62: 0 | EP62: 0.9980597064 | EQ62: -0.06226413442 | ES62: 1 | EW62: 27.05702206 | EX62: 27.05702206 | EY62: 36.95898233 | FA62: 12.50406618 | FB62: 0 | FC62: 0 | FD62: 0 | FE62: 0 | FF62: 0 | FG62: 0 | FH62: 0 | FI62: 0 | FJ62: 0 | FK62: 0 | FL62: 0 | FN62: 0.9980597064 | FO62: 1e-16 | FP62: 1e-16 | FQ62: 1e-16 | FR62: 1e-16 | FS62: 1e-16 | FT62: 1e-16 | FU62: 1e-16 | FV62: 1e-16 | FW62: 1e-16 | FX62: 1e-16 | FY62: 1e-16 | GA62: -0.06226413442 | GB62: 0 | GC62: 0 | GD62: 0 | GE62: 0 | GF62: 0 | GG62: 0 | GH62: 0 | GI62: 0 | GJ62: 0 | GK62: 0 | GL62: 0 | GN62: 0.9980597064 | GO62: -0.06226413442 | GQ62: 1 | GU62: 27.05702206 | GV62: 27.05702206 | GW62: 36.95898233 | GY62: 12.50406618 | GZ62: 0 | HA62: 0 | HB62: 0 | HC62: 0 | HD62: 0 | HE62: 0 | HF62: 0 | HG62: 0 | HH62: 0 | HI62: 0 | HJ62: 0 | HL62: 0.9980597064 | HM62: 1e-16 | HN62: 1e-16 | HO62: 1e-16 | HP62: 1e-16 | HQ62: 1e-16 | HR62: 1e-16 | HS62: 1e-16 | HT62: 1e-16 | HU62: 1e-16 | HV62: 1e-16 | HW62: 1e-16 | HY62: -0.06226413442 | HZ62: 0 | IA62: 0 | IB62: 0 | IC62: 0 | ID62: 0 | IE62: 0 | IF62: 0 | IG62: 0 | IH62: 0 | II62: 0 | IJ62: 0 | IL62: 0.9980597064 | IM62: -0.06226413442 | IO62: 1 | IS62: 27.05702206 | IT62: 27.05702206 | IU62: 36.95898233 | IW62: 12.50406618 | IX62: 0 | IY62: 0 | IZ62: 0 | JA62: 0 | JB62: 0 | JC62: 0 | JD62: 0 | JE62: 0 | JF62: 0 | JG62: 0 | JH62: 0 | JJ62: 0.9980597064 | JK62: 1e-16 | JL62: 1e-16 | JM62: 1e-16 | JN62: 1e-16 | JO62: 1e-16 | JP62: 1e-16 | JQ62: 1e-16 | JR62: 1e-16 | JS62: 1e-16 | JT62: 1e-16 | JU62: 1e-16 | JW62: -0.06226413442 | JX62: 0 | JY62: 0 | JZ62: 0 | KA62: 0 | KB62: 0 | KC62: 0 | KD62: 0 | KE62: 0 | KF62: 0 | KG62: 0 | KH62: 0 | KJ62: 0.9980597064 | KK62: -0.06226413442 | KM62: 1 | KQ62: 27.05702206 | KR62: 27.05702206 | KS62: 36.95898233 | KU62: 12.50406618 | KV62: 0 | KW62: 0 | KX62: 0 | KY62: 0 | KZ62: 0 | LA62: 0 | LB62: 0 | LC62: 0 | LD62: 0 | LE62: 0 | LF62: 0 | LH62: 0.9980597064 | LI62: 1e-16 | LJ62: 1e-16 | LK62: 1e-16 | LL62: 1e-16 | LM62: 1e-16 | LN62: 1e-16 | LO62: 1e-16 | LP62: 1e-16 | LQ62: 1e-16 | LR62: 1e-16 | LS62: 1e-16 | LU62: -0.06226413442 | LV62: 0 | LW62: 0 | LX62: 0 | LY62: 0 | LZ62: 0 | MA62: 0 | MB62: 0 | MC62: 0 | MD62: 0 | ME62: 0 | MF62: 0 | MH62: 0.9980597064 | MI62: -0.06226413442 | MK62: 1 | MM62: 1 | MN62: 1 | MO62: 1 | MR62: 1 | MS62: 1 | MT62: 1 | MU62: 1 | MV62: 1 | MW62: 1 | MX62: 1 | MY62: 1 | MZ62: 1 | NA62: -2.909568832e-11 | NB62: -2.908411639e-11 | NC62: -2.908411639e-11 | ND62: -2.908411639e-11 | NE62: -2.908411639e-11 | NF62: -2.908411639e-11 | NG62: -2.908411639e-11 | NH62: -2.908411639e-11 | NJ62: 0.9980597064 | NK62: -0.06226413442 | NN62: 12.50406618 | NO62: 12.50406618 | NP62: 12.50406618 | NQ62: 12.50406618 | NR62: 12.50406618 | NS62: 12.50406618 | NT62: 12.50406618 | NU62: 12.50406618 | NV62: 12.50406618 | NW62: 12.50406618 | NX62: 12.50406618 | NY62: 12.50406618 | OA62: 12.50406618 | OC62: 0 | OD62: 0 | OE62: 0 | OF62: 0 | OG62: 0 | OH62: 0 | OI62: 0 | OJ62: 0 | OK62: 0 | OL62: 0 | OM62: 0 | ON62: 0 | OP62: 0 | OQ62: 0 | OR62: 0 | OS62: 0 | OT62: 0 | OU62: 0 | OV62: 0 | OW62: 0 | OX62: 0 | OY62: 0 | OZ62: 0 | PA62: 0 | PC62: 0 | PD62: 0 | PE62: 0 | PF62: 0 | PG62: 0 | PH62: 0 | PI62: 0 | PJ62: 0 | PK62: 0 | PL62: 0 | PM62: 0 | PN62: 0 | PP62: 0 | QR62: =QR$41 -> 0 | RE62: 1 | RF62: 1 | RH62: 1.15719296e-14 | RI62: 1.15719296e-14 | RK62: -1.15719296e-14 | RM62: 22 | RS62: 1 | RV62: -2 | RW62: 0 | RX62: 0
... 77 more rows

Sheet Calc_2D (hidden)
B2: OUTPUT DATA | D2: speakers (MAX 12) | F2: =Setups!G80 -> 1 | H2: block level | I2: =Setups!J80 -> 0 | K2: PREDICTION PLANE | O2: HELPER CELLS
L3: x | M3: y
B4: no. | C4: on / off | D4: x (m) | E4: y (m) | F4: rot (°) | G4: level (dB) | H4: t (ms) | I4: pol inv | K4: size | L4: =Dashboard!AC35 -> 50 | M4: =Dashboard!AD35 -> 50 | O4: grid step | P4: =$L$4/31 -> 1.612903226
B5: 1 | C5: =Setups!D83 -> 1 | D5: =Setups!E83 -> 0 | E5: =Setups!F83 -> 0 | F5: =Setups!G83 -> 0 | G5: =Setups!H83 -> 0 | H5: =Setups!I83 -> 0 | I5: =Setups!J83 -> 0 | J5: =10^(G5/20)*(10^-16)^(FACT(C5)-C5) -> 1 | K5: shift | L5: =Dashboard!AC36 -> 0 | M5: =Dashboard!AD36 -> 0 | O5: f period | P5: =1/$M$7 -> 0.01
B6: 2 | C6: =Setups!D84 -> 0 | D6: =Setups!E84 -> 0 | E6: =Setups!F84 -> 0 | F6: =Setups!G84 -> 0 | G6: =Setups!H84 -> 0 | H6: =Setups!I84 -> 0 | I6: =Setups!J84 -> 0 | J6: =10^(G6/20)*(10^-16)^(FACT(C6)-C6) -> 1e-16 | O6: pi | P6: 3.141592654
B7: 3 | C7: =Setups!D85 -> 0 | D7: =Setups!E85 -> 0 | E7: =Setups!F85 -> 0 | F7: =Setups!G85 -> 0 | G7: =Setups!H85 -> 0 | H7: =Setups!I85 -> 0 | I7: =Setups!J85 -> 0 | J7: 1e-16 | K7: freq | M7: =Dashboard!AD38 -> 100 | O7: 2pi | P7: 6.283185307
B8: 4 | C8: =Setups!D86 -> 0 | D8: =Setups!E86 -> 0 | E8: =Setups!F86 -> 0 | F8: =Setups!G86 -> 0 | G8: =Setups!H86 -> 0 | H8: =Setups!I86 -> 0 | I8: =Setups!J86 -> 0 | J8: 1e-16
B9: 5 | C9: =Setups!D87 -> 0 | D9: =Setups!E87 -> 0 | E9: =Setups!F87 -> 0 | F9: =Setups!G87 -> 0 | G9: =Setups!H87 -> 0 | H9: =Setups!I87 -> 0 | I9: =Setups!J87 -> 0 | J9: 1e-16 | K9: normalize | L9: =Dashboard!AD40 -> 1 | M9: =Dashboard!AC40 -> 1 | O9: hole / fill | P9: 1e-16
B10: 6 | C10: =Setups!D88 -> 0 | D10: =Setups!E88 -> 0 | E10: =Setups!F88 -> 0 | F10: =Setups!G88 -> 0 | G10: =Setups!H88 -> 0 | H10: =Setups!I88 -> 0 | I10: =Setups!J88 -> 0 | J10: 1e-16 | L10: 1. speaker(s)
B11: 7 | C11: =Setups!D89 -> 0 | D11: =Setups!E89 -> 0 | E11: =Setups!F89 -> 0 | F11: =Setups!G89 -> 0 | G11: =Setups!H89 -> 0 | H11: =Setups!I89 -> 0 | I11: =Setups!J89 -> 0 | J11: 1e-16 | L11: 2. mic 1 (ONAX)
B12: 8 | C12: =Setups!D90 -> 0 | D12: =Setups!E90 -> 0 | E12: =Setups!F90 -> 0 | F12: =Setups!G90 -> 0 | G12: =Setups!H90 -> 0 | H12: =Setups!I90 -> 0 | I12: =Setups!J90 -> 0 | J12: 1e-16 | K12: offset (dB) | L12: =Dashboard!AD43 -> 0 | M12: =Dashboard!AC43 -> 0
B13: 9 | C13: =Setups!D91 -> 0 | D13: =Setups!E91 -> 0 | E13: =Setups!F91 -> 0 | F13: =Setups!G91 -> 0 | G13: =Setups!H91 -> 0 | H13: =Setups!I91 -> 0 | I13: =Setups!J91 -> 0 | J13: 1e-16
B14: 10 | C14: =Setups!D92 -> 0 | D14: =Setups!E92 -> 0 | E14: =Setups!F92 -> 0 | F14: =Setups!G92 -> 0 | G14: =Setups!H92 -> 0 | H14: =Setups!I92 -> 0 | I14: =Setups!J92 -> 0 | J14: 1e-16 | K14: PATTERN
B15: 11 | C15: =Setups!D93 -> 0 | D15: =Setups!E93 -> 0 | E15: =Setups!F93 -> 0 | F15: =Setups!G93 -> 0 | G15: =Setups!H93 -> 0 | H15: =Setups!I93 -> 0 | I15: =Setups!J93 -> 0 | J15: 1e-16 | K15: a | L15: b
B16: 12 | C16: =Setups!D94 -> 0 | D16: =Setups!E94 -> 0 | E16: =Setups!F94 -> 0 | F16: =Setups!G94 -> 0 | G16: =Setups!H94 -> 0 | H16: =Setups!I94 -> 0 | I16: =Setups!J94 -> 0 | J16: 1e-16 | K16: =Dashboard!$I$21 -> 1 | L16: =Dashboard!$J$21 -> 0
B18: ENVIRONMENT
B20: temp (°C) | D20: =Dashboard!AH4 -> 14
B22: c (m/s) | D22: =Dashboard!AH6 -> 339.898
C27: Lv lin | D27: =10^($G$5/20)*$J$5 -> 1 | AL27: Lv lin | AM27: =10^($G$6/20)*$J$6 -> 1e-16 | BU27: Lv lin | BV27: =10^($G$7/20)*$J$7 -> 1e-16 | DD27: Lv lin | DE27: =10^($G$8/20)*$J$8 -> 1e-16 | EM27: Lv lin | EN27: =10^($G$9/20)*$J$9 -> 1e-16 | FV27: Lv lin | FW27: =10^($G$10/20)*$J$10 -> 1e-16 | HE27: Lv lin | HF27: =10^($G$11/20)*$J$11 -> 1e-16 | IN27: Lv lin | IO27: =10^($G$12/20)*$J$12 -> 1e-16 | JW27: Lv lin | JX27: =10^($G$13/20)*$J$13 -> 1e-16 | LF27: Lv lin | LG27: =10^($G$14/20)*$J$14 -> 1e-16 | MO27: Lv lin | MP27: =10^($G$15/20)*$J$15 -> 1e-16 | NX27: Lv lin | NY27: =10^($G$16/20)*$J$16 -> 1e-16
C28: t (s) | D28: =$H$5/1000 -> 0 | AL28: t (s) | AM28: =$H$6/1000 -> 0 | BU28: t (s) | BV28: =$H$7/1000 -> 0 | DD28: t (s) | DE28: =$H$8/1000 -> 0 | EM28: t (s) | EN28: =$H$9/1000 -> 0 | FV28: t (s) | FW28: =$H$10/1000 -> 0 | HE28: t (s) | HF28: =$H$11/1000 -> 0 | IN28: t (s) | IO28: =$H$12/1000 -> 0 | JW28: t (s) | JX28: =$H$13/1000 -> 0 | LF28: t (s) | LG28: =$H$14/1000 -> 0 | MO28: t (s) | MP28: =$H$15/1000 -> 0 | NX28: t (s) | NY28: =$H$16/1000 -> 0
C29: pol (rad) | D29: =$I$5*$P$6 -> 0 | AL29: pol (rad) | AM29: =$I$6*$P$6 -> 0 | BU29: pol (rad) | BV29: =$I$7*$P$6 -> 0 | DD29: pol (rad) | DE29: =$I$8*$P$6 -> 0 | EM29: pol (rad) | EN29: =$I$9*$P$6 -> 0 | FV29: pol (rad) | FW29: =$I$10*$P$6 -> 0 | HE29: pol (rad) | HF29: =$I$11*$P$6 -> 0 | IN29: pol (rad) | IO29: =$I$12*$P$6 -> 0 | JW29: pol (rad) | JX29: =$I$13*$P$6 -> 0 | LF29: pol (rad) | LG29: =$I$14*$P$6 -> 0 | MO29: pol (rad) | MP29: =$I$15*$P$6 -> 0 | NX29: pol (rad) | NY29: =$I$16*$P$6 -> 0
D31: 1 | E31: 2 | F31: 3 | G31: 4 | H31: 5 | I31: 6 | J31: 7 | K31: 8 | L31: 9 | M31: 10 | N31: 11 | O31: 12 | P31: 13 | Q31: 14 | R31: 15 | S31: 16 | T31: 17 | U31: 18 | V31: 19 | W31: 20 | X31: 21 | Y31: 22 | Z31: 23 | AA31: 24 | AB31: 25 | AC31: 26 | AD31: 27 | AE31: 28 | AF31: 29 | AG31: 30 | AH31: 31 | AI31: 32
B32: x | D32: =(D$31-16.5)*$P$4-$L$5 -> -25 | E32: -23.38709677 | F32: -21.77419355 | G32: -20.16129032 | H32: -18.5483871 | I32: -16.93548387 | J32: -15.32258065 | K32: -13.70967742 | L32: -12.09677419 | M32: -10.48387097 | N32: -8.870967742 | O32: -7.258064516 | P32: -5.64516129 | Q32: -4.032258065 | R32: -2.419354839 | S32: -0.8064516129 | T32: 0.8064516129 | U32: 2.419354839 | V32: 4.032258065 | W32: 5.64516129 | X32: 7.258064516 | Y32: 8.870967742 | Z32: 10.48387097 | AA32: 12.09677419 | AB32: 13.70967742 | AC32: 15.32258065 | AD32: 16.93548387 | AE32: 18.5483871 | AF32: 20.16129032 | AG32: 21.77419355 | AH32: 23.38709677 | AI32: 25 | AK32: x | AM32: =D32 -> -25 | AN32: -23.38709677 | AO32: -21.77419355 | AP32: -20.16129032 | AQ32: -18.5483871 | AR32: -16.93548387 | AS32: -15.32258065 | AT32: -13.70967742 | AU32: -12.09677419 | AV32: -10.48387097 | AW32: -8.870967742 | AX32: -7.258064516 | AY32: -5.64516129 | AZ32: -4.032258065 | BA32: -2.419354839 | BB32: -0.8064516129 | BC32: 0.8064516129 | BD32: 2.419354839 | BE32: 4.032258065 | BF32: 5.64516129 | BG32: 7.258064516 | BH32: 8.870967742 | BI32: 10.48387097 | BJ32: 12.09677419 | BK32: 13.70967742 | BL32: 15.32258065 | BM32: 16.93548387 | BN32: 18.5483871 | BO32: 20.16129032 | BP32: 21.77419355 | BQ32: 23.38709677 | BR32: 25 | BT32: x | BV32: =D32 -> -25 | BW32: -23.38709677 | BX32: -21.77419355 | BY32: -20.16129032 | BZ32: -18.5483871 | CA32: -16.93548387 | CB32: -15.32258065 | CC32: -13.70967742 | CD32: -12.09677419 | CE32: -10.48387097 | CF32: -8.870967742 | CG32: -7.258064516 | CH32: -5.64516129 | CI32: -4.032258065 | CJ32: -2.419354839 | CK32: -0.8064516129 | CL32: 0.8064516129 | CM32: 2.419354839 | CN32: 4.032258065 | CO32: 5.64516129 | CP32: 7.258064516 | CQ32: 8.870967742 | CR32: 10.48387097 | CS32: 12.09677419 | CT32: 13.70967742 | CU32: 15.32258065 | CV32: 16.93548387 | CW32: 18.5483871 | CX32: 20.16129032 | CY32: 21.77419355 | CZ32: 23.38709677 | DA32: 25 | DC32: x | DE32: =D32 -> -25 | DF32: -23.38709677 | DG32: -21.77419355 | DH32: -20.16129032 | DI32: -18.5483871 | DJ32: -16.93548387 | DK32: -15.32258065 | DL32: -13.70967742 | DM32: -12.09677419 | DN32: -10.48387097 | DO32: -8.870967742 | DP32: -7.258064516 | DQ32: -5.64516129 | DR32: -4.032258065 | DS32: -2.419354839 | DT32: -0.8064516129 | DU32: 0.8064516129 | DV32: 2.419354839 | DW32: 4.032258065 | DX32: 5.64516129 | DY32: 7.258064516 | DZ32: 8.870967742 | EA32: 10.48387097 | EB32: 12.09677419 | EC32: 13.70967742 | ED32: 15.32258065 | EE32: 16.93548387 | EF32: 18.5483871 | EG32: 20.16129032 | EH32: 21.77419355 | EI32: 23.38709677 | EJ32: 25 | EL32: x | EN32: =D32 -> -25 | EO32: -23.38709677 | EP32: -21.77419355 | EQ32: -20.16129032 | ER32: -18.5483871 | ES32: -16.93548387 | ET32: -15.32258065 | EU32: -13.70967742 | EV32: -12.09677419 | EW32: -10.48387097 | EX32: -8.870967742 | EY32: -7.258064516 | EZ32: -5.64516129 | FA32: -4.032258065 | FB32: -2.419354839 | FC32: -0.8064516129 | FD32: 0.8064516129 | FE32: 2.419354839 | FF32: 4.032258065 | FG32: 5.64516129 | FH32: 7.258064516 | FI32: 8.870967742 | FJ32: 10.48387097 | FK32: 12.09677419 | FL32: 13.70967742 | FM32: 15.32258065 | FN32: 16.93548387 | FO32: 18.5483871 | FP32: 20.16129032 | FQ32: 21.77419355 | FR32: 23.38709677 | FS32: 25 | FU32: x | FW32: =D32 -> -25 | FX32: -23.38709677 | FY32: -21.77419355 | FZ32: -20.16129032 | GA32: -18.5483871 | GB32: -16.93548387 | GC32: -15.32258065 | GD32: -13.70967742 | GE32: -12.09677419 | GF32: -10.48387097 | GG32: -8.870967742 | GH32: -7.258064516 | GI32: -5.64516129 | GJ32: -4.032258065 | GK32: -2.419354839 | GL32: -0.8064516129 | GM32: 0.8064516129 | GN32: 2.419354839 | GO32: 4.032258065 | GP32: 5.64516129 | GQ32: 7.258064516 | GR32: 8.870967742 | GS32: 10.48387097 | GT32: 12.09677419 | GU32: 13.70967742 | GV32: 15.32258065 | GW32: 16.93548387 | GX32: 18.5483871 | GY32: 20.16129032 | GZ32: 21.77419355 | HA32: 23.38709677 | HB32: 25 | HD32: x | HF32: =D32 -> -25 | HG32: -23.38709677 | HH32: -21.77419355 | HI32: -20.16129032 | HJ32: -18.5483871 | HK32: -16.93548387 | HL32: -15.32258065 | HM32: -13.70967742 | HN32: -12.09677419 | HO32: -10.48387097 | HP32: -8.870967742 | HQ32: -7.258064516 | HR32: -5.64516129 | HS32: -4.032258065 | HT32: -2.419354839 | HU32: -0.8064516129 | HV32: 0.8064516129 | HW32: 2.419354839 | HX32: 4.032258065 | HY32: 5.64516129 | HZ32: 7.258064516 | IA32: 8.870967742 | IB32: 10.48387097 | IC32: 12.09677419 | ID32: 13.70967742 | IE32: 15.32258065 | IF32: 16.93548387 | IG32: 18.5483871 | IH32: 20.16129032 | II32: 21.77419355 | IJ32: 23.38709677 | IK32: 25 | IM32: x | IO32: =D32 -> -25 | IP32: -23.38709677 | IQ32: -21.77419355 | IR32: -20.16129032 | IS32: -18.5483871 | IT32: -16.93548387 | IU32: -15.32258065 | IV32: -13.70967742 | IW32: -12.09677419 | IX32: -10.48387097 | IY32: -8.870967742 | IZ32: -7.258064516 | JA32: -5.64516129 | JB32: -4.032258065 | JC32: -2.419354839 | JD32: -0.8064516129 | JE32: 0.8064516129 | JF32: 2.419354839 | JG32: 4.032258065 | JH32: 5.64516129 | JI32: 7.258064516 | JJ32: 8.870967742 | JK32: 10.48387097 | JL32: 12.09677419 | JM32: 13.70967742 | JN32: 15.32258065 | JO32: 16.93548387 | JP32: 18.5483871 | JQ32: 20.16129032 | JR32: 21.77419355 | JS32: 23.38709677 | JT32: 25 | JV32: x | JX32: =D32 -> -25 | JY32: -23.38709677 | JZ32: -21.77419355 | KA32: -20.16129032 | KB32: -18.5483871 | KC32: -16.93548387 | KD32: -15.32258065 | KE32: -13.70967742 | KF32: -12.09677419 | KG32: -10.48387097 | KH32: -8.870967742 | KI32: -7.258064516 | KJ32: -5.64516129 | KK32: -4.032258065 | KL32: -2.419354839 | KM32: -0.8064516129 | KN32: 0.8064516129 | KO32: 2.419354839 | KP32: 4.032258065 | KQ32: 5.64516129 | KR32: 7.258064516 | KS32: 8.870967742 | KT32: 10.48387097 | KU32: 12.09677419 | KV32: 13.70967742 | KW32: 15.32258065 | KX32: 16.93548387 | KY32: 18.5483871 | KZ32: 20.16129032 | LA32: 21.77419355 | LB32: 23.38709677 | LC32: 25 | LE32: x | LG32: =D32 -> -25 | LH32: -23.38709677 | LI32: -21.77419355 | LJ32: -20.16129032 | LK32: -18.5483871 | LL32: -16.93548387 | LM32: -15.32258065 | LN32: -13.70967742 | LO32: -12.09677419 | LP32: -10.48387097 | LQ32: -8.870967742 | LR32: -7.258064516 | LS32: -5.64516129 | LT32: -4.032258065 | LU32: -2.419354839 | LV32: -0.8064516129 | LW32: 0.8064516129 | LX32: 2.419354839 | LY32: 4.032258065 | LZ32: 5.64516129 | MA32: 7.258064516 | MB32: 8.870967742 | MC32: 10.48387097 | MD32: 12.09677419 | ME32: 13.70967742 | MF32: 15.32258065 | MG32: 16.93548387 | MH32: 18.5483871 | MI32: 20.16129032 | MJ32: 21.77419355 | MK32: 23.38709677 | ML32: 25 | MN32: x | MP32: =D32 -> -25 | MQ32: -23.38709677 | MR32: -21.77419355 | MS32: -20.16129032 | MT32: -18.5483871 | MU32: -16.93548387 | MV32: -15.32258065 | MW32: -13.70967742 | MX32: -12.09677419 | MY32: -10.48387097 | MZ32: -8.870967742 | NA32: -7.258064516 | NB32: -5.64516129 | NC32: -4.032258065 | ND32: -2.419354839 | NE32: -0.8064516129 | NF32: 0.8064516129 | NG32: 2.419354839 | NH32: 4.032258065 | NI32: 5.64516129 | NJ32: 7.258064516 | NK32: 8.870967742 | NL32: 10.48387097 | NM32: 12.09677419 | NN32: 13.70967742 | NO32: 15.32258065 | NP32: 16.93548387 | NQ32: 18.5483871 | NR32: 20.16129032 | NS32: 21.77419355 | NT32: 23.38709677 | NU32: 25 | NW32: x | NY32: =D32 -> -25 | NZ32: -23.38709677 | OA32: -21.77419355 | OB32: -20.16129032 | OC32: -18.5483871 | OD32: -16.93548387 | OE32: -15.32258065 | OF32: -13.70967742 | OG32: -12.09677419 | OH32: -10.48387097 | OI32: -8.870967742 | OJ32: -7.258064516 | OK32: -5.64516129 | OL32: -4.032258065 | OM32: -2.419354839 | ON32: -0.8064516129 | OO32: 0.8064516129 | OP32: 2.419354839 | OQ32: 4.032258065 | OR32: 5.64516129 | OS32: 7.258064516 | OT32: 8.870967742 | OU32: 10.48387097 | OV32: 12.09677419 | OW32: 13.70967742 | OX32: 15.32258065 | OY32: 16.93548387 | OZ32: 18.5483871 | PA32: 20.16129032 | PB32: 21.77419355 | PC32: 23.38709677 | PD32: 25
A34: 1 | B34: =($A34-16.5)*$P$4-$M$5 -> -25 | D34: =D32-$D$5 -> -25 | E34: -23.38709677 | F34: -21.77419355 | G34: -20.16129032 | H34: -18.5483871 | I34: -16.93548387 | J34: -15.32258065 | K34: -13.70967742 | L34: -12.09677419 | M34: -10.48387097 | N34: -8.870967742 | O34: -7.258064516 | P34: -5.64516129 | Q34: -4.032258065 | R34: -2.419354839 | S34: -0.8064516129 | T34: 0.8064516129 | U34: 2.419354839 | V34: 4.032258065 | W34: 5.64516129 | X34: 7.258064516 | Y34: 8.870967742 | Z34: 10.48387097 | AA34: 12.09677419 | AB34: 13.70967742 | AC34: 15.32258065 | AD34: 16.93548387 | AE34: 18.5483871 | AF34: 20.16129032 | AG34: 21.77419355 | AH34: 23.38709677 | AI34: 25 | AK34: =B34 -> -25 | AM34: =AM32-$D$6 -> -25 | AN34: -23.38709677 | AO34: -21.77419355 | AP34: -20.16129032 | AQ34: -18.5483871 | AR34: -16.93548387 | AS34: -15.32258065 | AT34: -13.70967742 | AU34: -12.09677419 | AV34: -10.48387097 | AW34: -8.870967742 | AX34: -7.258064516 | AY34: -5.64516129 | AZ34: -4.032258065 | BA34: -2.419354839 | BB34: -0.8064516129 | BC34: 0.8064516129 | BD34: 2.419354839 | BE34: 4.032258065 | BF34: 5.64516129 | BG34: 7.258064516 | BH34: 8.870967742 | BI34: 10.48387097 | BJ34: 12.09677419 | BK34: 13.70967742 | BL34: 15.32258065 | BM34: 16.93548387 | BN34: 18.5483871 | BO34: 20.16129032 | BP34: 21.77419355 | BQ34: 23.38709677 | BR34: 25 | BT34: =B34 -> -25 | BV34: =BV32-$D$7 -> -25 | BW34: -23.38709677 | BX34: -21.77419355 | BY34: -20.16129032 | BZ34: -18.5483871 | CA34: -16.93548387 | CB34: -15.32258065 | CC34: -13.70967742 | CD34: -12.09677419 | CE34: -10.48387097 | CF34: -8.870967742 | CG34: -7.258064516 | CH34: -5.64516129 | CI34: -4.032258065 | CJ34: -2.419354839 | CK34: -0.8064516129 | CL34: 0.8064516129 | CM34: 2.419354839 | CN34: 4.032258065 | CO34: 5.64516129 | CP34: 7.258064516 | CQ34: 8.870967742 | CR34: 10.48387097 | CS34: 12.09677419 | CT34: 13.70967742 | CU34: 15.32258065 | CV34: 16.93548387 | CW34: 18.5483871 | CX34: 20.16129032 | CY34: 21.77419355 | CZ34: 23.38709677 | DA34: 25 | DC34: =B34 -> -25 | DE34: =DE32-$D$8 -> -25 | DF34: -23.38709677 | DG34: -21.77419355 | DH34: -20.16129032 | DI34: -18.5483871 | DJ34: -16.93548387 | DK34: -15.32258065 | DL34: -13.70967742 | DM34: -12.09677419 | DN34: -10.48387097 | DO34: -8.870967742 | DP34: -7.258064516 | DQ34: -5.64516129 | DR34: -4.032258065 | DS34: -2.419354839 | DT34: -0.8064516129 | DU34: 0.8064516129 | DV34: 2.419354839 | DW34: 4.032258065 | DX34: 5.64516129 | DY34: 7.258064516 | DZ34: 8.870967742 | EA34: 10.48387097 | EB34: 12.09677419 | EC34: 13.70967742 | ED34: 15.32258065 | EE34: 16.93548387 | EF34: 18.5483871 | EG34: 20.16129032 | EH34: 21.77419355 | EI34: 23.38709677 | EJ34: 25 | EL34: =B34 -> -25 | EN34: =EN32-$D$9 -> -25 | EO34: -23.38709677 | EP34: -21.77419355 | EQ34: -20.16129032 | ER34: -18.5483871 | ES34: -16.93548387 | ET34: -15.32258065 | EU34: -13.70967742 | EV34: -12.09677419 | EW34: -10.48387097 | EX34: -8.870967742 | EY34: -7.258064516 | EZ34: -5.64516129 | FA34: -4.032258065 | FB34: -2.419354839 | FC34: -0.8064516129 | FD34: 0.8064516129 | FE34: 2.419354839 | FF34: 4.032258065 | FG34: 5.64516129 | FH34: 7.258064516 | FI34: 8.870967742 | FJ34: 10.48387097 | FK34: 12.09677419 | FL34: 13.70967742 | FM34: 15.32258065 | FN34: 16.93548387 | FO34: 18.5483871 | FP34: 20.16129032 | FQ34: 21.77419355 | FR34: 23.38709677 | FS34: 25 | FU34: =B34 -> -25 | FW34: =FW32-$D$10 -> -25 | FX34: -23.38709677 | FY34: -21.77419355 | FZ34: -20.16129032 | GA34: -18.5483871 | GB34: -16.93548387 | GC34: -15.32258065 | GD34: -13.70967742 | GE34: -12.09677419 | GF34: -10.48387097 | GG34: -8.870967742 | GH34: -7.258064516 | GI34: -5.64516129 | GJ34: -4.032258065 | GK34: -2.419354839 | GL34: -0.8064516129 | GM34: 0.8064516129 | GN34: 2.419354839 | GO34: 4.032258065 | GP34: 5.64516129 | GQ34: 7.258064516 | GR34: 8.870967742 | GS34: 10.48387097 | GT34: 12.09677419 | GU34: 13.70967742 | GV34: 15.32258065 | GW34: 16.93548387 | GX34: 18.5483871 | GY34: 20.16129032 | GZ34: 21.77419355 | HA34: 23.38709677 | HB34: 25 | HD34: =B34 -> -25 | HF34: =HF32-$D$11 -> -25 | HG34: -23.38709677 | HH34: -21.77419355 | HI34: -20.16129032 | HJ34: -18.5483871 | HK34: -16.93548387 | HL34: -15.32258065 | HM34: -13.70967742 | HN34: -12.09677419 | HO34: -10.48387097 | HP34: -8.870967742 | HQ34: -7.258064516 | HR34: -5.64516129 | HS34: -4.032258065 | HT34: -2.419354839 | HU34: -0.8064516129 | HV34: 0.8064516129 | HW34: 2.419354839 | HX34: 4.032258065 | HY34: 5.64516129 | HZ34: 7.258064516 | IA34: 8.870967742 | IB34: 10.48387097 | IC34: 12.09677419 | ID34: 13.70967742 | IE34: 15.32258065 | IF34: 16.93548387 | IG34: 18.5483871 | IH34: 20.16129032 | II34: 21.77419355 | IJ34: 23.38709677 | IK34: 25 | IM34: =B34 -> -25 | IO34: =IO32-$D$12 -> -25 | IP34: -23.38709677 | IQ34: -21.77419355 | IR34: -20.16129032 | IS34: -18.5483871 | IT34: -16.93548387 | IU34: -15.32258065 | IV34: -13.70967742 | IW34: -12.09677419 | IX34: -10.48387097 | IY34: -8.870967742 | IZ34: -7.258064516 | JA34: -5.64516129 | JB34: -4.032258065 | JC34: -2.419354839 | JD34: -0.8064516129 | JE34: 0.8064516129 | JF34: 2.419354839 | JG34: 4.032258065 | JH34: 5.64516129 | JI34: 7.258064516 | JJ34: 8.870967742 | JK34: 10.48387097 | JL34: 12.09677419 | JM34: 13.70967742 | JN34: 15.32258065 | JO34: 16.93548387 | JP34: 18.5483871 | JQ34: 20.16129032 | JR34: 21.77419355 | JS34: 23.38709677 | JT34: 25 | JV34: =B34 -> -25 | JX34: =JX32-$D$13 -> -25 | JY34: -23.38709677 | JZ34: -21.77419355 | KA34: -20.16129032 | KB34: -18.5483871 | KC34: -16.93548387 | KD34: -15.32258065 | KE34: -13.70967742 | KF34: -12.09677419 | KG34: -10.48387097 | KH34: -8.870967742 | KI34: -7.258064516 | KJ34: -5.64516129 | KK34: -4.032258065 | KL34: -2.419354839 | KM34: -0.8064516129 | KN34: 0.8064516129 | KO34: 2.419354839 | KP34: 4.032258065 | KQ34: 5.64516129 | KR34: 7.258064516 | KS34: 8.870967742 | KT34: 10.48387097 | KU34: 12.09677419 | KV34: 13.70967742 | KW34: 15.32258065 | KX34: 16.93548387 | KY34: 18.5483871 | KZ34: 20.16129032 | LA34: 21.77419355 | LB34: 23.38709677 | LC34: 25 | LE34: =B34 -> -25 | LG34: =LG32-$D$14 -> -25 | LH34: -23.38709677 | LI34: -21.77419355 | LJ34: -20.16129032 | LK34: -18.5483871 | LL34: -16.93548387 | LM34: -15.32258065 | LN34: -13.70967742 | LO34: -12.09677419 | LP34: -10.48387097 | LQ34: -8.870967742 | LR34: -7.258064516 | LS34: -5.64516129 | LT34: -4.032258065 | LU34: -2.419354839 | LV34: -0.8064516129 | LW34: 0.8064516129 | LX34: 2.419354839 | LY34: 4.032258065 | LZ34: 5.64516129 | MA34: 7.258064516 | MB34: 8.870967742 | MC34: 10.48387097 | MD34: 12.09677419 | ME34: 13.70967742 | MF34: 15.32258065 | MG34: 16.93548387 | MH34: 18.5483871 | MI34: 20.16129032 | MJ34: 21.77419355 | MK34: 23.38709677 | ML34: 25 | MN34: =B34 -> -25 | MP34: =MP32-$D$15 -> -25 | MQ34: -23.38709677 | MR34: -21.77419355 | MS34: -20.16129032 | MT34: -18.5483871 | MU34: -16.93548387 | MV34: -15.32258065 | MW34: -13.70967742 | MX34: -12.09677419 | MY34: -10.48387097 | MZ34: -8.870967742 | NA34: -7.258064516 | NB34: -5.64516129 | NC34: -4.032258065 | ND34: -2.419354839 | NE34: -0.8064516129 | NF34: 0.8064516129 | NG34: 2.419354839 | NH34: 4.032258065 | NI34: 5.64516129 | NJ34: 7.258064516 | NK34: 8.870967742 | NL34: 10.48387097 | NM34: 12.09677419 | NN34: 13.70967742 | NO34: 15.32258065 | NP34: 16.93548387 | NQ34: 18.5483871 | NR34: 20.16129032 | NS34: 21.77419355 | NT34: 23.38709677 | NU34: 25 | NW34: =B34 -> -25 | NY34: =NY32-$D$16 -> -25 | NZ34: -23.38709677 | OA34: -21.77419355 | OB34: -20.16129032 | OC34: -18.5483871 | OD34: -16.93548387 | OE34: -15.32258065 | OF34: -13.70967742 | OG34: -12.09677419 | OH34: -10.48387097 | OI34: -8.870967742 | OJ34: -7.258064516 | OK34: -5.64516129 | OL34: -4.032258065 | OM34: -2.419354839 | ON34: -0.8064516129 | OO34: 0.8064516129 | OP34: 2.419354839 | OQ34: 4.032258065 | OR34: 5.64516129 | OS34: 7.258064516 | OT34: 8.870967742 | OU34: 10.48387097 | OV34: 12.09677419 | OW34: 13.70967742 | OX34: 15.32258065 | OY34: 16.93548387 | OZ34: 18.5483871 | PA34: 20.16129032 | PB34: 21.77419355 | PC34: 23.38709677 | PD34: 25
A35: 2 | B35: -23.38709677 | D35: =D$34 -> -25 | E35: -23.38709677 | F35: -21.77419355 | G35: -20.16129032 | H35: -18.5483871 | I35: -16.93548387 | J35: -15.32258065 | K35: -13.70967742 | L35: -12.09677419 | M35: -10.48387097 | N35: =N$34 -> -8.870967742 | O35: -7.258064516 | P35: -5.64516129 | Q35: -4.032258065 | R35: -2.419354839 | S35: -0.8064516129 | T35: 0.8064516129 | U35: 2.419354839 | V35: 4.032258065 | W35: 5.64516129 | X35: =X$34 -> 7.258064516 | Y35: 8.870967742 | Z35: 10.48387097 | AA35: 12.09677419 | AB35: 13.70967742 | AC35: 15.32258065 | AD35: 16.93548387 | AE35: 18.5483871 | AF35: 20.16129032 | AG35: 21.77419355 | AH35: 23.38709677 | AI35: 25 | AK35: -23.38709677 | AM35: =AM$34 -> -25 | AN35: -23.38709677 | AO35: -21.77419355 | AP35: -20.16129032 | AQ35: -18.5483871 | AR35: -16.93548387 | AS35: -15.32258065 | AT35: -13.70967742 | AU35: -12.09677419 | AV35: -10.48387097 | AW35: -8.870967742 | AX35: -7.258064516 | AY35: -5.64516129 | AZ35: -4.032258065 | BA35: -2.419354839 | BB35: -0.8064516129 | BC35: =BC$34 -> 0.8064516129 | BD35: 2.419354839 | BE35: 4.032258065 | BF35: 5.64516129 | BG35: 7.258064516 | BH35: 8.870967742 | BI35: 10.48387097 | BJ35: 12.09677419 | BK35: 13.70967742 | BL35: 15.32258065 | BM35: 16.93548387 | BN35: 18.5483871 | BO35: 20.16129032 | BP35: 21.77419355 | BQ35: 23.38709677 | BR35: 25 | BT35: -23.38709677 | BV35: =BV$34 -> -25 | BW35: -23.38709677 | BX35: -21.77419355 | BY35: -20.16129032 | BZ35: -18.5483871 | CA35: -16.93548387 | CB35: -15.32258065 | CC35: -13.70967742 | CD35: -12.09677419 | CE35: -10.48387097 | CF35: -8.870967742 | CG35: -7.258064516 | CH35: -5.64516129 | CI35: -4.032258065 | CJ35: -2.419354839 | CK35: -0.8064516129 | CL35: =CL$34 -> 0.8064516129 | CM35: 2.419354839 | CN35: 4.032258065 | CO35: 5.64516129 | CP35: 7.258064516 | CQ35: 8.870967742 | CR35: 10.48387097 | CS35: 12.09677419 | CT35: 13.70967742 | CU35: 15.32258065 | CV35: 16.93548387 | CW35: 18.5483871 | CX35: 20.16129032 | CY35: 21.77419355 | CZ35: 23.38709677 | DA35: 25 | DC35: -23.38709677 | DE35: =DE$34 -> -25 | DF35: -23.38709677 | DG35: -21.77419355 | DH35: -20.16129032 | DI35: -18.5483871 | DJ35: -16.93548387 | DK35: -15.32258065 | DL35: -13.70967742 | DM35: -12.09677419 | DN35: -10.48387097 | DO35: -8.870967742 | DP35: -7.258064516 | DQ35: -5.64516129 | DR35: -4.032258065 | DS35: -2.419354839 | DT35: -0.8064516129 | DU35: =DU$34 -> 0.8064516129 | DV35: 2.419354839 | DW35: 4.032258065 | DX35: 5.64516129 | DY35: 7.258064516 | DZ35: 8.870967742 | EA35: 10.48387097 | EB35: 12.09677419 | EC35: 13.70967742 | ED35: 15.32258065 | EE35: 16.93548387 | EF35: 18.5483871 | EG35: 20.16129032 | EH35: 21.77419355 | EI35: 23.38709677 | EJ35: 25 | EL35: -23.38709677 | EN35: =EN$34 -> -25 | EO35: -23.38709677 | EP35: -21.77419355 | EQ35: -20.16129032 | ER35: -18.5483871 | ES35: -16.93548387 | ET35: -15.32258065 | EU35: -13.70967742 | EV35: -12.09677419 | EW35: -10.48387097 | EX35: -8.870967742 | EY35: -7.258064516 | EZ35: -5.64516129 | FA35: -4.032258065 | FB35: -2.419354839 | FC35: -0.8064516129 | FD35: =FD$34 -> 0.8064516129 | FE35: 2.419354839 | FF35: 4.032258065 | FG35: 5.64516129 | FH35: 7.258064516 | FI35: 8.870967742 | FJ35: 10.48387097 | FK35: 12.09677419 | FL35: 13.70967742 | FM35: 15.32258065 | FN35: 16.93548387 | FO35: 18.5483871 | FP35: 20.16129032 | FQ35: 21.77419355 | FR35: 23.38709677 | FS35: 25 | FU35: -23.38709677 | FW35: =FW$34 -> -25 | FX35: -23.38709677 | FY35: -21.77419355 | FZ35: -20.16129032 | GA35: -18.5483871 | GB35: -16.93548387 | GC35: -15.32258065 | GD35: -13.70967742 | GE35: -12.09677419 | GF35: -10.48387097 | GG35: -8.870967742 | GH35: -7.258064516 | GI35: -5.64516129 | GJ35: -4.032258065 | GK35: -2.419354839 | GL35: -0.8064516129 | GM35: =GM$34 -> 0.8064516129 | GN35: 2.419354839 | GO35: 4.032258065 | GP35: 5.64516129 | GQ35: 7.258064516 | GR35: 8.870967742 | GS35: 10.48387097 | GT35: 12.09677419 | GU35: 13.70967742 | GV35: 15.32258065 | GW35: 16.93548387 | GX35: 18.5483871 | GY35: 20.16129032 | GZ35: 21.77419355 | HA35: 23.38709677 | HB35: 25 | HD35: -23.38709677 | HF35: =HF$34 -> -25 | HG35: -23.38709677 | HH35: -21.77419355 | HI35: -20.16129032 | HJ35: -18.5483871 | HK35: -16.93548387 | HL35: -15.32258065 | HM35: -13.70967742 | HN35: -12.09677419 | HO35: -10.48387097 | HP35: -8.870967742 | HQ35: -7.258064516 | HR35: -5.64516129 | HS35: -4.032258065 | HT35: -2.419354839 | HU35: -0.8064516129 | HV35: =HV$34 -> 0.8064516129 | HW35: 2.419354839 | HX35: 4.032258065 | HY35: 5.64516129 | HZ35: 7.258064516 | IA35: 8.870967742 | IB35: 10.48387097 | IC35: 12.09677419 | ID35: 13.70967742 | IE35: 15.32258065 | IF35: 16.93548387 | IG35: 18.5483871 | IH35: 20.16129032 | II35: 21.77419355 | IJ35: 23.38709677 | IK35: 25 | IM35: -23.38709677 | IO35: =IO$34 -> -25 | IP35: -23.38709677 | IQ35: -21.77419355 | IR35: -20.16129032 | IS35: -18.5483871 | IT35: -16.93548387 | IU35: -15.32258065 | IV35: -13.70967742 | IW35: -12.09677419 | IX35: -10.48387097 | IY35: -8.870967742 | IZ35: -7.258064516 | JA35: -5.64516129 | JB35: -4.032258065 | JC35: -2.419354839 | JD35: -0.8064516129 | JE35: =JE$34 -> 0.8064516129 | JF35: 2.419354839 | JG35: 4.032258065 | JH35: 5.64516129 | JI35: 7.258064516 | JJ35: 8.870967742 | JK35: 10.48387097 | JL35: 12.09677419 | JM35: 13.70967742 | JN35: 15.32258065 | JO35: 16.93548387 | JP35: 18.5483871 | JQ35: 20.16129032 | JR35: 21.77419355 | JS35: 23.38709677 | JT35: 25 | JV35: -23.38709677 | JX35: =JX$34 -> -25 | JY35: -23.38709677 | JZ35: -21.77419355 | KA35: -20.16129032 | KB35: -18.5483871 | KC35: -16.93548387 | KD35: -15.32258065 | KE35: -13.70967742 | KF35: -12.09677419 | KG35: -10.48387097 | KH35: -8.870967742 | KI35: -7.258064516 | KJ35: -5.64516129 | KK35: -4.032258065 | KL35: -2.419354839 | KM35: -0.8064516129 | KN35: =KN$34 -> 0.8064516129 | KO35: 2.419354839 | KP35: 4.032258065 | KQ35: 5.64516129 | KR35: 7.258064516 | KS35: 8.870967742 | KT35: 10.48387097 | KU35: 12.09677419 | KV35: 13.70967742 | KW35: 15.32258065 | KX35: 16.93548387 | KY35: 18.5483871 | KZ35: 20.16129032 | LA35: 21.77419355 | LB35: 23.38709677 | LC35: 25 | LE35: -23.38709677 | LG35: =LG$34 -> -25 | LH35: -23.38709677 | LI35: -21.77419355 | LJ35: -20.16129032 | LK35: -18.5483871 | LL35: -16.93548387 | LM35: -15.32258065 | LN35: -13.70967742 | LO35: -12.09677419 | LP35: -10.48387097 | LQ35: -8.870967742 | LR35: -7.258064516 | LS35: -5.64516129 | LT35: -4.032258065 | LU35: -2.419354839 | LV35: -0.8064516129 | LW35: =LW$34 -> 0.8064516129 | LX35: 2.419354839 | LY35: 4.032258065 | LZ35: 5.64516129 | MA35: 7.258064516 | MB35: 8.870967742 | MC35: 10.48387097 | MD35: 12.09677419 | ME35: 13.70967742 | MF35: 15.32258065 | MG35: 16.93548387 | MH35: 18.5483871 | MI35: 20.16129032 | MJ35: 21.77419355 | MK35: 23.38709677 | ML35: 25 | MN35: -23.38709677 | MP35: =MP$34 -> -25 | MQ35: -23.38709677 | MR35: -21.77419355 | MS35: -20.16129032 | MT35: -18.5483871 | MU35: -16.93548387 | MV35: -15.32258065 | MW35: -13.70967742 | MX35: -12.09677419 | MY35: -10.48387097 | MZ35: -8.870967742 | NA35: -7.258064516 | NB35: -5.64516129 | NC35: -4.032258065 | ND35: -2.419354839 | NE35: -0.8064516129 | NF35: =NF$34 -> 0.8064516129 | NG35: 2.419354839 | NH35: 4.032258065 | NI35: 5.64516129 | NJ35: 7.258064516 | NK35: 8.870967742 | NL35: 10.48387097 | NM35: 12.09677419 | NN35: 13.70967742 | NO35: 15.32258065 | NP35: 16.93548387 | NQ35: 18.5483871 | NR35: 20.16129032 | NS35: 21.77419355 | NT35: 23.38709677 | NU35: 25 | NW35: -23.38709677 | NY35: =NY$34 -> -25 | NZ35: -23.38709677 | OA35: -21.77419355 | OB35: -20.16129032 | OC35: -18.5483871 | OD35: -16.93548387 | OE35: -15.32258065 | OF35: -13.70967742 | OG35: -12.09677419 | OH35: -10.48387097 | OI35: -8.870967742 | OJ35: -7.258064516 | OK35: -5.64516129 | OL35: -4.032258065 | OM35: -2.419354839 | ON35: -0.8064516129 | OO35: =OO$34 -> 0.8064516129 | OP35: 2.419354839 | OQ35: 4.032258065 | OR35: 5.64516129 | OS35: 7.258064516 | OT35: 8.870967742 | OU35: 10.48387097 | OV35: 12.09677419 | OW35: 13.70967742 | OX35: 15.32258065 | OY35: 16.93548387 | OZ35: 18.5483871 | PA35: 20.16129032 | PB35: 21.77419355 | PC35: 23.38709677 | PD35: 25
A36: 3 | B36: -21.77419355 | D36: -25 | E36: -23.38709677 | F36: -21.77419355 | G36: -20.16129032 | H36: -18.5483871 | I36: -16.93548387 | J36: -15.32258065 | K36: -13.70967742 | L36: -12.09677419 | M36: -10.48387097 | N36: -8.870967742 | O36: -7.258064516 | P36: -5.64516129 | Q36: -4.032258065 | R36: -2.419354839 | S36: -0.8064516129 | T36: 0.8064516129 | U36: 2.419354839 | V36: 4.032258065 | W36: 5.64516129 | X36: 7.258064516 | Y36: 8.870967742 | Z36: 10.48387097 | AA36: 12.09677419 | AB36: 13.70967742 | AC36: 15.32258065 | AD36: 16.93548387 | AE36: 18.5483871 | AF36: 20.16129032 | AG36: 21.77419355 | AH36: 23.38709677 | AI36: 25 | AK36: -21.77419355 | AM36: -25 | AN36: -23.38709677 | AO36: -21.77419355 | AP36: -20.16129032 | AQ36: -18.5483871 | AR36: -16.93548387 | AS36: -15.32258065 | AT36: -13.70967742 | AU36: -12.09677419 | AV36: -10.48387097 | AW36: -8.870967742 | AX36: -7.258064516 | AY36: -5.64516129 | AZ36: -4.032258065 | BA36: -2.419354839 | BB36: -0.8064516129 | BC36: 0.8064516129 | BD36: 2.419354839 | BE36: 4.032258065 | BF36: 5.64516129 | BG36: 7.258064516 | BH36: 8.870967742 | BI36: 10.48387097 | BJ36: 12.09677419 | BK36: 13.70967742 | BL36: 15.32258065 | BM36: 16.93548387 | BN36: 18.5483871 | BO36: 20.16129032 | BP36: 21.77419355 | BQ36: 23.38709677 | BR36: 25 | BT36: -21.77419355 | BV36: -25 | BW36: -23.38709677 | BX36: -21.77419355 | BY36: -20.16129032 | BZ36: -18.5483871 | CA36: -16.93548387 | CB36: -15.32258065 | CC36: -13.70967742 | CD36: -12.09677419 | CE36: -10.48387097 | CF36: -8.870967742 | CG36: -7.258064516 | CH36: -5.64516129 | CI36: -4.032258065 | CJ36: -2.419354839 | CK36: -0.8064516129 | CL36: 0.8064516129 | CM36: 2.419354839 | CN36: 4.032258065 | CO36: 5.64516129 | CP36: 7.258064516 | CQ36: 8.870967742 | CR36: 10.48387097 | CS36: 12.09677419 | CT36: 13.70967742 | CU36: 15.32258065 | CV36: 16.93548387 | CW36: 18.5483871 | CX36: 20.16129032 | CY36: 21.77419355 | CZ36: 23.38709677 | DA36: 25 | DC36: -21.77419355 | DE36: -25 | DF36: -23.38709677 | DG36: -21.77419355 | DH36: -20.16129032 | DI36: -18.5483871 | DJ36: -16.93548387 | DK36: -15.32258065 | DL36: -13.70967742 | DM36: -12.09677419 | DN36: -10.48387097 | DO36: -8.870967742 | DP36: -7.258064516 | DQ36: -5.64516129 | DR36: -4.032258065 | DS36: -2.419354839 | DT36: -0.8064516129 | DU36: 0.8064516129 | DV36: 2.419354839 | DW36: 4.032258065 | DX36: 5.64516129 | DY36: 7.258064516 | DZ36: 8.870967742 | EA36: 10.48387097 | EB36: 12.09677419 | EC36: 13.70967742 | ED36: 15.32258065 | EE36: 16.93548387 | EF36: 18.5483871 | EG36: 20.16129032 | EH36: 21.77419355 | EI36: 23.38709677 | EJ36: 25 | EL36: -21.77419355 | EN36: -25 | EO36: -23.38709677 | EP36: -21.77419355 | EQ36: -20.16129032 | ER36: -18.5483871 | ES36: -16.93548387 | ET36: -15.32258065 | EU36: -13.70967742 | EV36: -12.09677419 | EW36: -10.48387097 | EX36: -8.870967742 | EY36: -7.258064516 | EZ36: -5.64516129 | FA36: -4.032258065 | FB36: -2.419354839 | FC36: -0.8064516129 | FD36: 0.8064516129 | FE36: 2.419354839 | FF36: 4.032258065 | FG36: 5.64516129 | FH36: 7.258064516 | FI36: 8.870967742 | FJ36: 10.48387097 | FK36: 12.09677419 | FL36: 13.70967742 | FM36: 15.32258065 | FN36: 16.93548387 | FO36: 18.5483871 | FP36: 20.16129032 | FQ36: 21.77419355 | FR36: 23.38709677 | FS36: 25 | FU36: -21.77419355 | FW36: -25 | FX36: -23.38709677 | FY36: -21.77419355 | FZ36: -20.16129032 | GA36: -18.5483871 | GB36: -16.93548387 | GC36: -15.32258065 | GD36: -13.70967742 | GE36: -12.09677419 | GF36: -10.48387097 | GG36: -8.870967742 | GH36: -7.258064516 | GI36: -5.64516129 | GJ36: -4.032258065 | GK36: -2.419354839 | GL36: -0.8064516129 | GM36: 0.8064516129 | GN36: 2.419354839 | GO36: 4.032258065 | GP36: 5.64516129 | GQ36: 7.258064516 | GR36: 8.870967742 | GS36: 10.48387097 | GT36: 12.09677419 | GU36: 13.70967742 | GV36: 15.32258065 | GW36: 16.93548387 | GX36: 18.5483871 | GY36: 20.16129032 | GZ36: 21.77419355 | HA36: 23.38709677 | HB36: 25 | HD36: -21.77419355 | HF36: -25 | HG36: -23.38709677 | HH36: -21.77419355 | HI36: -20.16129032 | HJ36: -18.5483871 | HK36: -16.93548387 | HL36: -15.32258065 | HM36: -13.70967742 | HN36: -12.09677419 | HO36: -10.48387097 | HP36: -8.870967742 | HQ36: -7.258064516 | HR36: -5.64516129 | HS36: -4.032258065 | HT36: -2.419354839 | HU36: -0.8064516129 | HV36: 0.8064516129 | HW36: 2.419354839 | HX36: 4.032258065 | HY36: 5.64516129 | HZ36: 7.258064516 | IA36: 8.870967742 | IB36: 10.48387097 | IC36: 12.09677419 | ID36: 13.70967742 | IE36: 15.32258065 | IF36: 16.93548387 | IG36: 18.5483871 | IH36: 20.16129032 | II36: 21.77419355 | IJ36: 23.38709677 | IK36: 25 | IM36: -21.77419355 | IO36: -25 | IP36: -23.38709677 | IQ36: -21.77419355 | IR36: -20.16129032 | IS36: -18.5483871 | IT36: -16.93548387 | IU36: -15.32258065 | IV36: -13.70967742 | IW36: -12.09677419 | IX36: -10.48387097 | IY36: -8.870967742 | IZ36: -7.258064516 | JA36: -5.64516129 | JB36: -4.032258065 | JC36: -2.419354839 | JD36: -0.8064516129 | JE36: 0.8064516129 | JF36: 2.419354839 | JG36: 4.032258065 | JH36: 5.64516129 | JI36: 7.258064516 | JJ36: 8.870967742 | JK36: 10.48387097 | JL36: 12.09677419 | JM36: 13.70967742 | JN36: 15.32258065 | JO36: 16.93548387 | JP36: 18.5483871 | JQ36: 20.16129032 | JR36: 21.77419355 | JS36: 23.38709677 | JT36: 25 | JV36: -21.77419355 | JX36: -25 | JY36: -23.38709677 | JZ36: -21.77419355 | KA36: -20.16129032 | KB36: -18.5483871 | KC36: -16.93548387 | KD36: -15.32258065 | KE36: -13.70967742 | KF36: -12.09677419 | KG36: -10.48387097 | KH36: -8.870967742 | KI36: -7.258064516 | KJ36: -5.64516129 | KK36: -4.032258065 | KL36: -2.419354839 | KM36: -0.8064516129 | KN36: 0.8064516129 | KO36: 2.419354839 | KP36: 4.032258065 | KQ36: 5.64516129 | KR36: 7.258064516 | KS36: 8.870967742 | KT36: 10.48387097 | KU36: 12.09677419 | KV36: 13.70967742 | KW36: 15.32258065 | KX36: 16.93548387 | KY36: 18.5483871 | KZ36: 20.16129032 | LA36: 21.77419355 | LB36: 23.38709677 | LC36: 25 | LE36: -21.77419355 | LG36: -25 | LH36: -23.38709677 | LI36: -21.77419355 | LJ36: -20.16129032 | LK36: -18.5483871 | LL36: -16.93548387 | LM36: -15.32258065 | LN36: -13.70967742 | LO36: -12.09677419 | LP36: -10.48387097 | LQ36: -8.870967742 | LR36: -7.258064516 | LS36: -5.64516129 | LT36: -4.032258065 | LU36: -2.419354839 | LV36: -0.8064516129 | LW36: 0.8064516129 | LX36: 2.419354839 | LY36: 4.032258065 | LZ36: 5.64516129 | MA36: 7.258064516 | MB36: 8.870967742 | MC36: 10.48387097 | MD36: 12.09677419 | ME36: 13.70967742 | MF36: 15.32258065 | MG36: 16.93548387 | MH36: 18.5483871 | MI36: 20.16129032 | MJ36: 21.77419355 | MK36: 23.38709677 | ML36: 25 | MN36: -21.77419355 | MP36: -25 | MQ36: -23.38709677 | MR36: -21.77419355 | MS36: -20.16129032 | MT36: -18.5483871 | MU36: -16.93548387 | MV36: -15.32258065 | MW36: -13.70967742 | MX36: -12.09677419 | MY36: -10.48387097 | MZ36: -8.870967742 | NA36: -7.258064516 | NB36: -5.64516129 | NC36: -4.032258065 | ND36: -2.419354839 | NE36: -0.8064516129 | NF36: 0.8064516129 | NG36: 2.419354839 | NH36: 4.032258065 | NI36: 5.64516129 | NJ36: 7.258064516 | NK36: 8.870967742 | NL36: 10.48387097 | NM36: 12.09677419 | NN36: 13.70967742 | NO36: 15.32258065 | NP36: 16.93548387 | NQ36: 18.5483871 | NR36: 20.16129032 | NS36: 21.77419355 | NT36: 23.38709677 | NU36: 25 | NW36: -21.77419355 | NY36: -25 | NZ36: -23.38709677 | OA36: -21.77419355 | OB36: -20.16129032 | OC36: -18.5483871 | OD36: -16.93548387 | OE36: -15.32258065 | OF36: -13.70967742 | OG36: -12.09677419 | OH36: -10.48387097 | OI36: -8.870967742 | OJ36: -7.258064516 | OK36: -5.64516129 | OL36: -4.032258065 | OM36: -2.419354839 | ON36: -0.8064516129 | OO36: 0.8064516129 | OP36: 2.419354839 | OQ36: 4.032258065 | OR36: 5.64516129 | OS36: 7.258064516 | OT36: 8.870967742 | OU36: 10.48387097 | OV36: 12.09677419 | OW36: 13.70967742 | OX36: 15.32258065 | OY36: 16.93548387 | OZ36: 18.5483871 | PA36: 20.16129032 | PB36: 21.77419355 | PC36: 23.38709677 | PD36: 25
A37: 4 | B37: -20.16129032 | D37: -25 | E37: -23.38709677 | F37: -21.77419355 | G37: -20.16129032 | H37: -18.5483871 | I37: -16.93548387 | J37: -15.32258065 | K37: -13.70967742 | L37: -12.09677419 | M37: -10.48387097 | N37: -8.870967742 | O37: -7.258064516 | P37: -5.64516129 | Q37: -4.032258065 | R37: -2.419354839 | S37: -0.8064516129 | T37: 0.8064516129 | U37: 2.419354839 | V37: 4.032258065 | W37: 5.64516129 | X37: 7.258064516 | Y37: 8.870967742 | Z37: 10.48387097 | AA37: 12.09677419 | AB37: 13.70967742 | AC37: 15.32258065 | AD37: 16.93548387 | AE37: 18.5483871 | AF37: 20.16129032 | AG37: 21.77419355 | AH37: 23.38709677 | AI37: 25 | AK37: -20.16129032 | AM37: -25 | AN37: -23.38709677 | AO37: -21.77419355 | AP37: -20.16129032 | AQ37: -18.5483871 | AR37: -16.93548387 | AS37: -15.32258065 | AT37: -13.70967742 | AU37: -12.09677419 | AV37: -10.48387097 | AW37: -8.870967742 | AX37: -7.258064516 | AY37: -5.64516129 | AZ37: -4.032258065 | BA37: -2.419354839 | BB37: -0.8064516129 | BC37: 0.8064516129 | BD37: 2.419354839 | BE37: 4.032258065 | BF37: 5.64516129 | BG37: 7.258064516 | BH37: 8.870967742 | BI37: 10.48387097 | BJ37: 12.09677419 | BK37: 13.70967742 | BL37: 15.32258065 | BM37: 16.93548387 | BN37: 18.5483871 | BO37: 20.16129032 | BP37: 21.77419355 | BQ37: 23.38709677 | BR37: 25 | BT37: -20.16129032 | BV37: -25 | BW37: -23.38709677 | BX37: -21.77419355 | BY37: -20.16129032 | BZ37: -18.5483871 | CA37: -16.93548387 | CB37: -15.32258065 | CC37: -13.70967742 | CD37: -12.09677419 | CE37: -10.48387097 | CF37: -8.870967742 | CG37: -7.258064516 | CH37: -5.64516129 | CI37: -4.032258065 | CJ37: -2.419354839 | CK37: -0.8064516129 | CL37: 0.8064516129 | CM37: 2.419354839 | CN37: 4.032258065 | CO37: 5.64516129 | CP37: 7.258064516 | CQ37: 8.870967742 | CR37: 10.48387097 | CS37: 12.09677419 | CT37: 13.70967742 | CU37: 15.32258065 | CV37: 16.93548387 | CW37: 18.5483871 | CX37: 20.16129032 | CY37: 21.77419355 | CZ37: 23.38709677 | DA37: 25 | DC37: -20.16129032 | DE37: -25 | DF37: -23.38709677 | DG37: -21.77419355 | DH37: -20.16129032 | DI37: -18.5483871 | DJ37: -16.93548387 | DK37: -15.32258065 | DL37: -13.70967742 | DM37: -12.09677419 | DN37: -10.48387097 | DO37: -8.870967742 | DP37: -7.258064516 | DQ37: -5.64516129 | DR37: -4.032258065 | DS37: -2.419354839 | DT37: -0.8064516129 | DU37: 0.8064516129 | DV37: 2.419354839 | DW37: 4.032258065 | DX37: 5.64516129 | DY37: 7.258064516 | DZ37: 8.870967742 | EA37: 10.48387097 | EB37: 12.09677419 | EC37: 13.70967742 | ED37: 15.32258065 | EE37: 16.93548387 | EF37: 18.5483871 | EG37: 20.16129032 | EH37: 21.77419355 | EI37: 23.38709677 | EJ37: 25 | EL37: -20.16129032 | EN37: -25 | EO37: -23.38709677 | EP37: -21.77419355 | EQ37: -20.16129032 | ER37: -18.5483871 | ES37: -16.93548387 | ET37: -15.32258065 | EU37: -13.70967742 | EV37: -12.09677419 | EW37: -10.48387097 | EX37: -8.870967742 | EY37: -7.258064516 | EZ37: -5.64516129 | FA37: -4.032258065 | FB37: -2.419354839 | FC37: -0.8064516129 | FD37: 0.8064516129 | FE37: 2.419354839 | FF37: 4.032258065 | FG37: 5.64516129 | FH37: 7.258064516 | FI37: 8.870967742 | FJ37: 10.48387097 | FK37: 12.09677419 | FL37: 13.70967742 | FM37: 15.32258065 | FN37: 16.93548387 | FO37: 18.5483871 | FP37: 20.16129032 | FQ37: 21.77419355 | FR37: 23.38709677 | FS37: 25 | FU37: -20.16129032 | FW37: -25 | FX37: -23.38709677 | FY37: -21.77419355 | FZ37: -20.16129032 | GA37: -18.5483871 | GB37: -16.93548387 | GC37: -15.32258065 | GD37: -13.70967742 | GE37: -12.09677419 | GF37: -10.48387097 | GG37: -8.870967742 | GH37: -7.258064516 | GI37: -5.64516129 | GJ37: -4.032258065 | GK37: -2.419354839 | GL37: -0.8064516129 | GM37: 0.8064516129 | GN37: 2.419354839 | GO37: 4.032258065 | GP37: 5.64516129 | GQ37: 7.258064516 | GR37: 8.870967742 | GS37: 10.48387097 | GT37: 12.09677419 | GU37: 13.70967742 | GV37: 15.32258065 | GW37: 16.93548387 | GX37: 18.5483871 | GY37: 20.16129032 | GZ37: 21.77419355 | HA37: 23.38709677 | HB37: 25 | HD37: -20.16129032 | HF37: -25 | HG37: -23.38709677 | HH37: -21.77419355 | HI37: -20.16129032 | HJ37: -18.5483871 | HK37: -16.93548387 | HL37: -15.32258065 | HM37: -13.70967742 | HN37: -12.09677419 | HO37: -10.48387097 | HP37: -8.870967742 | HQ37: -7.258064516 | HR37: -5.64516129 | HS37: -4.032258065 | HT37: -2.419354839 | HU37: -0.8064516129 | HV37: 0.8064516129 | HW37: 2.419354839 | HX37: 4.032258065 | HY37: 5.64516129 | HZ37: 7.258064516 | IA37: 8.870967742 | IB37: 10.48387097 | IC37: 12.09677419 | ID37: 13.70967742 | IE37: 15.32258065 | IF37: 16.93548387 | IG37: 18.5483871 | IH37: 20.16129032 | II37: 21.77419355 | IJ37: 23.38709677 | IK37: 25 | IM37: -20.16129032 | IO37: -25 | IP37: -23.38709677 | IQ37: -21.77419355 | IR37: -20.16129032 | IS37: -18.5483871 | IT37: -16.93548387 | IU37: -15.32258065 | IV37: -13.70967742 | IW37: -12.09677419 | IX37: -10.48387097 | IY37: -8.870967742 | IZ37: -7.258064516 | JA37: -5.64516129 | JB37: -4.032258065 | JC37: -2.419354839 | JD37: -0.8064516129 | JE37: 0.8064516129 | JF37: 2.419354839 | JG37: 4.032258065 | JH37: 5.64516129 | JI37: 7.258064516 | JJ37: 8.870967742 | JK37: 10.48387097 | JL37: 12.09677419 | JM37: 13.70967742 | JN37: 15.32258065 | JO37: 16.93548387 | JP37: 18.5483871 | JQ37: 20.16129032 | JR37: 21.77419355 | JS37: 23.38709677 | JT37: 25 | JV37: -20.16129032 | JX37: -25 | JY37: -23.38709677 | JZ37: -21.77419355 | KA37: -20.16129032 | KB37: -18.5483871 | KC37: -16.93548387 | KD37: -15.32258065 | KE37: -13.70967742 | KF37: -12.09677419 | KG37: -10.48387097 | KH37: -8.870967742 | KI37: -7.258064516 | KJ37: -5.64516129 | KK37: -4.032258065 | KL37: -2.419354839 | KM37: -0.8064516129 | KN37: 0.8064516129 | KO37: 2.419354839 | KP37: 4.032258065 | KQ37: 5.64516129 | KR37: 7.258064516 | KS37: 8.870967742 | KT37: 10.48387097 | KU37: 12.09677419 | KV37: 13.70967742 | KW37: 15.32258065 | KX37: 16.93548387 | KY37: 18.5483871 | KZ37: 20.16129032 | LA37: 21.77419355 | LB37: 23.38709677 | LC37: 25 | LE37: -20.16129032 | LG37: -25 | LH37: -23.38709677 | LI37: -21.77419355 | LJ37: -20.16129032 | LK37: -18.5483871 | LL37: -16.93548387 | LM37: -15.32258065 | LN37: -13.70967742 | LO37: -12.09677419 | LP37: -10.48387097 | LQ37: -8.870967742 | LR37: -7.258064516 | LS37: -5.64516129 | LT37: -4.032258065 | LU37: -2.419354839 | LV37: -0.8064516129 | LW37: 0.8064516129 | LX37: 2.419354839 | LY37: 4.032258065 | LZ37: 5.64516129 | MA37: 7.258064516 | MB37: 8.870967742 | MC37: 10.48387097 | MD37: 12.09677419 | ME37: 13.70967742 | MF37: 15.32258065 | MG37: 16.93548387 | MH37: 18.5483871 | MI37: 20.16129032 | MJ37: 21.77419355 | MK37: 23.38709677 | ML37: 25 | MN37: -20.16129032 | MP37: -25 | MQ37: -23.38709677 | MR37: -21.77419355 | MS37: -20.16129032 | MT37: -18.5483871 | MU37: -16.93548387 | MV37: -15.32258065 | MW37: -13.70967742 | MX37: -12.09677419 | MY37: -10.48387097 | MZ37: -8.870967742 | NA37: -7.258064516 | NB37: -5.64516129 | NC37: -4.032258065 | ND37: -2.419354839 | NE37: -0.8064516129 | NF37: 0.8064516129 | NG37: 2.419354839 | NH37: 4.032258065 | NI37: 5.64516129 | NJ37: 7.258064516 | NK37: 8.870967742 | NL37: 10.48387097 | NM37: 12.09677419 | NN37: 13.70967742 | NO37: 15.32258065 | NP37: 16.93548387 | NQ37: 18.5483871 | NR37: 20.16129032 | NS37: 21.77419355 | NT37: 23.38709677 | NU37: 25 | NW37: -20.16129032 | NY37: -25 | NZ37: -23.38709677 | OA37: -21.77419355 | OB37: -20.16129032 | OC37: -18.5483871 | OD37: -16.93548387 | OE37: -15.32258065 | OF37: -13.70967742 | OG37: -12.09677419 | OH37: -10.48387097 | OI37: -8.870967742 | OJ37: -7.258064516 | OK37: -5.64516129 | OL37: -4.032258065 | OM37: -2.419354839 | ON37: -0.8064516129 | OO37: 0.8064516129 | OP37: 2.419354839 | OQ37: 4.032258065 | OR37: 5.64516129 | OS37: 7.258064516 | OT37: 8.870967742 | OU37: 10.48387097 | OV37: 12.09677419 | OW37: 13.70967742 | OX37: 15.32258065 | OY37: 16.93548387 | OZ37: 18.5483871 | PA37: 20.16129032 | PB37: 21.77419355 | PC37: 23.38709677 | PD37: 25
A38: 5 | B38: -18.5483871 | D38: -25 | E38: -23.38709677 | F38: -21.77419355 | G38: -20.16129032 | H38: -18.5483871 | I38: -16.93548387 | J38: -15.32258065 | K38: -13.70967742 | L38: -12.09677419 | M38: -10.48387097 | N38: -8.870967742 | O38: -7.258064516 | P38: -5.64516129 | Q38: -4.032258065 | R38: -2.419354839 | S38: -0.8064516129 | T38: 0.8064516129 | U38: 2.419354839 | V38: 4.032258065 | W38: 5.64516129 | X38: 7.258064516 | Y38: 8.870967742 | Z38: 10.48387097 | AA38: 12.09677419 | AB38: 13.70967742 | AC38: 15.32258065 | AD38: 16.93548387 | AE38: 18.5483871 | AF38: 20.16129032 | AG38: 21.77419355 | AH38: 23.38709677 | AI38: 25 | AK38: -18.5483871 | AM38: -25 | AN38: -23.38709677 | AO38: -21.77419355 | AP38: -20.16129032 | AQ38: -18.5483871 | AR38: -16.93548387 | AS38: -15.32258065 | AT38: -13.70967742 | AU38: -12.09677419 | AV38: -10.48387097 | AW38: -8.870967742 | AX38: -7.258064516 | AY38: -5.64516129 | AZ38: -4.032258065 | BA38: -2.419354839 | BB38: -0.8064516129 | BC38: 0.8064516129 | BD38: 2.419354839 | BE38: 4.032258065 | BF38: 5.64516129 | BG38: 7.258064516 | BH38: 8.870967742 | BI38: 10.48387097 | BJ38: 12.09677419 | BK38: 13.70967742 | BL38: 15.32258065 | BM38: 16.93548387 | BN38: 18.5483871 | BO38: 20.16129032 | BP38: 21.77419355 | BQ38: 23.38709677 | BR38: 25 | BT38: -18.5483871 | BV38: -25 | BW38: -23.38709677 | BX38: -21.77419355 | BY38: -20.16129032 | BZ38: -18.5483871 | CA38: -16.93548387 | CB38: -15.32258065 | CC38: -13.70967742 | CD38: -12.09677419 | CE38: -10.48387097 | CF38: -8.870967742 | CG38: -7.258064516 | CH38: -5.64516129 | CI38: -4.032258065 | CJ38: -2.419354839 | CK38: -0.8064516129 | CL38: 0.8064516129 | CM38: 2.419354839 | CN38: 4.032258065 | CO38: 5.64516129 | CP38: 7.258064516 | CQ38: 8.870967742 | CR38: 10.48387097 | CS38: 12.09677419 | CT38: 13.70967742 | CU38: 15.32258065 | CV38: 16.93548387 | CW38: 18.5483871 | CX38: 20.16129032 | CY38: 21.77419355 | CZ38: 23.38709677 | DA38: 25 | DC38: -18.5483871 | DE38: -25 | DF38: -23.38709677 | DG38: -21.77419355 | DH38: -20.16129032 | DI38: -18.5483871 | DJ38: -16.93548387 | DK38: -15.32258065 | DL38: -13.70967742 | DM38: -12.09677419 | DN38: -10.48387097 | DO38: -8.870967742 | DP38: -7.258064516 | DQ38: -5.64516129 | DR38: -4.032258065 | DS38: -2.419354839 | DT38: -0.8064516129 | DU38: 0.8064516129 | DV38: 2.419354839 | DW38: 4.032258065 | DX38: 5.64516129 | DY38: 7.258064516 | DZ38: 8.870967742 | EA38: 10.48387097 | EB38: 12.09677419 | EC38: 13.70967742 | ED38: 15.32258065 | EE38: 16.93548387 | EF38: 18.5483871 | EG38: 20.16129032 | EH38: 21.77419355 | EI38: 23.38709677 | EJ38: 25 | EL38: -18.5483871 | EN38: -25 | EO38: -23.38709677 | EP38: -21.77419355 | EQ38: -20.16129032 | ER38: -18.5483871 | ES38: -16.93548387 | ET38: -15.32258065 | EU38: -13.70967742 | EV38: -12.09677419 | EW38: -10.48387097 | EX38: -8.870967742 | EY38: -7.258064516 | EZ38: -5.64516129 | FA38: -4.032258065 | FB38: -2.419354839 | FC38: -0.8064516129 | FD38: 0.8064516129 | FE38: 2.419354839 | FF38: 4.032258065 | FG38: 5.64516129 | FH38: 7.258064516 | FI38: 8.870967742 | FJ38: 10.48387097 | FK38: 12.09677419 | FL38: 13.70967742 | FM38: 15.32258065 | FN38: 16.93548387 | FO38: 18.5483871 | FP38: 20.16129032 | FQ38: 21.77419355 | FR38: 23.38709677 | FS38: 25 | FU38: -18.5483871 | FW38: -25 | FX38: -23.38709677 | FY38: -21.77419355 | FZ38: -20.16129032 | GA38: -18.5483871 | GB38: -16.93548387 | GC38: -15.32258065 | GD38: -13.70967742 | GE38: -12.09677419 | GF38: -10.48387097 | GG38: -8.870967742 | GH38: -7.258064516 | GI38: -5.64516129 | GJ38: -4.032258065 | GK38: -2.419354839 | GL38: -0.8064516129 | GM38: 0.8064516129 | GN38: 2.419354839 | GO38: 4.032258065 | GP38: 5.64516129 | GQ38: 7.258064516 | GR38: 8.870967742 | GS38: 10.48387097 | GT38: 12.09677419 | GU38: 13.70967742 | GV38: 15.32258065 | GW38: 16.93548387 | GX38: 18.5483871 | GY38: 20.16129032 | GZ38: 21.77419355 | HA38: 23.38709677 | HB38: 25 | HD38: -18.5483871 | HF38: -25 | HG38: -23.38709677 | HH38: -21.77419355 | HI38: -20.16129032 | HJ38: -18.5483871 | HK38: -16.93548387 | HL38: -15.32258065 | HM38: -13.70967742 | HN38: -12.09677419 | HO38: -10.48387097 | HP38: -8.870967742 | HQ38: -7.258064516 | HR38: -5.64516129 | HS38: -4.032258065 | HT38: -2.419354839 | HU38: -0.8064516129 | HV38: 0.8064516129 | HW38: 2.419354839 | HX38: 4.032258065 | HY38: 5.64516129 | HZ38: 7.258064516 | IA38: 8.870967742 | IB38: 10.48387097 | IC38: 12.09677419 | ID38: 13.70967742 | IE38: 15.32258065 | IF38: 16.93548387 | IG38: 18.5483871 | IH38: 20.16129032 | II38: 21.77419355 | IJ38: 23.38709677 | IK38: 25 | IM38: -18.5483871 | IO38: -25 | IP38: -23.38709677 | IQ38: -21.77419355 | IR38: -20.16129032 | IS38: -18.5483871 | IT38: -16.93548387 | IU38: -15.32258065 | IV38: -13.70967742 | IW38: -12.09677419 | IX38: -10.48387097 | IY38: -8.870967742 | IZ38: -7.258064516 | JA38: -5.64516129 | JB38: -4.032258065 | JC38: -2.419354839 | JD38: -0.8064516129 | JE38: 0.8064516129 | JF38: 2.419354839 | JG38: 4.032258065 | JH38: 5.64516129 | JI38: 7.258064516 | JJ38: 8.870967742 | JK38: 10.48387097 | JL38: 12.09677419 | JM38: 13.70967742 | JN38: 15.32258065 | JO38: 16.93548387 | JP38: 18.5483871 | JQ38: 20.16129032 | JR38: 21.77419355 | JS38: 23.38709677 | JT38: 25 | JV38: -18.5483871 | JX38: -25 | JY38: -23.38709677 | JZ38: -21.77419355 | KA38: -20.16129032 | KB38: -18.5483871 | KC38: -16.93548387 | KD38: -15.32258065 | KE38: -13.70967742 | KF38: -12.09677419 | KG38: -10.48387097 | KH38: -8.870967742 | KI38: -7.258064516 | KJ38: -5.64516129 | KK38: -4.032258065 | KL38: -2.419354839 | KM38: -0.8064516129 | KN38: 0.8064516129 | KO38: 2.419354839 | KP38: 4.032258065 | KQ38: 5.64516129 | KR38: 7.258064516 | KS38: 8.870967742 | KT38: 10.48387097 | KU38: 12.09677419 | KV38: 13.70967742 | KW38: 15.32258065 | KX38: 16.93548387 | KY38: 18.5483871 | KZ38: 20.16129032 | LA38: 21.77419355 | LB38: 23.38709677 | LC38: 25 | LE38: -18.5483871 | LG38: -25 | LH38: -23.38709677 | LI38: -21.77419355 | LJ38: -20.16129032 | LK38: -18.5483871 | LL38: -16.93548387 | LM38: -15.32258065 | LN38: -13.70967742 | LO38: -12.09677419 | LP38: -10.48387097 | LQ38: -8.870967742 | LR38: -7.258064516 | LS38: -5.64516129 | LT38: -4.032258065 | LU38: -2.419354839 | LV38: -0.8064516129 | LW38: 0.8064516129 | LX38: 2.419354839 | LY38: 4.032258065 | LZ38: 5.64516129 | MA38: 7.258064516 | MB38: 8.870967742 | MC38: 10.48387097 | MD38: 12.09677419 | ME38: 13.70967742 | MF38: 15.32258065 | MG38: 16.93548387 | MH38: 18.5483871 | MI38: 20.16129032 | MJ38: 21.77419355 | MK38: 23.38709677 | ML38: 25 | MN38: -18.5483871 | MP38: -25 | MQ38: -23.38709677 | MR38: -21.77419355 | MS38: -20.16129032 | MT38: -18.5483871 | MU38: -16.93548387 | MV38: -15.32258065 | MW38: -13.70967742 | MX38: -12.09677419 | MY38: -10.48387097 | MZ38: -8.870967742 | NA38: -7.258064516 | NB38: -5.64516129 | NC38: -4.032258065 | ND38: -2.419354839 | NE38: -0.8064516129 | NF38: 0.8064516129 | NG38: 2.419354839 | NH38: 4.032258065 | NI38: 5.64516129 | NJ38: 7.258064516 | NK38: 8.870967742 | NL38: 10.48387097 | NM38: 12.09677419 | NN38: 13.70967742 | NO38: 15.32258065 | NP38: 16.93548387 | NQ38: 18.5483871 | NR38: 20.16129032 | NS38: 21.77419355 | NT38: 23.38709677 | NU38: 25 | NW38: -18.5483871 | NY38: -25 | NZ38: -23.38709677 | OA38: -21.77419355 | OB38: -20.16129032 | OC38: -18.5483871 | OD38: -16.93548387 | OE38: -15.32258065 | OF38: -13.70967742 | OG38: -12.09677419 | OH38: -10.48387097 | OI38: -8.870967742 | OJ38: -7.258064516 | OK38: -5.64516129 | OL38: -4.032258065 | OM38: -2.419354839 | ON38: -0.8064516129 | OO38: 0.8064516129 | OP38: 2.419354839 | OQ38: 4.032258065 | OR38: 5.64516129 | OS38: 7.258064516 | OT38: 8.870967742 | OU38: 10.48387097 | OV38: 12.09677419 | OW38: 13.70967742 | OX38: 15.32258065 | OY38: 16.93548387 | OZ38: 18.5483871 | PA38: 20.16129032 | PB38: 21.77419355 | PC38: 23.38709677 | PD38: 25
A39: 6 | B39: -16.93548387 | D39: -25 | E39: -23.38709677 | F39: -21.77419355 | G39: -20.16129032 | H39: -18.5483871 | I39: -16.93548387 | J39: -15.32258065 | K39: -13.70967742 | L39: -12.09677419 | M39: -10.48387097 | N39: -8.870967742 | O39: -7.258064516 | P39: -5.64516129 | Q39: -4.032258065 | R39: -2.419354839 | S39: -0.8064516129 | T39: 0.8064516129 | U39: 2.419354839 | V39: 4.032258065 | W39: 5.64516129 | X39: 7.258064516 | Y39: 8.870967742 | Z39: 10.48387097 | AA39: 12.09677419 | AB39: 13.70967742 | AC39: 15.32258065 | AD39: 16.93548387 | AE39: 18.5483871 | AF39: 20.16129032 | AG39: 21.77419355 | AH39: 23.38709677 | AI39: 25 | AK39: -16.93548387 | AM39: -25 | AN39: -23.38709677 | AO39: -21.77419355 | AP39: -20.16129032 | AQ39: -18.5483871 | AR39: -16.93548387 | AS39: -15.32258065 | AT39: -13.70967742 | AU39: -12.09677419 | AV39: -10.48387097 | AW39: -8.870967742 | AX39: -7.258064516 | AY39: -5.64516129 | AZ39: -4.032258065 | BA39: -2.419354839 | BB39: -0.8064516129 | BC39: 0.8064516129 | BD39: 2.419354839 | BE39: 4.032258065 | BF39: 5.64516129 | BG39: 7.258064516 | BH39: 8.870967742 | BI39: 10.48387097 | BJ39: 12.09677419 | BK39: 13.70967742 | BL39: 15.32258065 | BM39: 16.93548387 | BN39: 18.5483871 | BO39: 20.16129032 | BP39: 21.77419355 | BQ39: 23.38709677 | BR39: 25 | BT39: -16.93548387 | BV39: -25 | BW39: -23.38709677 | BX39: -21.77419355 | BY39: -20.16129032 | BZ39: -18.5483871 | CA39: -16.93548387 | CB39: -15.32258065 | CC39: -13.70967742 | CD39: -12.09677419 | CE39: -10.48387097 | CF39: -8.870967742 | CG39: -7.258064516 | CH39: -5.64516129 | CI39: -4.032258065 | CJ39: -2.419354839 | CK39: -0.8064516129 | CL39: 0.8064516129 | CM39: 2.419354839 | CN39: 4.032258065 | CO39: 5.64516129 | CP39: 7.258064516 | CQ39: 8.870967742 | CR39: 10.48387097 | CS39: 12.09677419 | CT39: 13.70967742 | CU39: 15.32258065 | CV39: 16.93548387 | CW39: 18.5483871 | CX39: 20.16129032 | CY39: 21.77419355 | CZ39: 23.38709677 | DA39: 25 | DC39: -16.93548387 | DE39: -25 | DF39: -23.38709677 | DG39: -21.77419355 | DH39: -20.16129032 | DI39: -18.5483871 | DJ39: -16.93548387 | DK39: -15.32258065 | DL39: -13.70967742 | DM39: -12.09677419 | DN39: -10.48387097 | DO39: -8.870967742 | DP39: -7.258064516 | DQ39: -5.64516129 | DR39: -4.032258065 | DS39: -2.419354839 | DT39: -0.8064516129 | DU39: 0.8064516129 | DV39: 2.419354839 | DW39: 4.032258065 | DX39: 5.64516129 | DY39: 7.258064516 | DZ39: 8.870967742 | EA39: 10.48387097 | EB39: 12.09677419 | EC39: 13.70967742 | ED39: 15.32258065 | EE39: 16.93548387 | EF39: 18.5483871 | EG39: 20.16129032 | EH39: 21.77419355 | EI39: 23.38709677 | EJ39: 25 | EL39: -16.93548387 | EN39: -25 | EO39: -23.38709677 | EP39: -21.77419355 | EQ39: -20.16129032 | ER39: -18.5483871 | ES39: -16.93548387 | ET39: -15.32258065 | EU39: -13.70967742 | EV39: -12.09677419 | EW39: -10.48387097 | EX39: -8.870967742 | EY39: -7.258064516 | EZ39: -5.64516129 | FA39: -4.032258065 | FB39: -2.419354839 | FC39: -0.8064516129 | FD39: 0.8064516129 | FE39: 2.419354839 | FF39: 4.032258065 | FG39: 5.64516129 | FH39: 7.258064516 | FI39: 8.870967742 | FJ39: 10.48387097 | FK39: 12.09677419 | FL39: 13.70967742 | FM39: 15.32258065 | FN39: 16.93548387 | FO39: 18.5483871 | FP39: 20.16129032 | FQ39: 21.77419355 | FR39: 23.38709677 | FS39: 25 | FU39: -16.93548387 | FW39: -25 | FX39: -23.38709677 | FY39: -21.77419355 | FZ39: -20.16129032 | GA39: -18.5483871 | GB39: -16.93548387 | GC39: -15.32258065 | GD39: -13.70967742 | GE39: -12.09677419 | GF39: -10.48387097 | GG39: -8.870967742 | GH39: -7.258064516 | GI39: -5.64516129 | GJ39: -4.032258065 | GK39: -2.419354839 | GL39: -0.8064516129 | GM39: 0.8064516129 | GN39: 2.419354839 | GO39: 4.032258065 | GP39: 5.64516129 | GQ39: 7.258064516 | GR39: 8.870967742 | GS39: 10.48387097 | GT39: 12.09677419 | GU39: 13.70967742 | GV39: 15.32258065 | GW39: 16.93548387 | GX39: 18.5483871 | GY39: 20.16129032 | GZ39: 21.77419355 | HA39: 23.38709677 | HB39: 25 | HD39: -16.93548387 | HF39: -25 | HG39: -23.38709677 | HH39: -21.77419355 | HI39: -20.16129032 | HJ39: -18.5483871 | HK39: -16.93548387 | HL39: -15.32258065 | HM39: -13.70967742 | HN39: -12.09677419 | HO39: -10.48387097 | HP39: -8.870967742 | HQ39: -7.258064516 | HR39: -5.64516129 | HS39: -4.032258065 | HT39: -2.419354839 | HU39: -0.8064516129 | HV39: 0.8064516129 | HW39: 2.419354839 | HX39: 4.032258065 | HY39: 5.64516129 | HZ39: 7.258064516 | IA39: 8.870967742 | IB39: 10.48387097 | IC39: 12.09677419 | ID39: 13.70967742 | IE39: 15.32258065 | IF39: 16.93548387 | IG39: 18.5483871 | IH39: 20.16129032 | II39: 21.77419355 | IJ39: 23.38709677 | IK39: 25 | IM39: -16.93548387 | IO39: -25 | IP39: -23.38709677 | IQ39: -21.77419355 | IR39: -20.16129032 | IS39: -18.5483871 | IT39: -16.93548387 | IU39: -15.32258065 | IV39: -13.70967742 | IW39: -12.09677419 | IX39: -10.48387097 | IY39: -8.870967742 | IZ39: -7.258064516 | JA39: -5.64516129 | JB39: -4.032258065 | JC39: -2.419354839 | JD39: -0.8064516129 | JE39: 0.8064516129 | JF39: 2.419354839 | JG39: 4.032258065 | JH39: 5.64516129 | JI39: 7.258064516 | JJ39: 8.870967742 | JK39: 10.48387097 | JL39: 12.09677419 | JM39: 13.70967742 | JN39: 15.32258065 | JO39: 16.93548387 | JP39: 18.5483871 | JQ39: 20.16129032 | JR39: 21.77419355 | JS39: 23.38709677 | JT39: 25 | JV39: -16.93548387 | JX39: -25 | JY39: -23.38709677 | JZ39: -21.77419355 | KA39: -20.16129032 | KB39: -18.5483871 | KC39: -16.93548387 | KD39: -15.32258065 | KE39: -13.70967742 | KF39: -12.09677419 | KG39: -10.48387097 | KH39: -8.870967742 | KI39: -7.258064516 | KJ39: -5.64516129 | KK39: -4.032258065 | KL39: -2.419354839 | KM39: -0.8064516129 | KN39: 0.8064516129 | KO39: 2.419354839 | KP39: 4.032258065 | KQ39: 5.64516129 | KR39: 7.258064516 | KS39: 8.870967742 | KT39: 10.48387097 | KU39: 12.09677419 | KV39: 13.70967742 | KW39: 15.32258065 | KX39: 16.93548387 | KY39: 18.5483871 | KZ39: 20.16129032 | LA39: 21.77419355 | LB39: 23.38709677 | LC39: 25 | LE39: -16.93548387 | LG39: -25 | LH39: -23.38709677 | LI39: -21.77419355 | LJ39: -20.16129032 | LK39: -18.5483871 | LL39: -16.93548387 | LM39: -15.32258065 | LN39: -13.70967742 | LO39: -12.09677419 | LP39: -10.48387097 | LQ39: -8.870967742 | LR39: -7.258064516 | LS39: -5.64516129 | LT39: -4.032258065 | LU39: -2.419354839 | LV39: -0.8064516129 | LW39: 0.8064516129 | LX39: 2.419354839 | LY39: 4.032258065 | LZ39: 5.64516129 | MA39: 7.258064516 | MB39: 8.870967742 | MC39: 10.48387097 | MD39: 12.09677419 | ME39: 13.70967742 | MF39: 15.32258065 | MG39: 16.93548387 | MH39: 18.5483871 | MI39: 20.16129032 | MJ39: 21.77419355 | MK39: 23.38709677 | ML39: 25 | MN39: -16.93548387 | MP39: -25 | MQ39: -23.38709677 | MR39: -21.77419355 | MS39: -20.16129032 | MT39: -18.5483871 | MU39: -16.93548387 | MV39: -15.32258065 | MW39: -13.70967742 | MX39: -12.09677419 | MY39: -10.48387097 | MZ39: -8.870967742 | NA39: -7.258064516 | NB39: -5.64516129 | NC39: -4.032258065 | ND39: -2.419354839 | NE39: -0.8064516129 | NF39: 0.8064516129 | NG39: 2.419354839 | NH39: 4.032258065 | NI39: 5.64516129 | NJ39: 7.258064516 | NK39: 8.870967742 | NL39: 10.48387097 | NM39: 12.09677419 | NN39: 13.70967742 | NO39: 15.32258065 | NP39: 16.93548387 | NQ39: 18.5483871 | NR39: 20.16129032 | NS39: 21.77419355 | NT39: 23.38709677 | NU39: 25 | NW39: -16.93548387 | NY39: -25 | NZ39: -23.38709677 | OA39: -21.77419355 | OB39: -20.16129032 | OC39: -18.5483871 | OD39: -16.93548387 | OE39: -15.32258065 | OF39: -13.70967742 | OG39: -12.09677419 | OH39: -10.48387097 | OI39: -8.870967742 | OJ39: -7.258064516 | OK39: -5.64516129 | OL39: -4.032258065 | OM39: -2.419354839 | ON39: -0.8064516129 | OO39: 0.8064516129 | OP39: 2.419354839 | OQ39: 4.032258065 | OR39: 5.64516129 | OS39: 7.258064516 | OT39: 8.870967742 | OU39: 10.48387097 | OV39: 12.09677419 | OW39: 13.70967742 | OX39: 15.32258065 | OY39: 16.93548387 | OZ39: 18.5483871 | PA39: 20.16129032 | PB39: 21.77419355 | PC39: 23.38709677 | PD39: 25
A40: 7 | B40: -15.32258065 | D40: -25 | E40: -23.38709677 | F40: -21.77419355 | G40: -20.16129032 | H40: -18.5483871 | I40: -16.93548387 | J40: -15.32258065 | K40: -13.70967742 | L40: -12.09677419 | M40: -10.48387097 | N40: -8.870967742 | O40: -7.258064516 | P40: -5.64516129 | Q40: -4.032258065 | R40: -2.419354839 | S40: -0.8064516129 | T40: 0.8064516129 | U40: 2.419354839 | V40: 4.032258065 | W40: 5.64516129 | X40: 7.258064516 | Y40: 8.870967742 | Z40: 10.48387097 | AA40: 12.09677419 | AB40: 13.70967742 | AC40: 15.32258065 | AD40: 16.93548387 | AE40: 18.5483871 | AF40: 20.16129032 | AG40: 21.77419355 | AH40: 23.38709677 | AI40: 25 | AK40: -15.32258065 | AM40: -25 | AN40: -23.38709677 | AO40: -21.77419355 | AP40: -20.16129032 | AQ40: -18.5483871 | AR40: -16.93548387 | AS40: -15.32258065 | AT40: -13.70967742 | AU40: -12.09677419 | AV40: -10.48387097 | AW40: -8.870967742 | AX40: -7.258064516 | AY40: -5.64516129 | AZ40: -4.032258065 | BA40: -2.419354839 | BB40: -0.8064516129 | BC40: 0.8064516129 | BD40: 2.419354839 | BE40: 4.032258065 | BF40: 5.64516129 | BG40: 7.258064516 | BH40: 8.870967742 | BI40: 10.48387097 | BJ40: 12.09677419 | BK40: 13.70967742 | BL40: 15.32258065 | BM40: 16.93548387 | BN40: 18.5483871 | BO40: 20.16129032 | BP40: 21.77419355 | BQ40: 23.38709677 | BR40: 25 | BT40: -15.32258065 | BV40: -25 | BW40: -23.38709677 | BX40: -21.77419355 | BY40: -20.16129032 | BZ40: -18.5483871 | CA40: -16.93548387 | CB40: -15.32258065 | CC40: -13.70967742 | CD40: -12.09677419 | CE40: -10.48387097 | CF40: -8.870967742 | CG40: -7.258064516 | CH40: -5.64516129 | CI40: -4.032258065 | CJ40: -2.419354839 | CK40: -0.8064516129 | CL40: 0.8064516129 | CM40: 2.419354839 | CN40: 4.032258065 | CO40: 5.64516129 | CP40: 7.258064516 | CQ40: 8.870967742 | CR40: 10.48387097 | CS40: 12.09677419 | CT40: 13.70967742 | CU40: 15.32258065 | CV40: 16.93548387 | CW40: 18.5483871 | CX40: 20.16129032 | CY40: 21.77419355 | CZ40: 23.38709677 | DA40: 25 | DC40: -15.32258065 | DE40: -25 | DF40: -23.38709677 | DG40: -21.77419355 | DH40: -20.16129032 | DI40: -18.5483871 | DJ40: -16.93548387 | DK40: -15.32258065 | DL40: -13.70967742 | DM40: -12.09677419 | DN40: -10.48387097 | DO40: -8.870967742 | DP40: -7.258064516 | DQ40: -5.64516129 | DR40: -4.032258065 | DS40: -2.419354839 | DT40: -0.8064516129 | DU40: 0.8064516129 | DV40: 2.419354839 | DW40: 4.032258065 | DX40: 5.64516129 | DY40: 7.258064516 | DZ40: 8.870967742 | EA40: 10.48387097 | EB40: 12.09677419 | EC40: 13.70967742 | ED40: 15.32258065 | EE40: 16.93548387 | EF40: 18.5483871 | EG40: 20.16129032 | EH40: 21.77419355 | EI40: 23.38709677 | EJ40: 25 | EL40: -15.32258065 | EN40: -25 | EO40: -23.38709677 | EP40: -21.77419355 | EQ40: -20.16129032 | ER40: -18.5483871 | ES40: -16.93548387 | ET40: -15.32258065 | EU40: -13.70967742 | EV40: -12.09677419 | EW40: -10.48387097 | EX40: -8.870967742 | EY40: -7.258064516 | EZ40: -5.64516129 | FA40: -4.032258065 | FB40: -2.419354839 | FC40: -0.8064516129 | FD40: 0.8064516129 | FE40: 2.419354839 | FF40: 4.032258065 | FG40: 5.64516129 | FH40: 7.258064516 | FI40: 8.870967742 | FJ40: 10.48387097 | FK40: 12.09677419 | FL40: 13.70967742 | FM40: 15.32258065 | FN40: 16.93548387 | FO40: 18.5483871 | FP40: 20.16129032 | FQ40: 21.77419355 | FR40: 23.38709677 | FS40: 25 | FU40: -15.32258065 | FW40: -25 | FX40: -23.38709677 | FY40: -21.77419355 | FZ40: -20.16129032 | GA40: -18.5483871 | GB40: -16.93548387 | GC40: -15.32258065 | GD40: -13.70967742 | GE40: -12.09677419 | GF40: -10.48387097 | GG40: -8.870967742 | GH40: -7.258064516 | GI40: -5.64516129 | GJ40: -4.032258065 | GK40: -2.419354839 | GL40: -0.8064516129 | GM40: 0.8064516129 | GN40: 2.419354839 | GO40: 4.032258065 | GP40: 5.64516129 | GQ40: 7.258064516 | GR40: 8.870967742 | GS40: 10.48387097 | GT40: 12.09677419 | GU40: 13.70967742 | GV40: 15.32258065 | GW40: 16.93548387 | GX40: 18.5483871 | GY40: 20.16129032 | GZ40: 21.77419355 | HA40: 23.38709677 | HB40: 25 | HD40: -15.32258065 | HF40: -25 | HG40: -23.38709677 | HH40: -21.77419355 | HI40: -20.16129032 | HJ40: -18.5483871 | HK40: -16.93548387 | HL40: -15.32258065 | HM40: -13.70967742 | HN40: -12.09677419 | HO40: -10.48387097 | HP40: -8.870967742 | HQ40: -7.258064516 | HR40: -5.64516129 | HS40: -4.032258065 | HT40: -2.419354839 | HU40: -0.8064516129 | HV40: 0.8064516129 | HW40: 2.419354839 | HX40: 4.032258065 | HY40: 5.64516129 | HZ40: 7.258064516 | IA40: 8.870967742 | IB40: 10.48387097 | IC40: 12.09677419 | ID40: 13.70967742 | IE40: 15.32258065 | IF40: 16.93548387 | IG40: 18.5483871 | IH40: 20.16129032 | II40: 21.77419355 | IJ40: 23.38709677 | IK40: 25 | IM40: -15.32258065 | IO40: -25 | IP40: -23.38709677 | IQ40: -21.77419355 | IR40: -20.16129032 | IS40: -18.5483871 | IT40: -16.93548387 | IU40: -15.32258065 | IV40: -13.70967742 | IW40: -12.09677419 | IX40: -10.48387097 | IY40: -8.870967742 | IZ40: -7.258064516 | JA40: -5.64516129 | JB40: -4.032258065 | JC40: -2.419354839 | JD40: -0.8064516129 | JE40: 0.8064516129 | JF40: 2.419354839 | JG40: 4.032258065 | JH40: 5.64516129 | JI40: 7.258064516 | JJ40: 8.870967742 | JK40: 10.48387097 | JL40: 12.09677419 | JM40: 13.70967742 | JN40: 15.32258065 | JO40: 16.93548387 | JP40: 18.5483871 | JQ40: 20.16129032 | JR40: 21.77419355 | JS40: 23.38709677 | JT40: 25 | JV40: -15.32258065 | JX40: -25 | JY40: -23.38709677 | JZ40: -21.77419355 | KA40: -20.16129032 | KB40: -18.5483871 | KC40: -16.93548387 | KD40: -15.32258065 | KE40: -13.70967742 | KF40: -12.09677419 | KG40: -10.48387097 | KH40: -8.870967742 | KI40: -7.258064516 | KJ40: -5.64516129 | KK40: -4.032258065 | KL40: -2.419354839 | KM40: -0.8064516129 | KN40: 0.8064516129 | KO40: 2.419354839 | KP40: 4.032258065 | KQ40: 5.64516129 | KR40: 7.258064516 | KS40: 8.870967742 | KT40: 10.48387097 | KU40: 12.09677419 | KV40: 13.70967742 | KW40: 15.32258065 | KX40: 16.93548387 | KY40: 18.5483871 | KZ40: 20.16129032 | LA40: 21.77419355 | LB40: 23.38709677 | LC40: 25 | LE40: -15.32258065 | LG40: -25 | LH40: -23.38709677 | LI40: -21.77419355 | LJ40: -20.16129032 | LK40: -18.5483871 | LL40: -16.93548387 | LM40: -15.32258065 | LN40: -13.70967742 | LO40: -12.09677419 | LP40: -10.48387097 | LQ40: -8.870967742 | LR40: -7.258064516 | LS40: -5.64516129 | LT40: -4.032258065 | LU40: -2.419354839 | LV40: -0.8064516129 | LW40: 0.8064516129 | LX40: 2.419354839 | LY40: 4.032258065 | LZ40: 5.64516129 | MA40: 7.258064516 | MB40: 8.870967742 | MC40: 10.48387097 | MD40: 12.09677419 | ME40: 13.70967742 | MF40: 15.32258065 | MG40: 16.93548387 | MH40: 18.5483871 | MI40: 20.16129032 | MJ40: 21.77419355 | MK40: 23.38709677 | ML40: 25 | MN40: -15.32258065 | MP40: -25 | MQ40: -23.38709677 | MR40: -21.77419355 | MS40: -20.16129032 | MT40: -18.5483871 | MU40: -16.93548387 | MV40: -15.32258065 | MW40: -13.70967742 | MX40: -12.09677419 | MY40: -10.48387097 | MZ40: -8.870967742 | NA40: -7.258064516 | NB40: -5.64516129 | NC40: -4.032258065 | ND40: -2.419354839 | NE40: -0.8064516129 | NF40: 0.8064516129 | NG40: 2.419354839 | NH40: 4.032258065 | NI40: 5.64516129 | NJ40: 7.258064516 | NK40: 8.870967742 | NL40: 10.48387097 | NM40: 12.09677419 | NN40: 13.70967742 | NO40: 15.32258065 | NP40: 16.93548387 | NQ40: 18.5483871 | NR40: 20.16129032 | NS40: 21.77419355 | NT40: 23.38709677 | NU40: 25 | NW40: -15.32258065 | NY40: -25 | NZ40: -23.38709677 | OA40: -21.77419355 | OB40: -20.16129032 | OC40: -18.5483871 | OD40: -16.93548387 | OE40: -15.32258065 | OF40: -13.70967742 | OG40: -12.09677419 | OH40: -10.48387097 | OI40: -8.870967742 | OJ40: -7.258064516 | OK40: -5.64516129 | OL40: -4.032258065 | OM40: -2.419354839 | ON40: -0.8064516129 | OO40: 0.8064516129 | OP40: 2.419354839 | OQ40: 4.032258065 | OR40: 5.64516129 | OS40: 7.258064516 | OT40: 8.870967742 | OU40: 10.48387097 | OV40: 12.09677419 | OW40: 13.70967742 | OX40: 15.32258065 | OY40: 16.93548387 | OZ40: 18.5483871 | PA40: 20.16129032 | PB40: 21.77419355 | PC40: 23.38709677 | PD40: 25
